Workbook

Sheet 1 INSTRUCTIVO
B2: Matriz Mapa de Riesgos
B4: De conformidad con lo establecido en el Decreto 1499 de 2017, mediante el cual se crea un solo Sistema de Gestión y se alinea con el Sistema de Control Interno a través del Modelo Integrado de Planeación y Gestión MIPG, modelo que incorpora la Dimensión 7 que desarrolla el Modelo Estándar de Control Interno MECI, el cual integra el esquema de líneas para una adecuada definición de roles y responsabilidades para la gestión del riesgo y control; y que, con la expedición de la Ley 2195 de 2022 que crea los Programas de Transparencia y Ética Pública PTEP, su Decreto reglamentario 1122 de 2024 que define la metodología para su estructuración, marco en el cual se establece el componente programático relacionado con la gestión del riesgo, se plantea la necesidad de establecer un proceso para la gestión integral del riesgo que permita a la Alta Dirección y los servidores en todos sus niveles identificar y controlar aquellas situaciones que pueden impedir el logro de los objetivos, así como para una adecuada protección de los recursos, con una decidida estrategia de lucha contra la corrupción, se propone el presente formato que desarrolla el esquema metodológico desplegado en la Guía para la Gestión Integral del Riesgo en Entidades Públicas versión 7. El formato permite desarrollar en cada hoja los pasos definidos a partir de análisis de contexto (interno y/o externo), los factores de riesgo para el proceso analizado, para pasar a la Identificación y descripción del riesgo, análisis de Riesgo Inherente, diseño y análisis de controles, y valoración de riesgo residual.
B6: Orientaciones Generales
B7: Antes de iniciar con el diligenciamiento de la matriz, se requiere haber avanzado en el análisis del contexto (interno y externo), luego específicamente considerar el proceso, su objetivo, alcance, actividades clave, procedimientos, sistema de información y otras herramientas que componen el Sistema de Gestión y Control de la entidad, como elementos esenciales para la identificación y descirpción del riesgo. En la etapa de análisis de riesgo inherente, donde se establece la probabilidad e impacto y zona de severidad del riesgo, se deberán atender los lineamientos para su definición (tablas y matriz) establecidos por la entidad, propuestas en la guía y que deberán adaptarse y ajustarse si es del caso en la estructura de la matriz en la hoja FÓRMULAS. En la etapa de diseño y análisis de controles, se establecen los controles (preventivos, detectivos, correctivos), aplicando la estructura para su redacción y la incorporación de los atributos de eficiencia e informativos. Finalmente en la etapa de valoracion del riesgo residual, se define la efectividad en la aplicación de los controles.
B9: Se debe ingresar información solo en las celdas identificadas con color NARANJA CLARO, las demás contienen formulas de autollenado, la matriz no se encuentra protegida, por lo que, es necesario validar que no se afecten para evitar errores o análisis incorrectos. Revise comentarios orientadores.
B11: El formato de fecha es: DD/MM/AAAA
B13: El archivo contiene las siguientes hojas:
B15: 1 INSTRUCTIVO: Identifica el contenido del archivo y su forma de diligenciamiento y funcionalidades.
B17: 2 CONTEXTO E IDENTIFICACIÓN: Se establece el Número, Descripción y Factor del riesgo
C19: Columna | E19: Descripción - Lineamientos para el diligenciamiento
C20: Proceso | E20: Diligencie el nombre del proceso al cual se le identificarán y valorarán los riesgos.
C21: Objetivo del Proceso | E21: Diligencie el objetivo del proceso.
C22: Elaboración o Actualización: | E22: Fecha en la que realiza el diligenciamiento o actualización del mapa de riesgos, formato (DD/MM/AAAA)
C23: Vigencia: | E23: Vigencia que tiene el mapa de riesgos fecha inicio fecha final, formato (DD/MM/AAAA)
C24: No. de Riesgo | E24: Permite definir un consecutivo de riesgos. Una entidad puede ir en el riesgo 150, pero tener 70 riesgos, lo que permite llevar una traza de los riesgos. Esta información la debe administrar la oficina asesora de planeación o gerencia de riesgos. Cuando un el riesgo salga del mapa no existirá otro riesgo con el mismo número.
C25: ¿QUÉ? IMPACTO | E25: Analice las consecuencias que puede ocasionar a la organización la materialización del riesgo, Seleccione de la lista desplegable entre: Posibilidad de pérdida Económica Posibilidad de pérdida Reputacional Posibilidad de pérdida Económica y Reputacional
C26: ¿CÓMO? CAUSA INMEDIATA | E26: Circunstancias bajo las cuales se presenta el riesgo, es la situación más evidente frente al riesgo, redacte de la forma más concreta posible. (Iniciar con la palabra por)
C27: ¿PORQUÉ? CAUSA RAÍZ | E27: Causa principal o básica, corresponde a las razones por la cuales se puede presentar el riesgo, redacte de la forma más concreta posible. (Iniciar con debido a o a causa de)
C28: DESCRIPCIÓN DEL RIESGO | E28: Consolida o resume los análisis sobre impacto + causa inmediata + causa raíz, permitiendo contar con una redacción clara y concreta del riesgo indentificado. Tenga en cuenta la estructura de alto nivel establecida en al guía, inicia con POSIBILIDAD DE + Impacto para la entidad (Qué) + Causa Inmediata (Cómo) + Causa Raíz (Por qué) (Se genera automáticamente)
C29: FACTOR DEL RIESGO / TIPO | E29: Seleccione de la lista desplegable entre las opiciones: A_Ejecución_y_Administración_de_procesos B_Fraude_Externo C_Fraude_Interno D_Fallas_Tecnológicas E_Relaciones_Laborales F_Usuarios_Productos_y_Prácticas_Organizacionales G_Daños_Activos_Físicos
C30: FACTOR DEL RIESGO / SELECCIONE FUENTE GENERADORA DEL EVENTO | E30: Una vez seleccione el Factor de Riesgo, debe definir la fuente generadora de la lista desplegable.
C31: DESCRIPCIÓN DEL FACTOR RIESGO | E31: Se genera automáticamente según lo seleccinado de FACTOR DEL RIESGO
B33: 3 PROBABIL E IMPACTO INHERENTE:
C35: Columna | E35: Descripción - Lineamientos para el diligenciamiento
C36: No. veces que realiza la actividad al año | E36: Defina el número de veces que se ejecuta la actividad durante el año, (Recuerde la probabilidad e ocurrencia del riesgo se define como el No. de veces que se pasa por el punto de riesgo en el periodo de 1 año). La matriz automáticamente hará el cálculo para el nivel de probabilidad inherente. La matriz calcula automáticamente: Frecuencia de la Actividad % Probabilidad Nivel Probabilidad
C37: Afectación Económica | E37: Selecciona de la lista desplegable el rango de afectación económica y la matriz calcula: % Nivel
C38: Reputacional | E38: Selecciona de la lista desplegable el rango de afectación reputacional y la matriz calcula: % Nivel
C39: Resultado / Porcentaje de Impacto / Nivel de Impacto | E39: Se calcula automáticamente según la información de afectación económica y reputacional
B41: 4 MAPA CALOR INHERENTE: Representación gráfica de la ubicación de cada riesgo inherente en el mapa de calor (En esta hoja no se ingresan datos)
B43: 5 VALORACIÓN DEL CONTROL: Para efecto de poder hacer los cálculos de forma acumulativa, tal como lo señala la metodología, se requiere hacer el análisis con los controles Preventivos y Detectivos que afectan la PROBABILIDAD de ocurrencia del riesgo (Diligenciar HOJA VALORACIÓN CONTROL PROBABILIDAD). Si se cuenta con controles Correctivos que afectan el IMPACTO del riesgo en caso de materialización (Diligenciar HOJA VALORACIÓN CONTROL IMPACTO). A partir de estos 2 análisis se contará con el cálculo de riesgo residual.
C45: Columna | E45: Descripción - Lineamientos para el diligenciamiento
C46: Descripción del Control | E46: Recuerde que el control se define como la medida que permite reducir o mitigar un riesgo. Defina el control (es) que atacan la causa raíz del riesgo, considere la estructura explicada en la guía: Responsable de ejecutar el control + Acción + Complemento
C47: Tipo de control | E47: Debe seleccionar de lista desplegable entre: Preventivo Detectivo Correctivo
C48: Peso del Control | E48: Se calcula automáticamente según lo seleccionado en Tipo de Control Preventivo: 25 % Detectivo: 15 % Correctivo: 10 %
C49: Afectación o Desplazamiento en la Matriz | E49: Se calcula automáticamente según lo seleccionado en Tipo de Control Preventivo: 25 % Detectivo: 15 % Correctivo: 10 %
C50: Implementación | E50: Debe seleccionar de lista desplegable entre: Automático: 25 % Manual: 15 %
C51: Peso de la implementación | E51: Se calcula automáticamente según lo seleccionado en Implementación: Manual Automático
C52: Atributos de formalización del control | E52: Debe seleccionar de listas desplegables Documentación: Procedimientos, Sistemas de Información, Otros esquemas, Combinación estructuras documentales y sistemas de información. Frecuencia: Siempre que se ejecuta la actividad, Periódicamente (diario, mensual, bimestral, trimestral, semestral). Evidencia: Con registro manual, Con registro electrónico, Combinado (manual y electrónico). Ejecución: Interna, Externa, Mixta.
C53: Valor Total del Control | E53: Se calcula automáticamente: Peso del Control + Peso de la implementación
C54: Probabilidad residual | E54: Se calcula automáticamente de acuerdo con el número de controles definidos (de forma acumulativa). Una vez calcule el último control en % Probabilidad Residual digite el valor final, automáticamente se refleja la colorimetría correspondiente.
C55: Impacto Residual | E55: Se calcula automáticamente de acuerdo con el número de controles definidos (de forma acumulativa). Una vez calcule el último control en % Impacto Residual digite el valor final, automáticamente se refleja la colorimetría correspondiente.
B57: 6 MAPA CALOR RESIDUAL: Representación gráfica de la ubicación de cada riesgo residual en el mapa de calor (En esta hoja no se ingresan datos)
B59: 7 MAPA CALOR INHEREN Y RESIDUAL: Comparación gráfica de la ubicación de cada riesgo inherente y residual en el mapa de calor (En esta hoja no se ingresan dados)
B61: 8 PERFIL DE RIESGO: Resumen calcula el nivel de riesgo del proceso (En esta hoja no se ingresan datos)
B62: 9 CONTROL DE CAMBIOS: En ella se debe registrar los cambios al formato y al contenido del mismo
B64: 10 FORMULAS: La información que contiene se utiliza para realizar operaciones en las demás hojas (En esta hoja no se ingresan datos). Utilicela en caso de requerir incluir ajustes en los descriptores de las tablas de probabilidad e impacto. NOTA: La hoja se encuentra oculta para evitar que se borren los datos, será posible hacerla visible con la opción mostrar (clic derecho sobre alguna de las pestañas).

Sheet 2 CONTEXTO E IDENTIFICACIÓN
A1: MAPA DE RIESGOS
A2: VERSIÓN: | B2: 1
A4: ENTIDAD: | B4: E.S.E. CENTRO DE SALUD DE USIACURI | E4: PROCESO: | I4: Elaboración o Actualización: | J4: 12/29/2025
A5: OBJETIVO DEL PROCESO: | E5: Vigencia: | F5: Del | G5: 2026-01-01 | I5: Al | J5: 2026-12-31
A7: No. de Riesgo (Mismo consecutivo para toda la entidad) | B7: FACTOR DEL RIESGO
B8: FACTOR DE RIESGO | C8: SELECCIONE FUENTE GENERADORA DEL EVENTO | D8: VALIDACIÓN FUENTE GENERADORA DEL EVENTO PARA TIPO A,B,C,D | E8: DESCRIPCIÓN DEL TIPO DE FACTOR DE RIESGO | F8: TIPOLOGÍA | G8: ¿QUÉ? IMPACTO | H8: ¿CÓMO? CAUSA INMEDIATA (Iniciar con la palabra por) | I8: ¿PORQUÉ? CAUSA RAÍZ (Iniciar con debido a/a causa de) | J8: DESCRIPCIÓN DEL RIESGO | K8: SUB CAUSAS (Si aplica)
A9: R1 | B9: Ejecución_administración_de_procesos | C9: Falta de capacitación y otros temas relacionados con el personal | D9: =+IF(B9='11 FORMULAS'!$B$4,'11 FORMULAS'!$C$4,IF(B9='11 FORMULAS'!$B$6,'11 FORMULAS'!$C$6,IF(B9='11 FORMULAS'!$B$8,'11 FORMULAS'!$C$8,IF(B9='11 FORMULAS'!$B$10,'11 FORMULAS'!$C$10,"")))) ->  | E9: =+IFERROR(VLOOKUP(B9,Tabla3[],2,0),"") -> Eventos relacionados con la ejecución de los procesos y procedimientos determinados para la operación de la entidad, uso de sistemas de información, por errores en las actividades que deben realizar los servidores de la organización. Estructura organizacional que afecta la capacidad organizacional | F9: Gestión | G9: Posibilidad de afectación reputacional | H9: Investigaciones disciplinarias y sanciones por entes de control | I9: Insuficiente participación en los procesos de capacitación y entrenamiento a los servidores públicos para la prestación del servicio, que afecta las competencias y conocimiento interno. | J9: =(CONCATENATE(Tabla1[[#This Row],[¿QUÉ? IMPACTO]]," ","por",Tabla1[[#This Row],[¿CÓMO? CAUSA INMEDIATA (Iniciar con la palabra por)]]," ","a causa de"," ",Tabla1[[#This Row],[¿PORQUÉ? CAUSA RAÍZ (Iniciar con debido a/a causa de)]])) -> Posibilidad de afectación reputacional por Investigaciones disciplinarias y sanciones por entes de control a causa de Insuficiente participación en los procesos de capacitación y entrenamiento a los servidores públicos para la prestación del servicio, que afecta las competencias y conocimiento interno.
A10: R2 | B10: Talento_Humano | C10: Fraude interno | D10: =+IF(B10='11 FORMULAS'!$B$4,'11 FORMULAS'!$C$4,IF(B10='11 FORMULAS'!$B$6,'11 FORMULAS'!$C$6,IF(B10='11 FORMULAS'!$B$8,'11 FORMULAS'!$C$8,IF(B10='11 FORMULAS'!$B$10,'11 FORMULAS'!$C$10,"")))) ->  | E10: =+IFERROR(VLOOKUP(B10,Tabla3[],2,0),"") -> Eventos relacionados con las conductas o comportamientos de los empleados que afectan la Integridad Pública | F10: Seguridad_Información | G10: Posibilidad de perdida de confidencialidad | H10: Investigaciones disciplinarias por entes de control. | I10: Incumplimiento de la ley 1712 de 2014 en lo concerniente a la información clasificada y reservada de las historias laborales de los servidores públicos. | J10: =(CONCATENATE(Tabla1[[#This Row],[¿QUÉ? IMPACTO]]," ","por",Tabla1[[#This Row],[¿CÓMO? CAUSA INMEDIATA (Iniciar con la palabra por)]]," ","a causa de"," ",Tabla1[[#This Row],[¿PORQUÉ? CAUSA RAÍZ (Iniciar con debido a/a causa de)]])) -> Posibilidad de perdida de confidencialidad por Investigaciones disciplinarias por entes de control. a causa de Incumplimiento de la ley 1712 de 2014 en lo concerniente a la información clasificada y reservada de las historias laborales de los servidores públicos.
A11: R3 | B11: Ejecución_administración_de_procesos | C11: Falta de aplicación de los procedimientos | D11: =+IF(B11='11 FORMULAS'!$B$4,'11 FORMULAS'!$C$4,IF(B11='11 FORMULAS'!$B$6,'11 FORMULAS'!$C$6,IF(B11='11 FORMULAS'!$B$8,'11 FORMULAS'!$C$8,IF(B11='11 FORMULAS'!$B$10,'11 FORMULAS'!$C$10,"")))) ->  | E11: =+IFERROR(VLOOKUP(B11,Tabla3[],2,0),"") -> Eventos relacionados con la ejecución de los procesos y procedimientos determinados para la operación de la entidad, uso de sistemas de información, por errores en las actividades que deben realizar los servidores de la organización. Estructura organizacional que afecta la capacidad organizacional | F11: Gestión | G11: Posibilidad de afectación reputacional | H11: Queja o reclamo de servidores de la Entidad | I11: Reporte de novedades fuera de los plazos definidos en el cronograma, | J11: =(CONCATENATE(Tabla1[[#This Row],[¿QUÉ? IMPACTO]]," ","por",Tabla1[[#This Row],[¿CÓMO? CAUSA INMEDIATA (Iniciar con la palabra por)]]," ","a causa de"," ",Tabla1[[#This Row],[¿PORQUÉ? CAUSA RAÍZ (Iniciar con debido a/a causa de)]])) -> Posibilidad de afectación reputacional por Queja o reclamo de servidores de la Entidad a causa de Reporte de novedades fuera de los plazos definidos en el cronograma,
A12: R4 | B12: Ejecución_administración_de_procesos | C12: Errores en cálculos para pagos internos y externos | D12: =+IF(B12='11 FORMULAS'!$B$4,'11 FORMULAS'!$C$4,IF(B12='11 FORMULAS'!$B$6,'11 FORMULAS'!$C$6,IF(B12='11 FORMULAS'!$B$8,'11 FORMULAS'!$C$8,IF(B12='11 FORMULAS'!$B$10,'11 FORMULAS'!$C$10,"")))) ->  | E12: =+IFERROR(VLOOKUP(B12,Tabla3[],2,0),"") -> Eventos relacionados con la ejecución de los procesos y procedimientos determinados para la operación de la entidad, uso de sistemas de información, por errores en las actividades que deben realizar los servidores de la organización. Estructura organizacional que afecta la capacidad organizacional | F12: Fiscal | G12: Posibilidad de efecto dañoso sobre el recurso público | H12: Sanciones e investigaciones de entes de control y judiciales | I12: Omisión en la liquidación y pago de la seguridad social y aportes a parafiscales. | J12: =(CONCATENATE(Tabla1[[#This Row],[¿QUÉ? IMPACTO]]," ","por",Tabla1[[#This Row],[¿CÓMO? CAUSA INMEDIATA (Iniciar con la palabra por)]]," ","a causa de"," ",Tabla1[[#This Row],[¿PORQUÉ? CAUSA RAÍZ (Iniciar con debido a/a causa de)]])) -> Posibilidad de efecto dañoso sobre el recurso público por Sanciones e investigaciones de entes de control y judiciales a causa de Omisión en la liquidación y pago de la seguridad social y aportes a parafiscales.
A13: R5 | B13: Ejecución_administración_de_procesos | C13: Falta de capacitación y otros temas relacionados con el personal | D13: =+IF(B13='11 FORMULAS'!$B$4,'11 FORMULAS'!$C$4,IF(B13='11 FORMULAS'!$B$6,'11 FORMULAS'!$C$6,IF(B13='11 FORMULAS'!$B$8,'11 FORMULAS'!$C$8,IF(B13='11 FORMULAS'!$B$10,'11 FORMULAS'!$C$10,"")))) ->  | E13: =+IFERROR(VLOOKUP(B13,Tabla3[],2,0),"") -> Eventos relacionados con la ejecución de los procesos y procedimientos determinados para la operación de la entidad, uso de sistemas de información, por errores en las actividades que deben realizar los servidores de la organización. Estructura organizacional que afecta la capacidad organizacional | F13: Gestión | G13: Posibilidad de afectación reputacional | H13: queja o reclamo de los grupos de valor interno | I13: actividades del plan de bienestar no ajustadas a las necesidades de los grupos de valor internos | J13: =(CONCATENATE(Tabla1[[#This Row],[¿QUÉ? IMPACTO]]," ","por",Tabla1[[#This Row],[¿CÓMO? CAUSA INMEDIATA (Iniciar con la palabra por)]]," ","a causa de"," ",Tabla1[[#This Row],[¿PORQUÉ? CAUSA RAÍZ (Iniciar con debido a/a causa de)]])) -> Posibilidad de afectación reputacional por queja o reclamo de los grupos de valor interno a causa de actividades del plan de bienestar no ajustadas a las necesidades de los grupos de valor internos
A14: R6 | B14: Ejecución_administración_de_procesos | C14: Errores en cálculos para pagos internos y externos | D14: =+IF(B14='11 FORMULAS'!$B$4,'11 FORMULAS'!$C$4,IF(B14='11 FORMULAS'!$B$6,'11 FORMULAS'!$C$6,IF(B14='11 FORMULAS'!$B$8,'11 FORMULAS'!$C$8,IF(B14='11 FORMULAS'!$B$10,'11 FORMULAS'!$C$10,"")))) ->  | E14: =+IFERROR(VLOOKUP(B14,Tabla3[],2,0),"") -> Eventos relacionados con la ejecución de los procesos y procedimientos determinados para la operación de la entidad, uso de sistemas de información, por errores en las actividades que deben realizar los servidores de la organización. Estructura organizacional que afecta la capacidad organizacional | F14: Gestión | G14: Posibilidad de afectación reputacional | H14: Información incompleta o inexacta | I14: Inconsistencias en la emisión de certificación electrónica de tiempos laborados (CETIL). | J14: =(CONCATENATE(Tabla1[[#This Row],[¿QUÉ? IMPACTO]]," ","por",Tabla1[[#This Row],[¿CÓMO? CAUSA INMEDIATA (Iniciar con la palabra por)]]," ","a causa de"," ",Tabla1[[#This Row],[¿PORQUÉ? CAUSA RAÍZ (Iniciar con debido a/a causa de)]])) -> Posibilidad de afectación reputacional por Información incompleta o inexacta a causa de Inconsistencias en la emisión de certificación electrónica de tiempos laborados (CETIL).
A15: R7 | B15: Talento_Humano | C15: Fraude interno | D15: =+IF(B15='11 FORMULAS'!$B$4,'11 FORMULAS'!$C$4,IF(B15='11 FORMULAS'!$B$6,'11 FORMULAS'!$C$6,IF(B15='11 FORMULAS'!$B$8,'11 FORMULAS'!$C$8,IF(B15='11 FORMULAS'!$B$10,'11 FORMULAS'!$C$10,"")))) ->  | E15: =+IFERROR(VLOOKUP(B15,Tabla3[],2,0),"") -> Eventos relacionados con las conductas o comportamientos de los empleados que afectan la Integridad Pública | F15: Gestión | G15: Posibilidad de afectación reputacional | H15: Comportamientos no éticos de los empleados | I15: Acceso no autorizado a la información confidencial de la Historia Laboral - HL o datos personales. | J15: =(CONCATENATE(Tabla1[[#This Row],[¿QUÉ? IMPACTO]]," ","por",Tabla1[[#This Row],[¿CÓMO? CAUSA INMEDIATA (Iniciar con la palabra por)]]," ","a causa de"," ",Tabla1[[#This Row],[¿PORQUÉ? CAUSA RAÍZ (Iniciar con debido a/a causa de)]])) -> Posibilidad de afectación reputacional por Comportamientos no éticos de los empleados a causa de Acceso no autorizado a la información confidencial de la Historia Laboral - HL o datos personales.
A16: R8 | B16: Ejecución_administración_de_procesos | C16: Acciones contrarias a las leyes o acuerdos de empleo, salud o seguridad en el trabajo | D16: =+IF(B16='11 FORMULAS'!$B$4,'11 FORMULAS'!$C$4,IF(B16='11 FORMULAS'!$B$6,'11 FORMULAS'!$C$6,IF(B16='11 FORMULAS'!$B$8,'11 FORMULAS'!$C$8,IF(B16='11 FORMULAS'!$B$10,'11 FORMULAS'!$C$10,"")))) ->  | E16: =+IFERROR(VLOOKUP(B16,Tabla3[],2,0),"") -> Eventos relacionados con la ejecución de los procesos y procedimientos determinados para la operación de la entidad, uso de sistemas de información, por errores en las actividades que deben realizar los servidores de la organización. Estructura organizacional que afecta la capacidad organizacional | F16: Fiscal | G16: Posibilidad de efecto dañoso sobre el recurso público | H16: Sanciones de entes reguladores y de control o demandas y quejas de los grupos de valor | I16: incumplimiento de estándares mínimos del Sistema de Gestión en Seguridad y Salud en el Trabajo( SG-SST). | J16: =(CONCATENATE(Tabla1[[#This Row],[¿QUÉ? IMPACTO]]," ","por",Tabla1[[#This Row],[¿CÓMO? CAUSA INMEDIATA (Iniciar con la palabra por)]]," ","a causa de"," ",Tabla1[[#This Row],[¿PORQUÉ? CAUSA RAÍZ (Iniciar con debido a/a causa de)]])) -> Posibilidad de efecto dañoso sobre el recurso público por Sanciones de entes reguladores y de control o demandas y quejas de los grupos de valor a causa de incumplimiento de estándares mínimos del Sistema de Gestión en Seguridad y Salud en el Trabajo( SG-SST).
A17: R9 | B17: Ejecución_administración_de_procesos | C17: Falta de aplicación de los procedimientos | D17: =+IF(B17='11 FORMULAS'!$B$4,'11 FORMULAS'!$C$4,IF(B17='11 FORMULAS'!$B$6,'11 FORMULAS'!$C$6,IF(B17='11 FORMULAS'!$B$8,'11 FORMULAS'!$C$8,IF(B17='11 FORMULAS'!$B$10,'11 FORMULAS'!$C$10,"")))) ->  | E17: =+IFERROR(VLOOKUP(B17,Tabla3[],2,0),"") -> Eventos relacionados con la ejecución de los procesos y procedimientos determinados para la operación de la entidad, uso de sistemas de información, por errores en las actividades que deben realizar los servidores de la organización. Estructura organizacional que afecta la capacidad organizacional | F17: Gestión | G17: Posibilidad de afectación económica y reputacional | H17: Errores en la presentacion, informacion | I17: Incumplimiento de no validada y presentada de manera oportuna, veraz, completa y conforme a la normatividad vigente. | J17: =(CONCATENATE(Tabla1[[#This Row],[¿QUÉ? IMPACTO]]," ","por",Tabla1[[#This Row],[¿CÓMO? CAUSA INMEDIATA (Iniciar con la palabra por)]]," ","a causa de"," ",Tabla1[[#This Row],[¿PORQUÉ? CAUSA RAÍZ (Iniciar con debido a/a causa de)]])) -> Posibilidad de afectación económica y reputacional por Errores en la presentacion, informacion a causa de Incumplimiento de no validada y presentada de manera oportuna, veraz, completa y conforme a la normatividad vigente. | K17: CONTABILIDAD
A18: R10 | B18: Ejecución_administración_de_procesos | C18: Falta de aplicación de los procedimientos | D18: =+IF(B18='11 FORMULAS'!$B$4,'11 FORMULAS'!$C$4,IF(B18='11 FORMULAS'!$B$6,'11 FORMULAS'!$C$6,IF(B18='11 FORMULAS'!$B$8,'11 FORMULAS'!$C$8,IF(B18='11 FORMULAS'!$B$10,'11 FORMULAS'!$C$10,"")))) ->  | E18: =+IFERROR(VLOOKUP(B18,Tabla3[],2,0),"") -> Eventos relacionados con la ejecución de los procesos y procedimientos determinados para la operación de la entidad, uso de sistemas de información, por errores en las actividades que deben realizar los servidores de la organización. Estructura organizacional que afecta la capacidad organizacional | F18: Gestión | G18: Posibilidad de afectación económica y reputacional | H18: Errores o inconsistencias en la elaboración de los estados financieros | I18: Omisión de políticas contables actualizadas conforme a la normatividad vigente (NICSP para entidades públicas). | J18: =(CONCATENATE(Tabla1[[#This Row],[¿QUÉ? IMPACTO]]," ","por",Tabla1[[#This Row],[¿CÓMO? CAUSA INMEDIATA (Iniciar con la palabra por)]]," ","a causa de"," ",Tabla1[[#This Row],[¿PORQUÉ? CAUSA RAÍZ (Iniciar con debido a/a causa de)]])) -> Posibilidad de afectación económica y reputacional por Errores o inconsistencias en la elaboración de los estados financieros a causa de Omisión de políticas contables actualizadas conforme a la normatividad vigente (NICSP para entidades públicas). | K18: CONTABILIDAD
A19: R11 | B19: Ejecución_administración_de_procesos | C19: Errores de grabación, autorización | D19: =+IF(B19='11 FORMULAS'!$B$4,'11 FORMULAS'!$C$4,IF(B19='11 FORMULAS'!$B$6,'11 FORMULAS'!$C$6,IF(B19='11 FORMULAS'!$B$8,'11 FORMULAS'!$C$8,IF(B19='11 FORMULAS'!$B$10,'11 FORMULAS'!$C$10,"")))) ->  | E19: =+IFERROR(VLOOKUP(B19,Tabla3[],2,0),"") -> Eventos relacionados con la ejecución de los procesos y procedimientos determinados para la operación de la entidad, uso de sistemas de información, por errores en las actividades que deben realizar los servidores de la organización. Estructura organizacional que afecta la capacidad organizacional | F19: Gestión | G19: Posibilidad de afectación económica y reputacional | H19: Registro contable equivocado de ingresos, egresos o transferencias. | I19: Conciliaciones realizadas de forma extemporánea o sin periodicidad definida. | J19: =(CONCATENATE(Tabla1[[#This Row],[¿QUÉ? IMPACTO]]," ","por",Tabla1[[#This Row],[¿CÓMO? CAUSA INMEDIATA (Iniciar con la palabra por)]]," ","a causa de"," ",Tabla1[[#This Row],[¿PORQUÉ? CAUSA RAÍZ (Iniciar con debido a/a causa de)]])) -> Posibilidad de afectación económica y reputacional por Registro contable equivocado de ingresos, egresos o transferencias. a causa de Conciliaciones realizadas de forma extemporánea o sin periodicidad definida. | K19: CONTABILIDAD
A20: R12 | B20: Ejecución_administración_de_procesos | C20: Falta de aplicación de los procedimientos | D20: =+IF(B20='11 FORMULAS'!$B$4,'11 FORMULAS'!$C$4,IF(B20='11 FORMULAS'!$B$6,'11 FORMULAS'!$C$6,IF(B20='11 FORMULAS'!$B$8,'11 FORMULAS'!$C$8,IF(B20='11 FORMULAS'!$B$10,'11 FORMULAS'!$C$10,"")))) ->  | E20: =+IFERROR(VLOOKUP(B20,Tabla3[],2,0),"") -> Eventos relacionados con la ejecución de los procesos y procedimientos determinados para la operación de la entidad, uso de sistemas de información, por errores en las actividades que deben realizar los servidores de la organización. Estructura organizacional que afecta la capacidad organizacional | F20: Gestión | G20: Posibilidad de afectación económica y reputacional | H20: Manejo inadecuado de la Caja Menor. | I20: Ausencia de conciliaciones y arqueos periódicos | J20: =(CONCATENATE(Tabla1[[#This Row],[¿QUÉ? IMPACTO]]," ","por",Tabla1[[#This Row],[¿CÓMO? CAUSA INMEDIATA (Iniciar con la palabra por)]]," ","a causa de"," ",Tabla1[[#This Row],[¿PORQUÉ? CAUSA RAÍZ (Iniciar con debido a/a causa de)]])) -> Posibilidad de afectación económica y reputacional por Manejo inadecuado de la Caja Menor. a causa de Ausencia de conciliaciones y arqueos periódicos | K20: CONTABILIDAD
A21: R13 | B21: Ejecución_administración_de_procesos | C21: Acciones contrarias a las leyes o acuerdos de empleo, salud o seguridad en el trabajo | D21: =+IF(B21='11 FORMULAS'!$B$4,'11 FORMULAS'!$C$4,IF(B21='11 FORMULAS'!$B$6,'11 FORMULAS'!$C$6,IF(B21='11 FORMULAS'!$B$8,'11 FORMULAS'!$C$8,IF(B21='11 FORMULAS'!$B$10,'11 FORMULAS'!$C$10,"")))) ->  | E21: =+IFERROR(VLOOKUP(B21,Tabla3[],2,0),"") -> Eventos relacionados con la ejecución de los procesos y procedimientos determinados para la operación de la entidad, uso de sistemas de información, por errores en las actividades que deben realizar los servidores de la organización. Estructura organizacional que afecta la capacidad organizacional | F21: Gestión | G21: Posibilidad de afectación económica y reputacional | H21: No reportes de accidentes e incidentes ante la ARL. | I21: Omisión en la presentación de reportes de accidentes e incidentes ante la ARL. | J21: =(CONCATENATE(Tabla1[[#This Row],[¿QUÉ? IMPACTO]]," ","por",Tabla1[[#This Row],[¿CÓMO? CAUSA INMEDIATA (Iniciar con la palabra por)]]," ","a causa de"," ",Tabla1[[#This Row],[¿PORQUÉ? CAUSA RAÍZ (Iniciar con debido a/a causa de)]])) -> Posibilidad de afectación económica y reputacional por No reportes de accidentes e incidentes ante la ARL. a causa de Omisión en la presentación de reportes de accidentes e incidentes ante la ARL.
A22: R14 | B22: Ejecución_administración_de_procesos | C22: Acciones contrarias a las leyes o acuerdos de empleo, salud o seguridad en el trabajo | D22: =+IF(B22='11 FORMULAS'!$B$4,'11 FORMULAS'!$C$4,IF(B22='11 FORMULAS'!$B$6,'11 FORMULAS'!$C$6,IF(B22='11 FORMULAS'!$B$8,'11 FORMULAS'!$C$8,IF(B22='11 FORMULAS'!$B$10,'11 FORMULAS'!$C$10,"")))) ->  | E22: =+IFERROR(VLOOKUP(B22,Tabla3[],2,0),"") -> Eventos relacionados con la ejecución de los procesos y procedimientos determinados para la operación de la entidad, uso de sistemas de información, por errores en las actividades que deben realizar los servidores de la organización. Estructura organizacional que afecta la capacidad organizacional | F22: Gestión | G22: Posibilidad de afectación económica y reputacional | H22: Omisión o retraso en la actualización de la matriz legal | I22: Posibilidad de omisión o retraso en la actualización de la matriz legal debido a falta del responsable designado. | J22: =(CONCATENATE(Tabla1[[#This Row],[¿QUÉ? IMPACTO]]," ","por",Tabla1[[#This Row],[¿CÓMO? CAUSA INMEDIATA (Iniciar con la palabra por)]]," ","a causa de"," ",Tabla1[[#This Row],[¿PORQUÉ? CAUSA RAÍZ (Iniciar con debido a/a causa de)]])) -> Posibilidad de afectación económica y reputacional por Omisión o retraso en la actualización de la matriz legal a causa de Posibilidad de omisión o retraso en la actualización de la matriz legal debido a falta del responsable designado.
A23: R15 | B23: Ejecución_administración_de_procesos | C23: Acciones contrarias a las leyes o acuerdos contractuales | D23: =+IF(B23='11 FORMULAS'!$B$4,'11 FORMULAS'!$C$4,IF(B23='11 FORMULAS'!$B$6,'11 FORMULAS'!$C$6,IF(B23='11 FORMULAS'!$B$8,'11 FORMULAS'!$C$8,IF(B23='11 FORMULAS'!$B$10,'11 FORMULAS'!$C$10,"")))) ->  | E23: =+IFERROR(VLOOKUP(B23,Tabla3[],2,0),"") -> Eventos relacionados con la ejecución de los procesos y procedimientos determinados para la operación de la entidad, uso de sistemas de información, por errores en las actividades que deben realizar los servidores de la organización. Estructura organizacional que afecta la capacidad organizacional | F23: Gestión | G23: Posibilidad de afectación económica y reputacional | H23: Investigaciones disciplinarias y sanciones por entes de control. | I23: Contratar personal sin el cumplimiento de requisitos | J23: =(CONCATENATE(Tabla1[[#This Row],[¿QUÉ? IMPACTO]]," ","por",Tabla1[[#This Row],[¿CÓMO? CAUSA INMEDIATA (Iniciar con la palabra por)]]," ","a causa de"," ",Tabla1[[#This Row],[¿PORQUÉ? CAUSA RAÍZ (Iniciar con debido a/a causa de)]])) -> Posibilidad de afectación económica y reputacional por Investigaciones disciplinarias y sanciones por entes de control. a causa de Contratar personal sin el cumplimiento de requisitos
A24: R16 | B24: Ejecución_administración_de_procesos | C24: Falta de capacitación y otros temas relacionados con el personal | D24: =+IF(B24='11 FORMULAS'!$B$4,'11 FORMULAS'!$C$4,IF(B24='11 FORMULAS'!$B$6,'11 FORMULAS'!$C$6,IF(B24='11 FORMULAS'!$B$8,'11 FORMULAS'!$C$8,IF(B24='11 FORMULAS'!$B$10,'11 FORMULAS'!$C$10,"")))) ->  | E24: =+IFERROR(VLOOKUP(B24,Tabla3[],2,0),"") -> Eventos relacionados con la ejecución de los procesos y procedimientos determinados para la operación de la entidad, uso de sistemas de información, por errores en las actividades que deben realizar los servidores de la organización. Estructura organizacional que afecta la capacidad organizacional | F24: Gestión | G24: Posibilidad de afectación reputacional | H24: Investigaciones disciplinarias y sanciones por entes de control | I24: Insuficiente participación en los procesos de capacitación y entrenamiento a los servidores públicos para la prestación del servicio, que afecta las competencias y conocimiento interno. | J24: =(CONCATENATE(Tabla1[[#This Row],[¿QUÉ? IMPACTO]]," ","por",Tabla1[[#This Row],[¿CÓMO? CAUSA INMEDIATA (Iniciar con la palabra por)]]," ","a causa de"," ",Tabla1[[#This Row],[¿PORQUÉ? CAUSA RAÍZ (Iniciar con debido a/a causa de)]])) -> Posibilidad de afectación reputacional porInvestigaciones disciplinarias y sanciones por entes de control a causa de Insuficiente participación en los procesos de capacitación y entrenamiento a los servidores públicos para la prestación del servicio, que afecta las competencias y conocimiento interno.
A25: R17 | B25: Ejecución_administración_de_procesos | C25: Falta de aplicación de los procedimientos | D25: =+IF(B25='11 FORMULAS'!$B$4,'11 FORMULAS'!$C$4,IF(B25='11 FORMULAS'!$B$6,'11 FORMULAS'!$C$6,IF(B25='11 FORMULAS'!$B$8,'11 FORMULAS'!$C$8,IF(B25='11 FORMULAS'!$B$10,'11 FORMULAS'!$C$10,"")))) ->  | E25: =+IFERROR(VLOOKUP(B25,Tabla3[],2,0),"") -> Eventos relacionados con la ejecución de los procesos y procedimientos determinados para la operación de la entidad, uso de sistemas de información, por errores en las actividades que deben realizar los servidores de la organización. Estructura organizacional que afecta la capacidad organizacional | F25: Gestión | G25: Posibilidad de afectación económica y reputacional | H25: Queja o reclamo de servidores de la Entidad. | I25: Reporte de novedades fuera de los plazos definidos en el cronograma | J25: =(CONCATENATE(Tabla1[[#This Row],[¿QUÉ? IMPACTO]]," ","por",Tabla1[[#This Row],[¿CÓMO? CAUSA INMEDIATA (Iniciar con la palabra por)]]," ","a causa de"," ",Tabla1[[#This Row],[¿PORQUÉ? CAUSA RAÍZ (Iniciar con debido a/a causa de)]])) -> Posibilidad de afectación económica y reputacional porQueja o reclamo de servidores de la Entidad. a causa de Reporte de novedades fuera de los plazos definidos en el cronograma
A26: R18 | B26: Ejecución_administración_de_procesos | C26: Acciones contrarias a las leyes o acuerdos contractuales | D26: =+IF(B26='11 FORMULAS'!$B$4,'11 FORMULAS'!$C$4,IF(B26='11 FORMULAS'!$B$6,'11 FORMULAS'!$C$6,IF(B26='11 FORMULAS'!$B$8,'11 FORMULAS'!$C$8,IF(B26='11 FORMULAS'!$B$10,'11 FORMULAS'!$C$10,"")))) ->  | E26: =+IFERROR(VLOOKUP(B26,Tabla3[],2,0),"") -> Eventos relacionados con la ejecución de los procesos y procedimientos determinados para la operación de la entidad, uso de sistemas de información, por errores en las actividades que deben realizar los servidores de la organización. Estructura organizacional que afecta la capacidad organizacional | F26: Gestión | G26: Posibilidad de afectación económica y reputacional | H26: Sanciones e investigaciones de entes de control y judiciales | I26: Omisión en la liquidación y pago de la seguridad social y aportes a parafiscales. | J26: =(CONCATENATE(Tabla1[[#This Row],[¿QUÉ? IMPACTO]]," ","por",Tabla1[[#This Row],[¿CÓMO? CAUSA INMEDIATA (Iniciar con la palabra por)]]," ","a causa de"," ",Tabla1[[#This Row],[¿PORQUÉ? CAUSA RAÍZ (Iniciar con debido a/a causa de)]])) -> Posibilidad de afectación económica y reputacional porSanciones e investigaciones de entes de control y judiciales a causa de Omisión en la liquidación y pago de la seguridad social y aportes a parafiscales.
A27: R19 | B27: Ejecución_administración_de_procesos | C27: Acciones contrarias a las leyes o acuerdos contractuales | D27: =+IF(B27='11 FORMULAS'!$B$4,'11 FORMULAS'!$C$4,IF(B27='11 FORMULAS'!$B$6,'11 FORMULAS'!$C$6,IF(B27='11 FORMULAS'!$B$8,'11 FORMULAS'!$C$8,IF(B27='11 FORMULAS'!$B$10,'11 FORMULAS'!$C$10,"")))) ->  | E27: =+IFERROR(VLOOKUP(B27,Tabla3[],2,0),"") -> Eventos relacionados con la ejecución de los procesos y procedimientos determinados para la operación de la entidad, uso de sistemas de información, por errores en las actividades que deben realizar los servidores de la organización. Estructura organizacional que afecta la capacidad organizacional | F27: Gestión | G27: Posibilidad de afectación económica y reputacional | H27: Información incompleta o inexacta | I27: Inconsistencias en la emisión de certificación electrónica de tiempos laborados (CETIL). | J27: =(CONCATENATE(Tabla1[[#This Row],[¿QUÉ? IMPACTO]]," ","por",Tabla1[[#This Row],[¿CÓMO? CAUSA INMEDIATA (Iniciar con la palabra por)]]," ","a causa de"," ",Tabla1[[#This Row],[¿PORQUÉ? CAUSA RAÍZ (Iniciar con debido a/a causa de)]])) -> Posibilidad de afectación económica y reputacional porInformación incompleta o inexacta a causa de Inconsistencias en la emisión de certificación electrónica de tiempos laborados (CETIL).
A28: R20 | B28: Ejecución_administración_de_procesos | C28: Falta de aplicación de los procedimientos | D28: =+IF(B28='11 FORMULAS'!$B$4,'11 FORMULAS'!$C$4,IF(B28='11 FORMULAS'!$B$6,'11 FORMULAS'!$C$6,IF(B28='11 FORMULAS'!$B$8,'11 FORMULAS'!$C$8,IF(B28='11 FORMULAS'!$B$10,'11 FORMULAS'!$C$10,"")))) ->  | E28: =+IFERROR(VLOOKUP(B28,Tabla3[],2,0),"") -> Eventos relacionados con la ejecución de los procesos y procedimientos determinados para la operación de la entidad, uso de sistemas de información, por errores en las actividades que deben realizar los servidores de la organización. Estructura organizacional que afecta la capacidad organizacional | F28: Fiscal | G28: Posibilidad de efecto dañoso sobre el recurso público | H28: Investigaciones disciplinarias por la autoridad competente | I28: Fallas en la prestación del servicio por el no cumplimiento a los requisitos minimos del exigidos en la seleccion del Talento Humano. | J28: =(CONCATENATE(Tabla1[[#This Row],[¿QUÉ? IMPACTO]]," ","por",Tabla1[[#This Row],[¿CÓMO? CAUSA INMEDIATA (Iniciar con la palabra por)]]," ","a causa de"," ",Tabla1[[#This Row],[¿PORQUÉ? CAUSA RAÍZ (Iniciar con debido a/a causa de)]])) -> Posibilidad de efecto dañoso sobre el recurso público porInvestigaciones disciplinarias por la autoridad competente a causa de Fallas en la prestación del servicio por el no cumplimiento a los requisitos minimos del exigidos en la seleccion del Talento Humano.
A29: R21 | B29: Ejecución_administración_de_procesos | C29: Falta de aplicación de los procedimientos | E29: =+IFERROR(VLOOKUP(B29,Tabla3[],2,0),"") -> Eventos relacionados con la ejecución de los procesos y procedimientos determinados para la operación de la entidad, uso de sistemas de información, por errores en las actividades que deben realizar los servidores de la organización. Estructura organizacional que afecta la capacidad organizacional | F29: Gestión | G29: Posibilidad de afectación reputacional | H29: Queja o reclamo de los grupos de valor interno | I29: Actividades del plan de bienestar no ajustadas a las necesidades de los grupos de valor internos | J29: =(CONCATENATE(Tabla1[[#This Row],[¿QUÉ? IMPACTO]]," ","por",Tabla1[[#This Row],[¿CÓMO? CAUSA INMEDIATA (Iniciar con la palabra por)]]," ","a causa de"," ",Tabla1[[#This Row],[¿PORQUÉ? CAUSA RAÍZ (Iniciar con debido a/a causa de)]])) -> Posibilidad de afectación reputacional por Queja o reclamo de los grupos de valor interno a causa de Actividades del plan de bienestar no ajustadas a las necesidades de los grupos de valor internos
A30: R22 | B30: Ejecución_administración_de_procesos | C30: Falta de aplicación de los procedimientos | E30: =+IFERROR(VLOOKUP(B30,Tabla3[],2,0),"") -> Eventos relacionados con la ejecución de los procesos y procedimientos determinados para la operación de la entidad, uso de sistemas de información, por errores en las actividades que deben realizar los servidores de la organización. Estructura organizacional que afecta la capacidad organizacional | F30: Gestión | G30: Posibilidad de afectación económica y reputacional | H30: Sanciones de entes reguladores y de control o demandas y quejas de los grupos de valor | I30: incumplimiento de estándares mínimos del Sistema de Gestión en Seguridad y Salud en el Trabajo( SG-SST). | J30: =(CONCATENATE(Tabla1[[#This Row],[¿QUÉ? IMPACTO]]," ","por",Tabla1[[#This Row],[¿CÓMO? CAUSA INMEDIATA (Iniciar con la palabra por)]]," ","a causa de"," ",Tabla1[[#This Row],[¿PORQUÉ? CAUSA RAÍZ (Iniciar con debido a/a causa de)]])) -> Posibilidad de afectación económica y reputacional porSanciones de entes reguladores y de control o demandas y quejas de los grupos de valor a causa de incumplimiento de estándares mínimos del Sistema de Gestión en Seguridad y Salud en el Trabajo( SG-SST).
A31: R23 | B31: Ejecución_administración_de_procesos | C31: Falta de aplicación de los procedimientos | E31: =+IFERROR(VLOOKUP(B31,Tabla3[],2,0),"") -> Eventos relacionados con la ejecución de los procesos y procedimientos determinados para la operación de la entidad, uso de sistemas de información, por errores en las actividades que deben realizar los servidores de la organización. Estructura organizacional que afecta la capacidad organizacional | F31: Gestión | G31: Posibilidad de afectación económica | H31: Probabilidad de recudo insuficiente por parte de la de cartera | I31: Gestion de recudo insuficiente por parte delos responsables de Cartera y Gerencia. | J31: =(CONCATENATE(Tabla1[[#This Row],[¿QUÉ? IMPACTO]]," ","por",Tabla1[[#This Row],[¿CÓMO? CAUSA INMEDIATA (Iniciar con la palabra por)]]," ","a causa de"," ",Tabla1[[#This Row],[¿PORQUÉ? CAUSA RAÍZ (Iniciar con debido a/a causa de)]])) -> Posibilidad de afectación económica porProbabilidad de recudo insuficiente por parte de la de cartera a causa de Gestion de recudo insuficiente por parte delos responsables de Cartera y Gerencia. | K31: CARTERA
A32: R24 | B32: Ejecución_administración_de_procesos | C32: Falta de aplicación de los procedimientos | E32: =+IFERROR(VLOOKUP(B32,Tabla3[],2,0),"") -> Eventos relacionados con la ejecución de los procesos y procedimientos determinados para la operación de la entidad, uso de sistemas de información, por errores en las actividades que deben realizar los servidores de la organización. Estructura organizacional que afecta la capacidad organizacional | F32: Gestión | G32: Posibilidad de afectación económica y reputacional | H32: Errores en la presentacion, informacion | I32: Incumplimiento de no validada y presentada de manera oportuna, veraz, completa y conforme a la normatividad vigente. | J32: =(CONCATENATE(Tabla1[[#This Row],[¿QUÉ? IMPACTO]]," ","por",Tabla1[[#This Row],[¿CÓMO? CAUSA INMEDIATA (Iniciar con la palabra por)]]," ","a causa de"," ",Tabla1[[#This Row],[¿PORQUÉ? CAUSA RAÍZ (Iniciar con debido a/a causa de)]])) -> Posibilidad de afectación económica y reputacional porErrores en la presentacion, informacion a causa de Incumplimiento de no validada y presentada de manera oportuna, veraz, completa y conforme a la normatividad vigente. | K32: CONTABILIDAD
A33: R25 | B33: Ejecución_administración_de_procesos | C33: Falta de aplicación de los procedimientos | E33: =+IFERROR(VLOOKUP(B33,Tabla3[],2,0),"") -> Eventos relacionados con la ejecución de los procesos y procedimientos determinados para la operación de la entidad, uso de sistemas de información, por errores en las actividades que deben realizar los servidores de la organización. Estructura organizacional que afecta la capacidad organizacional | F33: Gestión | G33: Posibilidad de afectación económica y reputacional | H33: Errores o inconsistencias en la elaboración de los estados financieros | I33: Omisión de políticas contables actualizadas conforme a la normatividad vigente (NIIF para entidades públicas en salud). | J33: =(CONCATENATE(Tabla1[[#This Row],[¿QUÉ? IMPACTO]]," ","por",Tabla1[[#This Row],[¿CÓMO? CAUSA INMEDIATA (Iniciar con la palabra por)]]," ","a causa de"," ",Tabla1[[#This Row],[¿PORQUÉ? CAUSA RAÍZ (Iniciar con debido a/a causa de)]])) -> Posibilidad de afectación económica y reputacional porErrores o inconsistencias en la elaboración de los estados financieros a causa de Omisión de políticas contables actualizadas conforme a la normatividad vigente (NIIF para entidades públicas en salud). | K33: CONTABILIDAD
A34: R26 | B34: Ejecución_administración_de_procesos | C34: Falta de aplicación de los procedimientos | E34: =+IFERROR(VLOOKUP(B34,Tabla3[],2,0),"") -> Eventos relacionados con la ejecución de los procesos y procedimientos determinados para la operación de la entidad, uso de sistemas de información, por errores en las actividades que deben realizar los servidores de la organización. Estructura organizacional que afecta la capacidad organizacional | F34: Gestión | G34: Posibilidad de afectación económica y reputacional | H34: Registro contable equivocado de ingresos, egresos o transferencias. | I34: Conciliaciones realizadas de forma extemporánea o sin periodicidad definida. | J34: =(CONCATENATE(Tabla1[[#This Row],[¿QUÉ? IMPACTO]]," ","por",Tabla1[[#This Row],[¿CÓMO? CAUSA INMEDIATA (Iniciar con la palabra por)]]," ","a causa de"," ",Tabla1[[#This Row],[¿PORQUÉ? CAUSA RAÍZ (Iniciar con debido a/a causa de)]])) -> Posibilidad de afectación económica y reputacional porRegistro contable equivocado de ingresos, egresos o transferencias. a causa de Conciliaciones realizadas de forma extemporánea o sin periodicidad definida. | K34: CONTABILIDAD
A35: R27 | B35: Ejecución_administración_de_procesos | C35: Falta de aplicación de los procedimientos | E35: =+IFERROR(VLOOKUP(B35,Tabla3[],2,0),"") -> Eventos relacionados con la ejecución de los procesos y procedimientos determinados para la operación de la entidad, uso de sistemas de información, por errores en las actividades que deben realizar los servidores de la organización. Estructura organizacional que afecta la capacidad organizacional | F35: Fiscal | G35: Posibilidad de efecto dañoso sobre el recurso público | H35: Manejo inadecuado de la Caja Menor. | I35: Ausencia de conciliaciones y arqueos periódicos | J35: =(CONCATENATE(Tabla1[[#This Row],[¿QUÉ? IMPACTO]]," ","por",Tabla1[[#This Row],[¿CÓMO? CAUSA INMEDIATA (Iniciar con la palabra por)]]," ","a causa de"," ",Tabla1[[#This Row],[¿PORQUÉ? CAUSA RAÍZ (Iniciar con debido a/a causa de)]])) -> Posibilidad de efecto dañoso sobre el recurso público porManejo inadecuado de la Caja Menor. a causa de Ausencia de conciliaciones y arqueos periódicos | K35: CONTABILIDAD
A36: R28 | B36: Ejecución_administración_de_procesos | C36: Falta de aplicación de los procedimientos | E36: =+IFERROR(VLOOKUP(B36,Tabla3[],2,0),"") -> Eventos relacionados con la ejecución de los procesos y procedimientos determinados para la operación de la entidad, uso de sistemas de información, por errores en las actividades que deben realizar los servidores de la organización. Estructura organizacional que afecta la capacidad organizacional | F36: Fiscal | G36: Posibilidad de efecto dañoso sobre el interes patrimonial | H36: Pérdida, extravío, hurto, robo o declaratoria de bienes muebles faltantes pertenecientes a la E.S.E. Hospiatal de Usiacuri | I36: Omisión en la aplicación del procedimiento para actualización del inventario de bienes muebles. | J36: =(CONCATENATE(Tabla1[[#This Row],[¿QUÉ? IMPACTO]]," ","por",Tabla1[[#This Row],[¿CÓMO? CAUSA INMEDIATA (Iniciar con la palabra por)]]," ","a causa de"," ",Tabla1[[#This Row],[¿PORQUÉ? CAUSA RAÍZ (Iniciar con debido a/a causa de)]])) -> Posibilidad de efecto dañoso sobre el interes patrimonial porPérdida, extravío, hurto, robo o declaratoria de bienes muebles faltantes pertenecientes a la E.S.E. Hospiatal de Usiacuri a causa de Omisión en la aplicación del procedimiento para actualización del inventario de bienes muebles.
A37: R29 | B37: Ejecución_administración_de_procesos | C37: Falta de aplicación de los procedimientos | E37: =+IFERROR(VLOOKUP(B37,Tabla3[],2,0),"") -> Eventos relacionados con la ejecución de los procesos y procedimientos determinados para la operación de la entidad, uso de sistemas de información, por errores en las actividades que deben realizar los servidores de la organización. Estructura organizacional que afecta la capacidad organizacional | F37: Fiscal | G37: Posibilidad de efecto dañoso sobre el recurso público | H37: Recobros de incapacidades. | I37: Debilidades en la gestión de controles operativos internos y seguimiento de las incapacidades. | J37: =(CONCATENATE(Tabla1[[#This Row],[¿QUÉ? IMPACTO]]," ","por",Tabla1[[#This Row],[¿CÓMO? CAUSA INMEDIATA (Iniciar con la palabra por)]]," ","a causa de"," ",Tabla1[[#This Row],[¿PORQUÉ? CAUSA RAÍZ (Iniciar con debido a/a causa de)]])) -> Posibilidad de efecto dañoso sobre el recurso público porRecobros de incapacidades. a causa de Debilidades en la gestión de controles operativos internos y seguimiento de las incapacidades.
A38: R30 | B38: Ejecución_administración_de_procesos | C38: Errores en cálculos para pagos internos y externos | E38: =+IFERROR(VLOOKUP(B38,Tabla3[],2,0),"") -> Eventos relacionados con la ejecución de los procesos y procedimientos determinados para la operación de la entidad, uso de sistemas de información, por errores en las actividades que deben realizar los servidores de la organización. Estructura organizacional que afecta la capacidad organizacional | F38: Fiscal | G38: Posibilidad de efecto dañoso sobre el recurso público | H38: Mayores valores pagados en la nómina. | I38: Inconsistencias en la información reportada en el software de nómina de la entidad. | J38: =(CONCATENATE(Tabla1[[#This Row],[¿QUÉ? IMPACTO]]," ","por",Tabla1[[#This Row],[¿CÓMO? CAUSA INMEDIATA (Iniciar con la palabra por)]]," ","a causa de"," ",Tabla1[[#This Row],[¿PORQUÉ? CAUSA RAÍZ (Iniciar con debido a/a causa de)]])) -> Posibilidad de efecto dañoso sobre el recurso público porMayores valores pagados en la nómina. a causa de Inconsistencias en la información reportada en el software de nómina de la entidad.
A39: R31 | B39: Ejecución_administración_de_procesos | C39: Falta de aplicación de los procedimientos | E39: =+IFERROR(VLOOKUP(B39,Tabla3[],2,0),"") -> Eventos relacionados con la ejecución de los procesos y procedimientos determinados para la operación de la entidad, uso de sistemas de información, por errores en las actividades que deben realizar los servidores de la organización. Estructura organizacional que afecta la capacidad organizacional | F39: Fiscal | G39: Posibilidad de efecto dañoso sobre el recurso público | H39: Expedición de actos administrativos y/o certificados | I39: Actos de fraude, actuaciones irregulares, comisión de hechos delictivos, abuso de confianza, apropiación indebida, incumplimiento de regulaciones legales o internas de la entidad. | J39: =(CONCATENATE(Tabla1[[#This Row],[¿QUÉ? IMPACTO]]," ","por",Tabla1[[#This Row],[¿CÓMO? CAUSA INMEDIATA (Iniciar con la palabra por)]]," ","a causa de"," ",Tabla1[[#This Row],[¿PORQUÉ? CAUSA RAÍZ (Iniciar con debido a/a causa de)]])) -> Posibilidad de efecto dañoso sobre el recurso público porExpedición de actos administrativos y/o certificados a causa de Actos de fraude, actuaciones irregulares, comisión de hechos delictivos, abuso de confianza, apropiación indebida, incumplimiento de regulaciones legales o internas de la entidad.
A40: R32 | B40: Ejecución_administración_de_procesos | C40: Falta de aplicación de los procedimientos | E40: =+IFERROR(VLOOKUP(B40,Tabla3[],2,0),"") -> Eventos relacionados con la ejecución de los procesos y procedimientos determinados para la operación de la entidad, uso de sistemas de información, por errores en las actividades que deben realizar los servidores de la organización. Estructura organizacional que afecta la capacidad organizacional | F40: Fiscal | G40: Posibilidad de efecto dañoso sobre el recurso público | H40: Pérdida, extravío, hurto, robo o faltantes de inventarios pertenecientes a la entidad | I40: inconsistencias contables, pérdidas económicas o afectaciones fiscales derivadas de la falta de integración del módulo de farmacia al software institucional | J40: =(CONCATENATE(Tabla1[[#This Row],[¿QUÉ? IMPACTO]]," ","por",Tabla1[[#This Row],[¿CÓMO? CAUSA INMEDIATA (Iniciar con la palabra por)]]," ","a causa de"," ",Tabla1[[#This Row],[¿PORQUÉ? CAUSA RAÍZ (Iniciar con debido a/a causa de)]])) -> Posibilidad de efecto dañoso sobre el recurso público por Pérdida, extravío, hurto, robo o faltantes de inventarios pertenecientes a la entidad a causa de inconsistencias contables, pérdidas económicas o afectaciones fiscales derivadas de la falta de integración del módulo de farmacia al software institucional
A41: R33 | B41: Ejecución_administración_de_procesos | C41: Falta de aplicación de los procedimientos | E41: =+IFERROR(VLOOKUP(B41,Tabla3[],2,0),"") -> Eventos relacionados con la ejecución de los procesos y procedimientos determinados para la operación de la entidad, uso de sistemas de información, por errores en las actividades que deben realizar los servidores de la organización. Estructura organizacional que afecta la capacidad organizacional | F41: Fiscal | G41: Posibilidad de efecto dañoso sobre el recurso público | H41: Pago de sancion y/o intereses moratorios | I41: Debilidades en el diligenciamiento del formular de retencion en la fuente, pago y resentacion por fuera de los plazos establecidos por el calendario DIAN. | J41: =(CONCATENATE(Tabla1[[#This Row],[¿QUÉ? IMPACTO]]," ","por",Tabla1[[#This Row],[¿CÓMO? CAUSA INMEDIATA (Iniciar con la palabra por)]]," ","a causa de"," ",Tabla1[[#This Row],[¿PORQUÉ? CAUSA RAÍZ (Iniciar con debido a/a causa de)]])) -> Posibilidad de efecto dañoso sobre el recurso público porPago de sancion y/o intereses moratorios a causa de Debilidades en el diligenciamiento del formular de retencion en la fuente, pago y resentacion por fuera de los plazos establecidos por el calendario DIAN. | K41: CONTABILIDAD
A42: R34 | B42: Ejecución_administración_de_procesos | C42: Falta de supervisión o interventoría | E42: =+IFERROR(VLOOKUP(B42,Tabla3[],2,0),"") -> Eventos relacionados con la ejecución de los procesos y procedimientos determinados para la operación de la entidad, uso de sistemas de información, por errores en las actividades que deben realizar los servidores de la organización. Estructura organizacional que afecta la capacidad organizacional | F42: Fiscal | G42: Posibilidad de efecto dañoso sobre el recurso público | H42: Ejecución de un alcance inferior al contratado y pago total del contrato | I42: Deficiencias en las funciones de Supervisión e Interventoría de los contratos de la Entidad | J42: =(CONCATENATE(Tabla1[[#This Row],[¿QUÉ? IMPACTO]]," ","por",Tabla1[[#This Row],[¿CÓMO? CAUSA INMEDIATA (Iniciar con la palabra por)]]," ","a causa de"," ",Tabla1[[#This Row],[¿PORQUÉ? CAUSA RAÍZ (Iniciar con debido a/a causa de)]])) -> Posibilidad de efecto dañoso sobre el recurso público porEjecución de un alcance inferior al contratado y pago total del contrato a causa de Deficiencias en las funciones de Supervisión e Interventoría de los contratos de la Entidad
A43: R35 | B43: Ejecución_administración_de_procesos | C43: Acciones contrarias a las leyes o acuerdos de empleo, salud o seguridad en el trabajo | E43: =+IFERROR(VLOOKUP(B43,Tabla3[],2,0),"") -> Eventos relacionados con la ejecución de los procesos y procedimientos determinados para la operación de la entidad, uso de sistemas de información, por errores en las actividades que deben realizar los servidores de la organización. Estructura organizacional que afecta la capacidad organizacional | F43: Fiscal | G43: Posibilidad de efecto dañoso sobre el recurso público | H43: Sanciones de tipo civil y penal por parte del Ministerio de Trabajo y otros entes de control por incumplimiento a la normatividad vigente en materia de riesgos laborales y seguridad y salud en el trabajo | I43: Procedimientos internos deficientes para identificar e implementar oportunamente acciones de prevención y manejo de los riesgos y peligros en el ambiente laboral | J43: =(CONCATENATE(Tabla1[[#This Row],[¿QUÉ? IMPACTO]]," ","por",Tabla1[[#This Row],[¿CÓMO? CAUSA INMEDIATA (Iniciar con la palabra por)]]," ","a causa de"," ",Tabla1[[#This Row],[¿PORQUÉ? CAUSA RAÍZ (Iniciar con debido a/a causa de)]])) -> Posibilidad de efecto dañoso sobre el recurso público porSanciones de tipo civil y penal por parte del Ministerio de Trabajo y otros entes de control por incumplimiento a la normatividad vigente en materia de riesgos laborales y seguridad y salud en el trabajo a causa de Procedimientos internos deficientes para identificar e implementar oportunamente acciones de prevención y manejo de los riesgos y peligros en el ambiente laboral
A44: R36 | B44: Ejecución_administración_de_procesos | C44: Falta de aplicación de los procedimientos | E44: =+IFERROR(VLOOKUP(B44,Tabla3[],2,0),"") -> Eventos relacionados con la ejecución de los procesos y procedimientos determinados para la operación de la entidad, uso de sistemas de información, por errores en las actividades que deben realizar los servidores de la organización. Estructura organizacional que afecta la capacidad organizacional | F44: Fiscal | G44: Posibilidad de efecto dañoso sobre el recurso público | H44: Pago de sancion y/o intereses moratorios | I44: Debilidades en el diligenciamiento del formulario de informacion exogena y/o presentacion por fuera de los plazos establecidos por el calendario DIAN. | J44: =(CONCATENATE(Tabla1[[#This Row],[¿QUÉ? IMPACTO]]," ","por",Tabla1[[#This Row],[¿CÓMO? CAUSA INMEDIATA (Iniciar con la palabra por)]]," ","a causa de"," ",Tabla1[[#This Row],[¿PORQUÉ? CAUSA RAÍZ (Iniciar con debido a/a causa de)]])) -> Posibilidad de efecto dañoso sobre el recurso público porPago de sancion y/o intereses moratorios a causa de Debilidades en el diligenciamiento del formulario de informacion exogena y/o presentacion por fuera de los plazos establecidos por el calendario DIAN. | K44: CONTABILIDAD
A45: R37 | B45: Ejecución_administración_de_procesos | C45: Falta de aplicación de los procedimientos | E45: =+IFERROR(VLOOKUP(B45,Tabla3[],2,0),"") -> Eventos relacionados con la ejecución de los procesos y procedimientos determinados para la operación de la entidad, uso de sistemas de información, por errores en las actividades que deben realizar los servidores de la organización. Estructura organizacional que afecta la capacidad organizacional | F45: Gestión | G45: Posibilidad de afectación reputacional | H45: Matriz legal desactualizada | I45: Omisión o retraso en la actualización de la matriz legal | J45: =(CONCATENATE(Tabla1[[#This Row],[¿QUÉ? IMPACTO]]," ","por",Tabla1[[#This Row],[¿CÓMO? CAUSA INMEDIATA (Iniciar con la palabra por)]]," ","a causa de"," ",Tabla1[[#This Row],[¿PORQUÉ? CAUSA RAÍZ (Iniciar con debido a/a causa de)]])) -> Posibilidad de afectación reputacional porMatriz legal desactualizada a causa de Omisión o retraso en la actualización de la matriz legal
A46: R38 | B46: Ejecución_administración_de_procesos | C46: Falta de aplicación de los procedimientos | E46: =+IFERROR(VLOOKUP(B46,Tabla3[],2,0),"") -> Eventos relacionados con la ejecución de los procesos y procedimientos determinados para la operación de la entidad, uso de sistemas de información, por errores en las actividades que deben realizar los servidores de la organización. Estructura organizacional que afecta la capacidad organizacional | F46: Gestión | G46: Posibilidad de afectación económica y reputacional | H46: Recibir o solicitar dádivas ó beneficios a nombre propio o de terceros | I46: Adulterar o cambiar información para minimizar el valor a cobrar por la prestación de servicios de salud. | J46: =(CONCATENATE(Tabla1[[#This Row],[¿QUÉ? IMPACTO]]," ","por",Tabla1[[#This Row],[¿CÓMO? CAUSA INMEDIATA (Iniciar con la palabra por)]]," ","a causa de"," ",Tabla1[[#This Row],[¿PORQUÉ? CAUSA RAÍZ (Iniciar con debido a/a causa de)]])) -> Posibilidad de afectación económica y reputacional porRecibir o solicitar dádivas ó beneficios a nombre propio o de terceros a causa de Adulterar o cambiar información para minimizar el valor a cobrar por la prestación de servicios de salud.
A47: R39 | B47: Ejecución_administración_de_procesos | C47: Falta de aplicación de los procedimientos | E47: =+IFERROR(VLOOKUP(B47,Tabla3[],2,0),"") -> Eventos relacionados con la ejecución de los procesos y procedimientos determinados para la operación de la entidad, uso de sistemas de información, por errores en las actividades que deben realizar los servidores de la organización. Estructura organizacional que afecta la capacidad organizacional | F47: Gestión | G47: Posibilidad de afectación económica y reputacional | H47: Manejo inadecuado de residuos hospitalarios y peligrosos | I47: Disposición transitoria incorrecta | J47: =(CONCATENATE(Tabla1[[#This Row],[¿QUÉ? IMPACTO]]," ","por",Tabla1[[#This Row],[¿CÓMO? CAUSA INMEDIATA (Iniciar con la palabra por)]]," ","a causa de"," ",Tabla1[[#This Row],[¿PORQUÉ? CAUSA RAÍZ (Iniciar con debido a/a causa de)]])) -> Posibilidad de afectación económica y reputacional porManejo inadecuado de residuos hospitalarios y peligrosos a causa de Disposición transitoria incorrecta
A48: R40 | B48: Ejecución_administración_de_procesos | C48: Falta de aplicación de los procedimientos | E48: =+IFERROR(VLOOKUP(B48,Tabla3[],2,0),"") -> Eventos relacionados con la ejecución de los procesos y procedimientos determinados para la operación de la entidad, uso de sistemas de información, por errores en las actividades que deben realizar los servidores de la organización. Estructura organizacional que afecta la capacidad organizacional | F48: Gestión | G48: Posibilidad de afectación económica y reputacional | H48: Suspensión parcial o total de áreas o servicios vitales para la atención en salud a los usuarios atendidos por la E.S.E.. | I48: Incumplimiento normativo en el lavado de tanques de agua potable y alteraciones en el análisis físico - químico y microbiológico de la calidad del agua. | J48: =(CONCATENATE(Tabla1[[#This Row],[¿QUÉ? IMPACTO]]," ","por",Tabla1[[#This Row],[¿CÓMO? CAUSA INMEDIATA (Iniciar con la palabra por)]]," ","a causa de"," ",Tabla1[[#This Row],[¿PORQUÉ? CAUSA RAÍZ (Iniciar con debido a/a causa de)]])) -> Posibilidad de afectación económica y reputacional porSuspensión parcial o total de áreas o servicios vitales para la atención en salud a los usuarios atendidos por la E.S.E.. a causa de Incumplimiento normativo en el lavado de tanques de agua potable y alteraciones en el análisis físico - químico y microbiológico de la calidad del agua.
A49: R41 | B49: Ejecución_administración_de_procesos | C49: Falta de aplicación de los procedimientos | E49: =+IFERROR(VLOOKUP(B49,Tabla3[],2,0),"") -> Eventos relacionados con la ejecución de los procesos y procedimientos determinados para la operación de la entidad, uso de sistemas de información, por errores en las actividades que deben realizar los servidores de la organización. Estructura organizacional que afecta la capacidad organizacional | F49: Gestión | G49: Posibilidad de afectación económica y reputacional | H49: Fallos judiciales en contra de la E.S.E. | I49: Contestación extemporanea en las demandas interpuestas en contra de la entidad. | J49: =(CONCATENATE(Tabla1[[#This Row],[¿QUÉ? IMPACTO]]," ","por",Tabla1[[#This Row],[¿CÓMO? CAUSA INMEDIATA (Iniciar con la palabra por)]]," ","a causa de"," ",Tabla1[[#This Row],[¿PORQUÉ? CAUSA RAÍZ (Iniciar con debido a/a causa de)]])) -> Posibilidad de afectación económica y reputacional porFallos judiciales en contra de la E.S.E. a causa de Contestación extemporanea en las demandas interpuestas en contra de la entidad.
A50: R42 | B50: Ejecución_administración_de_procesos | C50: Falta de aplicación de los procedimientos | E50: =+IFERROR(VLOOKUP(B50,Tabla3[],2,0),"") -> Eventos relacionados con la ejecución de los procesos y procedimientos determinados para la operación de la entidad, uso de sistemas de información, por errores en las actividades que deben realizar los servidores de la organización. Estructura organizacional que afecta la capacidad organizacional | F50: Gestión | G50: Posibilidad de afectación económica y reputacional | H50: No facturación de los servicios prestados. | I50: Inoportunidad o no registro de las atenciones en salud prestadas a los pacientes. | J50: =(CONCATENATE(Tabla1[[#This Row],[¿QUÉ? IMPACTO]]," ","por",Tabla1[[#This Row],[¿CÓMO? CAUSA INMEDIATA (Iniciar con la palabra por)]]," ","a causa de"," ",Tabla1[[#This Row],[¿PORQUÉ? CAUSA RAÍZ (Iniciar con debido a/a causa de)]])) -> Posibilidad de afectación económica y reputacional porNo facturación de los servicios prestados. a causa de Inoportunidad o no registro de las atenciones en salud prestadas a los pacientes.
A51: R43 | B51: Ejecución_administración_de_procesos | C51: Falta de aplicación de los procedimientos | E51: =+IFERROR(VLOOKUP(B51,Tabla3[],2,0),"") -> Eventos relacionados con la ejecución de los procesos y procedimientos determinados para la operación de la entidad, uso de sistemas de información, por errores en las actividades que deben realizar los servidores de la organización. Estructura organizacional que afecta la capacidad organizacional | F51: Gestión | G51: Posibilidad de afectación reputacional | H51: Falta de análisis y socialización de tendencias de PQRSD | I51: Procesos manuales o poco estandarizados | J51: =(CONCATENATE(Tabla1[[#This Row],[¿QUÉ? IMPACTO]]," ","por",Tabla1[[#This Row],[¿CÓMO? CAUSA INMEDIATA (Iniciar con la palabra por)]]," ","a causa de"," ",Tabla1[[#This Row],[¿PORQUÉ? CAUSA RAÍZ (Iniciar con debido a/a causa de)]])) -> Posibilidad de afectación reputacional porFalta de análisis y socialización de tendencias de PQRSD a causa de Procesos manuales o poco estandarizados
A52: R44 | B52: Ejecución_administración_de_procesos | C52: Falta de aplicación de los procedimientos | E52: =+IFERROR(VLOOKUP(B52,Tabla3[],2,0),"") -> Eventos relacionados con la ejecución de los procesos y procedimientos determinados para la operación de la entidad, uso de sistemas de información, por errores en las actividades que deben realizar los servidores de la organización. Estructura organizacional que afecta la capacidad organizacional | F52: Gestión | G52: Posibilidad de afectación económica y reputacional | H52: Multas, sanciones o llamados de atención por parte de los entes de control | I52: acumulación de solicitudes sin resolver, generando congestión en el sistema SIAU, debido al incumplimiento de los tiempos y procedimientos establecidos en la normatividad vigente. | J52: =(CONCATENATE(Tabla1[[#This Row],[¿QUÉ? IMPACTO]]," ","por",Tabla1[[#This Row],[¿CÓMO? CAUSA INMEDIATA (Iniciar con la palabra por)]]," ","a causa de"," ",Tabla1[[#This Row],[¿PORQUÉ? CAUSA RAÍZ (Iniciar con debido a/a causa de)]])) -> Posibilidad de afectación económica y reputacional porMultas, sanciones o llamados de atención por parte de los entes de control a causa de acumulación de solicitudes sin resolver, generando congestión en el sistema SIAU, debido al incumplimiento de los tiempos y procedimientos establecidos en la normatividad vigente.
A53: R45 | B53: Ejecución_administración_de_procesos | C53: Falta de aplicación de los procedimientos | E53: =+IFERROR(VLOOKUP(B53,Tabla3[],2,0),"") -> Eventos relacionados con la ejecución de los procesos y procedimientos determinados para la operación de la entidad, uso de sistemas de información, por errores en las actividades que deben realizar los servidores de la organización. Estructura organizacional que afecta la capacidad organizacional | F53: Gestión | G53: Posibilidad de afectación reputacional | H53: Pérdida de muestras sanguíneas, fluidos, citologías. | I53: Incumplimiento de protocolos de toma, transporte , entrega y recepción de muestras. | J53: =(CONCATENATE(Tabla1[[#This Row],[¿QUÉ? IMPACTO]]," ","por",Tabla1[[#This Row],[¿CÓMO? CAUSA INMEDIATA (Iniciar con la palabra por)]]," ","a causa de"," ",Tabla1[[#This Row],[¿PORQUÉ? CAUSA RAÍZ (Iniciar con debido a/a causa de)]])) -> Posibilidad de afectación reputacional porPérdida de muestras sanguíneas, fluidos, citologías. a causa de Incumplimiento de protocolos de toma, transporte , entrega y recepción de muestras. | K53: ASISTENCIAL

Sheet 11 FORMULAS (hidden)
A1: Esta hoja se utiliza para realizar cálculos en las demás, en ella no se ingresan datos | E1: NO REQUIERE CLAVE PARA DESBLOQUEAR LAS HOJAS
B2: FACTOR DEL RIESGO | E2: Eficiencia | K2: Atributos formalización del control | P2: Afectación o Desplazamiento en la Matriz | S2: Tratamiento | U2: ¿QUÉ? IMPACTO | W2: Estado
A3: TIPO | B3: TIPO | C3: FACTOR DEL RIESGO | E3: Tipo de control | F3: Peso del Control | H3: Implementación | I3: Peso de la implementación | K3: Documentación | L3: Frecuencia | M3: Evidencia | N3: Ejecuión | P3: Tipo de control | Q3: Afecta | S3: Reducir | U3: Posibilidad de pérdida Económica | W3: Sin Iniciar
A4: A_Ejecución_y_Administración_de_procesos | B4: A_Ejecución_y_Administración_de_procesos | C4: Procesos | E4: Preventivo | F4: 25% | H4: Automático | I4: 25% | K4: Procedimientos | L4: Siempre que se ejecuta la actividad | M4: Con registro manual | N4: Interna | P4: Preventivo | Q4: Probabilidad | S4: Mitigar | U4: Posibilidad de pérdida Reputacional | W4: En proceso
A5: B_Fraude_Externo | E5: Detectivo | F5: 15% | H5: Manual | I5: 15% | K5: Sistemas de información | L5: Periódicamente (diario, mensual, bimestral, trimestral, semestral). | M5: Con registro electrónico | N5: Externa | P5: Detectivo | Q5: Probabilidad | S5: Transferir | U5: Posibilidad de pérdida Económica y Reputacional | W5: Cerrado
A6: C_Fraude_Interno | B6: B_Fraude_Externo | C6: Evento_Externo | E6: Correctivo | F6: 10% | K6: Otros Esquemas | N6: Mixta | P6: Correctivo | Q6: Impacto | S6: Aceptar | U6: Posibilidad de pérdida Reputacional y Económica
A7: D_Fallas_Tecnológicas | S7: Evitar
A8: E_Relaciones_Laborales | B8: C_Fraude_Interno | C8: Talento_Humano
A9: F_Usuarios_Productos_y_Prácticas_Organizacionales
A10: G_Daños_Activos_Físicos | B10: D_Fallas_Tecnológicas | C10: Tecnologías
B12: E_Relaciones_Laborales | C12: Procesos
A13: TIPOLOGÍA | C13: Evento_Externo
A14: Gestión | C14: Talento_Humano
A15: Fiscal | C15: Tecnologías
A16: Seg. de la Información | C16: Infraestructura
A17: Integridad Pùblica - Corrupción
A18: Integridad Pùblica - LA/FT/FP | B18: F_Usuarios_Productos_y_Prácticas_Organizacionales | C18: Procesos
C19: Evento_Externo
C20: Talento_Humano
C21: Tecnologías
C22: Infraestructura
B24: G_Daños_Activos_Físicos | C24: Infraestructura
C25: Evento_Externo
A31: Gestión | B31: Fiscal | C31: Seguridad_Información | D31: Integridad_Pública_Corrupción | E31: Integridad_Pública_LA_FT_FP
A32: Posibilidad de afectación económica | B32: Posibilidad de efecto dañoso sobre el recurso público | C32: Posibilidad de perdida de integridad | D32: Posibilidad de afectación económica | E32: Posibilidad de afectación económica
A33: Posibilidad de afectación reputacional | B33: Posibilidad de efecto dañoso sobre bienes de uso público | C33: Posibilidad de perdida de confidencialidad | D33: Posibilidad de afectación reputacional | E33: Posibilidad de afectación reputacional
A34: Posibilidad de afectación económica y reputacional | B34: Posibilidad de efecto dañoso sobre bienes de uso fiscal | C34: Posibilidad de perdida de disponibilidad | D34: Posibilidad de afectación económica y reputacional | E34: Posibilidad de afectación económica y reputacional
B35: Posibilidad de efecto dañoso sobre el interes patrimonial
H37: FACTOR DE RIESGO | I37: Descripción
A38: Ejecución_administración_de_procesos | B38: Transacción_u_Operación_aplica_para_LA_FT_FP | C38: Talento_Humano | D38: Tecnología | E38: Infraestructura | F38: Evento_externo | H38: Ejecución_administración_de_procesos | I38: Eventos relacionados con la ejecución de los procesos y procedimientos determinados para la operación de la entidad, uso de sistemas de información, por errores en las actividades que deben realizar los servidores de la organización. Estructura organizacional que afecta la capacidad organizacional
A39: Falta de aplicación de los procedimientos | B39: Contrapartes de la entidad (naturales o jurídicas) | C39: Fraude interno | D39: Daño de equipos | E39: Derrumbes | F39: Fraude Externo | H39: Transacción_u_Operación_aplica_para_LA_FT_FP | I39: Eventos relacionados con transacciones y Operaciones realizadas por un cliente o usuario, que accede o entrega un bien o servicio a la entidad, a través de los canales dispuestos y en una jurisdicción específica.
A40: Falta segregación de funciones | B40: Productos (bienes o servicios) que oferta/requiere | C40: Soborno | D40: Caída de sistemas de información y aplicaciones | E40: Incendios | F40: Suplantación de identidad | H40: Talento_Humano | I40: Eventos relacionados con las conductas o comportamientos de los empleados que afectan la Integridad Pública
A41: Errores de grabación, autorización | B41: Canales utilizados para la operación | C41: Gestión inadecuada de conflicto de Intereses | D41: Caída de redes | E41: Inundaciones | F41: Asalto a la oficina | H41: Tecnología | I41: Eventos relacionados con la infraestructura tecnológica de la entidad.
A42: Errores en cálculos para pagos internos y externos | B42: Jurisdicciones (nacional o territorial) | C42: Corrupción | D42: Errores en hardware o software | E42: Daños a activos fijos | F42: Atentados, vandalismo, orden público | H42: Infraestructura | I42: Eventos relacionados con la infraestructura física de la entidad.
A43: Falta de supervisión o interventoría | D43: Errores en programas | H43: Evento_externo | I43: Eventos por situaciones externas que afectan la entidad.
A44: Alta rotación o insuficiencia de personal
A45: Acciones contrarias a las leyes o acuerdos de empleo, salud o seguridad en el trabajo
A46: Acciones contrarias a las leyes o acuerdos contractuales
A47: Falta de capacitación y otros temas relacionados con el personal
A50: Características de Eficiencia | C50: Peso | D50: Factor
A51: Tipo | B51: Preventivo | C51: 25% | D51: Probabilidad
B52: Detectivo | C52: 15% | D52: Probabilidad
B53: Correctivo | C53: 10% | D53: Impacto
A54: *Implementación | B54: Automático | C54: 25%
A55: *Nota: En implementación no se tienen controles semiautomáticos. | B55: Manual | C55: 15%
A58: Atributos adicionales del control no tienen valoración pero deben cumplir con todos
A59: Características de Eficiencia | C59: Descripción
A60: Documentación | B60: Procedimientos | C60: Basados en la estructura del Modelo de Operación por procesos, despliegue desde cada proceso, sus procedimientos y esquemas asociados, que se encuentren documentados.
B61: Sistemas de información | C61: Sistemas de información de apoyo a la ejecución del control (si existen).
B62: Otros Esquemas | C62: Políticas de operación, manuales o guías específicas.
B63: Combinación análisis documental y sistemas de información de apoyo | C63: Se aplican análisis documentales y registros en sistemas de información de apoyo.
A64: Frecuencia | B64: Siempre que se ejecuta la actividad | C64: La oportunidad en que se ejecuta el control debe ayudar a prevenir la mitigación del riesgo o a detectar la materialización del riesgo de manera oportuna.
B65: Diario
B66: Mensual
B67: Bimestral
B68: Trimestral
B69: Semestral
A70: Evidencia (Trazabilidad de la ejecución) | B70: Con registro manual | C70: Se deja evidencia o rastro de la ejecución del control.
B71: Con registro electrónico
B72: Combinado (manual y electrónico)
A73: Ejecución (Fuentes de información internas o externas) | B73: Interna | C73: Formatos o registros internos formales.
B74: Externa | C74: Registros externos confiables (extractos bancarios, confirmaciones de autenticidad de documentos, SECOP, SIIF, SIGEP, bases de datos).
B75: Mixta | C75: Combinación de datos de fuentes internas y externas formales.

Sheet 3 PROBABIL E IMPACTO INHERENTE
B1: =+'2 CONTEXTO E IDENTIFICACIÓN'!A1 -> MAPA DE RIESGOS
C2: =+'2 CONTEXTO E IDENTIFICACIÓN'!A2 -> VERSIÓN: | D2: ='2 CONTEXTO E IDENTIFICACIÓN'!B2 -> 1 | G2: =+'2 CONTEXTO E IDENTIFICACIÓN'!$I$4 -> Elaboración o Actualización: | H2: ='2 CONTEXTO E IDENTIFICACIÓN'!J4 -> 12/29/2025
A4: ENTIDAD: | B4: ='2 CONTEXTO E IDENTIFICACIÓN'!B4 -> E.S.E. CENTRO DE SALUD DE USIACURI | G4: =+'2 CONTEXTO E IDENTIFICACIÓN'!$E$5 -> Vigencia: | H4: ='2 CONTEXTO E IDENTIFICACIÓN'!G5 -> 2026-01-01 | I4: Al | J4: ='2 CONTEXTO E IDENTIFICACIÓN'!J5 -> 2026-12-31
A5: PROCESO: | B5: ='2 CONTEXTO E IDENTIFICACIÓN'!F4 -> 0
G6: IMPACTO INHERENTE
C7: PROBABILIDAD INHERENTE | G7: Afectación Económica | J7: Reputacional | M7: Resultado | P7: PROBABILIDAD | V7: IMPACTO
A8: No. Riesgo | B8: Riesgo | C8: No. veces que realiza la actividad al año | D8: Frecuencia de la Actividad | E8: % Probabilidad | F8: Nivel Probabilidad | G8: Afectación Económica | H8: % | I8: Nivel | J8: Reputacional | K8: % | L8: Nivel | M8: Porcentaje de Impacto | N8: Nivel de Impacto | P8: Nivel | Q8: Frecuencia de la Actividad | R8: Mínimo | S8: Máximo | T8: Probabilidad | V8: Nivel | W8: % Impacto | X8: Afectación_Económica | Y8: Reputacional
A9: ='2 CONTEXTO E IDENTIFICACIÓN'!A9 -> R1 | B9: =+'2 CONTEXTO E IDENTIFICACIÓN'!J9 -> Posibilidad de afectación reputacional por Investigaciones disciplinarias y sanciones por entes de control a causa de Insuficiente participación en los procesos de capacitación y entrenamiento a los servidores públicos para la prestación del servicio, que afecta las competencias y conocimiento interno. | C9: 50 | D9: =+IF(C9="","",IF(C9<=$S$9,$Q$9,IF(C9<=$S$10,$Q$10,IF(C9<=$S$11,$Q$11,IF(C9<=$S$12,$Q$12,IF(C9>=$R$13,$Q$13,"")))))) -> La actividad que conlleva el riesgo se ejecuta de 24 a 500 veces por año | E9: =+IF(D9="","",IF(D9=$Q$9,$T$9,IF(D9=$Q$10,$T$10,IF(D9=$Q$11,$T$11,IF(D9=$Q$12,$T$12,IF(D9=$Q$13,$T$13)))))) -> 60% | F9: =+IF(D9="","",IF(D9=$Q$9,$P$9,IF(D9=$Q$10,$P$10,IF(D9=$Q$11,$P$11,IF(D9=$Q$12,$P$12,IF(D9=$Q$13,$P$13)))))) -> Media | G9: N/A | H9: =+IF(G9="","",IF(G9="N/A","",IF(OR(G9=$X$9,G9=$Y$9),$W$9,IF(OR(G9=$X$10,G9=$Y$10),$W$10,IF(OR(G9=$X$11,G9=$Y$11),$W$11,IF(OR(G9=$X$12,G9=$Y$12),$W$12,IF(OR(G9=$X$13,G9=$Y$13),$W$13))))))) ->  | I9: =+IF(G9="","",IF(G9="N/A","",IF(OR(G9=$X$9,G9=$Y$9),$V$9,IF(OR(G9=$X$10,G9=$Y$10),$V$10,IF(OR(G9=$X$11,G9=$Y$11),$V$11,IF(OR(G9=$X$12,G9=$Y$12),$V$12,IF(OR(G9=$X$13,G9=$Y$13),$V$13))))))) ->  | J9: El riesgo afecta la imagen de algún área de la organización. | K9: =+IF(J9="","",IF(J9="N/A","",IF(OR(J9=$X$9,J9=$Y$9),$W$9,IF(OR(J9=$X$10,J9=$Y$10),$W$10,IF(OR(J9=$X$11,J9=$Y$11),$W$11,IF(OR(J9=$X$12,J9=$Y$12),$W$12,IF(OR(J9=$X$13,J9=$Y$13),$W$13))))))) -> 20% | L9: =+IF(J9="","",IF(J9="N/A","",IF(OR(J9=$X$9,J9=$Y$9),$V$9,IF(OR(J9=$X$10,J9=$Y$10),$V$10,IF(OR(J9=$X$11,J9=$Y$11),$V$11,IF(OR(J9=$X$12,J9=$Y$12),$V$12,IF(OR(J9=$X$13,J9=$Y$13),$V$13))))))) -> Leve | M9: =+IF(H9="",K9,IF(K9="",H9,IF(H9>K9,H9,K9))) -> 20% | N9: =+IF(M9="","",IF(M9=$W$9,$V$9,IF(M9=$W$10,$V$10,IF(M9=$W$11,$V$11,IF(M9=$W$12,$V$12,IF(M9=$W$13,$V$13)))))) -> Leve | P9: Muy Baja | Q9: La actividad que conlleva el riesgo se ejecuta como máximos 2 veces por año | R9: 0 | S9: 2 | T9: 20% | V9: Leve | W9: 20% | X9: Menor a 10 SMLMV | Y9: El riesgo afecta la imagen de algún área de la organización.
A10: ='2 CONTEXTO E IDENTIFICACIÓN'!A10 -> R2 | B10: =+'2 CONTEXTO E IDENTIFICACIÓN'!J10 -> Posibilidad de perdida de confidencialidad por Investigaciones disciplinarias por entes de control. a causa de Incumplimiento de la ley 1712 de 2014 en lo concerniente a la información clasificada y reservada de las historias laborales de los servidores públicos. | C10: 1095 | D10: La actividad que conlleva el riesgo se ejecuta mínimo 500 veces al año y máximo 5.000 veces por año | E10: 80% | F10: Alta | G10: N/A | H10: =+IF(G10="","",IF(G10="N/A","",IF(OR(G10=$X$9,G10=$Y$9),$W$9,IF(OR(G10=$X$10,G10=$Y$10),$W$10,IF(OR(G10=$X$11,G10=$Y$11),$W$11,IF(OR(G10=$X$12,G10=$Y$12),$W$12,IF(OR(G10=$X$13,G10=$Y$13),$W$13))))))) ->  | J10: El riesgo afecta la imagen de algún área de la organización. | K10: 20% | L10: Leve | M10: =+IF(H10="",K10,IF(K10="",H10,IF(H10>K10,H10,K10))) -> 20% | N10: =+IF(M10="","",IF(M10=$W$9,$V$9,IF(M10=$W$10,$V$10,IF(M10=$W$11,$V$11,IF(M10=$W$12,$V$12,IF(M10=$W$13,$V$13)))))) -> Leve | P10: Baja | Q10: La actividad que conlleva el riesgo se ejecuta de 3 a 24 veces por año | R10: 3 | S10: 24 | T10: 40% | V10: Menor | W10: 40% | X10: Entre 10 y 50 SMLMV | Y10: El riesgo afecta la imagen de la entidad internamente, de conocimiento general nivel interno, de junta directiva y accionistas y/o de proveedores.
A11: ='2 CONTEXTO E IDENTIFICACIÓN'!A11 -> R3 | B11: =+'2 CONTEXTO E IDENTIFICACIÓN'!J11 -> Posibilidad de afectación reputacional por Queja o reclamo de servidores de la Entidad a causa de Reporte de novedades fuera de los plazos definidos en el cronograma, | C11: 250 | D11: La actividad que conlleva el riesgo se ejecuta de 24 a 500 veces por año | E11: 60% | F11: Media | G11: N/A | J11: El riesgo afecta la imagen de algún área de la organización. | K11: 20% | L11: Leve | M11: =+IF(H11="",K11,IF(K11="",H11,IF(H11>K11,H11,K11))) -> 20% | N11: Leve | P11: Media | Q11: La actividad que conlleva el riesgo se ejecuta de 24 a 500 veces por año | R11: 25 | S11: 500 | T11: 60% | V11: Moderado | W11: 60% | X11: Entre 50 y 100 SMLMV | Y11: El riesgo afecta la imagen de la entidad con algunos usuarios de relevancia frente al logro de los objetivos.
A12: ='2 CONTEXTO E IDENTIFICACIÓN'!A12 -> R4 | B12: =+'2 CONTEXTO E IDENTIFICACIÓN'!J12 -> Posibilidad de efecto dañoso sobre el recurso público por Sanciones e investigaciones de entes de control y judiciales a causa de Omisión en la liquidación y pago de la seguridad social y aportes a parafiscales. | C12: 1036 | D12: La actividad que conlleva el riesgo se ejecuta mínimo 500 veces al año y máximo 5.000 veces por año | E12: 80% | F12: Alta | G12: Entre 100 y 500 SMLMV | H12: 80% | I12: Mayor | J12: El riesgo afecta la imagen de algún área de la organización. | K12: 20% | L12: Leve | M12: 80% | N12: Mayor | P12: Alta | Q12: La actividad que conlleva el riesgo se ejecuta mínimo 500 veces al año y máximo 5.000 veces por año | R12: 5001 | S12: 5000 | T12: 80% | V12: Mayor | W12: 80% | X12: Entre 100 y 500 SMLMV | Y12: El riesgo afecta la imagen de la entidad con efecto publicitario sostenido a nivel de sector administrativo, nivel departamental o municipal.
A13: ='2 CONTEXTO E IDENTIFICACIÓN'!A13 -> R5 | B13: =+'2 CONTEXTO E IDENTIFICACIÓN'!J13 -> Posibilidad de afectación reputacional por queja o reclamo de los grupos de valor interno a causa de actividades del plan de bienestar no ajustadas a las necesidades de los grupos de valor internos | C13: 12 | D13: La actividad que conlleva el riesgo se ejecuta de 3 a 24 veces por año | E13: 40% | F13: Baja | G13: N/A | J13: El riesgo afecta la imagen de algún área de la organización. | K13: 20% | L13: Leve | M13: 20% | N13: Leve | P13: Muy Alta | Q13: La actividad que conlleva el riesgo se ejecuta más de 5.000 veces por año | R13: 5001 | T13: 100% | V13: Catastrófico | W13: 100% | X13: Mayor a 500 SMLMV | Y13: El riesgo afecta la imagen de la entidad a nivel nacional, con efecto publicitario sostenido a nivel país
A14: ='2 CONTEXTO E IDENTIFICACIÓN'!A14 -> R6 | B14: =+'2 CONTEXTO E IDENTIFICACIÓN'!J14 -> Posibilidad de afectación reputacional por Información incompleta o inexacta a causa de Inconsistencias en la emisión de certificación electrónica de tiempos laborados (CETIL). | C14: 12 | D14: La actividad que conlleva el riesgo se ejecuta de 3 a 24 veces por año | E14: 40% | F14: Baja | G14: N/A | J14: El riesgo afecta la imagen de algún área de la organización. | K14: 20% | L14: Leve | M14: 20% | N14: Leve | X14: N/A | Y14: N/A
A15: ='2 CONTEXTO E IDENTIFICACIÓN'!A15 -> R7 | B15: =+'2 CONTEXTO E IDENTIFICACIÓN'!J15 -> Posibilidad de afectación reputacional por Comportamientos no éticos de los empleados a causa de Acceso no autorizado a la información confidencial de la Historia Laboral - HL o datos personales. | C15: 365 | D15: La actividad que conlleva el riesgo se ejecuta de 24 a 500 veces por año | E15: 60% | F15: Media | G15: N/A | J15: El riesgo afecta la imagen de algún área de la organización. | K15: 20% | L15: Leve | M15: 20% | N15: Leve
A16: ='2 CONTEXTO E IDENTIFICACIÓN'!A16 -> R8 | B16: =+'2 CONTEXTO E IDENTIFICACIÓN'!J16 -> Posibilidad de efecto dañoso sobre el recurso público por Sanciones de entes reguladores y de control o demandas y quejas de los grupos de valor a causa de incumplimiento de estándares mínimos del Sistema de Gestión en Seguridad y Salud en el Trabajo( SG-SST). | C16: 58 | D16: La actividad que conlleva el riesgo se ejecuta de 24 a 500 veces por año | E16: 60% | F16: Media | G16: Mayor a 500 SMLMV | H16: 100% | I16: Catastrófico | J16: El riesgo afecta la imagen de algún área de la organización. | K16: 20% | L16: Leve | M16: 100% | N16: Catastrófico
A17: ='2 CONTEXTO E IDENTIFICACIÓN'!A17 -> R9 | B17: =+'2 CONTEXTO E IDENTIFICACIÓN'!J17 -> Posibilidad de afectación económica y reputacional por Errores en la presentacion, informacion a causa de Incumplimiento de no validada y presentada de manera oportuna, veraz, completa y conforme a la normatividad vigente. | C17: 36 | D17: La actividad que conlleva el riesgo se ejecuta de 24 a 500 veces por año | E17: 60% | F17: Media | G17: Entre 10 y 50 SMLMV | H17: 40% | I17: Menor | J17: El riesgo afecta la imagen de algún área de la organización. | K17: 20% | L17: Leve | M17: 40% | N17: Menor
A18: ='2 CONTEXTO E IDENTIFICACIÓN'!A18 -> R10 | B18: =+'2 CONTEXTO E IDENTIFICACIÓN'!J18 -> Posibilidad de afectación económica y reputacional por Errores o inconsistencias en la elaboración de los estados financieros a causa de Omisión de políticas contables actualizadas conforme a la normatividad vigente (NICSP para entidades públicas). | C18: 365 | D18: La actividad que conlleva el riesgo se ejecuta de 24 a 500 veces por año | E18: 60% | F18: Media | G18: Entre 50 y 100 SMLMV | H18: 60% | I18: Moderado | J18: El riesgo afecta la imagen de la entidad con efecto publicitario sostenido a nivel de sector administrativo, nivel departamental o municipal. | K18: 80% | L18: Mayor | M18: 80% | N18: Mayor
A19: ='2 CONTEXTO E IDENTIFICACIÓN'!A19 -> R11 | B19: =+'2 CONTEXTO E IDENTIFICACIÓN'!J19 -> Posibilidad de afectación económica y reputacional por Registro contable equivocado de ingresos, egresos o transferencias. a causa de Conciliaciones realizadas de forma extemporánea o sin periodicidad definida. | C19: 136 | D19: La actividad que conlleva el riesgo se ejecuta de 24 a 500 veces por año | E19: 60% | F19: Media | G19: Entre 50 y 100 SMLMV | H19: 60% | I19: Moderado | J19: El riesgo afecta la imagen de algún área de la organización. | K19: 20% | L19: Leve | M19: 60% | N19: Moderado
A20: ='2 CONTEXTO E IDENTIFICACIÓN'!A20 -> R12 | B20: =+'2 CONTEXTO E IDENTIFICACIÓN'!J20 -> Posibilidad de afectación económica y reputacional por Manejo inadecuado de la Caja Menor. a causa de Ausencia de conciliaciones y arqueos periódicos | C20: 36 | D20: La actividad que conlleva el riesgo se ejecuta de 24 a 500 veces por año | E20: 60% | F20: Media | G20: Entre 10 y 50 SMLMV | H20: 40% | I20: Menor | J20: El riesgo afecta la imagen de algún área de la organización. | K20: 20% | L20: Leve | M20: 40% | N20: Menor
A21: ='2 CONTEXTO E IDENTIFICACIÓN'!A21 -> R13 | B21: =+'2 CONTEXTO E IDENTIFICACIÓN'!J21 -> Posibilidad de afectación económica y reputacional por No reportes de accidentes e incidentes ante la ARL. a causa de Omisión en la presentación de reportes de accidentes e incidentes ante la ARL. | C21: 365 | D21: La actividad que conlleva el riesgo se ejecuta de 24 a 500 veces por año | E21: 60% | F21: Media | G21: Entre 50 y 100 SMLMV | H21: 60% | I21: Moderado | J21: El riesgo afecta la imagen de algún área de la organización. | K21: 20% | L21: Leve | M21: 60% | N21: Moderado
A22: ='2 CONTEXTO E IDENTIFICACIÓN'!A22 -> R14 | B22: =+'2 CONTEXTO E IDENTIFICACIÓN'!J22 -> Posibilidad de afectación económica y reputacional por Omisión o retraso en la actualización de la matriz legal a causa de Posibilidad de omisión o retraso en la actualización de la matriz legal debido a falta del responsable designado. | C22: 1 | D22: La actividad que conlleva el riesgo se ejecuta como máximos 2 veces por año | E22: 20% | F22: Muy Baja | G22: Entre 50 y 100 SMLMV | H22: 60% | I22: Moderado | J22: El riesgo afecta la imagen de algún área de la organización. | K22: 20% | L22: Leve | M22: 60% | N22: Moderado
A23: ='2 CONTEXTO E IDENTIFICACIÓN'!A23 -> R15 | B23: =+'2 CONTEXTO E IDENTIFICACIÓN'!J23 -> Posibilidad de afectación económica y reputacional por Investigaciones disciplinarias y sanciones por entes de control. a causa de Contratar personal sin el cumplimiento de requisitos | C23: 365 | D23: La actividad que conlleva el riesgo se ejecuta de 24 a 500 veces por año | E23: 60% | F23: Media | G23: Entre 10 y 50 SMLMV | H23: 40% | I23: Menor | J23: El riesgo afecta la imagen de la entidad con algunos usuarios de relevancia frente al logro de los objetivos. | K23: 60% | L23: Moderado | M23: 60% | N23: Moderado
A24: ='2 CONTEXTO E IDENTIFICACIÓN'!A24 -> R16 | B24: =+'2 CONTEXTO E IDENTIFICACIÓN'!J24 -> Posibilidad de afectación reputacional porInvestigaciones disciplinarias y sanciones por entes de control a causa de Insuficiente participación en los procesos de capacitación y entrenamiento a los servidores públicos para la prestación del servicio, que afecta las competencias y conocimiento interno. | C24: 50 | D24: La actividad que conlleva el riesgo se ejecuta de 24 a 500 veces por año | E24: 60% | F24: Media | G24: Entre 50 y 100 SMLMV | H24: 60% | I24: Moderado | J24: El riesgo afecta la imagen de la entidad con algunos usuarios de relevancia frente al logro de los objetivos. | K24: 60% | L24: Moderado | M24: 60% | N24: Moderado
A25: ='2 CONTEXTO E IDENTIFICACIÓN'!A25 -> R17 | B25: =+'2 CONTEXTO E IDENTIFICACIÓN'!J25 -> Posibilidad de afectación económica y reputacional porQueja o reclamo de servidores de la Entidad. a causa de Reporte de novedades fuera de los plazos definidos en el cronograma | C25: 12 | D25: La actividad que conlleva el riesgo se ejecuta de 3 a 24 veces por año | E25: 40% | F25: Baja | G25: Entre 10 y 50 SMLMV | H25: 40% | I25: Menor | J25: El riesgo afecta la imagen de algún área de la organización. | K25: 20% | L25: Leve | M25: 40% | N25: Menor
A26: ='2 CONTEXTO E IDENTIFICACIÓN'!A26 -> R18 | B26: =+'2 CONTEXTO E IDENTIFICACIÓN'!J26 -> Posibilidad de afectación económica y reputacional porSanciones e investigaciones de entes de control y judiciales a causa de Omisión en la liquidación y pago de la seguridad social y aportes a parafiscales. | C26: 12 | D26: La actividad que conlleva el riesgo se ejecuta de 3 a 24 veces por año | E26: 40% | F26: Baja | G26: Entre 10 y 50 SMLMV | H26: 40% | I26: Menor | J26: El riesgo afecta la imagen de algún área de la organización. | K26: 20% | L26: Leve | M26: 40% | N26: Menor
A27: ='2 CONTEXTO E IDENTIFICACIÓN'!A27 -> R19 | B27: =+'2 CONTEXTO E IDENTIFICACIÓN'!J27 -> Posibilidad de afectación económica y reputacional porInformación incompleta o inexacta a causa de Inconsistencias en la emisión de certificación electrónica de tiempos laborados (CETIL). | C27: 12 | D27: La actividad que conlleva el riesgo se ejecuta de 3 a 24 veces por año | E27: 40% | F27: Baja | G27: Entre 10 y 50 SMLMV | H27: 40% | I27: Menor | J27: El riesgo afecta la imagen de la entidad con algunos usuarios de relevancia frente al logro de los objetivos. | K27: 60% | L27: Moderado | M27: 60% | N27: Moderado
A28: ='2 CONTEXTO E IDENTIFICACIÓN'!A28 -> R20 | B28: =+'2 CONTEXTO E IDENTIFICACIÓN'!J28 -> Posibilidad de efecto dañoso sobre el recurso público porInvestigaciones disciplinarias por la autoridad competente a causa de Fallas en la prestación del servicio por el no cumplimiento a los requisitos minimos del exigidos en la seleccion del Talento Humano. | C28: 230 | D28: La actividad que conlleva el riesgo se ejecuta de 24 a 500 veces por año | E28: 60% | F28: Media | G28: Entre 50 y 100 SMLMV | H28: 60% | I28: Moderado | J28: El riesgo afecta la imagen de la entidad con efecto publicitario sostenido a nivel de sector administrativo, nivel departamental o municipal. | K28: 80% | L28: Mayor | M28: 80% | N28: Mayor
A29: ='2 CONTEXTO E IDENTIFICACIÓN'!A29 -> R21 | B29: =+'2 CONTEXTO E IDENTIFICACIÓN'!J29 -> Posibilidad de afectación reputacional por Queja o reclamo de los grupos de valor interno a causa de Actividades del plan de bienestar no ajustadas a las necesidades de los grupos de valor internos | C29: 60 | D29: La actividad que conlleva el riesgo se ejecuta de 24 a 500 veces por año | E29: 60% | F29: Media | G29: N/A | J29: El riesgo afecta la imagen de algún área de la organización. | K29: 20% | L29: Leve | M29: 20% | N29: Leve
A30: ='2 CONTEXTO E IDENTIFICACIÓN'!A30 -> R22 | B30: =+'2 CONTEXTO E IDENTIFICACIÓN'!J30 -> Posibilidad de afectación económica y reputacional porSanciones de entes reguladores y de control o demandas y quejas de los grupos de valor a causa de incumplimiento de estándares mínimos del Sistema de Gestión en Seguridad y Salud en el Trabajo( SG-SST). | C30: 365 | D30: La actividad que conlleva el riesgo se ejecuta de 24 a 500 veces por año | E30: 60% | F30: Media | G30: Entre 100 y 500 SMLMV | H30: 80% | I30: Mayor | J30: El riesgo afecta la imagen de la entidad con efecto publicitario sostenido a nivel de sector administrativo, nivel departamental o municipal. | K30: 80% | L30: Mayor | M30: 80% | N30: Mayor
A31: ='2 CONTEXTO E IDENTIFICACIÓN'!A31 -> R23 | B31: =+'2 CONTEXTO E IDENTIFICACIÓN'!J31 -> Posibilidad de afectación económica porProbabilidad de recudo insuficiente por parte de la de cartera a causa de Gestion de recudo insuficiente por parte delos responsables de Cartera y Gerencia. | C31: 50 | D31: La actividad que conlleva el riesgo se ejecuta de 24 a 500 veces por año | E31: 60% | F31: Media | G31: Entre 100 y 500 SMLMV | H31: 80% | I31: Mayor | J31: El riesgo afecta la imagen de la entidad internamente, de conocimiento general nivel interno, de junta directiva y accionistas y/o de proveedores. | K31: 40% | L31: Menor | M31: 80% | N31: Mayor
A32: ='2 CONTEXTO E IDENTIFICACIÓN'!A32 -> R24 | B32: =+'2 CONTEXTO E IDENTIFICACIÓN'!J32 -> Posibilidad de afectación económica y reputacional porErrores en la presentacion, informacion a causa de Incumplimiento de no validada y presentada de manera oportuna, veraz, completa y conforme a la normatividad vigente. | C32: 20 | D32: La actividad que conlleva el riesgo se ejecuta de 3 a 24 veces por año | E32: 40% | F32: Baja | G32: Entre 50 y 100 SMLMV | H32: 60% | I32: Moderado | J32: El riesgo afecta la imagen de algún área de la organización. | K32: 20% | L32: Leve | M32: 60% | N32: Moderado
A33: ='2 CONTEXTO E IDENTIFICACIÓN'!A33 -> R25 | B33: =+'2 CONTEXTO E IDENTIFICACIÓN'!J33 -> Posibilidad de afectación económica y reputacional porErrores o inconsistencias en la elaboración de los estados financieros a causa de Omisión de políticas contables actualizadas conforme a la normatividad vigente (NIIF para entidades públicas en salud). | C33: 24 | D33: La actividad que conlleva el riesgo se ejecuta de 3 a 24 veces por año | E33: 40% | F33: Baja | G33: Entre 50 y 100 SMLMV | H33: 60% | I33: Moderado | J33: El riesgo afecta la imagen de algún área de la organización. | K33: 20% | L33: Leve | M33: 60% | N33: Moderado
A34: ='2 CONTEXTO E IDENTIFICACIÓN'!A34 -> R26 | B34: =+'2 CONTEXTO E IDENTIFICACIÓN'!J34 -> Posibilidad de afectación económica y reputacional porRegistro contable equivocado de ingresos, egresos o transferencias. a causa de Conciliaciones realizadas de forma extemporánea o sin periodicidad definida. | C34: 48 | D34: La actividad que conlleva el riesgo se ejecuta de 24 a 500 veces por año | E34: 60% | F34: Media | G34: Entre 100 y 500 SMLMV | H34: 80% | I34: Mayor | J34: El riesgo afecta la imagen de algún área de la organización. | K34: 20% | L34: Leve | M34: 80% | N34: Mayor
A35: ='2 CONTEXTO E IDENTIFICACIÓN'!A35 -> R27 | B35: =+'2 CONTEXTO E IDENTIFICACIÓN'!J35 -> Posibilidad de efecto dañoso sobre el recurso público porManejo inadecuado de la Caja Menor. a causa de Ausencia de conciliaciones y arqueos periódicos | C35: 12 | D35: La actividad que conlleva el riesgo se ejecuta de 3 a 24 veces por año | E35: 40% | F35: Baja | G35: Menor a 10 SMLMV | H35: 20% | I35: Leve | J35: El riesgo afecta la imagen de algún área de la organización. | K35: 20% | L35: Leve | M35: 20% | N35: Leve
A36: ='2 CONTEXTO E IDENTIFICACIÓN'!A36 -> R28 | B36: =+'2 CONTEXTO E IDENTIFICACIÓN'!J36 -> Posibilidad de efecto dañoso sobre el interes patrimonial porPérdida, extravío, hurto, robo o declaratoria de bienes muebles faltantes pertenecientes a la E.S.E. Hospiatal de Usiacuri a causa de Omisión en la aplicación del procedimiento para actualización del inventario de bienes muebles. | C36: 365 | D36: La actividad que conlleva el riesgo se ejecuta de 24 a 500 veces por año | E36: 60% | F36: Media | G36: Menor a 10 SMLMV | H36: 20% | I36: Leve | J36: El riesgo afecta la imagen de algún área de la organización. | K36: 20% | L36: Leve | M36: 20% | N36: Leve
A37: ='2 CONTEXTO E IDENTIFICACIÓN'!A37 -> R29 | B37: =+'2 CONTEXTO E IDENTIFICACIÓN'!J37 -> Posibilidad de efecto dañoso sobre el recurso público porRecobros de incapacidades. a causa de Debilidades en la gestión de controles operativos internos y seguimiento de las incapacidades. | C37: 365 | D37: La actividad que conlleva el riesgo se ejecuta de 24 a 500 veces por año | E37: 60% | F37: Media | G37: Entre 50 y 100 SMLMV | H37: 60% | I37: Moderado | J37: El riesgo afecta la imagen de algún área de la organización. | K37: 20% | L37: Leve | M37: 60% | N37: Moderado
A38: ='2 CONTEXTO E IDENTIFICACIÓN'!A38 -> R30 | B38: =+'2 CONTEXTO E IDENTIFICACIÓN'!J38 -> Posibilidad de efecto dañoso sobre el recurso público porMayores valores pagados en la nómina. a causa de Inconsistencias en la información reportada en el software de nómina de la entidad. | C38: 12 | D38: La actividad que conlleva el riesgo se ejecuta de 3 a 24 veces por año | E38: 40% | F38: Baja | G38: Entre 50 y 100 SMLMV | H38: 60% | I38: Moderado | J38: El riesgo afecta la imagen de algún área de la organización. | K38: 20% | L38: Leve | M38: 60% | N38: Moderado
A39: ='2 CONTEXTO E IDENTIFICACIÓN'!A39 -> R31 | B39: =+'2 CONTEXTO E IDENTIFICACIÓN'!J39 -> Posibilidad de efecto dañoso sobre el recurso público porExpedición de actos administrativos y/o certificados a causa de Actos de fraude, actuaciones irregulares, comisión de hechos delictivos, abuso de confianza, apropiación indebida, incumplimiento de regulaciones legales o internas de la entidad. | C39: 36 | D39: La actividad que conlleva el riesgo se ejecuta de 24 a 500 veces por año | E39: 60% | F39: Media | G39: Entre 50 y 100 SMLMV | H39: 60% | I39: Moderado | J39: El riesgo afecta la imagen de algún área de la organización. | K39: 20% | L39: Leve | M39: 60% | N39: Moderado
A40: ='2 CONTEXTO E IDENTIFICACIÓN'!A40 -> R32 | B40: =+'2 CONTEXTO E IDENTIFICACIÓN'!J40 -> Posibilidad de efecto dañoso sobre el recurso público por Pérdida, extravío, hurto, robo o faltantes de inventarios pertenecientes a la entidad a causa de inconsistencias contables, pérdidas económicas o afectaciones fiscales derivadas de la falta de integración del módulo de farmacia al software institucional | C40: 365 | D40: La actividad que conlleva el riesgo se ejecuta de 24 a 500 veces por año | E40: 60% | F40: Media | G40: Entre 10 y 50 SMLMV | H40: 40% | I40: Menor | J40: El riesgo afecta la imagen de algún área de la organización. | K40: 20% | L40: Leve | M40: 40% | N40: Menor
A41: ='2 CONTEXTO E IDENTIFICACIÓN'!A41 -> R33 | B41: =+'2 CONTEXTO E IDENTIFICACIÓN'!J41 -> Posibilidad de efecto dañoso sobre el recurso público porPago de sancion y/o intereses moratorios a causa de Debilidades en el diligenciamiento del formular de retencion en la fuente, pago y resentacion por fuera de los plazos establecidos por el calendario DIAN. | C41: 12 | D41: La actividad que conlleva el riesgo se ejecuta de 3 a 24 veces por año | E41: 40% | F41: Baja | G41: Menor a 10 SMLMV | H41: 20% | I41: Leve | J41: El riesgo afecta la imagen de la entidad a nivel nacional, con efecto publicitario sostenido a nivel país | K41: 100% | L41: Catastrófico | M41: 100% | N41: Catastrófico
A42: ='2 CONTEXTO E IDENTIFICACIÓN'!A42 -> R34 | B42: =+'2 CONTEXTO E IDENTIFICACIÓN'!J42 -> Posibilidad de efecto dañoso sobre el recurso público porEjecución de un alcance inferior al contratado y pago total del contrato a causa de Deficiencias en las funciones de Supervisión e Interventoría de los contratos de la Entidad | C42: 600 | D42: La actividad que conlleva el riesgo se ejecuta mínimo 500 veces al año y máximo 5.000 veces por año | E42: 80% | F42: Alta | G42: Menor a 10 SMLMV | H42: 20% | I42: Leve | J42: El riesgo afecta la imagen de algún área de la organización. | K42: 20% | L42: Leve | M42: 20% | N42: Leve
A43: ='2 CONTEXTO E IDENTIFICACIÓN'!A43 -> R35 | B43: =+'2 CONTEXTO E IDENTIFICACIÓN'!J43 -> Posibilidad de efecto dañoso sobre el recurso público porSanciones de tipo civil y penal por parte del Ministerio de Trabajo y otros entes de control por incumplimiento a la normatividad vigente en materia de riesgos laborales y seguridad y salud en el trabajo a causa de Procedimientos internos deficientes para identificar e implementar oportunamente acciones de prevención y manejo de los riesgos y peligros en el ambiente laboral | C43: 365 | D43: La actividad que conlleva el riesgo se ejecuta de 24 a 500 veces por año | E43: 60% | F43: Media | G43: Entre 50 y 100 SMLMV | H43: 60% | I43: Moderado | J43: El riesgo afecta la imagen de algún área de la organización. | K43: 20% | L43: Leve | M43: 60% | N43: Moderado
A44: ='2 CONTEXTO E IDENTIFICACIÓN'!A44 -> R36 | B44: =+'2 CONTEXTO E IDENTIFICACIÓN'!J44 -> Posibilidad de efecto dañoso sobre el recurso público porPago de sancion y/o intereses moratorios a causa de Debilidades en el diligenciamiento del formulario de informacion exogena y/o presentacion por fuera de los plazos establecidos por el calendario DIAN. | C44: 1 | D44: La actividad que conlleva el riesgo se ejecuta como máximos 2 veces por año | E44: 20% | F44: Muy Baja | G44: Menor a 10 SMLMV | H44: 20% | I44: Leve | J44: El riesgo afecta la imagen de algún área de la organización. | K44: 20% | L44: Leve | M44: 20% | N44: Leve
A45: ='2 CONTEXTO E IDENTIFICACIÓN'!A45 -> R37 | B45: =+'2 CONTEXTO E IDENTIFICACIÓN'!J45 -> Posibilidad de afectación reputacional porMatriz legal desactualizada a causa de Omisión o retraso en la actualización de la matriz legal | C45: 12 | D45: La actividad que conlleva el riesgo se ejecuta de 3 a 24 veces por año | E45: 40% | F45: Baja | G45: N/A | J45: El riesgo afecta la imagen de la entidad internamente, de conocimiento general nivel interno, de junta directiva y accionistas y/o de proveedores. | K45: 40% | L45: Menor | M45: 40% | N45: Menor
A46: ='2 CONTEXTO E IDENTIFICACIÓN'!A46 -> R38 | B46: =+'2 CONTEXTO E IDENTIFICACIÓN'!J46 -> Posibilidad de afectación económica y reputacional porRecibir o solicitar dádivas ó beneficios a nombre propio o de terceros a causa de Adulterar o cambiar información para minimizar el valor a cobrar por la prestación de servicios de salud. | C46: 365 | D46: La actividad que conlleva el riesgo se ejecuta de 24 a 500 veces por año | E46: 60% | F46: Media | G46: Mayor a 500 SMLMV | H46: 100% | I46: Catastrófico | J46: El riesgo afecta la imagen de algún área de la organización. | K46: 20% | L46: Leve | M46: 100% | N46: Catastrófico
A47: ='2 CONTEXTO E IDENTIFICACIÓN'!A47 -> R39 | B47: =+'2 CONTEXTO E IDENTIFICACIÓN'!J47 -> Posibilidad de afectación económica y reputacional porManejo inadecuado de residuos hospitalarios y peligrosos a causa de Disposición transitoria incorrecta | C47: 1000 | D47: La actividad que conlleva el riesgo se ejecuta mínimo 500 veces al año y máximo 5.000 veces por año | E47: 80% | F47: Alta | G47: Entre 50 y 100 SMLMV | H47: 60% | I47: Moderado | J47: El riesgo afecta la imagen de algún área de la organización. | K47: 20% | L47: Leve | M47: 60% | N47: Moderado
A48: ='2 CONTEXTO E IDENTIFICACIÓN'!A48 -> R40 | B48: =+'2 CONTEXTO E IDENTIFICACIÓN'!J48 -> Posibilidad de afectación económica y reputacional porSuspensión parcial o total de áreas o servicios vitales para la atención en salud a los usuarios atendidos por la E.S.E.. a causa de Incumplimiento normativo en el lavado de tanques de agua potable y alteraciones en el análisis físico - químico y microbiológico de la calidad del agua. | C48: 365 | D48: La actividad que conlleva el riesgo se ejecuta de 24 a 500 veces por año | E48: 60% | F48: Media | G48: Entre 10 y 50 SMLMV | H48: 40% | I48: Menor | J48: El riesgo afecta la imagen de la entidad con algunos usuarios de relevancia frente al logro de los objetivos. | K48: 60% | L48: Moderado | M48: 60% | N48: Moderado
A49: ='2 CONTEXTO E IDENTIFICACIÓN'!A49 -> R41 | B49: =+'2 CONTEXTO E IDENTIFICACIÓN'!J49 -> Posibilidad de afectación económica y reputacional porFallos judiciales en contra de la E.S.E. a causa de Contestación extemporanea en las demandas interpuestas en contra de la entidad. | C49: 24 | D49: La actividad que conlleva el riesgo se ejecuta de 3 a 24 veces por año | E49: 40% | F49: Baja | G49: Entre 100 y 500 SMLMV | H49: 80% | I49: Mayor | J49: El riesgo afecta la imagen de la entidad con algunos usuarios de relevancia frente al logro de los objetivos. | K49: 60% | L49: Moderado | M49: 80% | N49: Mayor
A50: ='2 CONTEXTO E IDENTIFICACIÓN'!A50 -> R42 | B50: =+'2 CONTEXTO E IDENTIFICACIÓN'!J50 -> Posibilidad de afectación económica y reputacional porNo facturación de los servicios prestados. a causa de Inoportunidad o no registro de las atenciones en salud prestadas a los pacientes. | C50: 365 | D50: La actividad que conlleva el riesgo se ejecuta de 24 a 500 veces por año | E50: 60% | F50: Media | G50: Entre 50 y 100 SMLMV | H50: 60% | I50: Moderado | J50: El riesgo afecta la imagen de la entidad con algunos usuarios de relevancia frente al logro de los objetivos. | K50: 60% | L50: Moderado | M50: 60% | N50: Moderado
A51: ='2 CONTEXTO E IDENTIFICACIÓN'!A51 -> R43 | B51: =+'2 CONTEXTO E IDENTIFICACIÓN'!J51 -> Posibilidad de afectación reputacional porFalta de análisis y socialización de tendencias de PQRSD a causa de Procesos manuales o poco estandarizados | C51: 2 | D51: La actividad que conlleva el riesgo se ejecuta como máximos 2 veces por año | E51: 20% | F51: Muy Baja | G51: N/A | J51: El riesgo afecta la imagen de la entidad con efecto publicitario sostenido a nivel de sector administrativo, nivel departamental o municipal. | K51: 80% | L51: Mayor | M51: 80% | N51: Mayor
A52: ='2 CONTEXTO E IDENTIFICACIÓN'!A52 -> R44 | B52: =+'2 CONTEXTO E IDENTIFICACIÓN'!J52 -> Posibilidad de afectación económica y reputacional porMultas, sanciones o llamados de atención por parte de los entes de control a causa de acumulación de solicitudes sin resolver, generando congestión en el sistema SIAU, debido al incumplimiento de los tiempos y procedimientos establecidos en la normatividad vigente. | C52: 60 | D52: La actividad que conlleva el riesgo se ejecuta de 24 a 500 veces por año | E52: 60% | F52: Media | G52: Entre 10 y 50 SMLMV | H52: 40% | I52: Menor | J52: El riesgo afecta la imagen de la entidad internamente, de conocimiento general nivel interno, de junta directiva y accionistas y/o de proveedores. | K52: 40% | L52: Menor | M52: 40% | N52: Menor
A53: ='2 CONTEXTO E IDENTIFICACIÓN'!A53 -> R45 | B53: =+'2 CONTEXTO E IDENTIFICACIÓN'!J53 -> Posibilidad de afectación reputacional porPérdida de muestras sanguíneas, fluidos, citologías. a causa de Incumplimiento de protocolos de toma, transporte , entrega y recepción de muestras. | C53: 5001 | D53: La actividad que conlleva el riesgo se ejecuta más de 5.000 veces por año | E53: 100% | F53: Muy Alta | G53: Entre 10 y 50 SMLMV | H53: 40% | I53: Menor | J53: El riesgo afecta la imagen de la entidad con algunos usuarios de relevancia frente al logro de los objetivos. | K53: 60% | L53: Moderado | M53: 60% | N53: Moderado

Sheet 4 MAPA CALOR INHERENTE
B1: =+'2 CONTEXTO E IDENTIFICACIÓN'!A1 -> MAPA DE RIESGOS
C2: =+'2 CONTEXTO E IDENTIFICACIÓN'!A2 -> VERSIÓN: | D2: ='2 CONTEXTO E IDENTIFICACIÓN'!B2 -> 1 | I2: =+'2 CONTEXTO E IDENTIFICACIÓN'!$I$4 -> Elaboración o Actualización: | J2: ='2 CONTEXTO E IDENTIFICACIÓN'!J4 -> 12/29/2025
I3: =+'2 CONTEXTO E IDENTIFICACIÓN'!$E$5 -> Vigencia: | J3: ='2 CONTEXTO E IDENTIFICACIÓN'!G5 -> 2026-01-01 | K3: Al | L3: ='2 CONTEXTO E IDENTIFICACIÓN'!J5 -> 2026-12-31
A5: ENTIDAD: | B5: ='2 CONTEXTO E IDENTIFICACIÓN'!B4 -> E.S.E. CENTRO DE SALUD DE USIACURI | I5: Zona Riesgo Baja | J5: Zona Riesgo Moderada | K5: Zona Riesgo Alta | L5: Zona Riesgo Extrema
A6: PROCESO: | B6: ='2 CONTEXTO E IDENTIFICACIÓN'!F4 -> 0
G7: MAPA DE CALOR RIESGO INHERENTE | R7: Impacto
C8: CALIFICACIÓN RIESGO INHERENTE | I8: Impacto | R8: 20% | S8: 40% | T8: 60% | U8: 80% | V8: 100%
A9: No. DEL RIESGO | B9: RIESGO | C9: PROBABILIDAD | D9: IMPACTO | E9: SEVERIDAD (NIVEL DE RIESGO) | I9: Leve | J9: Menor | K9: Moderado | L9: Mayor | M9: Catastrófico | R9: Leve | S9: Menor | T9: Moderado | U9: Mayor | V9: Catastrófico
A10: ='2 CONTEXTO E IDENTIFICACIÓN'!A9 -> R1 | B10: =+'2 CONTEXTO E IDENTIFICACIÓN'!J9 -> Posibilidad de afectación reputacional por Investigaciones disciplinarias y sanciones por entes de control a causa de Insuficiente participación en los procesos de capacitación y entrenamiento a los servidores públicos para la prestación del servicio, que afecta las competencias y conocimiento interno. | C10: =+'3 PROBABIL E IMPACTO INHERENTE'!F9 -> Media | D10: =+'3 PROBABIL E IMPACTO INHERENTE'!N9 -> Leve | E10: =+IF(C10=$Q$10,IF(D10=$R$9,$R$10,IF(D10=$S$9,$S$10,IF(D10=$T$9,$T$10,IF(D10=$U$9,$U$10,IF(D10=$V$9,$V$10))))),IF(C10=$Q$11,IF(D10=$R$9,$R$11,IF(D10=$S$9,$S$11,IF(D10=$T$9,$T$11,IF(D10=$U$9,$U$11,IF(D10=$V$9,$V$11))))),IF(C10=$Q$12,IF(D10=$R$9,$R$12,IF(D10=$S$9,$S$12,IF(D10=$T$9,$T$12,IF(D10=$U$9,$U$12,IF(D10=$V$9,$V$12))))),IF(C10=$Q$13,IF(D10=$R$9,$R$13,IF(D10=$S$9,$S$13,IF(D10=$T$9,$T$13,IF(D10=$U$9,$U$13,IF(D10=$V$9,$V$13))))),IF(C10=$Q$14,IF(D10=$R$9,$R$14,IF(D10=$S$9,$S$14,IF(D10=$T$9,$T$14,IF(D10=$U$9,$U$14,IF(D10=$V$9,$V$14))))),""))))) -> Moderado | G10: Probabilidad | H10: Muy Alta | I10: =+IF(AND(C10=$Q$10,D10=$R$9),A10,"")&" "&IF(AND(C11=$Q$10,D11=$R$9),A11,"")&" "&IF(AND(C12=$Q$10,D12=$R$9),A12,"")&" "&IF(AND(C13=$Q$10,D13=$R$9),A13,"")&" "&IF(AND(C14=$Q$10,D14=$R$9),A14,"")&" "&IF(AND(C15=$Q$10,D15=$R$9),A15,"")&" "&IF(AND(C16=$Q$10,D16=$R$9),A16,"")&" "&IF(AND(C17=$Q$10,D17=$R$9),A17,"")&" "&IF(AND(C18=$Q$10,D18=$R$9),A18,"")&" "&IF(AND(C19=$Q$10,D19=$R$9),A19,"")&" "&IF(AND(C20=$Q$10,D20=$R$9),A20,"")&" "&IF(AND(C21=$Q$10,D21=$R$9),A21,"")&" "&IF(AND(C22=$Q$10,D22=$R$9),A22,"")&" "&IF(AND(C23=$Q$10,D23=$R$9),A23,"")&" "&IF(AND(C24=$Q$10,D24=$R$9),A24,"")&" "&IF(AND(C25=$Q$10,D25=$R$9),A25,"")&" "&IF(AND(C26=$Q$10,D26=$R$9),A26,"")&" "&IF(AND(C27=$Q$10,D27=$R$9),A27,"")&" "&IF(AND(C28=$Q$10,D28=$R$9),A28,"")&" "&IF(AND(C29=$Q$10,D29=$R$9),A29,"")&""&IF(AND(C30=$Q$10,D30=$R$9),A30,"") ->  | J10: =+IF(AND(C10=$Q$10,D10=$S$9),A10,"")&" "&IF(AND(C11=$Q$10,D11=$S$9),A11,"")&" "&IF(AND(C12=$Q$10,D12=$S$9),A12,"")&" "&IF(AND(C13=$Q$10,D13=$S$9),A13,"")&" "&IF(AND(C14=$Q$10,D14=$S$9),A14,"")&" "&IF(AND(C15=$Q$10,D15=$S$9),A15,"")&" "&IF(AND(C16=$Q$10,D16=$S$9),A16,"")&" "&IF(AND(C17=$Q$10,D17=$S$9),A17,"")&" "&IF(AND(C18=$Q$10,D18=$S$9),A18,"")&" "&IF(AND(C19=$Q$10,D19=$S$9),A19,"")&" "&IF(AND(C20=$Q$10,D20=$S$9),A20,"")&" "&IF(AND(C21=$Q$10,D21=$S$9),A21,"")&" "&IF(AND(C22=$Q$10,D22=$S$9),A22,"")&" "&IF(AND(C23=$Q$10,D23=$S$9),A23,"")&" "&IF(AND(C24=$Q$10,D24=$S$9),A24,"")&" "&IF(AND(C25=$Q$10,D25=$S$9),A25,"")&" "&IF(AND(C26=$Q$10,D26=$S$9),A26,"")&" "&IF(AND(C27=$Q$10,D27=$S$9),A27,"")&" "&IF(AND(C28=$Q$10,D28=$S$9),A28,"")&" "&IF(AND(C29=$Q$10,D29=$S$9),A29,"")&""&IF(AND(C30=$Q$10,D30=$R$9),A30,"") ->  | K10: =+IF(AND(C10=$Q$10,D10=$T$9),A10,"")&" "&IF(AND(C11=$Q$10,D11=$T$9),A11,"")&" "&IF(AND(C12=$Q$10,D12=$T$9),A12,"")&" "&IF(AND(C13=$Q$10,D13=$T$9),A13,"")&" "&IF(AND(C14=$Q$10,D14=$T$9),A14,"")&" "&IF(AND(C15=$Q$10,D15=$T$9),A15,"")&" "&IF(AND(C16=$Q$10,D16=$T$9),A16,"")&" "&IF(AND(C17=$Q$10,D17=$T$9),A17,"")&" "&IF(AND(C18=$Q$10,D18=$T$9),A18,"")&" "&IF(AND(C19=$Q$10,D19=$T$9),A19,"")&" "&IF(AND(C20=$Q$10,D20=$T$9),A20,"")&" "&IF(AND(C21=$Q$10,D21=$T$9),A21,"")&" "&IF(AND(C22=$Q$10,D22=$T$9),A22,"")&" "&IF(AND(C23=$Q$10,D23=$T$9),A23,"")&" "&IF(AND(C24=$Q$10,D24=$T$9),A24,"")&" "&IF(AND(C25=$Q$10,D25=$T$9),A25,"")&" "&IF(AND(C26=$Q$10,D26=$T$9),A26,"")&" "&IF(AND(C27=$Q$10,D27=$T$9),A27,"")&" "&IF(AND(C28=$Q$10,D28=$T$9),A28,"")&" "&IF(AND(C29=$Q$10,D29=$T$9),A29,"")&""&IF(AND(C30=$Q$10,D30=$R$9),A30,"") ->  | L10: =+IF(AND(C10=$Q$10,D10=$U$9),A10,"")&" "&IF(AND(C11=$Q$10,D11=$U$9),A11,"")&" "&IF(AND(C12=$Q$10,D12=$U$9),A12,"")&" "&IF(AND(C13=$Q$10,D13=$U$9),A13,"")&" "&IF(AND(C14=$Q$10,D14=$U$9),A14,"")&" "&IF(AND(C15=$Q$10,D15=$U$9),A15,"")&" "&IF(AND(C16=$Q$10,D16=$U$9),A16,"")&" "&IF(AND(C17=$Q$10,D17=$U$9),A17,"")&" "&IF(AND(C18=$Q$10,D18=$U$9),A18,"")&" "&IF(AND(C19=$Q$10,D19=$U$9),A19,"")&" "&IF(AND(C20=$Q$10,D20=$U$9),A20,"")&" "&IF(AND(C21=$Q$10,D21=$U$9),A21,"")&" "&IF(AND(C22=$Q$10,D22=$U$9),A22,"")&" "&IF(AND(C23=$Q$10,D23=$U$9),A23,"")&" "&IF(AND(C24=$Q$10,D24=$U$9),A24,"")&" "&IF(AND(C25=$Q$10,D25=$U$9),A25,"")&" "&IF(AND(C26=$Q$10,D26=$U$9),A26,"")&" "&IF(AND(C27=$Q$10,D27=$U$9),A27,"")&" "&IF(AND(C28=$Q$10,D28=$U$9),A28,"")&" "&IF(AND(C29=$Q$10,D29=$U$9),A29,"")&""&IF(AND(C30=$Q$10,D30=$R$9),A30,"") ->  | M10: =+IF(AND(C10=$Q$10,D10=$V$9),A10,"")&" "&IF(AND(C11=$Q$10,D11=$V$9),A11,"")&" "&IF(AND(C12=$Q$10,D12=$V$9),A12,"")&" "&IF(AND(C13=$Q$10,D13=$V$9),A13,"")&" "&IF(AND(C14=$Q$10,D14=$V$9),A14,"")&" "&IF(AND(C15=$Q$10,D15=$V$9),A15,"")&" "&IF(AND(C16=$Q$10,D16=$V$9),A16,"")&" "&IF(AND(C17=$Q$10,D17=$V$9),A17,"")&" "&IF(AND(C18=$Q$10,D18=$V$9),A18,"")&" "&IF(AND(C19=$Q$10,D19=$V$9),A19,"")&" "&IF(AND(C20=$Q$10,D20=$V$9),A20,"")&" "&IF(AND(C21=$Q$10,D21=$V$9),A21,"")&" "&IF(AND(C22=$Q$10,D22=$V$9),A22,"")&" "&IF(AND(C23=$Q$10,D23=$V$9),A23,"")&" "&IF(AND(C24=$Q$10,D24=$V$9),A24,"")&" "&IF(AND(C25=$Q$10,D25=$V$9),A25,"")&" "&IF(AND(C26=$Q$10,D26=$V$9),A26,"")&" "&IF(AND(C27=$Q$10,D27=$V$9),A27,"")&" "&IF(AND(C28=$Q$10,D28=$V$9),A28,"")&" "&IF(AND(C29=$Q$10,D29=$V$9),A29,"") ->  | O10: Probabilidad | P10: 100% | Q10: Muy Alta | R10: Alto | S10: Alto | T10: Alto | U10: Alto | V10: Extremo
A11: ='2 CONTEXTO E IDENTIFICACIÓN'!A10 -> R2 | B11: =+'2 CONTEXTO E IDENTIFICACIÓN'!J10 -> Posibilidad de perdida de confidencialidad por Investigaciones disciplinarias por entes de control. a causa de Incumplimiento de la ley 1712 de 2014 en lo concerniente a la información clasificada y reservada de las historias laborales de los servidores públicos. | C11: =+'3 PROBABIL E IMPACTO INHERENTE'!F10 -> Alta | D11: =+'3 PROBABIL E IMPACTO INHERENTE'!N10 -> Leve | E11: =+IF(C11=$Q$10,IF(D11=$R$9,$R$10,IF(D11=$S$9,$S$10,IF(D11=$T$9,$T$10,IF(D11=$U$9,$U$10,IF(D11=$V$9,$V$10))))),IF(C11=$Q$11,IF(D11=$R$9,$R$11,IF(D11=$S$9,$S$11,IF(D11=$T$9,$T$11,IF(D11=$U$9,$U$11,IF(D11=$V$9,$V$11))))),IF(C11=$Q$12,IF(D11=$R$9,$R$12,IF(D11=$S$9,$S$12,IF(D11=$T$9,$T$12,IF(D11=$U$9,$U$12,IF(D11=$V$9,$V$12))))),IF(C11=$Q$13,IF(D11=$R$9,$R$13,IF(D11=$S$9,$S$13,IF(D11=$T$9,$T$13,IF(D11=$U$9,$U$13,IF(D11=$V$9,$V$13))))),IF(C11=$Q$14,IF(D11=$R$9,$R$14,IF(D11=$S$9,$S$14,IF(D11=$T$9,$T$14,IF(D11=$U$9,$U$14,IF(D11=$V$9,$V$14))))),""))))) -> Moderado | H11: Alta | I11: =+IF(AND(C10=$Q$11,D10=$R$9),A10,"")&" "&IF(AND(C11=$Q$11,D11=$R$9),A11,"")&" "&IF(AND(C12=$Q$11,D12=$R$9),A12,"")&" "&IF(AND(C13=$Q$11,D13=$R$9),A13,"")&" "&IF(AND(C14=$Q$11,D14=$R$9),A14,"")&" "&IF(AND(C15=$Q$11,D15=$R$9),A15,"")&" "&IF(AND(C16=$Q$11,D16=$R$9),A16,"")&" "&IF(AND(C17=$Q$11,D17=$R$9),A17,"")&" "&IF(AND(C18=$Q$11,D18=$R$9),A18,"")&" "&IF(AND(C19=$Q$11,D19=$R$9),A19,"")&" "&IF(AND(C20=$Q$11,D20=$R$9),A20,"")&" "&IF(AND(C21=$Q$11,D21=$R$9),A21,"")&" "&IF(AND(C22=$Q$11,D22=$R$9),A22,"")&" "&IF(AND(C23=$Q$11,D23=$R$9),A23,"")&" "&IF(AND(C24=$Q$11,D24=$R$9),A24,"")&" "&IF(AND(C25=$Q$11,D25=$R$9),A25,"")&" "&IF(AND(C26=$Q$11,D26=$R$9),A26,"")&" "&IF(AND(C27=$Q$11,D27=$R$9),A27,"")&" "&IF(AND(C28=$Q$11,D28=$R$9),A28,"")&" "&IF(AND(C29=$Q$11,D29=$R$9),A29,"")&""&IF(AND(C30=$Q$10,D30=$R$9),A30,"") -> R2 | J11: =+IF(AND(C10=$Q$11,D10=$S$9),A10,"")&" "&IF(AND(C11=$Q$11,D11=$S$9),A11,"")&" "&IF(AND(C12=$Q$11,D12=$S$9),A12,"")&" "&IF(AND(C13=$Q$11,D13=$S$9),A13,"")&" "&IF(AND(C14=$Q$11,D14=$S$9),A14,"")&" "&IF(AND(C15=$Q$11,D15=$S$9),A15,"")&" "&IF(AND(C16=$Q$11,D16=$S$9),A16,"")&" "&IF(AND(C17=$Q$11,D17=$S$9),A17,"")&" "&IF(AND(C18=$Q$11,D18=$S$9),A18,"")&" "&IF(AND(C19=$Q$11,D19=$S$9),A19,"")&" "&IF(AND(C20=$Q$11,D20=$S$9),A20,"")&" "&IF(AND(C21=$Q$11,D21=$S$9),A21,"")&" "&IF(AND(C22=$Q$11,D22=$S$9),A22,"")&" "&IF(AND(C23=$Q$11,D23=$S$9),A23,"")&" "&IF(AND(C24=$Q$11,D24=$S$9),A24,"")&" "&IF(AND(C25=$Q$11,D25=$S$9),A25,"")&" "&IF(AND(C26=$Q$11,D26=$S$9),A26,"")&" "&IF(AND(C27=$Q$11,D27=$S$9),A27,"")&" "&IF(AND(C28=$Q$11,D28=$S$9),A28,"")&" "&IF(AND(C29=$Q$11,D29=$S$9),A29,"")&""&IF(AND(C30=$Q$10,D30=$R$9),A30,"") ->  | K11: =+IF(AND(C10=$Q$11,D10=$T$9),A10,"")&" "&IF(AND(C11=$Q$11,D11=$T$9),A11,"")&" "&IF(AND(C12=$Q$11,D12=$T$9),A12,"")&" "&IF(AND(C13=$Q$11,D13=$T$9),A13,"")&" "&IF(AND(C14=$Q$11,D14=$T$9),A14,"")&" "&IF(AND(C15=$Q$11,D15=$T$9),A15,"")&" "&IF(AND(C16=$Q$11,D16=$T$9),A16,"")&" "&IF(AND(C17=$Q$11,D17=$T$9),A17,"")&" "&IF(AND(C18=$Q$11,D18=$T$9),A18,"")&" "&IF(AND(C19=$Q$11,D19=$T$9),A19,"")&" "&IF(AND(C20=$Q$11,D20=$T$9),A20,"")&" "&IF(AND(C21=$Q$11,D21=$T$9),A21,"")&" "&IF(AND(C22=$Q$11,D22=$T$9),A22,"")&" "&IF(AND(C23=$Q$11,D23=$T$9),A23,"")&" "&IF(AND(C24=$Q$11,D24=$T$9),A24,"")&" "&IF(AND(C25=$Q$11,D25=$T$9),A25,"")&" "&IF(AND(C26=$Q$11,D26=$T$9),A26,"")&" "&IF(AND(C27=$Q$11,D27=$T$9),A27,"")&" "&IF(AND(C28=$Q$11,D28=$T$9),A28,"")&" "&IF(AND(C29=$Q$11,D29=$T$9),A29,"")&""&IF(AND(C30=$Q$10,D30=$R$9),A30,"") ->  | L11: =+IF(AND(C10=$Q$11,D10=$U$9),A10,"")&" "&IF(AND(C11=$Q$11,D11=$U$9),A11,"")&" "&IF(AND(C12=$Q$11,D12=$U$9),A12,"")&" "&IF(AND(C13=$Q$11,D13=$U$9),A13,"")&" "&IF(AND(C14=$Q$11,D14=$U$9),A14,"")&" "&IF(AND(C15=$Q$11,D15=$U$9),A15,"")&" "&IF(AND(C16=$Q$11,D16=$U$9),A16,"")&" "&IF(AND(C17=$Q$11,D17=$U$9),A17,"")&" "&IF(AND(C18=$Q$11,D18=$U$9),A18,"")&" "&IF(AND(C19=$Q$11,D19=$U$9),A19,"")&" "&IF(AND(C20=$Q$11,D20=$U$9),A20,"")&" "&IF(AND(C21=$Q$11,D21=$U$9),A21,"")&" "&IF(AND(C22=$Q$11,D22=$U$9),A22,"")&" "&IF(AND(C23=$Q$11,D23=$U$9),A23,"")&" "&IF(AND(C24=$Q$11,D24=$U$9),A24,"")&" "&IF(AND(C25=$Q$11,D25=$U$9),A25,"")&" "&IF(AND(C26=$Q$11,D26=$U$9),A26,"")&" "&IF(AND(C27=$Q$11,D27=$U$9),A27,"")&" "&IF(AND(C28=$Q$11,D28=$U$9),A28,"")&" "&IF(AND(C29=$Q$11,D29=$U$9),A29,"")&""&IF(AND(C30=$Q$10,D30=$R$9),A30,"") -> R4 | M11: =+IF(AND(C10=$Q$11,D10=$V$9),A10,"")&" "&IF(AND(C11=$Q$11,D11=$V$9),A11,"")&" "&IF(AND(C12=$Q$11,D12=$V$9),A12,"")&" "&IF(AND(C13=$Q$11,D13=$V$9),A13,"")&" "&IF(AND(C14=$Q$11,D14=$V$9),A14,"")&" "&IF(AND(C15=$Q$11,D15=$V$9),A15,"")&" "&IF(AND(C16=$Q$11,D16=$V$9),A16,"")&" "&IF(AND(C17=$Q$11,D17=$V$9),A17,"")&" "&IF(AND(C18=$Q$11,D18=$V$9),A18,"")&" "&IF(AND(C19=$Q$11,D19=$V$9),A19,"")&" "&IF(AND(C20=$Q$11,D20=$V$9),A20,"")&" "&IF(AND(C21=$Q$11,D21=$V$9),A21,"")&" "&IF(AND(C22=$Q$11,D22=$V$9),A22,"")&" "&IF(AND(C23=$Q$11,D23=$V$9),A23,"")&" "&IF(AND(C24=$Q$11,D24=$V$9),A24,"")&" "&IF(AND(C25=$Q$11,D25=$V$9),A25,"")&" "&IF(AND(C26=$Q$11,D26=$V$9),A26,"")&" "&IF(AND(C27=$Q$11,D27=$V$9),A27,"")&" "&IF(AND(C28=$Q$11,D28=$V$9),A28,"")&" "&IF(AND(C29=$Q$11,D29=$V$9),A29,"")&""&IF(AND(C30=$Q$10,D30=$R$9),A30,"") ->  | P11: 80% | Q11: Alta | R11: Moderado | S11: Moderado | T11: Alto | U11: Alto | V11: Extremo
A12: ='2 CONTEXTO E IDENTIFICACIÓN'!A11 -> R3 | B12: =+'2 CONTEXTO E IDENTIFICACIÓN'!J11 -> Posibilidad de afectación reputacional por Queja o reclamo de servidores de la Entidad a causa de Reporte de novedades fuera de los plazos definidos en el cronograma, | C12: =+'3 PROBABIL E IMPACTO INHERENTE'!F11 -> Media | D12: =+'3 PROBABIL E IMPACTO INHERENTE'!N11 -> Leve | E12: =+IF(C12=$Q$10,IF(D12=$R$9,$R$10,IF(D12=$S$9,$S$10,IF(D12=$T$9,$T$10,IF(D12=$U$9,$U$10,IF(D12=$V$9,$V$10))))),IF(C12=$Q$11,IF(D12=$R$9,$R$11,IF(D12=$S$9,$S$11,IF(D12=$T$9,$T$11,IF(D12=$U$9,$U$11,IF(D12=$V$9,$V$11))))),IF(C12=$Q$12,IF(D12=$R$9,$R$12,IF(D12=$S$9,$S$12,IF(D12=$T$9,$T$12,IF(D12=$U$9,$U$12,IF(D12=$V$9,$V$12))))),IF(C12=$Q$13,IF(D12=$R$9,$R$13,IF(D12=$S$9,$S$13,IF(D12=$T$9,$T$13,IF(D12=$U$9,$U$13,IF(D12=$V$9,$V$13))))),IF(C12=$Q$14,IF(D12=$R$9,$R$14,IF(D12=$S$9,$S$14,IF(D12=$T$9,$T$14,IF(D12=$U$9,$U$14,IF(D12=$V$9,$V$14))))),""))))) -> Moderado | H12: Media | I12: =+IF(AND(C10=$Q$12,D10=$R$9),A10,"")&" "&IF(AND(C11=$Q$12,D11=$R$9),A11,"")&" "&IF(AND(C12=$Q$12,D12=$R$9),A12,"")&" "&IF(AND(C13=$Q$12,D13=$R$9),A13,"")&" "&IF(AND(C14=$Q$12,D14=$R$9),A14,"")&" "&IF(AND(C15=$Q$12,D15=$R$9),A15,"")&" "&IF(AND(C16=$Q$12,D16=$R$9),A16,"")&" "&IF(AND(C17=$Q$12,D17=$R$9),A17,"")&" "&IF(AND(C18=$Q$12,D18=$R$9),A18,"")&" "&IF(AND(C19=$Q$12,D19=$R$9),A19,"")&" "&IF(AND(C20=$Q$12,D20=$R$9),A20,"")&" "&IF(AND(C21=$Q$12,D21=$R$9),A21,"")&" "&IF(AND(C22=$Q$12,D22=$R$9),A22,"")&" "&IF(AND(C23=$Q$12,D23=$R$9),A23,"")&" "&IF(AND(C24=$Q$12,D24=$R$9),A24,"")&" "&IF(AND(C25=$Q$12,D25=$R$9),A25,"")&" "&IF(AND(C26=$Q$12,D26=$R$9),A26,"")&" "&IF(AND(C27=$Q$12,D27=$R$9),A27,"")&" "&IF(AND(C28=$Q$12,D28=$R$9),A28,"")&" "&IF(AND(C29=$Q$12,D29=$R$9),A29,"")&""&IF(AND(C30=$Q$10,D30=$R$9),A30,"") -> R1 R3 R7 | J12: =+IF(AND(C10=$Q$12,D10=$S$9),A10,"")&" "&IF(AND(C11=$Q$12,D11=$S$9),A11,"")&" "&IF(AND(C12=$Q$12,D12=$S$9),A12,"")&" "&IF(AND(C13=$Q$12,D13=$S$9),A13,"")&" "&IF(AND(C14=$Q$12,D14=$S$9),A14,"")&" "&IF(AND(C15=$Q$12,D15=$S$9),A15,"")&" "&IF(AND(C16=$Q$12,D16=$S$9),A16,"")&" "&IF(AND(C17=$Q$12,D17=$S$9),A17,"")&" "&IF(AND(C18=$Q$12,D18=$S$9),A18,"")&" "&IF(AND(C19=$Q$12,D19=$S$9),A19,"")&" "&IF(AND(C20=$Q$12,D20=$S$9),A20,"")&" "&IF(AND(C21=$Q$12,D21=$S$9),A21,"")&" "&IF(AND(C22=$Q$12,D22=$S$9),A22,"")&" "&IF(AND(C23=$Q$12,D23=$S$9),A23,"")&" "&IF(AND(C24=$Q$12,D24=$S$9),A24,"")&" "&IF(AND(C25=$Q$12,D25=$S$9),A25,"")&" "&IF(AND(C26=$Q$12,D26=$S$9),A26,"")&" "&IF(AND(C27=$Q$12,D27=$S$9),A27,"")&" "&IF(AND(C28=$Q$12,D28=$S$9),A28,"")&" "&IF(AND(C29=$Q$12,D29=$S$9),A29,"")&""&IF(AND(C30=$Q$10,D30=$R$9),A30,"") -> R9 R12 | K12: =+IF(AND(C10=$Q$12,D10=$T$9),A10,"")&" "&IF(AND(C11=$Q$12,D11=$T$9),A11,"")&" "&IF(AND(C12=$Q$12,D12=$T$9),A12,"")&" "&IF(AND(C13=$Q$12,D13=$T$9),A13,"")&" "&IF(AND(C14=$Q$12,D14=$T$9),A14,"")&" "&IF(AND(C15=$Q$12,D15=$T$9),A15,"")&" "&IF(AND(C16=$Q$12,D16=$T$9),A16,"")&" "&IF(AND(C17=$Q$12,D17=$T$9),A17,"")&" "&IF(AND(C18=$Q$12,D18=$T$9),A18,"")&" "&IF(AND(C19=$Q$12,D19=$T$9),A19,"")&" "&IF(AND(C20=$Q$12,D20=$T$9),A20,"")&" "&IF(AND(C21=$Q$12,D21=$T$9),A21,"")&" "&IF(AND(C22=$Q$12,D22=$T$9),A22,"")&" "&IF(AND(C23=$Q$12,D23=$T$9),A23,"")&" "&IF(AND(C24=$Q$12,D24=$T$9),A24,"")&" "&IF(AND(C25=$Q$12,D25=$T$9),A25,"")&" "&IF(AND(C26=$Q$12,D26=$T$9),A26,"")&" "&IF(AND(C27=$Q$12,D27=$T$9),A27,"")&" "&IF(AND(C28=$Q$12,D28=$T$9),A28,"")&" "&IF(AND(C29=$Q$12,D29=$T$9),A29,"")&""&IF(AND(C30=$Q$10,D30=$R$9),A30,"") -> R11 R13 R15 R16 | L12: =+IF(AND(C10=$Q$12,D10=$U$9),A10,"")&" "&IF(AND(C11=$Q$12,D11=$U$9),A11,"")&" "&IF(AND(C12=$Q$12,D12=$U$9),A12,"")&" "&IF(AND(C13=$Q$12,D13=$U$9),A13,"")&" "&IF(AND(C14=$Q$12,D14=$U$9),A14,"")&" "&IF(AND(C15=$Q$12,D15=$U$9),A15,"")&" "&IF(AND(C16=$Q$12,D16=$U$9),A16,"")&" "&IF(AND(C17=$Q$12,D17=$U$9),A17,"")&" "&IF(AND(C18=$Q$12,D18=$U$9),A18,"")&" "&IF(AND(C19=$Q$12,D19=$U$9),A19,"")&" "&IF(AND(C20=$Q$12,D20=$U$9),A20,"")&" "&IF(AND(C21=$Q$12,D21=$U$9),A21,"")&" "&IF(AND(C22=$Q$12,D22=$U$9),A22,"")&" "&IF(AND(C23=$Q$12,D23=$U$9),A23,"")&" "&IF(AND(C24=$Q$12,D24=$U$9),A24,"")&" "&IF(AND(C25=$Q$12,D25=$U$9),A25,"")&" "&IF(AND(C26=$Q$12,D26=$U$9),A26,"")&" "&IF(AND(C27=$Q$12,D27=$U$9),A27,"")&" "&IF(AND(C28=$Q$12,D28=$U$9),A28,"")&" "&IF(AND(C29=$Q$12,D29=$U$9),A29,"")&""&IF(AND(C30=$Q$10,D30=$R$9),A30,"") -> R10 R20 | M12: =+IF(AND(C10=$Q$12,D10=$V$9),A10,"")&" "&IF(AND(C11=$Q$12,D11=$V$9),A11,"")&" "&IF(AND(C12=$Q$12,D12=$V$9),A12,"")&" "&IF(AND(C13=$Q$12,D13=$V$9),A13,"")&" "&IF(AND(C14=$Q$12,D14=$V$9),A14,"")&" "&IF(AND(C15=$Q$12,D15=$V$9),A15,"")&" "&IF(AND(C16=$Q$12,D16=$V$9),A16,"")&" "&IF(AND(C17=$Q$12,D17=$V$9),A17,"")&" "&IF(AND(C18=$Q$12,D18=$V$9),A18,"")&" "&IF(AND(C19=$Q$12,D19=$V$9),A19,"")&" "&IF(AND(C20=$Q$12,D20=$V$9),A20,"")&" "&IF(AND(C21=$Q$12,D21=$V$9),A21,"")&" "&IF(AND(C22=$Q$12,D22=$V$9),A22,"")&" "&IF(AND(C23=$Q$12,D23=$V$9),A23,"")&" "&IF(AND(C24=$Q$12,D24=$V$9),A24,"")&" "&IF(AND(C25=$Q$12,D25=$V$9),A25,"")&" "&IF(AND(C26=$Q$12,D26=$V$9),A26,"")&" "&IF(AND(C27=$Q$12,D27=$V$9),A27,"")&" "&IF(AND(C28=$Q$12,D28=$V$9),A28,"")&" "&IF(AND(C29=$Q$12,D29=$V$9),A29,"")&""&IF(AND(C30=$Q$10,D30=$R$9),A30,"") -> R8 | P12: 60% | Q12: Media | R12: Moderado | S12: Moderado | T12: Moderado | U12: Alto | V12: Extremo
A13: ='2 CONTEXTO E IDENTIFICACIÓN'!A12 -> R4 | B13: =+'2 CONTEXTO E IDENTIFICACIÓN'!J12 -> Posibilidad de efecto dañoso sobre el recurso público por Sanciones e investigaciones de entes de control y judiciales a causa de Omisión en la liquidación y pago de la seguridad social y aportes a parafiscales. | C13: =+'3 PROBABIL E IMPACTO INHERENTE'!F12 -> Alta | D13: =+'3 PROBABIL E IMPACTO INHERENTE'!N12 -> Mayor | E13: =+IF(C13=$Q$10,IF(D13=$R$9,$R$10,IF(D13=$S$9,$S$10,IF(D13=$T$9,$T$10,IF(D13=$U$9,$U$10,IF(D13=$V$9,$V$10))))),IF(C13=$Q$11,IF(D13=$R$9,$R$11,IF(D13=$S$9,$S$11,IF(D13=$T$9,$T$11,IF(D13=$U$9,$U$11,IF(D13=$V$9,$V$11))))),IF(C13=$Q$12,IF(D13=$R$9,$R$12,IF(D13=$S$9,$S$12,IF(D13=$T$9,$T$12,IF(D13=$U$9,$U$12,IF(D13=$V$9,$V$12))))),IF(C13=$Q$13,IF(D13=$R$9,$R$13,IF(D13=$S$9,$S$13,IF(D13=$T$9,$T$13,IF(D13=$U$9,$U$13,IF(D13=$V$9,$V$13))))),IF(C13=$Q$14,IF(D13=$R$9,$R$14,IF(D13=$S$9,$S$14,IF(D13=$T$9,$T$14,IF(D13=$U$9,$U$14,IF(D13=$V$9,$V$14))))),""))))) -> Alto | H13: Baja | I13: =+IF(AND(C10=$Q$13,D10=$R$9),A10,"")&" "&IF(AND(C11=$Q$13,D11=$R$9),A11,"")&" "&IF(AND(C12=$Q$13,D12=$R$9),A12,"")&" "&IF(AND(C13=$Q$13,D13=$R$9),A13,"")&" "&IF(AND(C14=$Q$13,D14=$R$9),A14,"")&" "&IF(AND(C15=$Q$13,D15=$R$9),A15,"")&" "&IF(AND(C16=$Q$13,D16=$R$9),A16,"")&" "&IF(AND(C17=$Q$13,D17=$R$9),A17,"")&" "&IF(AND(C18=$Q$13,D18=$R$9),A18,"")&" "&IF(AND(C19=$Q$13,D19=$R$9),A19,"")&" "&IF(AND(C20=$Q$13,D20=$R$9),A20,"")&" "&IF(AND(C21=$Q$13,D21=$R$9),A21,"")&" "&IF(AND(C22=$Q$13,D22=$R$9),A22,"")&" "&IF(AND(C23=$Q$13,D23=$R$9),A23,"")&" "&IF(AND(C24=$Q$13,D24=$R$9),A24,"")&" "&IF(AND(C25=$Q$13,D25=$R$9),A25,"")&" "&IF(AND(C26=$Q$13,D26=$R$9),A26,"")&" "&IF(AND(C27=$Q$13,D27=$R$9),A27,"")&" "&IF(AND(C28=$Q$13,D28=$R$9),A28,"")&" "&IF(AND(C29=$Q$13,D29=$R$9),A29,"")&""&IF(AND(C30=$Q$10,D30=$R$9),A30,"") -> R5 R6 | J13: =+IF(AND(C10=$Q$13,D10=$S$9),A10,"")&" "&IF(AND(C11=$Q$13,D11=$S$9),A11,"")&" "&IF(AND(C12=$Q$13,D12=$S$9),A12,"")&" "&IF(AND(C13=$Q$13,D13=$S$9),A13,"")&" "&IF(AND(C14=$Q$13,D14=$S$9),A14,"")&" "&IF(AND(C15=$Q$13,D15=$S$9),A15,"")&" "&IF(AND(C16=$Q$13,D16=$S$9),A16,"")&" "&IF(AND(C17=$Q$13,D17=$S$9),A17,"")&" "&IF(AND(C18=$Q$13,D18=$S$9),A18,"")&" "&IF(AND(C19=$Q$13,D19=$S$9),A19,"")&" "&IF(AND(C20=$Q$13,D20=$S$9),A20,"")&" "&IF(AND(C21=$Q$13,D21=$S$9),A21,"")&" "&IF(AND(C22=$Q$13,D22=$S$9),A22,"")&" "&IF(AND(C23=$Q$13,D23=$S$9),A23,"")&" "&IF(AND(C24=$Q$13,D24=$S$9),A24,"")&" "&IF(AND(C25=$Q$13,D25=$S$9),A25,"")&" "&IF(AND(C26=$Q$13,D26=$S$9),A26,"")&" "&IF(AND(C27=$Q$13,D27=$S$9),A27,"")&" "&IF(AND(C28=$Q$13,D28=$S$9),A28,"")&" "&IF(AND(C29=$Q$13,D29=$S$9),A29,"")&""&IF(AND(C30=$Q$10,D30=$R$9),A30,"") -> R17 R18 | K13: =+IF(AND(C10=$Q$13,D10=$T$9),A10,"")&" "&IF(AND(C11=$Q$13,D11=$T$9),A11,"")&" "&IF(AND(C12=$Q$13,D12=$T$9),A12,"")&" "&IF(AND(C13=$Q$13,D13=$T$9),A13,"")&" "&IF(AND(C14=$Q$13,D14=$T$9),A14,"")&" "&IF(AND(C15=$Q$13,D15=$T$9),A15,"")&" "&IF(AND(C16=$Q$13,D16=$T$9),A16,"")&" "&IF(AND(C17=$Q$13,D17=$T$9),A17,"")&" "&IF(AND(C18=$Q$13,D18=$T$9),A18,"")&" "&IF(AND(C19=$Q$13,D19=$T$9),A19,"")&" "&IF(AND(C20=$Q$13,D20=$T$9),A20,"")&" "&IF(AND(C21=$Q$13,D21=$T$9),A21,"")&" "&IF(AND(C22=$Q$13,D22=$T$9),A22,"")&" "&IF(AND(C23=$Q$13,D23=$T$9),A23,"")&" "&IF(AND(C24=$Q$13,D24=$T$9),A24,"")&" "&IF(AND(C25=$Q$13,D25=$T$9),A25,"")&" "&IF(AND(C26=$Q$13,D26=$T$9),A26,"")&" "&IF(AND(C27=$Q$13,D27=$T$9),A27,"")&" "&IF(AND(C28=$Q$13,D28=$T$9),A28,"")&" "&IF(AND(C29=$Q$13,D29=$T$9),A29,"")&""&IF(AND(C30=$Q$10,D30=$R$9),A30,"") -> R19 | L13: =+IF(AND(C10=$Q$13,D10=$U$9),A10,"")&" "&IF(AND(C11=$Q$13,D11=$U$9),A11,"")&" "&IF(AND(C12=$Q$13,D12=$U$9),A12,"")&" "&IF(AND(C13=$Q$13,D13=$U$9),A13,"")&" "&IF(AND(C14=$Q$13,D14=$U$9),A14,"")&" "&IF(AND(C15=$Q$13,D15=$U$9),A15,"")&" "&IF(AND(C16=$Q$13,D16=$U$9),A16,"")&" "&IF(AND(C17=$Q$13,D17=$U$9),A17,"")&" "&IF(AND(C18=$Q$13,D18=$U$9),A18,"")&" "&IF(AND(C19=$Q$13,D19=$U$9),A19,"")&" "&IF(AND(C20=$Q$13,D20=$U$9),A20,"")&" "&IF(AND(C21=$Q$13,D21=$U$9),A21,"")&" "&IF(AND(C22=$Q$13,D22=$U$9),A22,"")&" "&IF(AND(C23=$Q$13,D23=$U$9),A23,"")&" "&IF(AND(C24=$Q$13,D24=$U$9),A24,"")&" "&IF(AND(C25=$Q$13,D25=$U$9),A25,"")&" "&IF(AND(C26=$Q$13,D26=$U$9),A26,"")&" "&IF(AND(C27=$Q$13,D27=$U$9),A27,"")&" "&IF(AND(C28=$Q$13,D28=$U$9),A28,"")&" "&IF(AND(C29=$Q$13,D29=$U$9),A29,"")&""&IF(AND(C30=$Q$10,D30=$R$9),A30,"") ->  | M13: =+IF(AND(C10=$Q$13,D10=$V$9),A10,"")&" "&IF(AND(C11=$Q$13,D11=$V$9),A11,"")&" "&IF(AND(C12=$Q$13,D12=$V$9),A12,"")&" "&IF(AND(C13=$Q$13,D13=$V$9),A13,"")&" "&IF(AND(C14=$Q$13,D14=$V$9),A14,"")&" "&IF(AND(C15=$Q$13,D15=$V$9),A15,"")&" "&IF(AND(C16=$Q$13,D16=$V$9),A16,"")&" "&IF(AND(C17=$Q$13,D17=$V$9),A17,"")&" "&IF(AND(C18=$Q$13,D18=$V$9),A18,"")&" "&IF(AND(C19=$Q$13,D19=$V$9),A19,"")&" "&IF(AND(C20=$Q$13,D20=$V$9),A20,"")&" "&IF(AND(C21=$Q$13,D21=$V$9),A21,"")&" "&IF(AND(C22=$Q$13,D22=$V$9),A22,"")&" "&IF(AND(C23=$Q$13,D23=$V$9),A23,"")&" "&IF(AND(C24=$Q$13,D24=$V$9),A24,"")&" "&IF(AND(C25=$Q$13,D25=$V$9),A25,"")&" "&IF(AND(C26=$Q$13,D26=$V$9),A26,"")&" "&IF(AND(C27=$Q$13,D27=$V$9),A27,"")&" "&IF(AND(C28=$Q$13,D28=$V$9),A28,"")&" "&IF(AND(C29=$Q$13,D29=$V$9),A29,"")&""&IF(AND(C30=$Q$10,D30=$R$9),A30,"") ->  | P13: 40% | Q13: Baja | R13: Bajo | S13: Moderado | T13: Moderado | U13: Alto | V13: Extremo
A14: ='2 CONTEXTO E IDENTIFICACIÓN'!A13 -> R5 | B14: =+'2 CONTEXTO E IDENTIFICACIÓN'!J13 -> Posibilidad de afectación reputacional por queja o reclamo de los grupos de valor interno a causa de actividades del plan de bienestar no ajustadas a las necesidades de los grupos de valor internos | C14: =+'3 PROBABIL E IMPACTO INHERENTE'!F13 -> Baja | D14: =+'3 PROBABIL E IMPACTO INHERENTE'!N13 -> Leve | E14: Bajo | H14: Muy Baja | I14: =+IF(AND(C10=$Q$14,D10=$R$9),A10,"")&" "&IF(AND(C11=$Q$14,D11=$R$9),A11,"")&" "&IF(AND(C12=$Q$14,D12=$R$9),A12,"")&" "&IF(AND(C13=$Q$14,D13=$R$9),A13,"")&" "&IF(AND(C14=$Q$14,D14=$R$9),A14,"")&" "&IF(AND(C15=$Q$14,D15=$R$9),A15,"")&" "&IF(AND(C16=$Q$14,D16=$R$9),A16,"")&" "&IF(AND(C17=$Q$14,D17=$R$9),A17,"")&" "&IF(AND(C18=$Q$14,D18=$R$9),A18,"")&" "&IF(AND(C19=$Q$14,D19=$R$9),A19,"")&" "&IF(AND(C20=$Q$14,D20=$R$9),A20,"")&" "&IF(AND(C21=$Q$14,D21=$R$9),A21,"")&" "&IF(AND(C22=$Q$14,D22=$R$9),A22,"")&" "&IF(AND(C23=$Q$14,D23=$R$9),A23,"")&" "&IF(AND(C24=$Q$14,D24=$R$9),A24,"")&" "&IF(AND(C25=$Q$14,D25=$R$9),A25,"")&" "&IF(AND(C26=$Q$14,D26=$R$9),A26,"")&" "&IF(AND(C27=$Q$14,D27=$R$9),A27,"")&" "&IF(AND(C28=$Q$14,D28=$R$9),A28,"")&" "&IF(AND(C29=$Q$14,D29=$R$9),A29,"")&""&IF(AND(C30=$Q$10,D30=$R$9),A30,"") ->  | J14: =+IF(AND(C10=$Q$14,D10=$S$9),A10,"")&" "&IF(AND(C11=$Q$14,D11=$S$9),A11,"")&" "&IF(AND(C12=$Q$14,D12=$S$9),A12,"")&" "&IF(AND(C13=$Q$14,D13=$S$9),A13,"")&" "&IF(AND(C14=$Q$14,D14=$S$9),A14,"")&" "&IF(AND(C15=$Q$14,D15=$S$9),A15,"")&" "&IF(AND(C16=$Q$14,D16=$S$9),A16,"")&" "&IF(AND(C17=$Q$14,D17=$S$9),A17,"")&" "&IF(AND(C18=$Q$14,D18=$S$9),A18,"")&" "&IF(AND(C19=$Q$14,D19=$S$9),A19,"")&" "&IF(AND(C20=$Q$14,D20=$S$9),A20,"")&" "&IF(AND(C21=$Q$14,D21=$S$9),A21,"")&" "&IF(AND(C22=$Q$14,D22=$S$9),A22,"")&" "&IF(AND(C23=$Q$14,D23=$S$9),A23,"")&" "&IF(AND(C24=$Q$14,D24=$S$9),A24,"")&" "&IF(AND(C25=$Q$14,D25=$S$9),A25,"")&" "&IF(AND(C26=$Q$14,D26=$S$9),A26,"")&" "&IF(AND(C27=$Q$14,D27=$S$9),A27,"")&" "&IF(AND(C28=$Q$14,D28=$S$9),A28,"")&" "&IF(AND(C29=$Q$14,D29=$S$9),A29,"")&""&IF(AND(C30=$Q$10,D30=$R$9),A30,"") ->  | K14: =+IF(AND(C10=$Q$14,D10=$T$9),A10,"")&" "&IF(AND(C11=$Q$14,D11=$T$9),A11,"")&" "&IF(AND(C12=$Q$14,D12=$T$9),A12,"")&" "&IF(AND(C13=$Q$14,D13=$T$9),A13,"")&" "&IF(AND(C14=$Q$14,D14=$T$9),A14,"")&" "&IF(AND(C15=$Q$14,D15=$T$9),A15,"")&" "&IF(AND(C16=$Q$14,D16=$T$9),A16,"")&" "&IF(AND(C17=$Q$14,D17=$T$9),A17,"")&" "&IF(AND(C18=$Q$14,D18=$T$9),A18,"")&" "&IF(AND(C19=$Q$14,D19=$T$9),A19,"")&" "&IF(AND(C20=$Q$14,D20=$T$9),A20,"")&" "&IF(AND(C21=$Q$14,D21=$T$9),A21,"")&" "&IF(AND(C22=$Q$14,D22=$T$9),A22,"")&" "&IF(AND(C23=$Q$14,D23=$T$9),A23,"")&" "&IF(AND(C24=$Q$14,D24=$T$9),A24,"")&" "&IF(AND(C25=$Q$14,D25=$T$9),A25,"")&" "&IF(AND(C26=$Q$14,D26=$T$9),A26,"")&" "&IF(AND(C27=$Q$14,D27=$T$9),A27,"")&" "&IF(AND(C28=$Q$14,D28=$T$9),A28,"")&" "&IF(AND(C29=$Q$14,D29=$T$9),A29,"")&""&IF(AND(C30=$Q$10,D30=$R$9),A30,"") -> R14 | L14: =+IF(AND(C10=$Q$14,D10=$U$9),A10,"")&" "&IF(AND(C11=$Q$14,D11=$U$9),A11,"")&" "&IF(AND(C12=$Q$14,D12=$U$9),A12,"")&" "&IF(AND(C13=$Q$14,D13=$U$9),A13,"")&" "&IF(AND(C14=$Q$14,D14=$U$9),A14,"")&" "&IF(AND(C15=$Q$14,D15=$U$9),A15,"")&" "&IF(AND(C16=$Q$14,D16=$U$9),A16,"")&" "&IF(AND(C17=$Q$14,D17=$U$9),A17,"")&" "&IF(AND(C18=$Q$14,D18=$U$9),A18,"")&" "&IF(AND(C19=$Q$14,D19=$U$9),A19,"")&" "&IF(AND(C20=$Q$14,D20=$U$9),A20,"")&" "&IF(AND(C21=$Q$14,D21=$U$9),A21,"")&" "&IF(AND(C22=$Q$14,D22=$U$9),A22,"")&" "&IF(AND(C23=$Q$14,D23=$U$9),A23,"")&" "&IF(AND(C24=$Q$14,D24=$U$9),A24,"")&" "&IF(AND(C25=$Q$14,D25=$U$9),A25,"")&" "&IF(AND(C26=$Q$14,D26=$U$9),A26,"")&" "&IF(AND(C27=$Q$14,D27=$U$9),A27,"")&" "&IF(AND(C28=$Q$14,D28=$U$9),A28,"")&" "&IF(AND(C29=$Q$14,D29=$U$9),A29,"")&""&IF(AND(C30=$Q$10,D30=$R$9),A30,"") ->  | M14: =+IF(AND(C10=$Q$14,D10=$V$9),A10,"")&" "&IF(AND(C11=$Q$14,D11=$V$9),A11,"")&" "&IF(AND(C12=$Q$14,D12=$V$9),A12,"")&" "&IF(AND(C13=$Q$14,D13=$V$9),A13,"")&" "&IF(AND(C14=$Q$14,D14=$V$9),A14,"")&" "&IF(AND(C15=$Q$14,D15=$V$9),A15,"")&" "&IF(AND(C16=$Q$14,D16=$V$9),A16,"")&" "&IF(AND(C17=$Q$14,D17=$V$9),A17,"")&" "&IF(AND(C18=$Q$14,D18=$V$9),A18,"")&" "&IF(AND(C19=$Q$14,D19=$V$9),A19,"")&" "&IF(AND(C20=$Q$14,D20=$V$9),A20,"")&" "&IF(AND(C21=$Q$14,D21=$V$9),A21,"")&" "&IF(AND(C22=$Q$14,D22=$V$9),A22,"")&" "&IF(AND(C23=$Q$14,D23=$V$9),A23,"")&" "&IF(AND(C24=$Q$14,D24=$V$9),A24,"")&" "&IF(AND(C25=$Q$14,D25=$V$9),A25,"")&" "&IF(AND(C26=$Q$14,D26=$V$9),A26,"")&" "&IF(AND(C27=$Q$14,D27=$V$9),A27,"")&" "&IF(AND(C28=$Q$14,D28=$V$9),A28,"")&" "&IF(AND(C29=$Q$14,D29=$V$9),A29,"")&""&IF(AND(C30=$Q$10,D30=$R$9),A30,"") ->  | P14: 20% | Q14: Muy Baja | R14: Bajo | S14: Bajo | T14: Moderado | U14: Alto | V14: Extremo
A15: ='2 CONTEXTO E IDENTIFICACIÓN'!A14 -> R6 | B15: =+'2 CONTEXTO E IDENTIFICACIÓN'!J14 -> Posibilidad de afectación reputacional por Información incompleta o inexacta a causa de Inconsistencias en la emisión de certificación electrónica de tiempos laborados (CETIL). | C15: =+'3 PROBABIL E IMPACTO INHERENTE'!F14 -> Baja | D15: =+'3 PROBABIL E IMPACTO INHERENTE'!N14 -> Leve | E15: Bajo
A16: ='2 CONTEXTO E IDENTIFICACIÓN'!A15 -> R7 | B16: =+'2 CONTEXTO E IDENTIFICACIÓN'!J15 -> Posibilidad de afectación reputacional por Comportamientos no éticos de los empleados a causa de Acceso no autorizado a la información confidencial de la Historia Laboral - HL o datos personales. | C16: =+'3 PROBABIL E IMPACTO INHERENTE'!F15 -> Media | D16: =+'3 PROBABIL E IMPACTO INHERENTE'!N15 -> Leve | E16: Moderado | R16: NIVELES DE RIESGO
A17: ='2 CONTEXTO E IDENTIFICACIÓN'!A16 -> R8 | B17: =+'2 CONTEXTO E IDENTIFICACIÓN'!J16 -> Posibilidad de efecto dañoso sobre el recurso público por Sanciones de entes reguladores y de control o demandas y quejas de los grupos de valor a causa de incumplimiento de estándares mínimos del Sistema de Gestión en Seguridad y Salud en el Trabajo( SG-SST). | C17: =+'3 PROBABIL E IMPACTO INHERENTE'!F16 -> Media | D17: =+'3 PROBABIL E IMPACTO INHERENTE'!N16 -> Catastrófico | E17: Extremo | R17: Extremo
A18: ='2 CONTEXTO E IDENTIFICACIÓN'!A17 -> R9 | B18: =+'2 CONTEXTO E IDENTIFICACIÓN'!J17 -> Posibilidad de afectación económica y reputacional por Errores en la presentacion, informacion a causa de Incumplimiento de no validada y presentada de manera oportuna, veraz, completa y conforme a la normatividad vigente. | C18: =+'3 PROBABIL E IMPACTO INHERENTE'!F17 -> Media | D18: =+'3 PROBABIL E IMPACTO INHERENTE'!N17 -> Menor | E18: Moderado | R18: Alto
A19: ='2 CONTEXTO E IDENTIFICACIÓN'!A18 -> R10 | B19: =+'2 CONTEXTO E IDENTIFICACIÓN'!J18 -> Posibilidad de afectación económica y reputacional por Errores o inconsistencias en la elaboración de los estados financieros a causa de Omisión de políticas contables actualizadas conforme a la normatividad vigente (NICSP para entidades públicas). | C19: =+'3 PROBABIL E IMPACTO INHERENTE'!F18 -> Media | D19: =+'3 PROBABIL E IMPACTO INHERENTE'!N18 -> Mayor | E19: Alto | R19: Moderado
A20: ='2 CONTEXTO E IDENTIFICACIÓN'!A19 -> R11 | B20: =+'2 CONTEXTO E IDENTIFICACIÓN'!J19 -> Posibilidad de afectación económica y reputacional por Registro contable equivocado de ingresos, egresos o transferencias. a causa de Conciliaciones realizadas de forma extemporánea o sin periodicidad definida. | C20: =+'3 PROBABIL E IMPACTO INHERENTE'!F19 -> Media | D20: =+'3 PROBABIL E IMPACTO INHERENTE'!N19 -> Moderado | E20: Moderado | R20: Bajo
A21: ='2 CONTEXTO E IDENTIFICACIÓN'!A20 -> R12 | B21: =+'2 CONTEXTO E IDENTIFICACIÓN'!J20 -> Posibilidad de afectación económica y reputacional por Manejo inadecuado de la Caja Menor. a causa de Ausencia de conciliaciones y arqueos periódicos | C21: =+'3 PROBABIL E IMPACTO INHERENTE'!F20 -> Media | D21: =+'3 PROBABIL E IMPACTO INHERENTE'!N20 -> Menor | E21: Moderado
A22: ='2 CONTEXTO E IDENTIFICACIÓN'!A21 -> R13 | B22: =+'2 CONTEXTO E IDENTIFICACIÓN'!J21 -> Posibilidad de afectación económica y reputacional por No reportes de accidentes e incidentes ante la ARL. a causa de Omisión en la presentación de reportes de accidentes e incidentes ante la ARL. | C22: =+'3 PROBABIL E IMPACTO INHERENTE'!F21 -> Media | D22: =+'3 PROBABIL E IMPACTO INHERENTE'!N21 -> Moderado | E22: Moderado
A23: ='2 CONTEXTO E IDENTIFICACIÓN'!A22 -> R14 | B23: =+'2 CONTEXTO E IDENTIFICACIÓN'!J22 -> Posibilidad de afectación económica y reputacional por Omisión o retraso en la actualización de la matriz legal a causa de Posibilidad de omisión o retraso en la actualización de la matriz legal debido a falta del responsable designado. | C23: =+'3 PROBABIL E IMPACTO INHERENTE'!F22 -> Muy Baja | D23: =+'3 PROBABIL E IMPACTO INHERENTE'!N22 -> Moderado | E23: Moderado
A24: ='2 CONTEXTO E IDENTIFICACIÓN'!A23 -> R15 | B24: =+'2 CONTEXTO E IDENTIFICACIÓN'!J23 -> Posibilidad de afectación económica y reputacional por Investigaciones disciplinarias y sanciones por entes de control. a causa de Contratar personal sin el cumplimiento de requisitos | C24: =+'3 PROBABIL E IMPACTO INHERENTE'!F23 -> Media | D24: =+'3 PROBABIL E IMPACTO INHERENTE'!N23 -> Moderado | E24: Moderado
A25: ='2 CONTEXTO E IDENTIFICACIÓN'!A24 -> R16 | B25: =+'2 CONTEXTO E IDENTIFICACIÓN'!J24 -> Posibilidad de afectación reputacional porInvestigaciones disciplinarias y sanciones por entes de control a causa de Insuficiente participación en los procesos de capacitación y entrenamiento a los servidores públicos para la prestación del servicio, que afecta las competencias y conocimiento interno. | C25: =+'3 PROBABIL E IMPACTO INHERENTE'!F24 -> Media | D25: =+'3 PROBABIL E IMPACTO INHERENTE'!N24 -> Moderado | E25: Moderado
A26: ='2 CONTEXTO E IDENTIFICACIÓN'!A25 -> R17 | B26: =+'2 CONTEXTO E IDENTIFICACIÓN'!J25 -> Posibilidad de afectación económica y reputacional porQueja o reclamo de servidores de la Entidad. a causa de Reporte de novedades fuera de los plazos definidos en el cronograma | C26: =+'3 PROBABIL E IMPACTO INHERENTE'!F25 -> Baja | D26: =+'3 PROBABIL E IMPACTO INHERENTE'!N25 -> Menor | E26: Moderado
A27: ='2 CONTEXTO E IDENTIFICACIÓN'!A26 -> R18 | B27: =+'2 CONTEXTO E IDENTIFICACIÓN'!J26 -> Posibilidad de afectación económica y reputacional porSanciones e investigaciones de entes de control y judiciales a causa de Omisión en la liquidación y pago de la seguridad social y aportes a parafiscales. | C27: =+'3 PROBABIL E IMPACTO INHERENTE'!F26 -> Baja | D27: =+'3 PROBABIL E IMPACTO INHERENTE'!N26 -> Menor | E27: Moderado
A28: ='2 CONTEXTO E IDENTIFICACIÓN'!A27 -> R19 | B28: =+'2 CONTEXTO E IDENTIFICACIÓN'!J27 -> Posibilidad de afectación económica y reputacional porInformación incompleta o inexacta a causa de Inconsistencias en la emisión de certificación electrónica de tiempos laborados (CETIL). | C28: =+'3 PROBABIL E IMPACTO INHERENTE'!F27 -> Baja | D28: =+'3 PROBABIL E IMPACTO INHERENTE'!N27 -> Moderado | E28: Moderado
A29: ='2 CONTEXTO E IDENTIFICACIÓN'!A28 -> R20 | B29: =+'2 CONTEXTO E IDENTIFICACIÓN'!J28 -> Posibilidad de efecto dañoso sobre el recurso público porInvestigaciones disciplinarias por la autoridad competente a causa de Fallas en la prestación del servicio por el no cumplimiento a los requisitos minimos del exigidos en la seleccion del Talento Humano. | C29: =+'3 PROBABIL E IMPACTO INHERENTE'!F28 -> Media | D29: =+'3 PROBABIL E IMPACTO INHERENTE'!N28 -> Mayor | E29: Alto
A30: ='2 CONTEXTO E IDENTIFICACIÓN'!A29 -> R21 | B30: =+'2 CONTEXTO E IDENTIFICACIÓN'!J29 -> Posibilidad de afectación reputacional por Queja o reclamo de los grupos de valor interno a causa de Actividades del plan de bienestar no ajustadas a las necesidades de los grupos de valor internos | C30: =+'3 PROBABIL E IMPACTO INHERENTE'!F29 -> Media | D30: =+'3 PROBABIL E IMPACTO INHERENTE'!N29 -> Leve | E30: Moderado
A31: ='2 CONTEXTO E IDENTIFICACIÓN'!A30 -> R22 | B31: =+'2 CONTEXTO E IDENTIFICACIÓN'!J30 -> Posibilidad de afectación económica y reputacional porSanciones de entes reguladores y de control o demandas y quejas de los grupos de valor a causa de incumplimiento de estándares mínimos del Sistema de Gestión en Seguridad y Salud en el Trabajo( SG-SST). | C31: =+'3 PROBABIL E IMPACTO INHERENTE'!F30 -> Media | D31: =+'3 PROBABIL E IMPACTO INHERENTE'!N30 -> Mayor | E31: Alto
A32: ='2 CONTEXTO E IDENTIFICACIÓN'!A31 -> R23 | B32: =+'2 CONTEXTO E IDENTIFICACIÓN'!J31 -> Posibilidad de afectación económica porProbabilidad de recudo insuficiente por parte de la de cartera a causa de Gestion de recudo insuficiente por parte delos responsables de Cartera y Gerencia. | C32: =+'3 PROBABIL E IMPACTO INHERENTE'!F31 -> Media | D32: =+'3 PROBABIL E IMPACTO INHERENTE'!N31 -> Mayor | E32: Alto
A33: ='2 CONTEXTO E IDENTIFICACIÓN'!A32 -> R24 | B33: =+'2 CONTEXTO E IDENTIFICACIÓN'!J32 -> Posibilidad de afectación económica y reputacional porErrores en la presentacion, informacion a causa de Incumplimiento de no validada y presentada de manera oportuna, veraz, completa y conforme a la normatividad vigente. | C33: =+'3 PROBABIL E IMPACTO INHERENTE'!F32 -> Baja | D33: =+'3 PROBABIL E IMPACTO INHERENTE'!N32 -> Moderado | E33: Moderado
A34: ='2 CONTEXTO E IDENTIFICACIÓN'!A33 -> R25 | B34: =+'2 CONTEXTO E IDENTIFICACIÓN'!J33 -> Posibilidad de afectación económica y reputacional porErrores o inconsistencias en la elaboración de los estados financieros a causa de Omisión de políticas contables actualizadas conforme a la normatividad vigente (NIIF para entidades públicas en salud). | C34: =+'3 PROBABIL E IMPACTO INHERENTE'!F33 -> Baja | D34: =+'3 PROBABIL E IMPACTO INHERENTE'!N33 -> Moderado | E34: Moderado
A35: ='2 CONTEXTO E IDENTIFICACIÓN'!A34 -> R26 | B35: =+'2 CONTEXTO E IDENTIFICACIÓN'!J34 -> Posibilidad de afectación económica y reputacional porRegistro contable equivocado de ingresos, egresos o transferencias. a causa de Conciliaciones realizadas de forma extemporánea o sin periodicidad definida. | C35: =+'3 PROBABIL E IMPACTO INHERENTE'!F34 -> Media | D35: =+'3 PROBABIL E IMPACTO INHERENTE'!N34 -> Mayor | E35: Alto
A36: ='2 CONTEXTO E IDENTIFICACIÓN'!A35 -> R27 | B36: =+'2 CONTEXTO E IDENTIFICACIÓN'!J35 -> Posibilidad de efecto dañoso sobre el recurso público porManejo inadecuado de la Caja Menor. a causa de Ausencia de conciliaciones y arqueos periódicos | C36: =+'3 PROBABIL E IMPACTO INHERENTE'!F35 -> Baja | D36: =+'3 PROBABIL E IMPACTO INHERENTE'!N35 -> Leve | E36: Bajo
A37: ='2 CONTEXTO E IDENTIFICACIÓN'!A36 -> R28 | B37: =+'2 CONTEXTO E IDENTIFICACIÓN'!J36 -> Posibilidad de efecto dañoso sobre el interes patrimonial porPérdida, extravío, hurto, robo o declaratoria de bienes muebles faltantes pertenecientes a la E.S.E. Hospiatal de Usiacuri a causa de Omisión en la aplicación del procedimiento para actualización del inventario de bienes muebles. | C37: =+'3 PROBABIL E IMPACTO INHERENTE'!F36 -> Media | D37: =+'3 PROBABIL E IMPACTO INHERENTE'!N36 -> Leve | E37: Moderado
A38: ='2 CONTEXTO E IDENTIFICACIÓN'!A37 -> R29 | B38: =+'2 CONTEXTO E IDENTIFICACIÓN'!J37 -> Posibilidad de efecto dañoso sobre el recurso público porRecobros de incapacidades. a causa de Debilidades en la gestión de controles operativos internos y seguimiento de las incapacidades. | C38: =+'3 PROBABIL E IMPACTO INHERENTE'!F37 -> Media | D38: =+'3 PROBABIL E IMPACTO INHERENTE'!N37 -> Moderado | E38: Moderado
A39: ='2 CONTEXTO E IDENTIFICACIÓN'!A38 -> R30 | B39: =+'2 CONTEXTO E IDENTIFICACIÓN'!J38 -> Posibilidad de efecto dañoso sobre el recurso público porMayores valores pagados en la nómina. a causa de Inconsistencias en la información reportada en el software de nómina de la entidad. | C39: =+'3 PROBABIL E IMPACTO INHERENTE'!F38 -> Baja | D39: =+'3 PROBABIL E IMPACTO INHERENTE'!N38 -> Moderado | E39: Moderado
A40: ='2 CONTEXTO E IDENTIFICACIÓN'!A39 -> R31 | B40: =+'2 CONTEXTO E IDENTIFICACIÓN'!J39 -> Posibilidad de efecto dañoso sobre el recurso público porExpedición de actos administrativos y/o certificados a causa de Actos de fraude, actuaciones irregulares, comisión de hechos delictivos, abuso de confianza, apropiación indebida, incumplimiento de regulaciones legales o internas de la entidad. | C40: =+'3 PROBABIL E IMPACTO INHERENTE'!F39 -> Media | D40: =+'3 PROBABIL E IMPACTO INHERENTE'!N39 -> Moderado | E40: Moderado
A41: ='2 CONTEXTO E IDENTIFICACIÓN'!A40 -> R32 | B41: =+'2 CONTEXTO E IDENTIFICACIÓN'!J40 -> Posibilidad de efecto dañoso sobre el recurso público por Pérdida, extravío, hurto, robo o faltantes de inventarios pertenecientes a la entidad a causa de inconsistencias contables, pérdidas económicas o afectaciones fiscales derivadas de la falta de integración del módulo de farmacia al software institucional | C41: =+'3 PROBABIL E IMPACTO INHERENTE'!F40 -> Media | D41: =+'3 PROBABIL E IMPACTO INHERENTE'!N40 -> Menor | E41: Moderado
A42: ='2 CONTEXTO E IDENTIFICACIÓN'!A41 -> R33 | B42: =+'2 CONTEXTO E IDENTIFICACIÓN'!J41 -> Posibilidad de efecto dañoso sobre el recurso público porPago de sancion y/o intereses moratorios a causa de Debilidades en el diligenciamiento del formular de retencion en la fuente, pago y resentacion por fuera de los plazos establecidos por el calendario DIAN. | C42: =+'3 PROBABIL E IMPACTO INHERENTE'!F41 -> Baja | D42: =+'3 PROBABIL E IMPACTO INHERENTE'!N41 -> Catastrófico | E42: Extremo
A43: ='2 CONTEXTO E IDENTIFICACIÓN'!A42 -> R34 | B43: =+'2 CONTEXTO E IDENTIFICACIÓN'!J42 -> Posibilidad de efecto dañoso sobre el recurso público porEjecución de un alcance inferior al contratado y pago total del contrato a causa de Deficiencias en las funciones de Supervisión e Interventoría de los contratos de la Entidad | C43: =+'3 PROBABIL E IMPACTO INHERENTE'!F42 -> Alta | D43: =+'3 PROBABIL E IMPACTO INHERENTE'!N42 -> Leve | E43: Moderado
A44: ='2 CONTEXTO E IDENTIFICACIÓN'!A43 -> R35 | B44: =+'2 CONTEXTO E IDENTIFICACIÓN'!J43 -> Posibilidad de efecto dañoso sobre el recurso público porSanciones de tipo civil y penal por parte del Ministerio de Trabajo y otros entes de control por incumplimiento a la normatividad vigente en materia de riesgos laborales y seguridad y salud en el trabajo a causa de Procedimientos internos deficientes para identificar e implementar oportunamente acciones de prevención y manejo de los riesgos y peligros en el ambiente laboral | C44: =+'3 PROBABIL E IMPACTO INHERENTE'!F43 -> Media | D44: =+'3 PROBABIL E IMPACTO INHERENTE'!N43 -> Moderado | E44: Moderado
A45: ='2 CONTEXTO E IDENTIFICACIÓN'!A44 -> R36 | B45: =+'2 CONTEXTO E IDENTIFICACIÓN'!J44 -> Posibilidad de efecto dañoso sobre el recurso público porPago de sancion y/o intereses moratorios a causa de Debilidades en el diligenciamiento del formulario de informacion exogena y/o presentacion por fuera de los plazos establecidos por el calendario DIAN. | C45: =+'3 PROBABIL E IMPACTO INHERENTE'!F44 -> Muy Baja | D45: =+'3 PROBABIL E IMPACTO INHERENTE'!N44 -> Leve | E45: Bajo
A46: ='2 CONTEXTO E IDENTIFICACIÓN'!A45 -> R37 | B46: =+'2 CONTEXTO E IDENTIFICACIÓN'!J45 -> Posibilidad de afectación reputacional porMatriz legal desactualizada a causa de Omisión o retraso en la actualización de la matriz legal | C46: =+'3 PROBABIL E IMPACTO INHERENTE'!F45 -> Baja | D46: =+'3 PROBABIL E IMPACTO INHERENTE'!N45 -> Menor | E46: Moderado
A47: ='2 CONTEXTO E IDENTIFICACIÓN'!A46 -> R38 | B47: =+'2 CONTEXTO E IDENTIFICACIÓN'!J46 -> Posibilidad de afectación económica y reputacional porRecibir o solicitar dádivas ó beneficios a nombre propio o de terceros a causa de Adulterar o cambiar información para minimizar el valor a cobrar por la prestación de servicios de salud. | C47: =+'3 PROBABIL E IMPACTO INHERENTE'!F46 -> Media | D47: =+'3 PROBABIL E IMPACTO INHERENTE'!N46 -> Catastrófico | E47: Extremo
A48: ='2 CONTEXTO E IDENTIFICACIÓN'!A47 -> R39 | B48: =+'2 CONTEXTO E IDENTIFICACIÓN'!J47 -> Posibilidad de afectación económica y reputacional porManejo inadecuado de residuos hospitalarios y peligrosos a causa de Disposición transitoria incorrecta | C48: =+'3 PROBABIL E IMPACTO INHERENTE'!F47 -> Alta | D48: =+'3 PROBABIL E IMPACTO INHERENTE'!N47 -> Moderado | E48: Alto
A49: ='2 CONTEXTO E IDENTIFICACIÓN'!A48 -> R40 | B49: =+'2 CONTEXTO E IDENTIFICACIÓN'!J48 -> Posibilidad de afectación económica y reputacional porSuspensión parcial o total de áreas o servicios vitales para la atención en salud a los usuarios atendidos por la E.S.E.. a causa de Incumplimiento normativo en el lavado de tanques de agua potable y alteraciones en el análisis físico - químico y microbiológico de la calidad del agua. | C49: =+'3 PROBABIL E IMPACTO INHERENTE'!F48 -> Media | D49: =+'3 PROBABIL E IMPACTO INHERENTE'!N48 -> Moderado | E49: Moderado

Sheet 5 VALORACIÓN CONTROL PROBAB.
B1: =+'2 CONTEXTO E IDENTIFICACIÓN'!A1 -> MAPA DE RIESGOS | G1: =+'2 CONTEXTO E IDENTIFICACIÓN'!$I$4 -> Elaboración o Actualización: | H1: ='2 CONTEXTO E IDENTIFICACIÓN'!J4 -> 12/29/2025
C2: =+'2 CONTEXTO E IDENTIFICACIÓN'!A2 -> VERSIÓN: | D2: ='2 CONTEXTO E IDENTIFICACIÓN'!B2 -> 1 | G2: =+'2 CONTEXTO E IDENTIFICACIÓN'!$E$5 -> Vigencia: | H2: ='2 CONTEXTO E IDENTIFICACIÓN'!G5 -> 2026-01-01 | I2: Al | J2: ='2 CONTEXTO E IDENTIFICACIÓN'!J5 -> 2026-12-31
A3: ENTIDAD: | B3: ='2 CONTEXTO E IDENTIFICACIÓN'!B4 -> E.S.E. CENTRO DE SALUD DE USIACURI
A4: PROCESO: | B4: ='2 CONTEXTO E IDENTIFICACIÓN'!F4 -> 0 | F4: VALORACIÓN DEL CONTROL | J4: Atributos del control | S4: Peso del Control + Peso de la implementación | T4: Cálculo de Probabilidad | V4: De acuerdo al cálculo de controles preventivos y detectivos digite el valor residual final en Probabilidad | X4: NIVEL
X5: Nivel | Y5: % MIN | Z5: % MAX
A6: No. Riesgo | B6: Riesgo | C6: % Probabilidad Riesgo Inherente | D6: % Impacto Riesgo Inherente | E6: No. Control | F6: Descripción del Control | J6: Atributos Eficiencia | O6: Atibutos Formalización del control | X6: Muy Baja | Y6: 1% | Z6: 20%
F7: Responsable (Cargo y/o Aplicativo) | G7: Acción (Inicia con un verbo) | H7: Complemento (Periodicidad - Observaciones o Desviaciones) | I7: Descripción del control | J7: Tipo de control para probabilidad | K7: Peso del Control | L7: Afectación o Desplazamiento en la Matriz | M7: Implementación | N7: Peso de la implementación | O7: Documentación | P7: Frecuencia | Q7: Evidencia (Trazabilidad de la ejecución) | R7: Ejecución | S7: Valor Total del Control probabilidad | T7: Probabilidad residual 1 | U7: Probabilidad residual a partir del segundo control | V7: Probabilidad residual Final | X7: Baja | Y7: 21% | Z7: 40%
A8: ='2 CONTEXTO E IDENTIFICACIÓN'!A9 -> R1 | B8: =+'2 CONTEXTO E IDENTIFICACIÓN'!J9 -> Posibilidad de afectación reputacional por Investigaciones disciplinarias y sanciones por entes de control a causa de Insuficiente participación en los procesos de capacitación y entrenamiento a los servidores públicos para la prestación del servicio, que afecta las competencias y conocimiento interno. | C8: =+'3 PROBABIL E IMPACTO INHERENTE'!E9 -> 60% | D8: =+'3 PROBABIL E IMPACTO INHERENTE'!M9 -> 20% | E8: 1 | F8: El Lider de Talento Humano | G8: realiza seguimiento a la participación de los servidores públicos en la ejecución del Plan Institucional de Capacitaciones PIC 2026, | H8: que permita promocionar de manera adecuada la formación y llegue a la población objetivo de esta. | I8: =+CONCATENATE(F8," ",G8," ",H8) -> El Lider de Talento Humano realiza seguimiento a la participación de los servidores públicos en la ejecución del Plan Institucional de Capacitaciones PIC 2026, que permita promocionar de manera adecuada la formación y llegue a la población objetivo de esta. | J8: Preventivo | K8: =+IFERROR(VLOOKUP($J8,'11 FORMULAS'!$B$51:$C$53,2,0),"") -> 25% | L8: =+IF(J8="Preventivo","Probabilidad",IF(J8="Detectivo","Probabilidad",IF(#REF!="Correctivo","Impacto",""))) -> Probabilidad | M8: Manual | N8: =+IFERROR(VLOOKUP($M8,'11 FORMULAS'!$B$54:$C$55,2,0),"") -> 15% | O8: Otros Esquemas | P8: por a causa de | Q8: Con registro manual | R8: Interna | S8: =+IFERROR($K8+$N8,"") -> 40% | T8: =+IFERROR(C8*S8,"") -> 24% | U8: =+IFERROR(C8-T8,"") -> 36% | V8: 24% | X8: Media | Y8: 41% | Z8: 60%
E9: 2 | K9: =+IFERROR(VLOOKUP($J9,'11 FORMULAS'!$B$51:$C$53,2,0),"") ->  | L9: =+IF(J9="Preventivo","Probabilidad",IF(J9="Detectivo","Probabilidad",IF(#REF!="Correctivo","Impacto",""))) ->  | N9: =+IFERROR(VLOOKUP($M9,'11 FORMULAS'!$B$54:$C$55,2,0),"") ->  | T9: =+IFERROR(U8*S9,"") ->  | U9: =+IFERROR(U8-T9,"") ->  | X9: Alta | Y9: 61% | Z9: 80%
E10: 3 | K10: =+IFERROR(VLOOKUP($J10,'11 FORMULAS'!$B$51:$C$53,2,0),"") ->  | L10: =+IF(J10="Preventivo","Probabilidad",IF(J10="Detectivo","Probabilidad",IF(#REF!="Correctivo","Impacto",""))) ->  | N10: =+IFERROR(VLOOKUP($M10,'11 FORMULAS'!$B$54:$C$55,2,0),"") ->  | T10: =+IFERROR(U9*S10,"") ->  | U10: =+IFERROR(U9-T10,"") ->  | X10: Muy Alta | Y10: 81% | Z10: 100%
E11: 4 | K11: =+IFERROR(VLOOKUP($J11,'11 FORMULAS'!$B$51:$C$53,2,0),"") ->  | L11: =+IF(J11="Preventivo","Probabilidad",IF(J11="Detectivo","Probabilidad",IF(#REF!="Correctivo","Impacto",""))) ->  | N11: =+IFERROR(VLOOKUP($M11,'11 FORMULAS'!$B$54:$C$55,2,0),"") ->  | T11: =+IFERROR(U10*S11,"") ->  | U11: =+IFERROR(U10-T11,"") -> 
E12: 5 | K12: =+IFERROR(VLOOKUP($J12,'11 FORMULAS'!$B$51:$C$53,2,0),"") ->  | L12: =+IF(J12="Preventivo","Probabilidad",IF(J12="Detectivo","Probabilidad",IF(#REF!="Correctivo","Impacto",""))) ->  | N12: =+IFERROR(VLOOKUP($M12,'11 FORMULAS'!$B$54:$C$55,2,0),"") ->  | T12: =+IFERROR(U11*S12,"") ->  | U12: =+IFERROR(U11-T12,"") -> 
E13: 6 | K13: =+IFERROR(VLOOKUP($J13,'11 FORMULAS'!$B$51:$C$53,2,0),"") ->  | L13: =+IF(J13="Preventivo","Probabilidad",IF(J13="Detectivo","Probabilidad",IF(#REF!="Correctivo","Impacto",""))) ->  | N13: =+IFERROR(VLOOKUP($M13,'11 FORMULAS'!$B$54:$C$55,2,0),"") ->  | T13: =+IFERROR(U12*S13,"") ->  | U13: =+IFERROR(U12-T13,"") -> 
A14: ='2 CONTEXTO E IDENTIFICACIÓN'!A10 -> R2 | B14: =+'2 CONTEXTO E IDENTIFICACIÓN'!J10 -> Posibilidad de perdida de confidencialidad por Investigaciones disciplinarias por entes de control. a causa de Incumplimiento de la ley 1712 de 2014 en lo concerniente a la información clasificada y reservada de las historias laborales de los servidores públicos. | C14: =+'3 PROBABIL E IMPACTO INHERENTE'!E10 -> 80% | D14: =+'3 PROBABIL E IMPACTO INHERENTE'!M10 -> 20% | E14: 1 | F14: El Lider de Talento Humano | G14: verifica y autoriza el acceso a la información de las historias laborales de los servidores públicos, | H14: mediante de formato de solicitud en cumplimiento de la reserva. | I14: El Lider de Talento Humano verifica y autoriza el acceso a la información de las historias laborales de los servidores públicos, mediante de formato de solicitud en cumplimiento de la reserva. | J14: Preventivo | K14: =+IFERROR(VLOOKUP($J14,'11 FORMULAS'!$B$51:$C$53,2,0),"") -> 25% | L14: =+IF(J14="Preventivo","Probabilidad",IF(J14="Detectivo","Probabilidad",IF(#REF!="Correctivo","Impacto",""))) -> Probabilidad | M14: Manual | N14: =+IFERROR(VLOOKUP($M14,'11 FORMULAS'!$B$54:$C$55,2,0),"") -> 15% | O14: Otros Esquemas | P14: Semestral | Q14: Con registro manual | R14: Interna | S14: 40% | T14: =+IFERROR(C14*S14,"") -> 32% | U14: =+IFERROR(S14-T14,"") -> 8% | V14: 32%
E15: 2 | K15: =+IFERROR(VLOOKUP($J15,'11 FORMULAS'!$B$51:$C$53,2,0),"") ->  | L15: =+IF(J15="Preventivo","Probabilidad",IF(J15="Detectivo","Probabilidad",IF(#REF!="Correctivo","Impacto",""))) ->  | N15: =+IFERROR(VLOOKUP($M15,'11 FORMULAS'!$B$54:$C$55,2,0),"") ->  | T15: =+IFERROR(U14*S15,"") ->  | U15: =+IFERROR(U14-T15,"") -> 
E16: 3 | K16: =+IFERROR(VLOOKUP($J16,'11 FORMULAS'!$B$51:$C$53,2,0),"") ->  | L16: =+IF(J16="Preventivo","Probabilidad",IF(J16="Detectivo","Probabilidad",IF(#REF!="Correctivo","Impacto",""))) ->  | N16: =+IFERROR(VLOOKUP($M16,'11 FORMULAS'!$B$54:$C$55,2,0),"") ->  | T16: =+IFERROR(U15*S16,"") ->  | U16: =+IFERROR(U15-T16,"") -> 
E17: 4 | K17: =+IFERROR(VLOOKUP($J17,'11 FORMULAS'!$B$51:$C$53,2,0),"") ->  | L17: =+IF(J17="Preventivo","Probabilidad",IF(J17="Detectivo","Probabilidad",IF(#REF!="Correctivo","Impacto",""))) ->  | N17: =+IFERROR(VLOOKUP($M17,'11 FORMULAS'!$B$54:$C$55,2,0),"") ->  | T17: =+IFERROR(U16*S17,"") ->  | U17: =+IFERROR(U16-T17,"") -> 
E18: 5 | K18: =+IFERROR(VLOOKUP($J18,'11 FORMULAS'!$B$51:$C$53,2,0),"") ->  | L18: =+IF(J18="Preventivo","Probabilidad",IF(J18="Detectivo","Probabilidad",IF(#REF!="Correctivo","Impacto",""))) ->  | N18: =+IFERROR(VLOOKUP($M18,'11 FORMULAS'!$B$54:$C$55,2,0),"") ->  | T18: =+IFERROR(U17*S18,"") ->  | U18: =+IFERROR(U17-T18,"") -> 
E19: 6 | K19: =+IFERROR(VLOOKUP($J19,'11 FORMULAS'!$B$51:$C$53,2,0),"") ->  | L19: =+IF(J19="Preventivo","Probabilidad",IF(J19="Detectivo","Probabilidad",IF(#REF!="Correctivo","Impacto",""))) ->  | N19: =+IFERROR(VLOOKUP($M19,'11 FORMULAS'!$B$54:$C$55,2,0),"") ->  | T19: =+IFERROR(U18*S19,"") ->  | U19: =+IFERROR(U18-T19,"") -> 
A20: ='2 CONTEXTO E IDENTIFICACIÓN'!A11 -> R3 | B20: =+'2 CONTEXTO E IDENTIFICACIÓN'!J11 -> Posibilidad de afectación reputacional por Queja o reclamo de servidores de la Entidad a causa de Reporte de novedades fuera de los plazos definidos en el cronograma, | C20: =+'3 PROBABIL E IMPACTO INHERENTE'!E11 -> 60% | D20: =+'3 PROBABIL E IMPACTO INHERENTE'!M11 -> 20% | E20: 1 | F20: El Lider de talento humano | G20: definira un cronograma riguroso | H20: para el reporte de novedades y la liquidación de la nómina. | I20: El Lider de talento humano definira un cronograma riguroso para el reporte de novedades y la liquidación de la nómina. | J20: Preventivo | K20: =+IFERROR(VLOOKUP($J20,'11 FORMULAS'!$B$51:$C$53,2,0),"") -> 25% | L20: =+IF(J20="Preventivo","Probabilidad",IF(J20="Detectivo","Probabilidad",IF(#REF!="Correctivo","Impacto",""))) -> Probabilidad | M20: Manual | N20: =+IFERROR(VLOOKUP($M20,'11 FORMULAS'!$B$54:$C$55,2,0),"") -> 15% | O20: Otros Esquemas | P20: Semestral | Q20: Con registro manual | R20: Interna | S20: 40% | T20: =+IFERROR(C20*S20,"") -> 24% | U20: =+IFERROR(S20-T20,"") -> 16% | V20: 24%
E21: 2 | K21: =+IFERROR(VLOOKUP($J21,'11 FORMULAS'!$B$51:$C$53,2,0),"") ->  | L21: =+IF(J21="Preventivo","Probabilidad",IF(J21="Detectivo","Probabilidad",IF(#REF!="Correctivo","Impacto",""))) ->  | N21: =+IFERROR(VLOOKUP($M21,'11 FORMULAS'!$B$54:$C$55,2,0),"") -> 
E22: 3 | K22: =+IFERROR(VLOOKUP($J22,'11 FORMULAS'!$B$51:$C$53,2,0),"") ->  | L22: =+IF(J22="Preventivo","Probabilidad",IF(J22="Detectivo","Probabilidad",IF(#REF!="Correctivo","Impacto",""))) ->  | N22: =+IFERROR(VLOOKUP($M22,'11 FORMULAS'!$B$54:$C$55,2,0),"") -> 
E23: 4 | K23: =+IFERROR(VLOOKUP($J23,'11 FORMULAS'!$B$51:$C$53,2,0),"") ->  | L23: =+IF(J23="Preventivo","Probabilidad",IF(J23="Detectivo","Probabilidad",IF(#REF!="Correctivo","Impacto",""))) ->  | N23: =+IFERROR(VLOOKUP($M23,'11 FORMULAS'!$B$54:$C$55,2,0),"") -> 
E24: 5 | K24: =+IFERROR(VLOOKUP($J24,'11 FORMULAS'!$B$51:$C$53,2,0),"") ->  | L24: =+IF(J24="Preventivo","Probabilidad",IF(J24="Detectivo","Probabilidad",IF(#REF!="Correctivo","Impacto",""))) ->  | N24: =+IFERROR(VLOOKUP($M24,'11 FORMULAS'!$B$54:$C$55,2,0),"") -> 
E25: 6 | K25: =+IFERROR(VLOOKUP($J25,'11 FORMULAS'!$B$51:$C$53,2,0),"") ->  | L25: =+IF(J25="Preventivo","Probabilidad",IF(J25="Detectivo","Probabilidad",IF(#REF!="Correctivo","Impacto",""))) ->  | N25: =+IFERROR(VLOOKUP($M25,'11 FORMULAS'!$B$54:$C$55,2,0),"") -> 
A26: ='2 CONTEXTO E IDENTIFICACIÓN'!A12 -> R4 | B26: =+'2 CONTEXTO E IDENTIFICACIÓN'!J12 -> Posibilidad de efecto dañoso sobre el recurso público por Sanciones e investigaciones de entes de control y judiciales a causa de Omisión en la liquidación y pago de la seguridad social y aportes a parafiscales. | C26: =+'3 PROBABIL E IMPACTO INHERENTE'!E12 -> 80% | D26: =+'3 PROBABIL E IMPACTO INHERENTE'!M12 -> 80% | E26: 1 | F26: El profesional encargado de nómina, | G26: Validara mensualmente que el cálculo de la seguridad social del sistema de información sea el mismo que el cálculo manual, | H26: con base a una muestra aleatoria del 10% de los servidores. | I26: El profesional encargado de nómina, Validara mensualmente que el cálculo de la seguridad social del sistema de información sea el mismo que el cálculo manual, con base a una muestra aleatoria del 10% de los servidores. | J26: Preventivo | K26: =+IFERROR(VLOOKUP($J26,'11 FORMULAS'!$B$51:$C$53,2,0),"") -> 25% | L26: =+IF(J26="Preventivo","Probabilidad",IF(J26="Detectivo","Probabilidad",IF(#REF!="Correctivo","Impacto",""))) -> Probabilidad | M26: Manual | N26: =+IFERROR(VLOOKUP($M26,'11 FORMULAS'!$B$54:$C$55,2,0),"") -> 15% | O26: Otros Esquemas | P26: Mensual | Q26: Con registro manual | R26: Interna | S26: 40% | T26: 32% | U26: 8% | V26: 32%
E27: 2 | K27: =+IFERROR(VLOOKUP($J27,'11 FORMULAS'!$B$51:$C$53,2,0),"") ->  | L27: =+IF(J27="Preventivo","Probabilidad",IF(J27="Detectivo","Probabilidad",IF(#REF!="Correctivo","Impacto",""))) ->  | N27: =+IFERROR(VLOOKUP($M27,'11 FORMULAS'!$B$54:$C$55,2,0),"") -> 
E28: 3 | K28: =+IFERROR(VLOOKUP($J28,'11 FORMULAS'!$B$51:$C$53,2,0),"") ->  | L28: =+IF(J28="Preventivo","Probabilidad",IF(J28="Detectivo","Probabilidad",IF(#REF!="Correctivo","Impacto",""))) ->  | N28: =+IFERROR(VLOOKUP($M28,'11 FORMULAS'!$B$54:$C$55,2,0),"") -> 
E29: 4 | K29: =+IFERROR(VLOOKUP($J29,'11 FORMULAS'!$B$51:$C$53,2,0),"") ->  | L29: =+IF(J29="Preventivo","Probabilidad",IF(J29="Detectivo","Probabilidad",IF(#REF!="Correctivo","Impacto",""))) ->  | N29: =+IFERROR(VLOOKUP($M29,'11 FORMULAS'!$B$54:$C$55,2,0),"") -> 
E30: 5 | K30: =+IFERROR(VLOOKUP($J30,'11 FORMULAS'!$B$51:$C$53,2,0),"") ->  | L30: =+IF(J30="Preventivo","Probabilidad",IF(J30="Detectivo","Probabilidad",IF(#REF!="Correctivo","Impacto",""))) ->  | N30: =+IFERROR(VLOOKUP($M30,'11 FORMULAS'!$B$54:$C$55,2,0),"") -> 
E31: 6 | K31: =+IFERROR(VLOOKUP($J31,'11 FORMULAS'!$B$51:$C$53,2,0),"") ->  | L31: =+IF(J31="Preventivo","Probabilidad",IF(J31="Detectivo","Probabilidad",IF(#REF!="Correctivo","Impacto",""))) ->  | N31: =+IFERROR(VLOOKUP($M31,'11 FORMULAS'!$B$54:$C$55,2,0),"") -> 
A32: ='2 CONTEXTO E IDENTIFICACIÓN'!A13 -> R5 | B32: =+'2 CONTEXTO E IDENTIFICACIÓN'!J13 -> Posibilidad de afectación reputacional por queja o reclamo de los grupos de valor interno a causa de actividades del plan de bienestar no ajustadas a las necesidades de los grupos de valor internos | C32: =+'3 PROBABIL E IMPACTO INHERENTE'!E13 -> 40% | D32: =+'3 PROBABIL E IMPACTO INHERENTE'!M13 -> 20% | E32: 1 | F32: Los asesores de Planeacion Institucional | G32: validan que el plan de actividades de bienestar considere las necesidades según la encuesta que realiza el grupo de la Oficina de Talento Humano a los servidores de la Entidad, | H32: esta se realizara anualmente | I32: Los asesores de Planeacion Institucional validan que el plan de actividades de bienestar considere las necesidades según la encuesta que realiza el grupo de la Oficina de Talento Humano a los servidores de la Entidad, esta se realizara anualmente | J32: Preventivo | K32: =+IFERROR(VLOOKUP($J32,'11 FORMULAS'!$B$51:$C$53,2,0),"") -> 25% | L32: =+IF(J32="Preventivo","Probabilidad",IF(J32="Detectivo","Probabilidad",IF(#REF!="Correctivo","Impacto",""))) -> Probabilidad | M32: Manual | N32: =+IFERROR(VLOOKUP($M32,'11 FORMULAS'!$B$54:$C$55,2,0),"") -> 15% | O32: Otros Esquemas | P32: Siempre que se ejecuta la actividad | Q32: Con registro manual | R32: Interna | S32: 40% | T32: 16% | U32: 24% | V32: 16%
E33: 2 | K33: =+IFERROR(VLOOKUP($J33,'11 FORMULAS'!$B$51:$C$53,2,0),"") ->  | L33: =+IF(J33="Preventivo","Probabilidad",IF(J33="Detectivo","Probabilidad",IF(#REF!="Correctivo","Impacto",""))) ->  | N33: =+IFERROR(VLOOKUP($M33,'11 FORMULAS'!$B$54:$C$55,2,0),"") -> 
E34: 3 | K34: =+IFERROR(VLOOKUP($J34,'11 FORMULAS'!$B$51:$C$53,2,0),"") ->  | L34: =+IF(J34="Preventivo","Probabilidad",IF(J34="Detectivo","Probabilidad",IF(#REF!="Correctivo","Impacto",""))) ->  | N34: =+IFERROR(VLOOKUP($M34,'11 FORMULAS'!$B$54:$C$55,2,0),"") -> 
E35: 4 | K35: =+IFERROR(VLOOKUP($J35,'11 FORMULAS'!$B$51:$C$53,2,0),"") ->  | L35: =+IF(J35="Preventivo","Probabilidad",IF(J35="Detectivo","Probabilidad",IF(#REF!="Correctivo","Impacto",""))) ->  | N35: =+IFERROR(VLOOKUP($M35,'11 FORMULAS'!$B$54:$C$55,2,0),"") -> 
E36: 5 | K36: =+IFERROR(VLOOKUP($J36,'11 FORMULAS'!$B$51:$C$53,2,0),"") ->  | L36: =+IF(J36="Preventivo","Probabilidad",IF(J36="Detectivo","Probabilidad",IF(#REF!="Correctivo","Impacto",""))) ->  | N36: =+IFERROR(VLOOKUP($M36,'11 FORMULAS'!$B$54:$C$55,2,0),"") -> 
E37: 6 | K37: =+IFERROR(VLOOKUP($J37,'11 FORMULAS'!$B$51:$C$53,2,0),"") ->  | L37: =+IF(J37="Preventivo","Probabilidad",IF(J37="Detectivo","Probabilidad",IF(#REF!="Correctivo","Impacto",""))) ->  | N37: =+IFERROR(VLOOKUP($M37,'11 FORMULAS'!$B$54:$C$55,2,0),"") -> 
A38: ='2 CONTEXTO E IDENTIFICACIÓN'!A14 -> R6 | B38: =+'2 CONTEXTO E IDENTIFICACIÓN'!J14 -> Posibilidad de afectación reputacional por Información incompleta o inexacta a causa de Inconsistencias en la emisión de certificación electrónica de tiempos laborados (CETIL). | C38: =+'3 PROBABIL E IMPACTO INHERENTE'!E14 -> 40% | D38: =+'3 PROBABIL E IMPACTO INHERENTE'!M14 -> 20% | E38: 1 | F38: El Jefe de Talento Humano | G38: Validara la informacion que reposa en los archivos y Hoja de vida Laboral al momento de firmar electronicamente el certificado para su envio. | H38: Realizara dos (02) informe anuales de emision de certificafos laborales en la plataforma CETIL | I38: El Jefe de Talento Humano Validara la informacion que reposa en los archivos y Hoja de vida Laboral al momento de firmar electronicamente el certificado para su envio. Realizara dos (02) informe anuales de emision de certificafos laborales en la plataforma CETIL | J38: Preventivo | K38: =+IFERROR(VLOOKUP($J38,'11 FORMULAS'!$B$51:$C$53,2,0),"") -> 25% | L38: =+IF(J38="Preventivo","Probabilidad",IF(J38="Detectivo","Probabilidad",IF(#REF!="Correctivo","Impacto",""))) -> Probabilidad | M38: Manual | N38: =+IFERROR(VLOOKUP($M38,'11 FORMULAS'!$B$54:$C$55,2,0),"") -> 15% | O38: Otros Esquemas | P38: Semestral | Q38: Con registro manual | R38: Interna | S38: 40% | T38: 16% | U38: 24% | V38: 16%
E39: 2 | K39: =+IFERROR(VLOOKUP($J39,'11 FORMULAS'!$B$51:$C$53,2,0),"") ->  | L39: =+IF(J39="Preventivo","Probabilidad",IF(J39="Detectivo","Probabilidad",IF(#REF!="Correctivo","Impacto",""))) ->  | N39: =+IFERROR(VLOOKUP($M39,'11 FORMULAS'!$B$54:$C$55,2,0),"") -> 
E40: 3 | K40: =+IFERROR(VLOOKUP($J40,'11 FORMULAS'!$B$51:$C$53,2,0),"") ->  | L40: =+IF(J40="Preventivo","Probabilidad",IF(J40="Detectivo","Probabilidad",IF(#REF!="Correctivo","Impacto",""))) ->  | N40: =+IFERROR(VLOOKUP($M40,'11 FORMULAS'!$B$54:$C$55,2,0),"") ->  | S40: =+IFERROR($K40+$N40,"") -> 
E41: 4 | K41: =+IFERROR(VLOOKUP($J41,'11 FORMULAS'!$B$51:$C$53,2,0),"") ->  | L41: =+IF(J41="Preventivo","Probabilidad",IF(J41="Detectivo","Probabilidad",IF(#REF!="Correctivo","Impacto",""))) ->  | N41: =+IFERROR(VLOOKUP($M41,'11 FORMULAS'!$B$54:$C$55,2,0),"") -> 
E42: 5 | K42: =+IFERROR(VLOOKUP($J42,'11 FORMULAS'!$B$51:$C$53,2,0),"") ->  | L42: =+IF(J42="Preventivo","Probabilidad",IF(J42="Detectivo","Probabilidad",IF(#REF!="Correctivo","Impacto",""))) ->  | N42: =+IFERROR(VLOOKUP($M42,'11 FORMULAS'!$B$54:$C$55,2,0),"") -> 
E43: 6 | K43: =+IFERROR(VLOOKUP($J43,'11 FORMULAS'!$B$51:$C$53,2,0),"") ->  | L43: =+IF(J43="Preventivo","Probabilidad",IF(J43="Detectivo","Probabilidad",IF(#REF!="Correctivo","Impacto",""))) ->  | N43: =+IFERROR(VLOOKUP($M43,'11 FORMULAS'!$B$54:$C$55,2,0),"") -> 
A44: ='2 CONTEXTO E IDENTIFICACIÓN'!A15 -> R7 | B44: =+'2 CONTEXTO E IDENTIFICACIÓN'!J15 -> Posibilidad de afectación reputacional por Comportamientos no éticos de los empleados a causa de Acceso no autorizado a la información confidencial de la Historia Laboral - HL o datos personales. | C44: =+'3 PROBABIL E IMPACTO INHERENTE'!E15 -> 60% | D44: =+'3 PROBABIL E IMPACTO INHERENTE'!M15 -> 20% | E44: 1 | F44: El profesional de Talento Humano | G44: clasificara la información según su nivel de sensibilidad (por ejemplo, confidencial, interno, público) | H44: para definir controles de acceso apropiados de autorización que validen que solo el personal autorizado pueda realizar acciones específicas en el sistema, base de datos y archivo fisico. | I44: El profesional de Talento Humano clasificara la información según su nivel de sensibilidad (por ejemplo, confidencial, interno, público) para definir controles de acceso apropiados de autorización que validen que solo el personal autorizado pueda realizar acciones específicas en el sistema, base de datos y archivo fisico. | J44: Preventivo | K44: =+IFERROR(VLOOKUP($J44,'11 FORMULAS'!$B$51:$C$53,2,0),"") -> 25% | L44: =+IF(J44="Preventivo","Probabilidad",IF(J44="Detectivo","Probabilidad",IF(#REF!="Correctivo","Impacto",""))) -> Probabilidad | M44: Manual | N44: =+IFERROR(VLOOKUP($M44,'11 FORMULAS'!$B$54:$C$55,2,0),"") -> 15% | O44: Otros Esquemas | P44: Semestral | Q44: Con registro manual | R44: Interna | S44: 40% | T44: 24% | U44: 16% | V44: 24%
E45: 2 | K45: =+IFERROR(VLOOKUP($J45,'11 FORMULAS'!$B$51:$C$53,2,0),"") ->  | L45: =+IF(J45="Preventivo","Probabilidad",IF(J45="Detectivo","Probabilidad",IF(#REF!="Correctivo","Impacto",""))) ->  | N45: =+IFERROR(VLOOKUP($M45,'11 FORMULAS'!$B$54:$C$55,2,0),"") -> 
E46: 3 | K46: =+IFERROR(VLOOKUP($J46,'11 FORMULAS'!$B$51:$C$53,2,0),"") ->  | L46: =+IF(J46="Preventivo","Probabilidad",IF(J46="Detectivo","Probabilidad",IF(#REF!="Correctivo","Impacto",""))) ->  | N46: =+IFERROR(VLOOKUP($M46,'11 FORMULAS'!$B$54:$C$55,2,0),"") -> 
E47: 4 | K47: =+IFERROR(VLOOKUP($J47,'11 FORMULAS'!$B$51:$C$53,2,0),"") ->  | L47: =+IF(J47="Preventivo","Probabilidad",IF(J47="Detectivo","Probabilidad",IF(#REF!="Correctivo","Impacto",""))) ->  | N47: =+IFERROR(VLOOKUP($M47,'11 FORMULAS'!$B$54:$C$55,2,0),"") -> 
E48: 5 | K48: =+IFERROR(VLOOKUP($J48,'11 FORMULAS'!$B$51:$C$53,2,0),"") ->  | L48: =+IF(J48="Preventivo","Probabilidad",IF(J48="Detectivo","Probabilidad",IF(#REF!="Correctivo","Impacto",""))) ->  | N48: =+IFERROR(VLOOKUP($M48,'11 FORMULAS'!$B$54:$C$55,2,0),"") -> 
E49: 6 | K49: =+IFERROR(VLOOKUP($J49,'11 FORMULAS'!$B$51:$C$53,2,0),"") ->  | L49: =+IF(J49="Preventivo","Probabilidad",IF(J49="Detectivo","Probabilidad",IF(#REF!="Correctivo","Impacto",""))) ->  | N49: =+IFERROR(VLOOKUP($M49,'11 FORMULAS'!$B$54:$C$55,2,0),"") -> 
A50: ='2 CONTEXTO E IDENTIFICACIÓN'!A16 -> R8 | B50: =+'2 CONTEXTO E IDENTIFICACIÓN'!J16 -> Posibilidad de efecto dañoso sobre el recurso público por Sanciones de entes reguladores y de control o demandas y quejas de los grupos de valor a causa de incumplimiento de estándares mínimos del Sistema de Gestión en Seguridad y Salud en el Trabajo( SG-SST). | C50: =+'3 PROBABIL E IMPACTO INHERENTE'!E16 -> 60% | D50: =+'3 PROBABIL E IMPACTO INHERENTE'!M16 -> 100% | E50: 1 | F50: El profesional designado en el SG-SST, | G50: realiza seguimiento y monitoreo del autoevaluación de cumplimiento de estándares mínimos | H50: y la matriz de objetivos, metas e indicadores del Sistema de Gestión de Seguridad y Salud en el Trabajo. | I50: El profesional designado en el SG-SST, realiza seguimiento y monitoreo del autoevaluación de cumplimiento de estándares mínimos y la matriz de objetivos, metas e indicadores del Sistema de Gestión de Seguridad y Salud en el Trabajo. | J50: Preventivo | K50: =+IFERROR(VLOOKUP($J50,'11 FORMULAS'!$B$51:$C$53,2,0),"") -> 25% | L50: =+IF(J50="Preventivo","Probabilidad",IF(J50="Detectivo","Probabilidad",IF(#REF!="Correctivo","Impacto",""))) -> Probabilidad | M50: Manual | N50: =+IFERROR(VLOOKUP($M50,'11 FORMULAS'!$B$54:$C$55,2,0),"") -> 15% | O50: Otros Esquemas | P50: Semestral | Q50: Con registro manual | R50: Interna | S50: 40% | T50: 24% | U50: 16% | V50: 24%
E51: 2 | K51: =+IFERROR(VLOOKUP($J51,'11 FORMULAS'!$B$51:$C$53,2,0),"") ->  | L51: =+IF(J51="Preventivo","Probabilidad",IF(J51="Detectivo","Probabilidad",IF(#REF!="Correctivo","Impacto",""))) ->  | N51: =+IFERROR(VLOOKUP($M51,'11 FORMULAS'!$B$54:$C$55,2,0),"") -> 
E52: 3 | K52: =+IFERROR(VLOOKUP($J52,'11 FORMULAS'!$B$51:$C$53,2,0),"") ->  | L52: =+IF(J52="Preventivo","Probabilidad",IF(J52="Detectivo","Probabilidad",IF(#REF!="Correctivo","Impacto",""))) ->  | N52: =+IFERROR(VLOOKUP($M52,'11 FORMULAS'!$B$54:$C$55,2,0),"") ->  | T52: =+IFERROR(C52*S52,"") ->  | U52: =+IFERROR(S52-T52,"") -> 
E53: 4 | K53: =+IFERROR(VLOOKUP($J53,'11 FORMULAS'!$B$51:$C$53,2,0),"") ->  | L53: =+IF(J53="Preventivo","Probabilidad",IF(J53="Detectivo","Probabilidad",IF(#REF!="Correctivo","Impacto",""))) ->  | N53: =+IFERROR(VLOOKUP($M53,'11 FORMULAS'!$B$54:$C$55,2,0),"") -> 
E54: 5 | K54: =+IFERROR(VLOOKUP($J54,'11 FORMULAS'!$B$51:$C$53,2,0),"") ->  | L54: =+IF(J54="Preventivo","Probabilidad",IF(J54="Detectivo","Probabilidad",IF(#REF!="Correctivo","Impacto",""))) ->  | N54: =+IFERROR(VLOOKUP($M54,'11 FORMULAS'!$B$54:$C$55,2,0),"") -> 
E55: 6 | K55: =+IFERROR(VLOOKUP($J55,'11 FORMULAS'!$B$51:$C$53,2,0),"") ->  | L55: =+IF(J55="Preventivo","Probabilidad",IF(J55="Detectivo","Probabilidad",IF(#REF!="Correctivo","Impacto",""))) ->  | N55: =+IFERROR(VLOOKUP($M55,'11 FORMULAS'!$B$54:$C$55,2,0),"") -> 
A56: ='2 CONTEXTO E IDENTIFICACIÓN'!A17 -> R9 | B56: =+'2 CONTEXTO E IDENTIFICACIÓN'!J17 -> Posibilidad de afectación económica y reputacional por Errores en la presentacion, informacion a causa de Incumplimiento de no validada y presentada de manera oportuna, veraz, completa y conforme a la normatividad vigente. | C56: =+'3 PROBABIL E IMPACTO INHERENTE'!E17 -> 60% | D56: =+'3 PROBABIL E IMPACTO INHERENTE'!M17 -> 40% | E56: 1 | F56: El Lider de Oficina de Gestion Contable | G56: elaborara de un calendario institucional con las fechas de entrega de información a cada ente de control, | H56: el cual se consolidara con otras áreas. | I56: El Lider de Oficina de Gestion Contable elaborara de un calendario institucional con las fechas de entrega de información a cada ente de control, el cual se consolidara con otras áreas. | J56: Preventivo | K56: =+IFERROR(VLOOKUP($J56,'11 FORMULAS'!$B$51:$C$53,2,0),"") -> 25% | L56: =+IF(J56="Preventivo","Probabilidad",IF(J56="Detectivo","Probabilidad",IF(#REF!="Correctivo","Impacto",""))) -> Probabilidad | M56: Manual | N56: =+IFERROR(VLOOKUP($M56,'11 FORMULAS'!$B$54:$C$55,2,0),"") -> 15% | O56: Otros Esquemas | P56: Siempre que se ejecuta la actividad | Q56: Con registro manual | R56: Interna | S56: 40% | T56: 24% | U56: 16% | V56: 24%
E57: 2 | K57: =+IFERROR(VLOOKUP($J57,'11 FORMULAS'!$B$51:$C$53,2,0),"") ->  | L57: =+IF(J57="Preventivo","Probabilidad",IF(J57="Detectivo","Probabilidad",IF(#REF!="Correctivo","Impacto",""))) ->  | N57: =+IFERROR(VLOOKUP($M57,'11 FORMULAS'!$B$54:$C$55,2,0),"") -> 
E58: 3 | K58: =+IFERROR(VLOOKUP($J58,'11 FORMULAS'!$B$51:$C$53,2,0),"") ->  | L58: =+IF(J58="Preventivo","Probabilidad",IF(J58="Detectivo","Probabilidad",IF(#REF!="Correctivo","Impacto",""))) ->  | N58: =+IFERROR(VLOOKUP($M58,'11 FORMULAS'!$B$54:$C$55,2,0),"") -> 
E59: 4 | K59: =+IFERROR(VLOOKUP($J59,'11 FORMULAS'!$B$51:$C$53,2,0),"") ->  | L59: =+IF(J59="Preventivo","Probabilidad",IF(J59="Detectivo","Probabilidad",IF(#REF!="Correctivo","Impacto",""))) ->  | N59: =+IFERROR(VLOOKUP($M59,'11 FORMULAS'!$B$54:$C$55,2,0),"") -> 
E60: 5 | K60: =+IFERROR(VLOOKUP($J60,'11 FORMULAS'!$B$51:$C$53,2,0),"") ->  | L60: =+IF(J60="Preventivo","Probabilidad",IF(J60="Detectivo","Probabilidad",IF(#REF!="Correctivo","Impacto",""))) ->  | N60: =+IFERROR(VLOOKUP($M60,'11 FORMULAS'!$B$54:$C$55,2,0),"") -> 
E61: 6 | K61: =+IFERROR(VLOOKUP($J61,'11 FORMULAS'!$B$51:$C$53,2,0),"") ->  | L61: =+IF(J61="Preventivo","Probabilidad",IF(J61="Detectivo","Probabilidad",IF(#REF!="Correctivo","Impacto",""))) ->  | N61: =+IFERROR(VLOOKUP($M61,'11 FORMULAS'!$B$54:$C$55,2,0),"") -> 
A62: ='2 CONTEXTO E IDENTIFICACIÓN'!A18 -> R10 | B62: =+'2 CONTEXTO E IDENTIFICACIÓN'!J18 -> Posibilidad de afectación económica y reputacional por Errores o inconsistencias en la elaboración de los estados financieros a causa de Omisión de políticas contables actualizadas conforme a la normatividad vigente (NICSP para entidades públicas). | C62: =+'3 PROBABIL E IMPACTO INHERENTE'!E18 -> 60% | D62: =+'3 PROBABIL E IMPACTO INHERENTE'!M18 -> 80% | E62: 1 | F62: El Lider de contabilidad | G62: realizara induccion y re induccion periódica al personal vinculado a este proceso en normatividad financiera y manejo del sistema contable, | H62: asi mismo revisara e informara si hay que actualizar e implementar políticas contables alineadas con la normatividad vigente. | I62: El Lider de contabilidad realizara induccion y re induccion periódica al personal vinculado a este proceso en normatividad financiera y manejo del sistema contable, asi mismo revisara e informara si hay que actualizar e implementar políticas contables alineadas con la normatividad vigente. | J62: Preventivo | K62: =+IFERROR(VLOOKUP($J62,'11 FORMULAS'!$B$51:$C$53,2,0),"") -> 25% | L62: =+IF(J62="Preventivo","Probabilidad",IF(J62="Detectivo","Probabilidad",IF(#REF!="Correctivo","Impacto",""))) -> Probabilidad | M62: Manual | N62: =+IFERROR(VLOOKUP($M62,'11 FORMULAS'!$B$54:$C$55,2,0),"") -> 15% | O62: Otros Esquemas | P62: Semestral | Q62: Con registro manual | R62: Interna | S62: 40% | T62: 24% | U62: 16% | V62: 24%
E63: 2 | K63: =+IFERROR(VLOOKUP($J63,'11 FORMULAS'!$B$51:$C$53,2,0),"") ->  | L63: =+IF(J63="Preventivo","Probabilidad",IF(J63="Detectivo","Probabilidad",IF(#REF!="Correctivo","Impacto",""))) ->  | N63: =+IFERROR(VLOOKUP($M63,'11 FORMULAS'!$B$54:$C$55,2,0),"") -> 
E64: 3 | K64: =+IFERROR(VLOOKUP($J64,'11 FORMULAS'!$B$51:$C$53,2,0),"") ->  | L64: =+IF(J64="Preventivo","Probabilidad",IF(J64="Detectivo","Probabilidad",IF(#REF!="Correctivo","Impacto",""))) ->  | N64: =+IFERROR(VLOOKUP($M64,'11 FORMULAS'!$B$54:$C$55,2,0),"") -> 
E65: 4 | K65: =+IFERROR(VLOOKUP($J65,'11 FORMULAS'!$B$51:$C$53,2,0),"") ->  | L65: =+IF(J65="Preventivo","Probabilidad",IF(J65="Detectivo","Probabilidad",IF(#REF!="Correctivo","Impacto",""))) ->  | N65: =+IFERROR(VLOOKUP($M65,'11 FORMULAS'!$B$54:$C$55,2,0),"") -> 
E66: 5 | K66: =+IFERROR(VLOOKUP($J66,'11 FORMULAS'!$B$51:$C$53,2,0),"") ->  | L66: =+IF(J66="Preventivo","Probabilidad",IF(J66="Detectivo","Probabilidad",IF(#REF!="Correctivo","Impacto",""))) ->  | N66: =+IFERROR(VLOOKUP($M66,'11 FORMULAS'!$B$54:$C$55,2,0),"") -> 
E67: 6 | K67: =+IFERROR(VLOOKUP($J67,'11 FORMULAS'!$B$51:$C$53,2,0),"") ->  | L67: =+IF(J67="Preventivo","Probabilidad",IF(J67="Detectivo","Probabilidad",IF(#REF!="Correctivo","Impacto",""))) ->  | N67: =+IFERROR(VLOOKUP($M67,'11 FORMULAS'!$B$54:$C$55,2,0),"") -> 
A68: ='2 CONTEXTO E IDENTIFICACIÓN'!A19 -> R11 | B68: =+'2 CONTEXTO E IDENTIFICACIÓN'!J19 -> Posibilidad de afectación económica y reputacional por Registro contable equivocado de ingresos, egresos o transferencias. a causa de Conciliaciones realizadas de forma extemporánea o sin periodicidad definida. | C68: =+'3 PROBABIL E IMPACTO INHERENTE'!E19 -> 60% | D68: =+'3 PROBABIL E IMPACTO INHERENTE'!M19 -> 60% | E68: 1 | F68: El Lider de contabilidad | G68: realizara segregacion de funciones entre quien concilia, quien revisa y quien aprueba; Elaborar las conciliaciones bancarias mensuales, las cuales serán revisadas y aprobadas por el Lider de Contabilidad. | H68: Cada conciliación deberá contar con extracto bancario, auxiliares contables, comprobantes de ajuste y acta de conciliación debidamente firmada. | I68: El Lider de contabilidad realizara segregacion de funciones entre quien concilia, quien revisa y quien aprueba; Elaborar las conciliaciones bancarias mensuales, las cuales serán revisadas y aprobadas por el Lider de Contabilidad. Cada conciliación deberá contar con extracto bancario, auxiliares contables, comprobantes de ajuste y acta de conciliación debidamente firmada. | J68: Preventivo | K68: =+IFERROR(VLOOKUP($J68,'11 FORMULAS'!$B$51:$C$53,2,0),"") -> 25% | L68: =+IF(J68="Preventivo","Probabilidad",IF(J68="Detectivo","Probabilidad",IF(#REF!="Correctivo","Impacto",""))) -> Probabilidad | M68: Manual | N68: =+IFERROR(VLOOKUP($M68,'11 FORMULAS'!$B$54:$C$55,2,0),"") -> 15% | O68: Otros Esquemas | P68: Mensual | Q68: Con registro manual | R68: Interna | S68: 40% | T68: 24% | U68: 16% | V68: 24%
E69: 2 | K69: =+IFERROR(VLOOKUP($J69,'11 FORMULAS'!$B$51:$C$53,2,0),"") ->  | L69: =+IF(J69="Preventivo","Probabilidad",IF(J69="Detectivo","Probabilidad",IF(#REF!="Correctivo","Impacto",""))) ->  | N69: =+IFERROR(VLOOKUP($M69,'11 FORMULAS'!$B$54:$C$55,2,0),"") -> 
E70: 3 | K70: =+IFERROR(VLOOKUP($J70,'11 FORMULAS'!$B$51:$C$53,2,0),"") ->  | L70: =+IF(J70="Preventivo","Probabilidad",IF(J70="Detectivo","Probabilidad",IF(#REF!="Correctivo","Impacto",""))) ->  | N70: =+IFERROR(VLOOKUP($M70,'11 FORMULAS'!$B$54:$C$55,2,0),"") -> 
E71: 4 | K71: =+IFERROR(VLOOKUP($J71,'11 FORMULAS'!$B$51:$C$53,2,0),"") ->  | L71: =+IF(J71="Preventivo","Probabilidad",IF(J71="Detectivo","Probabilidad",IF(#REF!="Correctivo","Impacto",""))) ->  | N71: =+IFERROR(VLOOKUP($M71,'11 FORMULAS'!$B$54:$C$55,2,0),"") -> 
E72: 5 | I72: =+CONCATENATE(F72," ",G72," ",H72) ->  | K72: =+IFERROR(VLOOKUP($J72,'11 FORMULAS'!$B$51:$C$53,2,0),"") ->  | L72: =+IF(J72="Preventivo","Probabilidad",IF(J72="Detectivo","Probabilidad",IF(#REF!="Correctivo","Impacto",""))) ->  | N72: =+IFERROR(VLOOKUP($M72,'11 FORMULAS'!$B$54:$C$55,2,0),"") ->  | S72: =+IFERROR($K72+$N72,"") -> 
E73: 6 | K73: =+IFERROR(VLOOKUP($J73,'11 FORMULAS'!$B$51:$C$53,2,0),"") ->  | L73: =+IF(J73="Preventivo","Probabilidad",IF(J73="Detectivo","Probabilidad",IF(#REF!="Correctivo","Impacto",""))) ->  | N73: =+IFERROR(VLOOKUP($M73,'11 FORMULAS'!$B$54:$C$55,2,0),"") -> 
A74: ='2 CONTEXTO E IDENTIFICACIÓN'!A20 -> R12 | B74: =+'2 CONTEXTO E IDENTIFICACIÓN'!J20 -> Posibilidad de afectación económica y reputacional por Manejo inadecuado de la Caja Menor. a causa de Ausencia de conciliaciones y arqueos periódicos | C74: =+'3 PROBABIL E IMPACTO INHERENTE'!E20 -> 60% | D74: =+'3 PROBABIL E IMPACTO INHERENTE'!M20 -> 40% | E74: 1 | F74: El responsable de la Caja menor | G74: debera cumplir con los giguientes requisitos. 1. Resolución interna que regula el uso de caja menor. 2.Designación formal del responsable de la caja menor. 3.Solicitud de soportes contables y comprobantes de pago. 4. Poliza de manejo 5. | H74: Acceder a arqueos esporádicos por parte del área de Contabilidad o Contro Interno. | I74: El responsable de la Caja menor debera cumplir con los giguientes requisitos. 1. Resolución interna que regula el uso de caja menor. 2.Designación formal del responsable de la caja menor. 3.Solicitud de soportes contables y comprobantes de pago. 4. Poliza de manejo 5. Acceder a arqueos esporádicos por parte del área de Contabilidad o Contro Interno. | J74: Preventivo | K74: =+IFERROR(VLOOKUP($J74,'11 FORMULAS'!$B$51:$C$53,2,0),"") -> 25% | L74: =+IF(J74="Preventivo","Probabilidad",IF(J74="Detectivo","Probabilidad",IF(#REF!="Correctivo","Impacto",""))) -> Probabilidad | M74: Manual | N74: =+IFERROR(VLOOKUP($M74,'11 FORMULAS'!$B$54:$C$55,2,0),"") -> 15% | O74: Otros Esquemas | P74: Mensual | Q74: Con registro manual | R74: Interna | S74: 40% | T74: 24% | U74: 16% | V74: 24%
E75: 2 | K75: =+IFERROR(VLOOKUP($J75,'11 FORMULAS'!$B$51:$C$53,2,0),"") ->  | L75: =+IF(J75="Preventivo","Probabilidad",IF(J75="Detectivo","Probabilidad",IF(#REF!="Correctivo","Impacto",""))) ->  | N75: =+IFERROR(VLOOKUP($M75,'11 FORMULAS'!$B$54:$C$55,2,0),"") -> 
E76: 3 | K76: =+IFERROR(VLOOKUP($J76,'11 FORMULAS'!$B$51:$C$53,2,0),"") ->  | L76: =+IF(J76="Preventivo","Probabilidad",IF(J76="Detectivo","Probabilidad",IF(#REF!="Correctivo","Impacto",""))) ->  | N76: =+IFERROR(VLOOKUP($M76,'11 FORMULAS'!$B$54:$C$55,2,0),"") -> 
E77: 4 | K77: =+IFERROR(VLOOKUP($J77,'11 FORMULAS'!$B$51:$C$53,2,0),"") ->  | L77: =+IF(J77="Preventivo","Probabilidad",IF(J77="Detectivo","Probabilidad",IF(#REF!="Correctivo","Impacto",""))) ->  | N77: =+IFERROR(VLOOKUP($M77,'11 FORMULAS'!$B$54:$C$55,2,0),"") -> 
E78: 5 | K78: =+IFERROR(VLOOKUP($J78,'11 FORMULAS'!$B$51:$C$53,2,0),"") ->  | L78: =+IF(J78="Preventivo","Probabilidad",IF(J78="Detectivo","Probabilidad",IF(#REF!="Correctivo","Impacto",""))) ->  | N78: =+IFERROR(VLOOKUP($M78,'11 FORMULAS'!$B$54:$C$55,2,0),"") -> 
E79: 6 | K79: =+IFERROR(VLOOKUP($J79,'11 FORMULAS'!$B$51:$C$53,2,0),"") ->  | L79: =+IF(J79="Preventivo","Probabilidad",IF(J79="Detectivo","Probabilidad",IF(#REF!="Correctivo","Impacto",""))) ->  | N79: =+IFERROR(VLOOKUP($M79,'11 FORMULAS'!$B$54:$C$55,2,0),"") -> 
A80: ='2 CONTEXTO E IDENTIFICACIÓN'!A21 -> R13 | B80: =+'2 CONTEXTO E IDENTIFICACIÓN'!J21 -> Posibilidad de afectación económica y reputacional por No reportes de accidentes e incidentes ante la ARL. a causa de Omisión en la presentación de reportes de accidentes e incidentes ante la ARL. | C80: =+'3 PROBABIL E IMPACTO INHERENTE'!E21 -> 60% | D80: =+'3 PROBABIL E IMPACTO INHERENTE'!M21 -> 60% | E80: 1 | F80: El Lider del SG - SST | G80: realizara capacitación al personal sobre la obligatoriedad y procedimientos de reporte de accidentes e incidentes ocurridos dentro de la institucion | H80: con sensibilización permanente en la cultura de autocuidado y reporte inmediato de incidentes. | I80: El Lider del SG - SST realizara capacitación al personal sobre la obligatoriedad y procedimientos de reporte de accidentes e incidentes ocurridos dentro de la institucion con sensibilización permanente en la cultura de autocuidado y reporte inmediato de incidentes. | J80: Preventivo | K80: =+IFERROR(VLOOKUP($J80,'11 FORMULAS'!$B$51:$C$53,2,0),"") -> 25% | L80: =+IF(J80="Preventivo","Probabilidad",IF(J80="Detectivo","Probabilidad",IF(#REF!="Correctivo","Impacto",""))) -> Probabilidad | M80: Manual | N80: =+IFERROR(VLOOKUP($M80,'11 FORMULAS'!$B$54:$C$55,2,0),"") -> 15% | O80: Otros Esquemas | P80: Semestral | Q80: Con registro manual | R80: Interna | S80: 40% | T80: 24% | U80: 16% | V80: 24%
E81: 2 | K81: =+IFERROR(VLOOKUP($J81,'11 FORMULAS'!$B$51:$C$53,2,0),"") ->  | L81: =+IF(J81="Preventivo","Probabilidad",IF(J81="Detectivo","Probabilidad",IF(#REF!="Correctivo","Impacto",""))) ->  | N81: =+IFERROR(VLOOKUP($M81,'11 FORMULAS'!$B$54:$C$55,2,0),"") -> 
E82: 3 | K82: =+IFERROR(VLOOKUP($J82,'11 FORMULAS'!$B$51:$C$53,2,0),"") ->  | L82: =+IF(J82="Preventivo","Probabilidad",IF(J82="Detectivo","Probabilidad",IF(#REF!="Correctivo","Impacto",""))) ->  | N82: =+IFERROR(VLOOKUP($M82,'11 FORMULAS'!$B$54:$C$55,2,0),"") -> 
E83: 4 | K83: =+IFERROR(VLOOKUP($J83,'11 FORMULAS'!$B$51:$C$53,2,0),"") ->  | L83: =+IF(J83="Preventivo","Probabilidad",IF(J83="Detectivo","Probabilidad",IF(#REF!="Correctivo","Impacto",""))) ->  | N83: =+IFERROR(VLOOKUP($M83,'11 FORMULAS'!$B$54:$C$55,2,0),"") -> 
E84: 5 | K84: =+IFERROR(VLOOKUP($J84,'11 FORMULAS'!$B$51:$C$53,2,0),"") ->  | L84: =+IF(J84="Preventivo","Probabilidad",IF(J84="Detectivo","Probabilidad",IF(#REF!="Correctivo","Impacto",""))) ->  | N84: =+IFERROR(VLOOKUP($M84,'11 FORMULAS'!$B$54:$C$55,2,0),"") ->  | T84: =+IFERROR(C84*S84,"") ->  | U84: =+IFERROR(S84-T84,"") -> 
E85: 6 | K85: =+IFERROR(VLOOKUP($J85,'11 FORMULAS'!$B$51:$C$53,2,0),"") ->  | L85: =+IF(J85="Preventivo","Probabilidad",IF(J85="Detectivo","Probabilidad",IF(#REF!="Correctivo","Impacto",""))) ->  | N85: =+IFERROR(VLOOKUP($M85,'11 FORMULAS'!$B$54:$C$55,2,0),"") -> 
A86: ='2 CONTEXTO E IDENTIFICACIÓN'!A22 -> R14 | B86: =+'2 CONTEXTO E IDENTIFICACIÓN'!J22 -> Posibilidad de afectación económica y reputacional por Omisión o retraso en la actualización de la matriz legal a causa de Posibilidad de omisión o retraso en la actualización de la matriz legal debido a falta del responsable designado. | C86: =+'3 PROBABIL E IMPACTO INHERENTE'!E22 -> 20% | D86: =+'3 PROBABIL E IMPACTO INHERENTE'!M22 -> 60% | E86: 1 | F86: El Alcalde | G86: asignar un responsable formal para la actualización periódica de la Matriz Legal | H86: y se establecera cronograma de revisión trimestral. | I86: El Alcalde asignar un responsable formal para la actualización periódica de la Matriz Legal y se establecera cronograma de revisión trimestral. | J86: Preventivo | K86: =+IFERROR(VLOOKUP($J86,'11 FORMULAS'!$B$51:$C$53,2,0),"") -> 25% | L86: =+IF(J86="Preventivo","Probabilidad",IF(J86="Detectivo","Probabilidad",IF(#REF!="Correctivo","Impacto",""))) -> Probabilidad | M86: Manual | N86: =+IFERROR(VLOOKUP($M86,'11 FORMULAS'!$B$54:$C$55,2,0),"") -> 15% | O86: Otros Esquemas | P86: Semestral | Q86: Con registro manual | R86: Interna | S86: 40% | T86: 8% | U86: 32% | V86: 8%
E87: 2 | K87: =+IFERROR(VLOOKUP($J87,'11 FORMULAS'!$B$51:$C$53,2,0),"") ->  | L87: =+IF(J87="Preventivo","Probabilidad",IF(J87="Detectivo","Probabilidad",IF(#REF!="Correctivo","Impacto",""))) ->  | N87: =+IFERROR(VLOOKUP($M87,'11 FORMULAS'!$B$54:$C$55,2,0),"") -> 
E88: 3 | K88: =+IFERROR(VLOOKUP($J88,'11 FORMULAS'!$B$51:$C$53,2,0),"") ->  | L88: =+IF(J88="Preventivo","Probabilidad",IF(J88="Detectivo","Probabilidad",IF(#REF!="Correctivo","Impacto",""))) ->  | N88: =+IFERROR(VLOOKUP($M88,'11 FORMULAS'!$B$54:$C$55,2,0),"") -> 
E89: 4 | K89: =+IFERROR(VLOOKUP($J89,'11 FORMULAS'!$B$51:$C$53,2,0),"") ->  | L89: =+IF(J89="Preventivo","Probabilidad",IF(J89="Detectivo","Probabilidad",IF(#REF!="Correctivo","Impacto",""))) ->  | N89: =+IFERROR(VLOOKUP($M89,'11 FORMULAS'!$B$54:$C$55,2,0),"") -> 
E90: 5 | K90: =+IFERROR(VLOOKUP($J90,'11 FORMULAS'!$B$51:$C$53,2,0),"") ->  | L90: =+IF(J90="Preventivo","Probabilidad",IF(J90="Detectivo","Probabilidad",IF(#REF!="Correctivo","Impacto",""))) ->  | N90: =+IFERROR(VLOOKUP($M90,'11 FORMULAS'!$B$54:$C$55,2,0),"") -> 
E91: 6 | K91: =+IFERROR(VLOOKUP($J91,'11 FORMULAS'!$B$51:$C$53,2,0),"") ->  | L91: =+IF(J91="Preventivo","Probabilidad",IF(J91="Detectivo","Probabilidad",IF(#REF!="Correctivo","Impacto",""))) ->  | N91: =+IFERROR(VLOOKUP($M91,'11 FORMULAS'!$B$54:$C$55,2,0),"") -> 
A92: ='2 CONTEXTO E IDENTIFICACIÓN'!A23 -> R15 | B92: =+'2 CONTEXTO E IDENTIFICACIÓN'!J23 -> Posibilidad de afectación económica y reputacional por Investigaciones disciplinarias y sanciones por entes de control. a causa de Contratar personal sin el cumplimiento de requisitos | C92: =+'3 PROBABIL E IMPACTO INHERENTE'!E23 -> 60% | D92: =+'3 PROBABIL E IMPACTO INHERENTE'!M23 -> 60% | E92: 1 | F92: El profesional de contratación | G92: verifica la normatividad que se aplica y los requisitos de acuerdo con la modalidad de contratación, a través de la elaboración de los documentos en las diferentes etapas del contrato y requisitos establecidos | H92: en las hojas de ruta adoptados por la entidad. | I92: El profesional de contratación verifica la normatividad que se aplica y los requisitos de acuerdo con la modalidad de contratación, a través de la elaboración de los documentos en las diferentes etapas del contrato y requisitos establecidos en las hojas de ruta adoptados por la entidad. | J92: Preventivo | K92: =+IFERROR(VLOOKUP($J92,'11 FORMULAS'!$B$51:$C$53,2,0),"") -> 25% | L92: =+IF(J92="Preventivo","Probabilidad",IF(J92="Detectivo","Probabilidad",IF(#REF!="Correctivo","Impacto",""))) -> Probabilidad | M92: Manual | N92: =+IFERROR(VLOOKUP($M92,'11 FORMULAS'!$B$54:$C$55,2,0),"") -> 15% | O92: Otros Esquemas | P92: Siempre que se ejecuta la actividad | Q92: Con registro manual | R92: Interna | S92: 40% | T92: 24% | U92: 16% | V92: 16%
E93: 2 | F93: El profesional encargado de la contratación, | G93: cada vez que se celebre un contrato o convenio, revisa y valida a través de las plataformas SECOP y SIA OBSERVA la publicacion de los documentos de acuerdo a la ley en cada una de las faces. | I93: El profesional encargado de la contratación, cada vez que se celebre un contrato o convenio, revisa y valida a través de las plataformas SECOP y SIA OBSERVA la publicacion de los documentos de acuerdo a la ley en cada una de las faces. | J93: Preventivo | K93: =+IFERROR(VLOOKUP($J93,'11 FORMULAS'!$B$51:$C$53,2,0),"") -> 25% | L93: =+IF(J93="Preventivo","Probabilidad",IF(J93="Detectivo","Probabilidad",IF(#REF!="Correctivo","Impacto",""))) -> Probabilidad | M93: Manual | N93: =+IFERROR(VLOOKUP($M93,'11 FORMULAS'!$B$54:$C$55,2,0),"") -> 15% | O93: Otros Esquemas | P93: Siempre que se ejecuta la actividad | Q93: Con registro manual | R93: Interna | S93: 40% | T93: 0% | U93: 40%
E94: 3 | F94: Los profesionales designados para la supervisión de contratos | G94: validan los documentos presentados en las cuentas de cobro y certifican el cumplimiento del objeto contractual. | I94: Los profesionales designados para la supervisión de contratos validan los documentos presentados en las cuentas de cobro y certifican el cumplimiento del objeto contractual. | J94: Preventivo | K94: =+IFERROR(VLOOKUP($J94,'11 FORMULAS'!$B$51:$C$53,2,0),"") -> 25% | L94: =+IF(J94="Preventivo","Probabilidad",IF(J94="Detectivo","Probabilidad",IF(#REF!="Correctivo","Impacto",""))) -> Probabilidad | M94: Manual | N94: =+IFERROR(VLOOKUP($M94,'11 FORMULAS'!$B$54:$C$55,2,0),"") -> 15% | O94: Otros Esquemas | P94: Siempre que se ejecuta la actividad | Q94: Con registro manual | R94: Interna | S94: 40% | T94: 0% | U94: 40%
E95: 4 | K95: =+IFERROR(VLOOKUP($J95,'11 FORMULAS'!$B$51:$C$53,2,0),"") ->  | L95: =+IF(J95="Preventivo","Probabilidad",IF(J95="Detectivo","Probabilidad",IF(#REF!="Correctivo","Impacto",""))) ->  | N95: =+IFERROR(VLOOKUP($M95,'11 FORMULAS'!$B$54:$C$55,2,0),"") -> 
E96: 5 | K96: =+IFERROR(VLOOKUP($J96,'11 FORMULAS'!$B$51:$C$53,2,0),"") ->  | L96: =+IF(J96="Preventivo","Probabilidad",IF(J96="Detectivo","Probabilidad",IF(#REF!="Correctivo","Impacto",""))) ->  | N96: =+IFERROR(VLOOKUP($M96,'11 FORMULAS'!$B$54:$C$55,2,0),"") -> 
E97: 6 | K97: =+IFERROR(VLOOKUP($J97,'11 FORMULAS'!$B$51:$C$53,2,0),"") ->  | L97: =+IF(J97="Preventivo","Probabilidad",IF(J97="Detectivo","Probabilidad",IF(#REF!="Correctivo","Impacto",""))) ->  | N97: =+IFERROR(VLOOKUP($M97,'11 FORMULAS'!$B$54:$C$55,2,0),"") -> 
A98: ='2 CONTEXTO E IDENTIFICACIÓN'!A24 -> R16 | B98: =+'2 CONTEXTO E IDENTIFICACIÓN'!J24 -> Posibilidad de afectación reputacional porInvestigaciones disciplinarias y sanciones por entes de control a causa de Insuficiente participación en los procesos de capacitación y entrenamiento a los servidores públicos para la prestación del servicio, que afecta las competencias y conocimiento interno. | C98: =+'3 PROBABIL E IMPACTO INHERENTE'!E24 -> 60% | D98: =+'3 PROBABIL E IMPACTO INHERENTE'!M24 -> 60% | E98: 1 | F98: El Lider de talento humano | G98: realiza seguimiento a la participación de los servidores públicos en la ejecución del Plan Institucional de Capacitaciones PIC 2025 | H98: que permita promocionar de manera adecuada la formación y llegue a la población objetivo de esta. | I98: El Lider de talento humano realiza seguimiento a la participación de los servidores públicos en la ejecución del Plan Institucional de Capacitaciones PIC 2025 que permita promocionar de manera adecuada la formación y llegue a la población objetivo de esta. | J98: Preventivo | K98: =+IFERROR(VLOOKUP($J98,'11 FORMULAS'!$B$51:$C$53,2,0),"") -> 25% | L98: =+IF(J98="Preventivo","Probabilidad",IF(J98="Detectivo","Probabilidad",IF(#REF!="Correctivo","Impacto",""))) -> Probabilidad | M98: Manual | N98: =+IFERROR(VLOOKUP($M98,'11 FORMULAS'!$B$54:$C$55,2,0),"") -> 15% | O98: Otros Esquemas | P98: Semestral | Q98: Con registro manual | R98: Interna | S98: 40% | T98: 24% | U98: 16% | V98: 24%
E99: 2 | K99: =+IFERROR(VLOOKUP($J99,'11 FORMULAS'!$B$51:$C$53,2,0),"") ->  | L99: =+IF(J99="Preventivo","Probabilidad",IF(J99="Detectivo","Probabilidad",IF(#REF!="Correctivo","Impacto",""))) ->  | N99: =+IFERROR(VLOOKUP($M99,'11 FORMULAS'!$B$54:$C$55,2,0),"") -> 
E100: 3 | K100: =+IFERROR(VLOOKUP($J100,'11 FORMULAS'!$B$51:$C$53,2,0),"") ->  | L100: =+IF(J100="Preventivo","Probabilidad",IF(J100="Detectivo","Probabilidad",IF(#REF!="Correctivo","Impacto",""))) ->  | N100: =+IFERROR(VLOOKUP($M100,'11 FORMULAS'!$B$54:$C$55,2,0),"") -> 
E101: 4 | K101: =+IFERROR(VLOOKUP($J101,'11 FORMULAS'!$B$51:$C$53,2,0),"") ->  | L101: =+IF(J101="Preventivo","Probabilidad",IF(J101="Detectivo","Probabilidad",IF(#REF!="Correctivo","Impacto",""))) ->  | N101: =+IFERROR(VLOOKUP($M101,'11 FORMULAS'!$B$54:$C$55,2,0),"") -> 
E102: 5 | K102: =+IFERROR(VLOOKUP($J102,'11 FORMULAS'!$B$51:$C$53,2,0),"") ->  | L102: =+IF(J102="Preventivo","Probabilidad",IF(J102="Detectivo","Probabilidad",IF(#REF!="Correctivo","Impacto",""))) ->  | N102: =+IFERROR(VLOOKUP($M102,'11 FORMULAS'!$B$54:$C$55,2,0),"") -> 
E103: 6 | K103: =+IFERROR(VLOOKUP($J103,'11 FORMULAS'!$B$51:$C$53,2,0),"") ->  | L103: =+IF(J103="Preventivo","Probabilidad",IF(J103="Detectivo","Probabilidad",IF(#REF!="Correctivo","Impacto",""))) ->  | N103: =+IFERROR(VLOOKUP($M103,'11 FORMULAS'!$B$54:$C$55,2,0),"") -> 
A104: ='2 CONTEXTO E IDENTIFICACIÓN'!A25 -> R17 | B104: =+'2 CONTEXTO E IDENTIFICACIÓN'!J25 -> Posibilidad de afectación económica y reputacional porQueja o reclamo de servidores de la Entidad. a causa de Reporte de novedades fuera de los plazos definidos en el cronograma | C104: =+'3 PROBABIL E IMPACTO INHERENTE'!E25 -> 40% | D104: =+'3 PROBABIL E IMPACTO INHERENTE'!M25 -> 40% | E104: 1 | F104: El Lider de Talento Humano | G104: definira un cronograma riguroso para el reporte de novedades y la liquidación de la nómina. | I104: El Lider de Talento Humano definira un cronograma riguroso para el reporte de novedades y la liquidación de la nómina. | J104: Preventivo | K104: =+IFERROR(VLOOKUP($J104,'11 FORMULAS'!$B$51:$C$53,2,0),"") -> 25% | L104: =+IF(J104="Preventivo","Probabilidad",IF(J104="Detectivo","Probabilidad",IF(#REF!="Correctivo","Impacto",""))) -> Probabilidad | M104: Manual | N104: =+IFERROR(VLOOKUP($M104,'11 FORMULAS'!$B$54:$C$55,2,0),"") -> 15% | O104: Otros Esquemas | P104: Mensual | Q104: Con registro manual | R104: Interna | S104: =+IFERROR($K104+$N104,"") -> 40% | T104: 16% | U104: 24% | V104: 16%
E105: 2 | K105: =+IFERROR(VLOOKUP($J105,'11 FORMULAS'!$B$51:$C$53,2,0),"") ->  | L105: =+IF(J105="Preventivo","Probabilidad",IF(J105="Detectivo","Probabilidad",IF(#REF!="Correctivo","Impacto",""))) ->  | N105: =+IFERROR(VLOOKUP($M105,'11 FORMULAS'!$B$54:$C$55,2,0),"") -> 
E106: 3 | K106: =+IFERROR(VLOOKUP($J106,'11 FORMULAS'!$B$51:$C$53,2,0),"") ->  | L106: =+IF(J106="Preventivo","Probabilidad",IF(J106="Detectivo","Probabilidad",IF(#REF!="Correctivo","Impacto",""))) ->  | N106: =+IFERROR(VLOOKUP($M106,'11 FORMULAS'!$B$54:$C$55,2,0),"") -> 
E107: 4 | K107: =+IFERROR(VLOOKUP($J107,'11 FORMULAS'!$B$51:$C$53,2,0),"") ->  | L107: =+IF(J107="Preventivo","Probabilidad",IF(J107="Detectivo","Probabilidad",IF(#REF!="Correctivo","Impacto",""))) ->  | N107: =+IFERROR(VLOOKUP($M107,'11 FORMULAS'!$B$54:$C$55,2,0),"") -> 
E108: 5 | K108: =+IFERROR(VLOOKUP($J108,'11 FORMULAS'!$B$51:$C$53,2,0),"") ->  | L108: =+IF(J108="Preventivo","Probabilidad",IF(J108="Detectivo","Probabilidad",IF(#REF!="Correctivo","Impacto",""))) ->  | N108: =+IFERROR(VLOOKUP($M108,'11 FORMULAS'!$B$54:$C$55,2,0),"") -> 
E109: 6 | K109: =+IFERROR(VLOOKUP($J109,'11 FORMULAS'!$B$51:$C$53,2,0),"") ->  | L109: =+IF(J109="Preventivo","Probabilidad",IF(J109="Detectivo","Probabilidad",IF(#REF!="Correctivo","Impacto",""))) ->  | N109: =+IFERROR(VLOOKUP($M109,'11 FORMULAS'!$B$54:$C$55,2,0),"") -> 
A110: ='2 CONTEXTO E IDENTIFICACIÓN'!A26 -> R18 | B110: =+'2 CONTEXTO E IDENTIFICACIÓN'!J26 -> Posibilidad de afectación económica y reputacional porSanciones e investigaciones de entes de control y judiciales a causa de Omisión en la liquidación y pago de la seguridad social y aportes a parafiscales. | C110: =+'3 PROBABIL E IMPACTO INHERENTE'!E26 -> 40% | D110: =+'3 PROBABIL E IMPACTO INHERENTE'!M26 -> 40% | E110: 1 | F110: El profesional encargado de nómina | G110: valida que el cálculo de la seguridad social del sistema de información sea el mismo que el cálculo manual con base a una muestra aleatoria del 10% de los servidores | H110: mesualmente | I110: El profesional encargado de nómina valida que el cálculo de la seguridad social del sistema de información sea el mismo que el cálculo manual con base a una muestra aleatoria del 10% de los servidores mesualmente | J110: Preventivo | K110: =+IFERROR(VLOOKUP($J110,'11 FORMULAS'!$B$51:$C$53,2,0),"") -> 25% | L110: =+IF(J110="Preventivo","Probabilidad",IF(J110="Detectivo","Probabilidad",IF(#REF!="Correctivo","Impacto",""))) -> Probabilidad | M110: Manual | N110: =+IFERROR(VLOOKUP($M110,'11 FORMULAS'!$B$54:$C$55,2,0),"") -> 15% | O110: Otros Esquemas | P110: Mensual | Q110: Con registro manual | R110: Interna | S110: 40% | T110: 16% | U110: 24% | V110: 16%
E111: 2 | K111: =+IFERROR(VLOOKUP($J111,'11 FORMULAS'!$B$51:$C$53,2,0),"") ->  | L111: =+IF(J111="Preventivo","Probabilidad",IF(J111="Detectivo","Probabilidad",IF(#REF!="Correctivo","Impacto",""))) ->  | N111: =+IFERROR(VLOOKUP($M111,'11 FORMULAS'!$B$54:$C$55,2,0),"") -> 
E112: 3 | K112: =+IFERROR(VLOOKUP($J112,'11 FORMULAS'!$B$51:$C$53,2,0),"") ->  | L112: =+IF(J112="Preventivo","Probabilidad",IF(J112="Detectivo","Probabilidad",IF(#REF!="Correctivo","Impacto",""))) ->  | N112: =+IFERROR(VLOOKUP($M112,'11 FORMULAS'!$B$54:$C$55,2,0),"") -> 
E113: 4 | K113: =+IFERROR(VLOOKUP($J113,'11 FORMULAS'!$B$51:$C$53,2,0),"") ->  | L113: =+IF(J113="Preventivo","Probabilidad",IF(J113="Detectivo","Probabilidad",IF(#REF!="Correctivo","Impacto",""))) ->  | N113: =+IFERROR(VLOOKUP($M113,'11 FORMULAS'!$B$54:$C$55,2,0),"") -> 
E114: 5 | K114: =+IFERROR(VLOOKUP($J114,'11 FORMULAS'!$B$51:$C$53,2,0),"") ->  | L114: =+IF(J114="Preventivo","Probabilidad",IF(J114="Detectivo","Probabilidad",IF(#REF!="Correctivo","Impacto",""))) ->  | N114: =+IFERROR(VLOOKUP($M114,'11 FORMULAS'!$B$54:$C$55,2,0),"") -> 
E115: 6 | K115: =+IFERROR(VLOOKUP($J115,'11 FORMULAS'!$B$51:$C$53,2,0),"") ->  | L115: =+IF(J115="Preventivo","Probabilidad",IF(J115="Detectivo","Probabilidad",IF(#REF!="Correctivo","Impacto",""))) ->  | N115: =+IFERROR(VLOOKUP($M115,'11 FORMULAS'!$B$54:$C$55,2,0),"") -> 
A116: ='2 CONTEXTO E IDENTIFICACIÓN'!A27 -> R19 | B116: =+'2 CONTEXTO E IDENTIFICACIÓN'!J27 -> Posibilidad de afectación económica y reputacional porInformación incompleta o inexacta a causa de Inconsistencias en la emisión de certificación electrónica de tiempos laborados (CETIL). | C116: =+'3 PROBABIL E IMPACTO INHERENTE'!E27 -> 40% | D116: =+'3 PROBABIL E IMPACTO INHERENTE'!M27 -> 60% | E116: 1 | F116: El Lider de Talento Humano | G116: Validara la informacion que reposa en los archivos y Hoja de vida Laboral al momento de firmar electronicamente el certificado | H116: para su envio. | I116: El Lider de Talento Humano Validara la informacion que reposa en los archivos y Hoja de vida Laboral al momento de firmar electronicamente el certificado para su envio. | J116: Preventivo | K116: =+IFERROR(VLOOKUP($J116,'11 FORMULAS'!$B$51:$C$53,2,0),"") -> 25% | L116: =+IF(J116="Preventivo","Probabilidad",IF(J116="Detectivo","Probabilidad",IF(#REF!="Correctivo","Impacto",""))) -> Probabilidad | M116: Manual | N116: =+IFERROR(VLOOKUP($M116,'11 FORMULAS'!$B$54:$C$55,2,0),"") -> 15% | O116: Otros Esquemas | P116: Siempre que se ejecuta la actividad | Q116: Con registro manual | R116: Interna | S116: 40% | T116: =+IFERROR(C116*S116,"") -> 16% | U116: =+IFERROR(S116-T116,"") -> 24% | V116: 16%
E117: 2 | K117: =+IFERROR(VLOOKUP($J117,'11 FORMULAS'!$B$51:$C$53,2,0),"") ->  | L117: =+IF(J117="Preventivo","Probabilidad",IF(J117="Detectivo","Probabilidad",IF(#REF!="Correctivo","Impacto",""))) ->  | N117: =+IFERROR(VLOOKUP($M117,'11 FORMULAS'!$B$54:$C$55,2,0),"") -> 
E118: 3 | K118: =+IFERROR(VLOOKUP($J118,'11 FORMULAS'!$B$51:$C$53,2,0),"") ->  | L118: =+IF(J118="Preventivo","Probabilidad",IF(J118="Detectivo","Probabilidad",IF(#REF!="Correctivo","Impacto",""))) ->  | N118: =+IFERROR(VLOOKUP($M118,'11 FORMULAS'!$B$54:$C$55,2,0),"") -> 
E119: 4 | K119: =+IFERROR(VLOOKUP($J119,'11 FORMULAS'!$B$51:$C$53,2,0),"") ->  | L119: =+IF(J119="Preventivo","Probabilidad",IF(J119="Detectivo","Probabilidad",IF(#REF!="Correctivo","Impacto",""))) ->  | N119: =+IFERROR(VLOOKUP($M119,'11 FORMULAS'!$B$54:$C$55,2,0),"") -> 
E120: 5 | K120: =+IFERROR(VLOOKUP($J120,'11 FORMULAS'!$B$51:$C$53,2,0),"") ->  | L120: =+IF(J120="Preventivo","Probabilidad",IF(J120="Detectivo","Probabilidad",IF(#REF!="Correctivo","Impacto",""))) ->  | N120: =+IFERROR(VLOOKUP($M120,'11 FORMULAS'!$B$54:$C$55,2,0),"") -> 
E121: 6 | K121: =+IFERROR(VLOOKUP($J121,'11 FORMULAS'!$B$51:$C$53,2,0),"") ->  | L121: =+IF(J121="Preventivo","Probabilidad",IF(J121="Detectivo","Probabilidad",IF(#REF!="Correctivo","Impacto",""))) ->  | N121: =+IFERROR(VLOOKUP($M121,'11 FORMULAS'!$B$54:$C$55,2,0),"") -> 
A122: ='2 CONTEXTO E IDENTIFICACIÓN'!A28 -> R20 | B122: =+'2 CONTEXTO E IDENTIFICACIÓN'!J28 -> Posibilidad de efecto dañoso sobre el recurso público porInvestigaciones disciplinarias por la autoridad competente a causa de Fallas en la prestación del servicio por el no cumplimiento a los requisitos minimos del exigidos en la seleccion del Talento Humano. | C122: =+'3 PROBABIL E IMPACTO INHERENTE'!E28 -> 60% | D122: =+'3 PROBABIL E IMPACTO INHERENTE'!M28 -> 80% | E122: 1 | F122: El Lider de Talento Humano | G122: validará la autenticidad de títulos académicos, certificados de experiencia laboral, antecedentes disciplinarios, fiscales, judiciales y demás soportes | H122: exigidos por la normatividad vigente. | I122: El Lider de Talento Humano validará la autenticidad de títulos académicos, certificados de experiencia laboral, antecedentes disciplinarios, fiscales, judiciales y demás soportes exigidos por la normatividad vigente. | J122: Preventivo | K122: =+IFERROR(VLOOKUP($J122,'11 FORMULAS'!$B$51:$C$53,2,0),"") -> 25% | L122: =+IF(J122="Preventivo","Probabilidad",IF(J122="Detectivo","Probabilidad",IF(#REF!="Correctivo","Impacto",""))) -> Probabilidad | M122: Manual | N122: =+IFERROR(VLOOKUP($M122,'11 FORMULAS'!$B$54:$C$55,2,0),"") -> 15% | O122: Otros Esquemas | P122: Siempre que se ejecuta la actividad | Q122: Con registro manual | R122: Interna | S122: 40% | T122: 24% | U122: 16% | V122: 24%
E123: 2 | F123: El Lider de Talento Humano | G123: realizara revisiones periódicas de las hojas de vida activas, asegurando la actualización de documentos | H123: como certificaciones médicas, cursos de reentrenamiento, o renovaciones de tarjetas profesionales cuando aplique. | I123: El Lider de Talento Humano realizara revisiones periódicas de las hojas de vida activas, asegurando la actualización de documentos como certificaciones médicas, cursos de reentrenamiento, o renovaciones de tarjetas profesionales cuando aplique. | J123: Preventivo | K123: =+IFERROR(VLOOKUP($J123,'11 FORMULAS'!$B$51:$C$53,2,0),"") -> 25% | L123: =+IF(J123="Preventivo","Probabilidad",IF(J123="Detectivo","Probabilidad",IF(#REF!="Correctivo","Impacto",""))) -> Probabilidad | M123: Manual | N123: =+IFERROR(VLOOKUP($M123,'11 FORMULAS'!$B$54:$C$55,2,0),"") -> 15% | O123: Otros Esquemas | P123: Semestral | Q123: Con registro manual | R123: Interna | S123: 40% | T123: 0% | U123: 40%
E124: 3 | K124: =+IFERROR(VLOOKUP($J124,'11 FORMULAS'!$B$51:$C$53,2,0),"") ->  | L124: =+IF(J124="Preventivo","Probabilidad",IF(J124="Detectivo","Probabilidad",IF(#REF!="Correctivo","Impacto",""))) ->  | N124: =+IFERROR(VLOOKUP($M124,'11 FORMULAS'!$B$54:$C$55,2,0),"") -> 
E125: 4 | K125: =+IFERROR(VLOOKUP($J125,'11 FORMULAS'!$B$51:$C$53,2,0),"") ->  | L125: =+IF(J125="Preventivo","Probabilidad",IF(J125="Detectivo","Probabilidad",IF(#REF!="Correctivo","Impacto",""))) ->  | N125: =+IFERROR(VLOOKUP($M125,'11 FORMULAS'!$B$54:$C$55,2,0),"") -> 
E126: 5 | K126: =+IFERROR(VLOOKUP($J126,'11 FORMULAS'!$B$51:$C$53,2,0),"") ->  | L126: =+IF(J126="Preventivo","Probabilidad",IF(J126="Detectivo","Probabilidad",IF(#REF!="Correctivo","Impacto",""))) ->  | N126: =+IFERROR(VLOOKUP($M126,'11 FORMULAS'!$B$54:$C$55,2,0),"") -> 
E127: 6 | K127: =+IFERROR(VLOOKUP($J127,'11 FORMULAS'!$B$51:$C$53,2,0),"") ->  | L127: =+IF(J127="Preventivo","Probabilidad",IF(J127="Detectivo","Probabilidad",IF(#REF!="Correctivo","Impacto",""))) ->  | N127: =+IFERROR(VLOOKUP($M127,'11 FORMULAS'!$B$54:$C$55,2,0),"") -> 
A128: ='2 CONTEXTO E IDENTIFICACIÓN'!A29 -> R21 | B128: =+'2 CONTEXTO E IDENTIFICACIÓN'!J29 -> Posibilidad de afectación reputacional por Queja o reclamo de los grupos de valor interno a causa de Actividades del plan de bienestar no ajustadas a las necesidades de los grupos de valor internos | C128: =+'3 PROBABIL E IMPACTO INHERENTE'!E29 -> 60% | D128: =+'3 PROBABIL E IMPACTO INHERENTE'!M29 -> 20% | E128: 1 | F128: Los asesores de Planeacion Institucional | G128: validan que el plan de actividades de bienestar considere las necesidades según la encuesta que realiza el grupo de la Oficina de Talento Humano | I128: =+CONCATENATE(F128," ",G128," ",H128) -> Los asesores de Planeacion Institucional validan que el plan de actividades de bienestar considere las necesidades según la encuesta que realiza el grupo de la Oficina de Talento Humano | J128: Preventivo | K128: =+IFERROR(VLOOKUP($J128,'11 FORMULAS'!$B$51:$C$53,2,0),"") -> 25% | L128: =+IF(J128="Preventivo","Probabilidad",IF(J128="Detectivo","Probabilidad",IF(#REF!="Correctivo","Impacto",""))) -> Probabilidad | M128: Manual | N128: =+IFERROR(VLOOKUP($M128,'11 FORMULAS'!$B$54:$C$55,2,0),"") -> 15% | O128: Otros Esquemas | P128: Semestral | Q128: Con registro manual | R128: Interna | S128: 40% | T128: =+IFERROR(C128*S128,"") -> 24% | U128: 16% | V128: 24%
E129: 2 | K129: =+IFERROR(VLOOKUP($J129,'11 FORMULAS'!$B$51:$C$53,2,0),"") ->  | L129: =+IF(J129="Preventivo","Probabilidad",IF(J129="Detectivo","Probabilidad",IF(#REF!="Correctivo","Impacto",""))) ->  | N129: =+IFERROR(VLOOKUP($M129,'11 FORMULAS'!$B$54:$C$55,2,0),"") ->  | T129: =+IFERROR(C129*S129,"") ->  | U129: =+IFERROR(S129-T129,"") -> 
E130: 3 | K130: =+IFERROR(VLOOKUP($J130,'11 FORMULAS'!$B$51:$C$53,2,0),"") ->  | L130: =+IF(J130="Preventivo","Probabilidad",IF(J130="Detectivo","Probabilidad",IF(#REF!="Correctivo","Impacto",""))) ->  | N130: =+IFERROR(VLOOKUP($M130,'11 FORMULAS'!$B$54:$C$55,2,0),"") -> 
E131: 4 | K131: =+IFERROR(VLOOKUP($J131,'11 FORMULAS'!$B$51:$C$53,2,0),"") ->  | L131: =+IF(J131="Preventivo","Probabilidad",IF(J131="Detectivo","Probabilidad",IF(#REF!="Correctivo","Impacto",""))) ->  | N131: =+IFERROR(VLOOKUP($M131,'11 FORMULAS'!$B$54:$C$55,2,0),"") -> 
E132: 5 | K132: =+IFERROR(VLOOKUP($J132,'11 FORMULAS'!$B$51:$C$53,2,0),"") ->  | L132: =+IF(J132="Preventivo","Probabilidad",IF(J132="Detectivo","Probabilidad",IF(#REF!="Correctivo","Impacto",""))) ->  | N132: =+IFERROR(VLOOKUP($M132,'11 FORMULAS'!$B$54:$C$55,2,0),"") -> 
E133: 6 | K133: =+IFERROR(VLOOKUP($J133,'11 FORMULAS'!$B$51:$C$53,2,0),"") ->  | L133: =+IF(J133="Preventivo","Probabilidad",IF(J133="Detectivo","Probabilidad",IF(#REF!="Correctivo","Impacto",""))) ->  | N133: =+IFERROR(VLOOKUP($M133,'11 FORMULAS'!$B$54:$C$55,2,0),"") -> 
A134: ='2 CONTEXTO E IDENTIFICACIÓN'!A30 -> R22 | B134: =+'2 CONTEXTO E IDENTIFICACIÓN'!J30 -> Posibilidad de afectación económica y reputacional porSanciones de entes reguladores y de control o demandas y quejas de los grupos de valor a causa de incumplimiento de estándares mínimos del Sistema de Gestión en Seguridad y Salud en el Trabajo( SG-SST). | C134: =+'3 PROBABIL E IMPACTO INHERENTE'!E30 -> 60% | D134: =+'3 PROBABIL E IMPACTO INHERENTE'!M30 -> 80% | E134: 1 | F134: El profesional designado en el SG-SST | G134: realiza seguimiento y monitoreo del autoevaluación de cumplimiento de estándares mínimos | H134: y la matriz de objetivos, metas e indicadores del Sistema de Gestión de Seguridad y Salud en el Trabajo. | I134: El profesional designado en el SG-SST realiza seguimiento y monitoreo del autoevaluación de cumplimiento de estándares mínimos y la matriz de objetivos, metas e indicadores del Sistema de Gestión de Seguridad y Salud en el Trabajo. | J134: Preventivo | K134: =+IFERROR(VLOOKUP($J134,'11 FORMULAS'!$B$51:$C$53,2,0),"") -> 25% | L134: =+IF(J134="Preventivo","Probabilidad",IF(J134="Detectivo","Probabilidad",IF(#REF!="Correctivo","Impacto",""))) -> Probabilidad | M134: Manual | N134: =+IFERROR(VLOOKUP($M134,'11 FORMULAS'!$B$54:$C$55,2,0),"") -> 15% | O134: Otros Esquemas | P134: Semestral | Q134: Con registro manual | R134: Interna | S134: 40% | T134: =+IFERROR(C134*S134,"") -> 24% | U134: 16% | V134: 24%
E135: 2 | I135: =+CONCATENATE(F135," ",G135," ",H135) ->  | K135: =+IFERROR(VLOOKUP($J135,'11 FORMULAS'!$B$51:$C$53,2,0),"") ->  | L135: =+IF(J135="Preventivo","Probabilidad",IF(J135="Detectivo","Probabilidad",IF(#REF!="Correctivo","Impacto",""))) ->  | N135: =+IFERROR(VLOOKUP($M135,'11 FORMULAS'!$B$54:$C$55,2,0),"") ->  | T135: =+IFERROR(C135*S135,"") ->  | U135: =+IFERROR(S135-T135,"") -> 
E136: 3 | K136: =+IFERROR(VLOOKUP($J136,'11 FORMULAS'!$B$51:$C$53,2,0),"") ->  | L136: =+IF(J136="Preventivo","Probabilidad",IF(J136="Detectivo","Probabilidad",IF(#REF!="Correctivo","Impacto",""))) ->  | N136: =+IFERROR(VLOOKUP($M136,'11 FORMULAS'!$B$54:$C$55,2,0),"") -> 
E137: 4 | K137: =+IFERROR(VLOOKUP($J137,'11 FORMULAS'!$B$51:$C$53,2,0),"") ->  | L137: =+IF(J137="Preventivo","Probabilidad",IF(J137="Detectivo","Probabilidad",IF(#REF!="Correctivo","Impacto",""))) ->  | N137: =+IFERROR(VLOOKUP($M137,'11 FORMULAS'!$B$54:$C$55,2,0),"") -> 
E138: 5 | K138: =+IFERROR(VLOOKUP($J138,'11 FORMULAS'!$B$51:$C$53,2,0),"") ->  | L138: =+IF(J138="Preventivo","Probabilidad",IF(J138="Detectivo","Probabilidad",IF(#REF!="Correctivo","Impacto",""))) ->  | N138: =+IFERROR(VLOOKUP($M138,'11 FORMULAS'!$B$54:$C$55,2,0),"") -> 
E139: 6 | K139: =+IFERROR(VLOOKUP($J139,'11 FORMULAS'!$B$51:$C$53,2,0),"") ->  | L139: =+IF(J139="Preventivo","Probabilidad",IF(J139="Detectivo","Probabilidad",IF(#REF!="Correctivo","Impacto",""))) ->  | N139: =+IFERROR(VLOOKUP($M139,'11 FORMULAS'!$B$54:$C$55,2,0),"") -> 
A140: ='2 CONTEXTO E IDENTIFICACIÓN'!A31 -> R23 | B140: =+'2 CONTEXTO E IDENTIFICACIÓN'!J31 -> Posibilidad de afectación económica porProbabilidad de recudo insuficiente por parte de la de cartera a causa de Gestion de recudo insuficiente por parte delos responsables de Cartera y Gerencia. | C140: =+'3 PROBABIL E IMPACTO INHERENTE'!E31 -> 60% | D140: =+'3 PROBABIL E IMPACTO INHERENTE'!M31 -> 80% | E140: 1 | F140: El Lider de facturación | G140: realizara seguimiento a la radicación de cuentas y a los procesos de conciliación periódica con EPS | H140: con el fin de realizar Informes financieros mensuales a la gerencia del estado de la cartera para que se disponga de la gestion de recuperacion que se requiera. | I140: El Lider de facturación realizara seguimiento a la radicación de cuentas y a los procesos de conciliación periódica con EPS con el fin de realizar Informes financieros mensuales a la gerencia del estado de la cartera para que se disponga de la gestion de recuperacion que se requiera. | J140: Preventivo | K140: =+IFERROR(VLOOKUP($J140,'11 FORMULAS'!$B$51:$C$53,2,0),"") -> 25% | L140: =+IF(J140="Preventivo","Probabilidad",IF(J140="Detectivo","Probabilidad",IF(#REF!="Correctivo","Impacto",""))) -> Probabilidad | M140: Manual | N140: =+IFERROR(VLOOKUP($M140,'11 FORMULAS'!$B$54:$C$55,2,0),"") -> 15% | O140: Otros Esquemas | P140: Mensual | Q140: Con registro manual | R140: Interna | S140: 40% | T140: =+IFERROR(C140*S140,"") -> 24% | U140: 16% | V140: 24%
E141: 2 | I141: =+CONCATENATE(F141," ",G141," ",H141) ->  | K141: =+IFERROR(VLOOKUP($J141,'11 FORMULAS'!$B$51:$C$53,2,0),"") ->  | L141: =+IF(J141="Preventivo","Probabilidad",IF(J141="Detectivo","Probabilidad",IF(#REF!="Correctivo","Impacto",""))) ->  | N141: =+IFERROR(VLOOKUP($M141,'11 FORMULAS'!$B$54:$C$55,2,0),"") ->  | T141: =+IFERROR(C141*S141,"") ->  | U141: =+IFERROR(S141-T141,"") -> 
E142: 3 | K142: =+IFERROR(VLOOKUP($J142,'11 FORMULAS'!$B$51:$C$53,2,0),"") ->  | L142: =+IF(J142="Preventivo","Probabilidad",IF(J142="Detectivo","Probabilidad",IF(#REF!="Correctivo","Impacto",""))) ->  | N142: =+IFERROR(VLOOKUP($M142,'11 FORMULAS'!$B$54:$C$55,2,0),"") -> 
E143: 4 | K143: =+IFERROR(VLOOKUP($J143,'11 FORMULAS'!$B$51:$C$53,2,0),"") ->  | L143: =+IF(J143="Preventivo","Probabilidad",IF(J143="Detectivo","Probabilidad",IF(#REF!="Correctivo","Impacto",""))) ->  | N143: =+IFERROR(VLOOKUP($M143,'11 FORMULAS'!$B$54:$C$55,2,0),"") -> 
E144: 5 | K144: =+IFERROR(VLOOKUP($J144,'11 FORMULAS'!$B$51:$C$53,2,0),"") ->  | L144: =+IF(J144="Preventivo","Probabilidad",IF(J144="Detectivo","Probabilidad",IF(#REF!="Correctivo","Impacto",""))) ->  | N144: =+IFERROR(VLOOKUP($M144,'11 FORMULAS'!$B$54:$C$55,2,0),"") -> 
E145: 6 | K145: =+IFERROR(VLOOKUP($J145,'11 FORMULAS'!$B$51:$C$53,2,0),"") ->  | L145: =+IF(J145="Preventivo","Probabilidad",IF(J145="Detectivo","Probabilidad",IF(#REF!="Correctivo","Impacto",""))) ->  | N145: =+IFERROR(VLOOKUP($M145,'11 FORMULAS'!$B$54:$C$55,2,0),"") -> 
A146: ='2 CONTEXTO E IDENTIFICACIÓN'!A32 -> R24 | B146: =+'2 CONTEXTO E IDENTIFICACIÓN'!J32 -> Posibilidad de afectación económica y reputacional porErrores en la presentacion, informacion a causa de Incumplimiento de no validada y presentada de manera oportuna, veraz, completa y conforme a la normatividad vigente. | C146: =+'3 PROBABIL E IMPACTO INHERENTE'!E32 -> 40% | D146: =+'3 PROBABIL E IMPACTO INHERENTE'!M32 -> 60% | E146: 1 | F146: El Lider de Gestion Financiera | G146: elaborara de un calendario institucional con las fechas de entrega de información a cada ente de control | H146: el cual se consolidara con otras áreas. | I146: El Lider de Gestion Financiera elaborara de un calendario institucional con las fechas de entrega de información a cada ente de control el cual se consolidara con otras áreas. | J146: Preventivo | K146: =+IFERROR(VLOOKUP($J146,'11 FORMULAS'!$B$51:$C$53,2,0),"") -> 25% | L146: =+IF(J146="Preventivo","Probabilidad",IF(J146="Detectivo","Probabilidad",IF(#REF!="Correctivo","Impacto",""))) -> Probabilidad | M146: Manual | N146: =+IFERROR(VLOOKUP($M146,'11 FORMULAS'!$B$54:$C$55,2,0),"") -> 15% | O146: Otros Esquemas | P146: Semestral | Q146: Con registro manual | R146: Interna | S146: 40% | T146: =+IFERROR(C146*S146,"") -> 16% | U146: 24% | V146: 16%
E147: 2 | I147: =+CONCATENATE(F147," ",G147," ",H147) ->  | K147: =+IFERROR(VLOOKUP($J147,'11 FORMULAS'!$B$51:$C$53,2,0),"") ->  | L147: =+IF(J147="Preventivo","Probabilidad",IF(J147="Detectivo","Probabilidad",IF(#REF!="Correctivo","Impacto",""))) ->  | N147: =+IFERROR(VLOOKUP($M147,'11 FORMULAS'!$B$54:$C$55,2,0),"") ->  | T147: =+IFERROR(C147*S147,"") ->  | U147: =+IFERROR(S147-T147,"") -> 
E148: 3 | K148: =+IFERROR(VLOOKUP($J148,'11 FORMULAS'!$B$51:$C$53,2,0),"") ->  | L148: =+IF(J148="Preventivo","Probabilidad",IF(J148="Detectivo","Probabilidad",IF(#REF!="Correctivo","Impacto",""))) ->  | N148: =+IFERROR(VLOOKUP($M148,'11 FORMULAS'!$B$54:$C$55,2,0),"") -> 
E149: 4 | K149: =+IFERROR(VLOOKUP($J149,'11 FORMULAS'!$B$51:$C$53,2,0),"") ->  | L149: =+IF(J149="Preventivo","Probabilidad",IF(J149="Detectivo","Probabilidad",IF(#REF!="Correctivo","Impacto",""))) ->  | N149: =+IFERROR(VLOOKUP($M149,'11 FORMULAS'!$B$54:$C$55,2,0),"") -> 
E150: 5 | K150: =+IFERROR(VLOOKUP($J150,'11 FORMULAS'!$B$51:$C$53,2,0),"") ->  | L150: =+IF(J150="Preventivo","Probabilidad",IF(J150="Detectivo","Probabilidad",IF(#REF!="Correctivo","Impacto",""))) ->  | N150: =+IFERROR(VLOOKUP($M150,'11 FORMULAS'!$B$54:$C$55,2,0),"") -> 
E151: 6 | K151: =+IFERROR(VLOOKUP($J151,'11 FORMULAS'!$B$51:$C$53,2,0),"") ->  | L151: =+IF(J151="Preventivo","Probabilidad",IF(J151="Detectivo","Probabilidad",IF(#REF!="Correctivo","Impacto",""))) ->  | N151: =+IFERROR(VLOOKUP($M151,'11 FORMULAS'!$B$54:$C$55,2,0),"") -> 
A152: ='2 CONTEXTO E IDENTIFICACIÓN'!A33 -> R25 | B152: =+'2 CONTEXTO E IDENTIFICACIÓN'!J33 -> Posibilidad de afectación económica y reputacional porErrores o inconsistencias en la elaboración de los estados financieros a causa de Omisión de políticas contables actualizadas conforme a la normatividad vigente (NIIF para entidades públicas en salud). | C152: =+'3 PROBABIL E IMPACTO INHERENTE'!E33 -> 40% | D152: =+'3 PROBABIL E IMPACTO INHERENTE'!M33 -> 60% | E152: 1 | F152: El Lider de contabilidad | G152: realizara induccion y re induccion periódica al personal vinculado a este proceso en normatividad financiera y manejo del sistema contable | H152: asi mismo revisara e informara si hay que actualizar e implementar políticas contables alineadas con la normatividad vigente. | I152: El Lider de contabilidad realizara induccion y re induccion periódica al personal vinculado a este proceso en normatividad financiera y manejo del sistema contable asi mismo revisara e informara si hay que actualizar e implementar políticas contables alineadas con la normatividad vigente. | J152: Preventivo | K152: =+IFERROR(VLOOKUP($J152,'11 FORMULAS'!$B$51:$C$53,2,0),"") -> 25% | L152: =+IF(J152="Preventivo","Probabilidad",IF(J152="Detectivo","Probabilidad",IF(#REF!="Correctivo","Impacto",""))) -> Probabilidad | M152: Manual | N152: =+IFERROR(VLOOKUP($M152,'11 FORMULAS'!$B$54:$C$55,2,0),"") -> 15% | O152: Otros Esquemas | P152: Semestral | Q152: Con registro manual | R152: Interna | S152: 40% | T152: =+IFERROR(C152*S152,"") -> 16% | U152: 24% | V152: 16%
E153: 2 | I153: =+CONCATENATE(F153," ",G153," ",H153) ->  | K153: =+IFERROR(VLOOKUP($J153,'11 FORMULAS'!$B$51:$C$53,2,0),"") ->  | L153: =+IF(J153="Preventivo","Probabilidad",IF(J153="Detectivo","Probabilidad",IF(#REF!="Correctivo","Impacto",""))) ->  | N153: =+IFERROR(VLOOKUP($M153,'11 FORMULAS'!$B$54:$C$55,2,0),"") ->  | T153: =+IFERROR(C153*S153,"") ->  | U153: =+IFERROR(S153-T153,"") -> 
E154: 3 | K154: =+IFERROR(VLOOKUP($J154,'11 FORMULAS'!$B$51:$C$53,2,0),"") ->  | L154: =+IF(J154="Preventivo","Probabilidad",IF(J154="Detectivo","Probabilidad",IF(#REF!="Correctivo","Impacto",""))) ->  | N154: =+IFERROR(VLOOKUP($M154,'11 FORMULAS'!$B$54:$C$55,2,0),"") -> 
E155: 4 | K155: =+IFERROR(VLOOKUP($J155,'11 FORMULAS'!$B$51:$C$53,2,0),"") ->  | L155: =+IF(J155="Preventivo","Probabilidad",IF(J155="Detectivo","Probabilidad",IF(#REF!="Correctivo","Impacto",""))) ->  | N155: =+IFERROR(VLOOKUP($M155,'11 FORMULAS'!$B$54:$C$55,2,0),"") -> 
E156: 5 | K156: =+IFERROR(VLOOKUP($J156,'11 FORMULAS'!$B$51:$C$53,2,0),"") ->  | L156: =+IF(J156="Preventivo","Probabilidad",IF(J156="Detectivo","Probabilidad",IF(#REF!="Correctivo","Impacto",""))) ->  | N156: =+IFERROR(VLOOKUP($M156,'11 FORMULAS'!$B$54:$C$55,2,0),"") -> 
E157: 6 | K157: =+IFERROR(VLOOKUP($J157,'11 FORMULAS'!$B$51:$C$53,2,0),"") ->  | L157: =+IF(J157="Preventivo","Probabilidad",IF(J157="Detectivo","Probabilidad",IF(#REF!="Correctivo","Impacto",""))) ->  | N157: =+IFERROR(VLOOKUP($M157,'11 FORMULAS'!$B$54:$C$55,2,0),"") -> 
A158: ='2 CONTEXTO E IDENTIFICACIÓN'!A34 -> R26 | B158: =+'2 CONTEXTO E IDENTIFICACIÓN'!J34 -> Posibilidad de afectación económica y reputacional porRegistro contable equivocado de ingresos, egresos o transferencias. a causa de Conciliaciones realizadas de forma extemporánea o sin periodicidad definida. | C158: =+'3 PROBABIL E IMPACTO INHERENTE'!E34 -> 60% | D158: =+'3 PROBABIL E IMPACTO INHERENTE'!M34 -> 80% | E158: 1 | F158: El Lider de contabilidad | G158: realizara segregacion de funciones entre quien concilia, quien revisa y quien aprueba; Elaborar las conciliaciones bancarias mensuales, las cuales serán revisadas y aprobadas por el Lider de Contabilidad | H158: Cada conciliación deberá contar con extracto bancario, auxiliares contables, comprobantes de ajuste y acta de conciliación debidamente firmada. | I158: El Lider de contabilidad realizara segregacion de funciones entre quien concilia, quien revisa y quien aprueba; Elaborar las conciliaciones bancarias mensuales, las cuales serán revisadas y aprobadas por el Lider de Contabilidad Cada conciliación deberá contar con extracto bancario, auxiliares contables, comprobantes de ajuste y acta de conciliación debidamente firmada. | J158: Preventivo | K158: =+IFERROR(VLOOKUP($J158,'11 FORMULAS'!$B$51:$C$53,2,0),"") -> 25% | L158: =+IF(J158="Preventivo","Probabilidad",IF(J158="Detectivo","Probabilidad",IF(#REF!="Correctivo","Impacto",""))) -> Probabilidad | M158: Manual | N158: =+IFERROR(VLOOKUP($M158,'11 FORMULAS'!$B$54:$C$55,2,0),"") -> 15% | O158: Otros Esquemas | P158: Mensual | Q158: Con registro manual | R158: Interna | S158: 40% | T158: =+IFERROR(C158*S158,"") -> 24% | U158: 16% | V158: 24%
E159: 2 | I159: =+CONCATENATE(F159," ",G159," ",H159) ->  | K159: =+IFERROR(VLOOKUP($J159,'11 FORMULAS'!$B$51:$C$53,2,0),"") ->  | L159: =+IF(J159="Preventivo","Probabilidad",IF(J159="Detectivo","Probabilidad",IF(#REF!="Correctivo","Impacto",""))) ->  | N159: =+IFERROR(VLOOKUP($M159,'11 FORMULAS'!$B$54:$C$55,2,0),"") ->  | T159: =+IFERROR(C159*S159,"") ->  | U159: =+IFERROR(S159-T159,"") -> 
E160: 3 | K160: =+IFERROR(VLOOKUP($J160,'11 FORMULAS'!$B$51:$C$53,2,0),"") ->  | L160: =+IF(J160="Preventivo","Probabilidad",IF(J160="Detectivo","Probabilidad",IF(#REF!="Correctivo","Impacto",""))) ->  | N160: =+IFERROR(VLOOKUP($M160,'11 FORMULAS'!$B$54:$C$55,2,0),"") -> 
E161: 4 | K161: =+IFERROR(VLOOKUP($J161,'11 FORMULAS'!$B$51:$C$53,2,0),"") ->  | L161: =+IF(J161="Preventivo","Probabilidad",IF(J161="Detectivo","Probabilidad",IF(#REF!="Correctivo","Impacto",""))) ->  | N161: =+IFERROR(VLOOKUP($M161,'11 FORMULAS'!$B$54:$C$55,2,0),"") -> 
E162: 5 | K162: =+IFERROR(VLOOKUP($J162,'11 FORMULAS'!$B$51:$C$53,2,0),"") ->  | L162: =+IF(J162="Preventivo","Probabilidad",IF(J162="Detectivo","Probabilidad",IF(#REF!="Correctivo","Impacto",""))) ->  | N162: =+IFERROR(VLOOKUP($M162,'11 FORMULAS'!$B$54:$C$55,2,0),"") -> 
E163: 6 | K163: =+IFERROR(VLOOKUP($J163,'11 FORMULAS'!$B$51:$C$53,2,0),"") ->  | L163: =+IF(J163="Preventivo","Probabilidad",IF(J163="Detectivo","Probabilidad",IF(#REF!="Correctivo","Impacto",""))) ->  | N163: =+IFERROR(VLOOKUP($M163,'11 FORMULAS'!$B$54:$C$55,2,0),"") -> 
A164: ='2 CONTEXTO E IDENTIFICACIÓN'!A35 -> R27 | B164: =+'2 CONTEXTO E IDENTIFICACIÓN'!J35 -> Posibilidad de efecto dañoso sobre el recurso público porManejo inadecuado de la Caja Menor. a causa de Ausencia de conciliaciones y arqueos periódicos | C164: =+'3 PROBABIL E IMPACTO INHERENTE'!E35 -> 40% | D164: =+'3 PROBABIL E IMPACTO INHERENTE'!M35 -> 20% | E164: 1 | F164: El responsable de la Caja menor | G164: debera cumplir con los giguientes requisitos. 1. Resolución interna que regula el uso de caja menor. 2.Designación formal del responsable de la caja menor. 3.Solicitud de soportes contables y comprobantes de pago. 4. Poliza de manejo 5.Acceder a arqueos esporádicos por parte del área de Contabilidad o Contro Interno. | I164: El responsable de la Caja menor debera cumplir con los giguientes requisitos. 1. Resolución interna que regula el uso de caja menor. 2.Designación formal del responsable de la caja menor. 3.Solicitud de soportes contables y comprobantes de pago. 4. Poliza de manejo 5.Acceder a arqueos esporádicos por parte del área de Contabilidad o Contro Interno. | J164: Preventivo | K164: =+IFERROR(VLOOKUP($J164,'11 FORMULAS'!$B$51:$C$53,2,0),"") -> 25% | L164: =+IF(J164="Preventivo","Probabilidad",IF(J164="Detectivo","Probabilidad",IF(#REF!="Correctivo","Impacto",""))) -> Probabilidad | M164: Manual | N164: =+IFERROR(VLOOKUP($M164,'11 FORMULAS'!$B$54:$C$55,2,0),"") -> 15% | O164: Otros Esquemas | P164: Mensual | Q164: Con registro manual | R164: Interna | S164: 40% | T164: =+IFERROR(C164*S164,"") -> 16% | U164: 24% | V164: 16%
E165: 2 | I165: =+CONCATENATE(F165," ",G165," ",H165) ->  | K165: =+IFERROR(VLOOKUP($J165,'11 FORMULAS'!$B$51:$C$53,2,0),"") ->  | L165: =+IF(J165="Preventivo","Probabilidad",IF(J165="Detectivo","Probabilidad",IF(#REF!="Correctivo","Impacto",""))) ->  | N165: =+IFERROR(VLOOKUP($M165,'11 FORMULAS'!$B$54:$C$55,2,0),"") ->  | T165: =+IFERROR(C165*S165,"") ->  | U165: =+IFERROR(S165-T165,"") -> 
E166: 3 | K166: =+IFERROR(VLOOKUP($J166,'11 FORMULAS'!$B$51:$C$53,2,0),"") ->  | L166: =+IF(J166="Preventivo","Probabilidad",IF(J166="Detectivo","Probabilidad",IF(#REF!="Correctivo","Impacto",""))) ->  | N166: =+IFERROR(VLOOKUP($M166,'11 FORMULAS'!$B$54:$C$55,2,0),"") -> 
E167: 4 | K167: =+IFERROR(VLOOKUP($J167,'11 FORMULAS'!$B$51:$C$53,2,0),"") ->  | L167: =+IF(J167="Preventivo","Probabilidad",IF(J167="Detectivo","Probabilidad",IF(#REF!="Correctivo","Impacto",""))) ->  | N167: =+IFERROR(VLOOKUP($M167,'11 FORMULAS'!$B$54:$C$55,2,0),"") -> 
E168: 5 | K168: =+IFERROR(VLOOKUP($J168,'11 FORMULAS'!$B$51:$C$53,2,0),"") ->  | L168: =+IF(J168="Preventivo","Probabilidad",IF(J168="Detectivo","Probabilidad",IF(#REF!="Correctivo","Impacto",""))) ->  | N168: =+IFERROR(VLOOKUP($M168,'11 FORMULAS'!$B$54:$C$55,2,0),"") -> 
E169: 6 | K169: =+IFERROR(VLOOKUP($J169,'11 FORMULAS'!$B$51:$C$53,2,0),"") ->  | L169: =+IF(J169="Preventivo","Probabilidad",IF(J169="Detectivo","Probabilidad",IF(#REF!="Correctivo","Impacto",""))) ->  | N169: =+IFERROR(VLOOKUP($M169,'11 FORMULAS'!$B$54:$C$55,2,0),"") -> 
A170: ='2 CONTEXTO E IDENTIFICACIÓN'!A36 -> R28 | B170: =+'2 CONTEXTO E IDENTIFICACIÓN'!J36 -> Posibilidad de efecto dañoso sobre el interes patrimonial porPérdida, extravío, hurto, robo o declaratoria de bienes muebles faltantes pertenecientes a la E.S.E. Hospiatal de Usiacuri a causa de Omisión en la aplicación del procedimiento para actualización del inventario de bienes muebles. | C170: =+'3 PROBABIL E IMPACTO INHERENTE'!E36 -> 60% | D170: =+'3 PROBABIL E IMPACTO INHERENTE'!M36 -> 20% | E170: 1 | F170: El servidor público | G170: verifica el inventario de bienes muebles asignados a su cargo | I170: El servidor público verifica el inventario de bienes muebles asignados a su cargo | J170: Preventivo | K170: =+IFERROR(VLOOKUP($J170,'11 FORMULAS'!$B$51:$C$53,2,0),"") -> 25% | L170: =+IF(J170="Preventivo","Probabilidad",IF(J170="Detectivo","Probabilidad",IF(#REF!="Correctivo","Impacto",""))) -> Probabilidad | M170: Manual | N170: =+IFERROR(VLOOKUP($M170,'11 FORMULAS'!$B$54:$C$55,2,0),"") -> 15% | O170: Otros Esquemas | P170: Semestral | Q170: Con registro manual | R170: Interna | S170: 40% | T170: =+IFERROR(C170*S170,"") -> 24% | U170: 16% | V170: 24%
E171: 2 | I171: =+CONCATENATE(F171," ",G171," ",H171) ->  | K171: =+IFERROR(VLOOKUP($J171,'11 FORMULAS'!$B$51:$C$53,2,0),"") ->  | L171: =+IF(J171="Preventivo","Probabilidad",IF(J171="Detectivo","Probabilidad",IF(#REF!="Correctivo","Impacto",""))) ->  | N171: =+IFERROR(VLOOKUP($M171,'11 FORMULAS'!$B$54:$C$55,2,0),"") ->  | T171: =+IFERROR(C171*S171,"") ->  | U171: =+IFERROR(S171-T171,"") -> 
E172: 3 | K172: =+IFERROR(VLOOKUP($J172,'11 FORMULAS'!$B$51:$C$53,2,0),"") ->  | L172: =+IF(J172="Preventivo","Probabilidad",IF(J172="Detectivo","Probabilidad",IF(#REF!="Correctivo","Impacto",""))) ->  | N172: =+IFERROR(VLOOKUP($M172,'11 FORMULAS'!$B$54:$C$55,2,0),"") -> 
E173: 4 | K173: =+IFERROR(VLOOKUP($J173,'11 FORMULAS'!$B$51:$C$53,2,0),"") ->  | L173: =+IF(J173="Preventivo","Probabilidad",IF(J173="Detectivo","Probabilidad",IF(#REF!="Correctivo","Impacto",""))) ->  | N173: =+IFERROR(VLOOKUP($M173,'11 FORMULAS'!$B$54:$C$55,2,0),"") -> 
E174: 5 | K174: =+IFERROR(VLOOKUP($J174,'11 FORMULAS'!$B$51:$C$53,2,0),"") ->  | L174: =+IF(J174="Preventivo","Probabilidad",IF(J174="Detectivo","Probabilidad",IF(#REF!="Correctivo","Impacto",""))) ->  | N174: =+IFERROR(VLOOKUP($M174,'11 FORMULAS'!$B$54:$C$55,2,0),"") -> 
E175: 6 | K175: =+IFERROR(VLOOKUP($J175,'11 FORMULAS'!$B$51:$C$53,2,0),"") ->  | L175: =+IF(J175="Preventivo","Probabilidad",IF(J175="Detectivo","Probabilidad",IF(#REF!="Correctivo","Impacto",""))) ->  | N175: =+IFERROR(VLOOKUP($M175,'11 FORMULAS'!$B$54:$C$55,2,0),"") -> 
A176: ='2 CONTEXTO E IDENTIFICACIÓN'!A37 -> R29 | B176: =+'2 CONTEXTO E IDENTIFICACIÓN'!J37 -> Posibilidad de efecto dañoso sobre el recurso público porRecobros de incapacidades. a causa de Debilidades en la gestión de controles operativos internos y seguimiento de las incapacidades. | C176: =+'3 PROBABIL E IMPACTO INHERENTE'!E37 -> 60% | D176: =+'3 PROBABIL E IMPACTO INHERENTE'!M37 -> 60% | E176: 1 | F176: El profesional de Gestion de Talento Humano | G176: verifica la base de datos de las incapacidades radicadas, para el cobro de las mismas ante las EPS | H176: mediante informe de seguimiento. | I176: El profesional de Gestion de Talento Humano verifica la base de datos de las incapacidades radicadas, para el cobro de las mismas ante las EPS mediante informe de seguimiento. | J176: Preventivo | K176: =+IFERROR(VLOOKUP($J176,'11 FORMULAS'!$B$51:$C$53,2,0),"") -> 25% | L176: =+IF(J176="Preventivo","Probabilidad",IF(J176="Detectivo","Probabilidad",IF(#REF!="Correctivo","Impacto",""))) -> Probabilidad | M176: Manual | N176: =+IFERROR(VLOOKUP($M176,'11 FORMULAS'!$B$54:$C$55,2,0),"") -> 15% | O176: Otros Esquemas | P176: Mensual | Q176: Con registro manual | R176: Interna | S176: 40% | T176: =+IFERROR(C176*S176,"") -> 24% | U176: 16% | V176: 24%
E177: 2 | I177: =+CONCATENATE(F177," ",G177," ",H177) ->  | K177: =+IFERROR(VLOOKUP($J177,'11 FORMULAS'!$B$51:$C$53,2,0),"") ->  | L177: =+IF(J177="Preventivo","Probabilidad",IF(J177="Detectivo","Probabilidad",IF(#REF!="Correctivo","Impacto",""))) ->  | N177: =+IFERROR(VLOOKUP($M177,'11 FORMULAS'!$B$54:$C$55,2,0),"") ->  | T177: =+IFERROR(C177*S177,"") ->  | U177: =+IFERROR(S177-T177,"") -> 
E178: 3 | K178: =+IFERROR(VLOOKUP($J178,'11 FORMULAS'!$B$51:$C$53,2,0),"") ->  | L178: =+IF(J178="Preventivo","Probabilidad",IF(J178="Detectivo","Probabilidad",IF(#REF!="Correctivo","Impacto",""))) ->  | N178: =+IFERROR(VLOOKUP($M178,'11 FORMULAS'!$B$54:$C$55,2,0),"") -> 
E179: 4 | K179: =+IFERROR(VLOOKUP($J179,'11 FORMULAS'!$B$51:$C$53,2,0),"") ->  | L179: =+IF(J179="Preventivo","Probabilidad",IF(J179="Detectivo","Probabilidad",IF(#REF!="Correctivo","Impacto",""))) ->  | N179: =+IFERROR(VLOOKUP($M179,'11 FORMULAS'!$B$54:$C$55,2,0),"") -> 
E180: 5 | K180: =+IFERROR(VLOOKUP($J180,'11 FORMULAS'!$B$51:$C$53,2,0),"") ->  | L180: =+IF(J180="Preventivo","Probabilidad",IF(J180="Detectivo","Probabilidad",IF(#REF!="Correctivo","Impacto",""))) ->  | N180: =+IFERROR(VLOOKUP($M180,'11 FORMULAS'!$B$54:$C$55,2,0),"") -> 
E181: 6 | K181: =+IFERROR(VLOOKUP($J181,'11 FORMULAS'!$B$51:$C$53,2,0),"") ->  | L181: =+IF(J181="Preventivo","Probabilidad",IF(J181="Detectivo","Probabilidad",IF(#REF!="Correctivo","Impacto",""))) ->  | N181: =+IFERROR(VLOOKUP($M181,'11 FORMULAS'!$B$54:$C$55,2,0),"") -> 
A182: ='2 CONTEXTO E IDENTIFICACIÓN'!A38 -> R30 | B182: =+'2 CONTEXTO E IDENTIFICACIÓN'!J38 -> Posibilidad de efecto dañoso sobre el recurso público porMayores valores pagados en la nómina. a causa de Inconsistencias en la información reportada en el software de nómina de la entidad. | C182: =+'3 PROBABIL E IMPACTO INHERENTE'!E38 -> 40% | D182: =+'3 PROBABIL E IMPACTO INHERENTE'!M38 -> 60% | E182: 1 | F182: El profesional encargado de nómina | G182: verifica la información reportada de acuerdo regimen prestacional y salarial de los empleados públicos de la planta | H182: y el procedimiento para liquidaciones de nómina y prestaciones sociales | I182: El profesional encargado de nómina verifica la información reportada de acuerdo regimen prestacional y salarial de los empleados públicos de la planta y el procedimiento para liquidaciones de nómina y prestaciones sociales | J182: Preventivo | K182: =+IFERROR(VLOOKUP($J182,'11 FORMULAS'!$B$51:$C$53,2,0),"") -> 25% | L182: =+IF(J182="Preventivo","Probabilidad",IF(J182="Detectivo","Probabilidad",IF(#REF!="Correctivo","Impacto",""))) -> Probabilidad | M182: Manual | N182: =+IFERROR(VLOOKUP($M182,'11 FORMULAS'!$B$54:$C$55,2,0),"") -> 15% | O182: Otros Esquemas | P182: Mensual | Q182: Con registro manual | R182: Interna | S182: 40% | T182: =+IFERROR(C182*S182,"") -> 16% | U182: 24% | V182: 16%
E183: 2 | I183: =+CONCATENATE(F183," ",G183," ",H183) ->  | K183: =+IFERROR(VLOOKUP($J183,'11 FORMULAS'!$B$51:$C$53,2,0),"") ->  | L183: =+IF(J183="Preventivo","Probabilidad",IF(J183="Detectivo","Probabilidad",IF(#REF!="Correctivo","Impacto",""))) ->  | N183: =+IFERROR(VLOOKUP($M183,'11 FORMULAS'!$B$54:$C$55,2,0),"") ->  | T183: =+IFERROR(C183*S183,"") ->  | U183: =+IFERROR(S183-T183,"") -> 
E184: 3 | K184: =+IFERROR(VLOOKUP($J184,'11 FORMULAS'!$B$51:$C$53,2,0),"") ->  | L184: =+IF(J184="Preventivo","Probabilidad",IF(J184="Detectivo","Probabilidad",IF(#REF!="Correctivo","Impacto",""))) ->  | N184: =+IFERROR(VLOOKUP($M184,'11 FORMULAS'!$B$54:$C$55,2,0),"") -> 
E185: 4 | K185: =+IFERROR(VLOOKUP($J185,'11 FORMULAS'!$B$51:$C$53,2,0),"") ->  | L185: =+IF(J185="Preventivo","Probabilidad",IF(J185="Detectivo","Probabilidad",IF(#REF!="Correctivo","Impacto",""))) ->  | N185: =+IFERROR(VLOOKUP($M185,'11 FORMULAS'!$B$54:$C$55,2,0),"") -> 
E186: 5 | K186: =+IFERROR(VLOOKUP($J186,'11 FORMULAS'!$B$51:$C$53,2,0),"") ->  | L186: =+IF(J186="Preventivo","Probabilidad",IF(J186="Detectivo","Probabilidad",IF(#REF!="Correctivo","Impacto",""))) ->  | N186: =+IFERROR(VLOOKUP($M186,'11 FORMULAS'!$B$54:$C$55,2,0),"") -> 
E187: 6 | K187: =+IFERROR(VLOOKUP($J187,'11 FORMULAS'!$B$51:$C$53,2,0),"") ->  | L187: =+IF(J187="Preventivo","Probabilidad",IF(J187="Detectivo","Probabilidad",IF(#REF!="Correctivo","Impacto",""))) ->  | N187: =+IFERROR(VLOOKUP($M187,'11 FORMULAS'!$B$54:$C$55,2,0),"") -> 
A188: ='2 CONTEXTO E IDENTIFICACIÓN'!A39 -> R31 | B188: =+'2 CONTEXTO E IDENTIFICACIÓN'!J39 -> Posibilidad de efecto dañoso sobre el recurso público porExpedición de actos administrativos y/o certificados a causa de Actos de fraude, actuaciones irregulares, comisión de hechos delictivos, abuso de confianza, apropiación indebida, incumplimiento de regulaciones legales o internas de la entidad. | C188: =+'3 PROBABIL E IMPACTO INHERENTE'!E39 -> 60% | D188: =+'3 PROBABIL E IMPACTO INHERENTE'!M39 -> 60% | E188: 1 | F188: El profesional encargado del área de Gestion de Talento Humano | G188: al expedir actos administrativos y/o certificaciones, deberan llevar en el caso que lo requiera el visto bueno del asesor juridico y del responsable del archivo | H188: para verificar la trasabilidad del documento | I188: El profesional encargado del área de Gestion de Talento Humano al expedir actos administrativos y/o certificaciones, deberan llevar en el caso que lo requiera el visto bueno del asesor juridico y del responsable del archivo para verificar la trasabilidad del documento | J188: Preventivo | K188: =+IFERROR(VLOOKUP($J188,'11 FORMULAS'!$B$51:$C$53,2,0),"") -> 25% | L188: =+IF(J188="Preventivo","Probabilidad",IF(J188="Detectivo","Probabilidad",IF(#REF!="Correctivo","Impacto",""))) -> Probabilidad | M188: Manual | N188: =+IFERROR(VLOOKUP($M188,'11 FORMULAS'!$B$54:$C$55,2,0),"") -> 15% | O188: Otros Esquemas | P188: Siempre que se ejecuta la actividad | Q188: Con registro manual | R188: Interna | S188: 40% | T188: =+IFERROR(C188*S188,"") -> 24% | U188: 16% | V188: 24%
E189: 2 | I189: =+CONCATENATE(F189," ",G189," ",H189) ->  | K189: =+IFERROR(VLOOKUP($J189,'11 FORMULAS'!$B$51:$C$53,2,0),"") ->  | L189: =+IF(J189="Preventivo","Probabilidad",IF(J189="Detectivo","Probabilidad",IF(#REF!="Correctivo","Impacto",""))) ->  | N189: =+IFERROR(VLOOKUP($M189,'11 FORMULAS'!$B$54:$C$55,2,0),"") ->  | T189: =+IFERROR(C189*S189,"") ->  | U189: =+IFERROR(S189-T189,"") -> 
E190: 3 | K190: =+IFERROR(VLOOKUP($J190,'11 FORMULAS'!$B$51:$C$53,2,0),"") ->  | L190: =+IF(J190="Preventivo","Probabilidad",IF(J190="Detectivo","Probabilidad",IF(#REF!="Correctivo","Impacto",""))) ->  | N190: =+IFERROR(VLOOKUP($M190,'11 FORMULAS'!$B$54:$C$55,2,0),"") -> 
E191: 4 | K191: =+IFERROR(VLOOKUP($J191,'11 FORMULAS'!$B$51:$C$53,2,0),"") ->  | L191: =+IF(J191="Preventivo","Probabilidad",IF(J191="Detectivo","Probabilidad",IF(#REF!="Correctivo","Impacto",""))) ->  | N191: =+IFERROR(VLOOKUP($M191,'11 FORMULAS'!$B$54:$C$55,2,0),"") -> 
E192: 5 | K192: =+IFERROR(VLOOKUP($J192,'11 FORMULAS'!$B$51:$C$53,2,0),"") ->  | L192: =+IF(J192="Preventivo","Probabilidad",IF(J192="Detectivo","Probabilidad",IF(#REF!="Correctivo","Impacto",""))) ->  | N192: =+IFERROR(VLOOKUP($M192,'11 FORMULAS'!$B$54:$C$55,2,0),"") -> 
E193: 6 | K193: =+IFERROR(VLOOKUP($J193,'11 FORMULAS'!$B$51:$C$53,2,0),"") ->  | L193: =+IF(J193="Preventivo","Probabilidad",IF(J193="Detectivo","Probabilidad",IF(#REF!="Correctivo","Impacto",""))) ->  | N193: =+IFERROR(VLOOKUP($M193,'11 FORMULAS'!$B$54:$C$55,2,0),"") -> 
A194: ='2 CONTEXTO E IDENTIFICACIÓN'!A40 -> R32 | B194: =+'2 CONTEXTO E IDENTIFICACIÓN'!J40 -> Posibilidad de efecto dañoso sobre el recurso público por Pérdida, extravío, hurto, robo o faltantes de inventarios pertenecientes a la entidad a causa de inconsistencias contables, pérdidas económicas o afectaciones fiscales derivadas de la falta de integración del módulo de farmacia al software institucional | C194: =+'3 PROBABIL E IMPACTO INHERENTE'!E40 -> 60% | D194: =+'3 PROBABIL E IMPACTO INHERENTE'!M40 -> 40% | E194: 1 | F194: El profesional encargado del área de Farmacia | G194: solicitara mediante oficio dirigido a la gerencia la implementacion del modulo de dispensacion | H194: para colocarlo en funcionamiento. | I194: El profesional encargado del área de Farmacia solicitara mediante oficio dirigido a la gerencia la implementacion del modulo de dispensacion para colocarlo en funcionamiento. | J194: Preventivo | K194: =+IFERROR(VLOOKUP($J194,'11 FORMULAS'!$B$51:$C$53,2,0),"") -> 25% | L194: =+IF(J194="Preventivo","Probabilidad",IF(J194="Detectivo","Probabilidad",IF(#REF!="Correctivo","Impacto",""))) -> Probabilidad | M194: Manual | N194: =+IFERROR(VLOOKUP($M194,'11 FORMULAS'!$B$54:$C$55,2,0),"") -> 15% | O194: Otros Esquemas | P194: Semestral | Q194: Con registro manual | R194: Interna | S194: 40% | T194: =+IFERROR(C194*S194,"") -> 24% | U194: 16% | V194: 24%
E195: 2 | I195: =+CONCATENATE(F195," ",G195," ",H195) ->  | K195: =+IFERROR(VLOOKUP($J195,'11 FORMULAS'!$B$51:$C$53,2,0),"") ->  | L195: =+IF(J195="Preventivo","Probabilidad",IF(J195="Detectivo","Probabilidad",IF(#REF!="Correctivo","Impacto",""))) ->  | N195: =+IFERROR(VLOOKUP($M195,'11 FORMULAS'!$B$54:$C$55,2,0),"") ->  | T195: =+IFERROR(C195*S195,"") ->  | U195: =+IFERROR(S195-T195,"") -> 
E196: 3 | K196: =+IFERROR(VLOOKUP($J196,'11 FORMULAS'!$B$51:$C$53,2,0),"") ->  | L196: =+IF(J196="Preventivo","Probabilidad",IF(J196="Detectivo","Probabilidad",IF(#REF!="Correctivo","Impacto",""))) ->  | N196: =+IFERROR(VLOOKUP($M196,'11 FORMULAS'!$B$54:$C$55,2,0),"") -> 
E197: 4 | K197: =+IFERROR(VLOOKUP($J197,'11 FORMULAS'!$B$51:$C$53,2,0),"") ->  | L197: =+IF(J197="Preventivo","Probabilidad",IF(J197="Detectivo","Probabilidad",IF(#REF!="Correctivo","Impacto",""))) ->  | N197: =+IFERROR(VLOOKUP($M197,'11 FORMULAS'!$B$54:$C$55,2,0),"") -> 
E198: 5 | K198: =+IFERROR(VLOOKUP($J198,'11 FORMULAS'!$B$51:$C$53,2,0),"") ->  | L198: =+IF(J198="Preventivo","Probabilidad",IF(J198="Detectivo","Probabilidad",IF(#REF!="Correctivo","Impacto",""))) ->  | N198: =+IFERROR(VLOOKUP($M198,'11 FORMULAS'!$B$54:$C$55,2,0),"") -> 
E199: 6 | K199: =+IFERROR(VLOOKUP($J199,'11 FORMULAS'!$B$51:$C$53,2,0),"") ->  | L199: =+IF(J199="Preventivo","Probabilidad",IF(J199="Detectivo","Probabilidad",IF(#REF!="Correctivo","Impacto",""))) ->  | N199: =+IFERROR(VLOOKUP($M199,'11 FORMULAS'!$B$54:$C$55,2,0),"") -> 
A200: ='2 CONTEXTO E IDENTIFICACIÓN'!A41 -> R33 | B200: =+'2 CONTEXTO E IDENTIFICACIÓN'!J41 -> Posibilidad de efecto dañoso sobre el recurso público porPago de sancion y/o intereses moratorios a causa de Debilidades en el diligenciamiento del formular de retencion en la fuente, pago y resentacion por fuera de los plazos establecidos por el calendario DIAN. | C200: =+'3 PROBABIL E IMPACTO INHERENTE'!E41 -> 40% | D200: =+'3 PROBABIL E IMPACTO INHERENTE'!M41 -> 100% | E200: 1 | F200: El profesional lider del proceso | G200: Implementara alertas automáticas que le notifiquen como responsables de la gestión de presentacion y pagos retenciones en la fuente sobre los próximos vencimientos | H200: permitiendo anticipar cualquier retraso o inconvenientes de fallas tecnologicas. | I200: El profesional lider del proceso Implementara alertas automáticas que le notifiquen como responsables de la gestión de presentacion y pagos retenciones en la fuente sobre los próximos vencimientos permitiendo anticipar cualquier retraso o inconvenientes de fallas tecnologicas. | J200: Preventivo | K200: =+IFERROR(VLOOKUP($J200,'11 FORMULAS'!$B$51:$C$53,2,0),"") -> 25% | L200: =+IF(J200="Preventivo","Probabilidad",IF(J200="Detectivo","Probabilidad",IF(#REF!="Correctivo","Impacto",""))) -> Probabilidad | M200: Manual | N200: =+IFERROR(VLOOKUP($M200,'11 FORMULAS'!$B$54:$C$55,2,0),"") -> 15% | O200: Otros Esquemas | P200: Bimestral | Q200: Con registro manual | R200: Interna | S200: 40% | T200: =+IFERROR(C200*S200,"") -> 16% | U200: 24% | V200: 16%
... 78 more rows

Sheet 5 VALORACIÓN CONTROL IMPACTO
B1: =+'2 CONTEXTO E IDENTIFICACIÓN'!A1 -> MAPA DE RIESGOS | G1: =+'2 CONTEXTO E IDENTIFICACIÓN'!$I$4 -> Elaboración o Actualización: | H1: ='2 CONTEXTO E IDENTIFICACIÓN'!J4 -> 12/29/2025
C2: =+'2 CONTEXTO E IDENTIFICACIÓN'!A2 -> VERSIÓN: | D2: ='2 CONTEXTO E IDENTIFICACIÓN'!B2 -> 1 | G2: =+'2 CONTEXTO E IDENTIFICACIÓN'!$E$5 -> Vigencia: | H2: ='2 CONTEXTO E IDENTIFICACIÓN'!G5 -> 2026-01-01 | I2: Al
A3: ENTIDAD: | B3: ='2 CONTEXTO E IDENTIFICACIÓN'!B4 -> E.S.E. CENTRO DE SALUD DE USIACURI
A4: PROCESO: | B4: ='2 CONTEXTO E IDENTIFICACIÓN'!F4 -> 0 | F4: VALORACIÓN DEL CONTROL | J4: Atributos del Control | S4: Peso del Control + Peso de la implementación | T4: Cálculo de Impacto | V4: De acuerdo al cálculo de controles correctivos digite el valor residual final | X4: NIVEL
X5: Nivel | Y5: % MIN | Z5: % MAX
A6: No. Riesgo | B6: Riesgo | C6: % Probabilidad Riesgo Inherente | D6: % Impacto Riesgo Inherente | E6: No. Control | F6: Descripción del Control | J6: Atributos Eficiencia | O6: Atributos Formalización del control | X6: Muy Baja | Y6: 1% | Z6: 20%
F7: Responsable (Cargo y/o Aplicativo) | G7: Acción (Inicia con un verbo) | H7: Complemento (Periodicidad - Observaciones o Desviaciones) | I7: Descripción del control | J7: Tipo de control para Impacto | K7: Peso del Control | L7: Afectación o Desplazamiento en la Matriz | M7: Implementación | N7: Peso de la implementación | O7: Documentación | P7: Frecuencia | Q7: Evidencia (Trazabilidad de la ejecución) | R7: Ejecución | S7: Valor Total del control Impacto | T7: Impacto residual 1 | U7: Impacto residual a partir del segundo control | V7: Impacto Residual Final | X7: Baja | Y7: 21% | Z7: 40%
A8: ='2 CONTEXTO E IDENTIFICACIÓN'!A9 -> R1 | B8: =+'2 CONTEXTO E IDENTIFICACIÓN'!J9 -> Posibilidad de afectación reputacional por Investigaciones disciplinarias y sanciones por entes de control a causa de Insuficiente participación en los procesos de capacitación y entrenamiento a los servidores públicos para la prestación del servicio, que afecta las competencias y conocimiento interno. | C8: =+'3 PROBABIL E IMPACTO INHERENTE'!E9 -> 60% | D8: =+'3 PROBABIL E IMPACTO INHERENTE'!M9 -> 20% | E8: 1 | F8: El Lider de Talento Humano | G8: realiza seguimiento a la participación de los servidores públicos en la ejecución del Plan Institucional de Capacitaciones PIC 2026, | H8: que permita promocionar de manera adecuada la formación y llegue a la población objetivo de esta. | I8: =+CONCATENATE(F8," ",G8," ",H8) -> El Lider de Talento Humano realiza seguimiento a la participación de los servidores públicos en la ejecución del Plan Institucional de Capacitaciones PIC 2026, que permita promocionar de manera adecuada la formación y llegue a la población objetivo de esta. | J8: Correctivo | K8: =+IFERROR(VLOOKUP($J8,'11 FORMULAS'!B53:C53,2,0),"") -> 10% | L8: =+IF(J8="Correctivo","Impacto","") -> Impacto | M8: Manual | N8: =+IFERROR(VLOOKUP($M8,'11 FORMULAS'!$B$54:$C$55,2,0),"") -> 15% | O8: Otros Esquemas | P8: por a causa de | Q8: Con registro manual | R8: Interna | S8: =+IFERROR($K8+$N8,"") -> 25% | T8: =+IFERROR(D8*S8,"") -> 5% | U8: =+IFERROR(D8-T8,"") -> 15% | V8: 15% | X8: Media | Y8: 41% | Z8: 60%
E9: 2 | K9: =+IFERROR(VLOOKUP($J9,'11 FORMULAS'!$B$53:$C$53,2,0),"") ->  | L9: =+IF(J9="Correctivo","Impacto","") ->  | N9: =+IFERROR(VLOOKUP($M9,'11 FORMULAS'!$B$54:$C$55,2,0),"") ->  | S9: =+IFERROR($K9+$N9,"") ->  | T9: =+IFERROR(U8*S9,"") ->  | U9: =+IFERROR(U8-T9,"") ->  | X9: Alta | Y9: 61% | Z9: 80%
E10: 3 | K10: =+IFERROR(VLOOKUP($J10,'11 FORMULAS'!$B$53:$C$53,2,0),"") ->  | N10: =+IFERROR(VLOOKUP($M10,'11 FORMULAS'!$B$54:$C$55,2,0),"") ->  | S10: =+IFERROR($K10+$N10,"") ->  | T10: =+IFERROR(U9*S10,"") ->  | U10: =+IFERROR(U9-T10,"") ->  | X10: Muy Alta | Y10: 81% | Z10: 100%
E11: 4 | K11: =+IFERROR(VLOOKUP($J11,'11 FORMULAS'!$B$53:$C$53,2,0),"") ->  | N11: =+IFERROR(VLOOKUP($M11,'11 FORMULAS'!$B$54:$C$55,2,0),"") ->  | T11: =+IFERROR(U10*S11,"") ->  | U11: =+IFERROR(U10-T11,"") -> 
E12: 5 | K12: =+IFERROR(VLOOKUP($J12,'11 FORMULAS'!$B$53:$C$53,2,0),"") ->  | N12: =+IFERROR(VLOOKUP($M12,'11 FORMULAS'!$B$54:$C$55,2,0),"") ->  | T12: =+IFERROR(U11*S12,"") ->  | U12: =+IFERROR(U11-T12,"") -> 
E13: 6 | K13: =+IFERROR(VLOOKUP($J13,'11 FORMULAS'!$B$53:$C$53,2,0),"") ->  | N13: =+IFERROR(VLOOKUP($M13,'11 FORMULAS'!$B$54:$C$55,2,0),"") ->  | T13: =+IFERROR(U12*S13,"") ->  | U13: =+IFERROR(U12-T13,"") -> 
A14: ='2 CONTEXTO E IDENTIFICACIÓN'!A10 -> R2 | B14: =+'2 CONTEXTO E IDENTIFICACIÓN'!J10 -> Posibilidad de perdida de confidencialidad por Investigaciones disciplinarias por entes de control. a causa de Incumplimiento de la ley 1712 de 2014 en lo concerniente a la información clasificada y reservada de las historias laborales de los servidores públicos. | C14: =+'3 PROBABIL E IMPACTO INHERENTE'!E10 -> 80% | D14: =+'3 PROBABIL E IMPACTO INHERENTE'!M10 -> 20% | E14: 1 | F14: El Lider de Talento Humano | G14: verifica y autoriza el acceso a la información de las historias laborales de los servidores públicos, | H14: mediante de formato de solicitud en cumplimiento de la reserva. | I14: El Lider de Talento Humano verifica y autoriza el acceso a la información de las historias laborales de los servidores públicos, mediante de formato de solicitud en cumplimiento de la reserva. | J14: Correctivo | K14: =+IFERROR(VLOOKUP($J14,'11 FORMULAS'!$B$53:$C$53,2,0),"") -> 10% | L14: Impacto | M14: Manual | N14: =+IFERROR(VLOOKUP($M14,'11 FORMULAS'!$B$54:$C$55,2,0),"") -> 15% | O14: Otros Esquemas | P14: Trimestral | Q14: Con registro manual | R14: Interna | S14: 25% | T14: =+IFERROR(D14*S14,"") -> 5% | U14: =+IFERROR(D14-T14,"") -> 15% | V14: 5%
E15: 2 | K15: =+IFERROR(VLOOKUP($J15,'11 FORMULAS'!$B$53:$C$53,2,0),"") ->  | N15: =+IFERROR(VLOOKUP($M15,'11 FORMULAS'!$B$54:$C$55,2,0),"") ->  | T15: =+IFERROR(U14*S15,"") ->  | U15: =+IFERROR(U14-T15,"") -> 
E16: 3 | K16: =+IFERROR(VLOOKUP($J16,'11 FORMULAS'!$B$53:$C$53,2,0),"") ->  | N16: =+IFERROR(VLOOKUP($M16,'11 FORMULAS'!$B$54:$C$55,2,0),"") ->  | T16: =+IFERROR(U15*S16,"") ->  | U16: =+IFERROR(U15-T16,"") -> 
E17: 4 | K17: =+IFERROR(VLOOKUP($J17,'11 FORMULAS'!$B$53:$C$53,2,0),"") ->  | N17: =+IFERROR(VLOOKUP($M17,'11 FORMULAS'!$B$54:$C$55,2,0),"") ->  | T17: =+IFERROR(U16*S17,"") ->  | U17: =+IFERROR(U16-T17,"") -> 
E18: 5 | K18: =+IFERROR(VLOOKUP($J18,'11 FORMULAS'!$B$53:$C$53,2,0),"") ->  | N18: =+IFERROR(VLOOKUP($M18,'11 FORMULAS'!$B$54:$C$55,2,0),"") ->  | T18: =+IFERROR(U17*S18,"") ->  | U18: =+IFERROR(U17-T18,"") -> 
E19: 6 | K19: =+IFERROR(VLOOKUP($J19,'11 FORMULAS'!$B$53:$C$53,2,0),"") ->  | N19: =+IFERROR(VLOOKUP($M19,'11 FORMULAS'!$B$54:$C$55,2,0),"") ->  | T19: =+IFERROR(U18*S19,"") ->  | U19: =+IFERROR(U18-T19,"") -> 
A20: ='2 CONTEXTO E IDENTIFICACIÓN'!A11 -> R3 | B20: =+'2 CONTEXTO E IDENTIFICACIÓN'!J11 -> Posibilidad de afectación reputacional por Queja o reclamo de servidores de la Entidad a causa de Reporte de novedades fuera de los plazos definidos en el cronograma, | C20: =+'3 PROBABIL E IMPACTO INHERENTE'!E11 -> 60% | D20: =+'3 PROBABIL E IMPACTO INHERENTE'!M11 -> 20% | E20: 1 | F20: El Lider de talento humano | G20: definira un cronograma riguroso | H20: para el reporte de novedades y la liquidación de la nómina. | I20: El Lider de talento humano definira un cronograma riguroso para el reporte de novedades y la liquidación de la nómina. | J20: Correctivo | K20: =+IFERROR(VLOOKUP($J20,'11 FORMULAS'!$B$53:$C$53,2,0),"") -> 10% | L20: Impacto | M20: Manual | N20: =+IFERROR(VLOOKUP($M20,'11 FORMULAS'!$B$54:$C$55,2,0),"") -> 15% | O20: Otros Esquemas | P20: Semestral | Q20: Con registro manual | R20: Interna | S20: 25% | T20: =+IFERROR(D20*S20,"") -> 5% | U20: =+IFERROR(D20-T20,"") -> 15% | V20: 5%
E21: 2 | K21: =+IFERROR(VLOOKUP($J21,'11 FORMULAS'!$B$53:$C$53,2,0),"") ->  | N21: =+IFERROR(VLOOKUP($M21,'11 FORMULAS'!$B$54:$C$55,2,0),"") -> 
E22: 3 | K22: =+IFERROR(VLOOKUP($J22,'11 FORMULAS'!$B$53:$C$53,2,0),"") ->  | N22: =+IFERROR(VLOOKUP($M22,'11 FORMULAS'!$B$54:$C$55,2,0),"") -> 
E23: 4 | K23: =+IFERROR(VLOOKUP($J23,'11 FORMULAS'!$B$53:$C$53,2,0),"") ->  | N23: =+IFERROR(VLOOKUP($M23,'11 FORMULAS'!$B$54:$C$55,2,0),"") -> 
E24: 5 | K24: =+IFERROR(VLOOKUP($J24,'11 FORMULAS'!$B$53:$C$53,2,0),"") ->  | N24: =+IFERROR(VLOOKUP($M24,'11 FORMULAS'!$B$54:$C$55,2,0),"") -> 
E25: 6 | K25: =+IFERROR(VLOOKUP($J25,'11 FORMULAS'!$B$53:$C$53,2,0),"") ->  | N25: =+IFERROR(VLOOKUP($M25,'11 FORMULAS'!$B$54:$C$55,2,0),"") -> 
A26: ='2 CONTEXTO E IDENTIFICACIÓN'!A12 -> R4 | B26: =+'2 CONTEXTO E IDENTIFICACIÓN'!J12 -> Posibilidad de efecto dañoso sobre el recurso público por Sanciones e investigaciones de entes de control y judiciales a causa de Omisión en la liquidación y pago de la seguridad social y aportes a parafiscales. | C26: =+'3 PROBABIL E IMPACTO INHERENTE'!E12 -> 80% | D26: =+'3 PROBABIL E IMPACTO INHERENTE'!M12 -> 80% | E26: 1 | F26: El profesional encargado de nómina, | G26: Validara mensualmente que el cálculo de la seguridad social del sistema de información sea el mismo que el cálculo manual, | H26: con base a una muestra aleatoria del 10% de los servidores. | I26: El profesional encargado de nómina, Validara mensualmente que el cálculo de la seguridad social del sistema de información sea el mismo que el cálculo manual, con base a una muestra aleatoria del 10% de los servidores. | J26: Correctivo | K26: =+IFERROR(VLOOKUP($J26,'11 FORMULAS'!$B$53:$C$53,2,0),"") -> 10% | L26: Impacto | M26: Manual | N26: =+IFERROR(VLOOKUP($M26,'11 FORMULAS'!$B$54:$C$55,2,0),"") -> 15% | O26: Otros Esquemas | P26: Mensual | Q26: Con registro manual | R26: Interna | S26: 25% | T26: 20% | U26: 60%
E27: 2 | F27: El profesional encargado de nómina, | G27: verificara que tesoreria realice el pago de los aportes al sistema de salud, pension y par fiscales | H27: mensualmente | I27: El profesional encargado de nómina, verificara que tesoreria realice el pago de los aportes al sistema de salud, pension y par fiscales mensualmente | J27: Correctivo | K27: =+IFERROR(VLOOKUP($J27,'11 FORMULAS'!$B$53:$C$53,2,0),"") -> 10% | L27: Impacto | M27: Manual | N27: =+IFERROR(VLOOKUP($M27,'11 FORMULAS'!$B$54:$C$55,2,0),"") -> 15% | O27: Otros Esquemas | P27: Mensual | Q27: Con registro manual | R27: Interna | S27: 25% | T27: 0% | U27: 0%
E28: 3 | K28: =+IFERROR(VLOOKUP($J28,'11 FORMULAS'!$B$53:$C$53,2,0),"") ->  | N28: =+IFERROR(VLOOKUP($M28,'11 FORMULAS'!$B$54:$C$55,2,0),"") -> 
E29: 4 | K29: =+IFERROR(VLOOKUP($J29,'11 FORMULAS'!$B$53:$C$53,2,0),"") ->  | N29: =+IFERROR(VLOOKUP($M29,'11 FORMULAS'!$B$54:$C$55,2,0),"") -> 
E30: 5 | K30: =+IFERROR(VLOOKUP($J30,'11 FORMULAS'!$B$53:$C$53,2,0),"") ->  | N30: =+IFERROR(VLOOKUP($M30,'11 FORMULAS'!$B$54:$C$55,2,0),"") -> 
E31: 6 | K31: =+IFERROR(VLOOKUP($J31,'11 FORMULAS'!$B$53:$C$53,2,0),"") ->  | N31: =+IFERROR(VLOOKUP($M31,'11 FORMULAS'!$B$54:$C$55,2,0),"") -> 
A32: ='2 CONTEXTO E IDENTIFICACIÓN'!A13 -> R5 | B32: =+'2 CONTEXTO E IDENTIFICACIÓN'!J13 -> Posibilidad de afectación reputacional por queja o reclamo de los grupos de valor interno a causa de actividades del plan de bienestar no ajustadas a las necesidades de los grupos de valor internos | C32: =+'3 PROBABIL E IMPACTO INHERENTE'!E13 -> 40% | D32: =+'3 PROBABIL E IMPACTO INHERENTE'!M13 -> 20% | E32: 1 | F32: Los asesores de Planeacion Institucional | G32: validan que el plan de actividades de bienestar considere las necesidades según la encuesta que realiza el grupo de la Oficina de Talento Humano a los servidores de la Entidad, | H32: esta se realizara anualmente | I32: Los asesores de Planeacion Institucional validan que el plan de actividades de bienestar considere las necesidades según la encuesta que realiza el grupo de la Oficina de Talento Humano a los servidores de la Entidad, esta se realizara anualmente | J32: Correctivo | K32: =+IFERROR(VLOOKUP($J32,'11 FORMULAS'!$B$53:$C$53,2,0),"") -> 10% | L32: Impacto | M32: Manual | N32: =+IFERROR(VLOOKUP($M32,'11 FORMULAS'!$B$54:$C$55,2,0),"") -> 15% | O32: Otros Esquemas | P32: Siempre que se ejecuta la actividad | Q32: Con registro manual | R32: Interna | S32: 25% | T32: 5% | U32: 15% | V32: 5%
E33: 2 | K33: =+IFERROR(VLOOKUP($J33,'11 FORMULAS'!$B$53:$C$53,2,0),"") ->  | N33: =+IFERROR(VLOOKUP($M33,'11 FORMULAS'!$B$54:$C$55,2,0),"") -> 
E34: 3 | K34: =+IFERROR(VLOOKUP($J34,'11 FORMULAS'!$B$53:$C$53,2,0),"") ->  | N34: =+IFERROR(VLOOKUP($M34,'11 FORMULAS'!$B$54:$C$55,2,0),"") -> 
E35: 4 | K35: =+IFERROR(VLOOKUP($J35,'11 FORMULAS'!$B$53:$C$53,2,0),"") ->  | N35: =+IFERROR(VLOOKUP($M35,'11 FORMULAS'!$B$54:$C$55,2,0),"") -> 
E36: 5 | K36: =+IFERROR(VLOOKUP($J36,'11 FORMULAS'!$B$53:$C$53,2,0),"") ->  | N36: =+IFERROR(VLOOKUP($M36,'11 FORMULAS'!$B$54:$C$55,2,0),"") -> 
E37: 6 | K37: =+IFERROR(VLOOKUP($J37,'11 FORMULAS'!$B$53:$C$53,2,0),"") ->  | N37: =+IFERROR(VLOOKUP($M37,'11 FORMULAS'!$B$54:$C$55,2,0),"") -> 
A38: ='2 CONTEXTO E IDENTIFICACIÓN'!A14 -> R6 | B38: =+'2 CONTEXTO E IDENTIFICACIÓN'!J14 -> Posibilidad de afectación reputacional por Información incompleta o inexacta a causa de Inconsistencias en la emisión de certificación electrónica de tiempos laborados (CETIL). | C38: =+'3 PROBABIL E IMPACTO INHERENTE'!E14 -> 40% | D38: =+'3 PROBABIL E IMPACTO INHERENTE'!M14 -> 20% | E38: 1 | F38: El Jefe de Talento Humano | G38: Validara la informacion que reposa en los archivos y Hoja de vida Laboral al momento de firmar electronicamente el certificado para su envio. | H38: Realizara dos (02) informe anuales de la emision de certificafos laborales en la plataforma CETIL | I38: El Jefe de Talento Humano Validara la informacion que reposa en los archivos y Hoja de vida Laboral al momento de firmar electronicamente el certificado para su envio. Realizara dos (02) informe anuales de la emision de certificafos laborales en la plataforma CETIL | J38: Correctivo | K38: =+IFERROR(VLOOKUP($J38,'11 FORMULAS'!$B$53:$C$53,2,0),"") -> 10% | L38: Impacto | M38: Manual | N38: =+IFERROR(VLOOKUP($M38,'11 FORMULAS'!$B$54:$C$55,2,0),"") -> 15% | O38: Otros Esquemas | P38: Semestral | Q38: Con registro manual | R38: Interna | S38: 25% | T38: 5% | U38: 15% | V38: 15%
E39: 2 | K39: =+IFERROR(VLOOKUP($J39,'11 FORMULAS'!$B$53:$C$53,2,0),"") ->  | N39: =+IFERROR(VLOOKUP($M39,'11 FORMULAS'!$B$54:$C$55,2,0),"") -> 
E40: 3 | K40: =+IFERROR(VLOOKUP($J40,'11 FORMULAS'!$B$53:$C$53,2,0),"") ->  | N40: =+IFERROR(VLOOKUP($M40,'11 FORMULAS'!$B$54:$C$55,2,0),"") -> 
E41: 4 | K41: =+IFERROR(VLOOKUP($J41,'11 FORMULAS'!$B$53:$C$53,2,0),"") ->  | N41: =+IFERROR(VLOOKUP($M41,'11 FORMULAS'!$B$54:$C$55,2,0),"") -> 
E42: 5 | K42: =+IFERROR(VLOOKUP($J42,'11 FORMULAS'!$B$53:$C$53,2,0),"") ->  | N42: =+IFERROR(VLOOKUP($M42,'11 FORMULAS'!$B$54:$C$55,2,0),"") -> 
E43: 6 | K43: =+IFERROR(VLOOKUP($J43,'11 FORMULAS'!$B$53:$C$53,2,0),"") ->  | N43: =+IFERROR(VLOOKUP($M43,'11 FORMULAS'!$B$54:$C$55,2,0),"") -> 
A44: ='2 CONTEXTO E IDENTIFICACIÓN'!A15 -> R7 | B44: =+'2 CONTEXTO E IDENTIFICACIÓN'!J15 -> Posibilidad de afectación reputacional por Comportamientos no éticos de los empleados a causa de Acceso no autorizado a la información confidencial de la Historia Laboral - HL o datos personales. | C44: =+'3 PROBABIL E IMPACTO INHERENTE'!E15 -> 60% | D44: =+'3 PROBABIL E IMPACTO INHERENTE'!M15 -> 20% | E44: 1 | F44: El Jefe de Talento Humano | G44: Validara la informacion que reposa en los archivos y Hoja de vida Laboral al momento de firmar electronicamente el certificado para su envio. | H44: Realizara dos (02) informe anuales de la emision de certificafos laborales en la plataforma CETIL | I44: El Jefe de Talento Humano Validara la informacion que reposa en los archivos y Hoja de vida Laboral al momento de firmar electronicamente el certificado para su envio. Realizara dos (02) informe anuales de la emision de certificafos laborales en la plataforma CETIL | J44: Correctivo | K44: =+IFERROR(VLOOKUP($J44,'11 FORMULAS'!$B$53:$C$53,2,0),"") -> 10% | L44: Impacto | M44: Manual | N44: =+IFERROR(VLOOKUP($M44,'11 FORMULAS'!$B$54:$C$55,2,0),"") -> 15% | O44: Otros Esquemas | P44: Semestral | Q44: Con registro manual | R44: Interna | S44: 25% | T44: 5% | U44: 15% | V44: 5%
E45: 2 | K45: =+IFERROR(VLOOKUP($J45,'11 FORMULAS'!$B$53:$C$53,2,0),"") ->  | N45: =+IFERROR(VLOOKUP($M45,'11 FORMULAS'!$B$54:$C$55,2,0),"") -> 
E46: 3 | K46: =+IFERROR(VLOOKUP($J46,'11 FORMULAS'!$B$53:$C$53,2,0),"") ->  | N46: =+IFERROR(VLOOKUP($M46,'11 FORMULAS'!$B$54:$C$55,2,0),"") -> 
E47: 4 | K47: =+IFERROR(VLOOKUP($J47,'11 FORMULAS'!$B$53:$C$53,2,0),"") ->  | N47: =+IFERROR(VLOOKUP($M47,'11 FORMULAS'!$B$54:$C$55,2,0),"") -> 
E48: 5 | K48: =+IFERROR(VLOOKUP($J48,'11 FORMULAS'!$B$53:$C$53,2,0),"") ->  | N48: =+IFERROR(VLOOKUP($M48,'11 FORMULAS'!$B$54:$C$55,2,0),"") -> 
E49: 6 | K49: =+IFERROR(VLOOKUP($J49,'11 FORMULAS'!$B$53:$C$53,2,0),"") ->  | N49: =+IFERROR(VLOOKUP($M49,'11 FORMULAS'!$B$54:$C$55,2,0),"") -> 
A50: ='2 CONTEXTO E IDENTIFICACIÓN'!A16 -> R8 | B50: =+'2 CONTEXTO E IDENTIFICACIÓN'!J16 -> Posibilidad de efecto dañoso sobre el recurso público por Sanciones de entes reguladores y de control o demandas y quejas de los grupos de valor a causa de incumplimiento de estándares mínimos del Sistema de Gestión en Seguridad y Salud en el Trabajo( SG-SST). | C50: =+'3 PROBABIL E IMPACTO INHERENTE'!E16 -> 60% | D50: =+'3 PROBABIL E IMPACTO INHERENTE'!M16 -> 100% | E50: 1 | F50: El profesional designado en el SG-SST, | G50: realiza seguimiento y monitoreo del autoevaluación de cumplimiento de estándares mínimos | H50: y la matriz de objetivos, metas e indicadores del Sistema de Gestión de Seguridad y Salud en el Trabajo. | I50: El profesional designado en el SG-SST, realiza seguimiento y monitoreo del autoevaluación de cumplimiento de estándares mínimos y la matriz de objetivos, metas e indicadores del Sistema de Gestión de Seguridad y Salud en el Trabajo. | J50: Correctivo | K50: =+IFERROR(VLOOKUP($J50,'11 FORMULAS'!$B$53:$C$53,2,0),"") -> 10% | L50: Impacto | M50: Manual | N50: =+IFERROR(VLOOKUP($M50,'11 FORMULAS'!$B$54:$C$55,2,0),"") -> 15% | O50: Otros Esquemas | P50: Semestral | Q50: Con registro manual | R50: Interna | S50: 25% | T50: 25% | U50: 75% | V50: 25%
E51: 2 | K51: =+IFERROR(VLOOKUP($J51,'11 FORMULAS'!$B$53:$C$53,2,0),"") ->  | N51: =+IFERROR(VLOOKUP($M51,'11 FORMULAS'!$B$54:$C$55,2,0),"") -> 
E52: 3 | K52: =+IFERROR(VLOOKUP($J52,'11 FORMULAS'!$B$53:$C$53,2,0),"") ->  | N52: =+IFERROR(VLOOKUP($M52,'11 FORMULAS'!$B$54:$C$55,2,0),"") ->  | T52: =+IFERROR(D52*S52,"") ->  | U52: =+IFERROR(D52-T52,"") -> 
E53: 4 | K53: =+IFERROR(VLOOKUP($J53,'11 FORMULAS'!$B$53:$C$53,2,0),"") ->  | N53: =+IFERROR(VLOOKUP($M53,'11 FORMULAS'!$B$54:$C$55,2,0),"") -> 
E54: 5 | K54: =+IFERROR(VLOOKUP($J54,'11 FORMULAS'!$B$53:$C$53,2,0),"") ->  | N54: =+IFERROR(VLOOKUP($M54,'11 FORMULAS'!$B$54:$C$55,2,0),"") -> 
E55: 6 | K55: =+IFERROR(VLOOKUP($J55,'11 FORMULAS'!$B$53:$C$53,2,0),"") ->  | N55: =+IFERROR(VLOOKUP($M55,'11 FORMULAS'!$B$54:$C$55,2,0),"") -> 
A56: ='2 CONTEXTO E IDENTIFICACIÓN'!A17 -> R9 | B56: =+'2 CONTEXTO E IDENTIFICACIÓN'!J17 -> Posibilidad de afectación económica y reputacional por Errores en la presentacion, informacion a causa de Incumplimiento de no validada y presentada de manera oportuna, veraz, completa y conforme a la normatividad vigente. | C56: =+'3 PROBABIL E IMPACTO INHERENTE'!E17 -> 60% | D56: =+'3 PROBABIL E IMPACTO INHERENTE'!M17 -> 40% | E56: 1 | F56: El Lider de Oficina de Gestion Contable | G56: elaborara de un calendario institucional con las fechas de entrega de información a cada ente de control, | H56: el cual se consolidara con otras áreas. | I56: El Lider de Oficina de Gestion Contable elaborara de un calendario institucional con las fechas de entrega de información a cada ente de control, el cual se consolidara con otras áreas. | J56: Correctivo | K56: =+IFERROR(VLOOKUP($J56,'11 FORMULAS'!$B$53:$C$53,2,0),"") -> 10% | L56: Impacto | M56: Manual | N56: =+IFERROR(VLOOKUP($M56,'11 FORMULAS'!$B$54:$C$55,2,0),"") -> 15% | O56: Otros Esquemas | P56: Siempre que se ejecuta la actividad | Q56: Con registro manual | R56: Interna | S56: 25% | T56: 10% | U56: 30% | V56: 10%
E57: 2 | K57: =+IFERROR(VLOOKUP($J57,'11 FORMULAS'!$B$53:$C$53,2,0),"") ->  | N57: =+IFERROR(VLOOKUP($M57,'11 FORMULAS'!$B$54:$C$55,2,0),"") -> 
E58: 3 | K58: =+IFERROR(VLOOKUP($J58,'11 FORMULAS'!$B$53:$C$53,2,0),"") ->  | N58: =+IFERROR(VLOOKUP($M58,'11 FORMULAS'!$B$54:$C$55,2,0),"") -> 
E59: 4 | K59: =+IFERROR(VLOOKUP($J59,'11 FORMULAS'!$B$53:$C$53,2,0),"") ->  | N59: =+IFERROR(VLOOKUP($M59,'11 FORMULAS'!$B$54:$C$55,2,0),"") -> 
E60: 5 | K60: =+IFERROR(VLOOKUP($J60,'11 FORMULAS'!$B$53:$C$53,2,0),"") ->  | N60: =+IFERROR(VLOOKUP($M60,'11 FORMULAS'!$B$54:$C$55,2,0),"") -> 
E61: 6 | K61: =+IFERROR(VLOOKUP($J61,'11 FORMULAS'!$B$53:$C$53,2,0),"") ->  | N61: =+IFERROR(VLOOKUP($M61,'11 FORMULAS'!$B$54:$C$55,2,0),"") -> 
A62: ='2 CONTEXTO E IDENTIFICACIÓN'!A18 -> R10 | B62: =+'2 CONTEXTO E IDENTIFICACIÓN'!J18 -> Posibilidad de afectación económica y reputacional por Errores o inconsistencias en la elaboración de los estados financieros a causa de Omisión de políticas contables actualizadas conforme a la normatividad vigente (NICSP para entidades públicas). | C62: =+'3 PROBABIL E IMPACTO INHERENTE'!E18 -> 60% | D62: =+'3 PROBABIL E IMPACTO INHERENTE'!M18 -> 80% | E62: 1 | F62: El Lider de contabilidad | G62: realizara induccion y re induccion periódica al personal vinculado a este proceso en normatividad financiera y manejo del sistema contable, | H62: asi mismo revisara e informara si hay que actualizar e implementar políticas contables alineadas con la normatividad vigente. | I62: El Lider de contabilidad realizara induccion y re induccion periódica al personal vinculado a este proceso en normatividad financiera y manejo del sistema contable, asi mismo revisara e informara si hay que actualizar e implementar políticas contables alineadas con la normatividad vigente. | J62: Correctivo | K62: =+IFERROR(VLOOKUP($J62,'11 FORMULAS'!$B$53:$C$53,2,0),"") -> 10% | L62: Impacto | M62: Manual | N62: =+IFERROR(VLOOKUP($M62,'11 FORMULAS'!$B$54:$C$55,2,0),"") -> 15% | O62: Otros Esquemas | P62: Semestral | Q62: Con registro manual | R62: Interna | S62: 25% | T62: 20% | U62: 60% | V62: 20%
E63: 2 | K63: =+IFERROR(VLOOKUP($J63,'11 FORMULAS'!$B$53:$C$53,2,0),"") ->  | N63: =+IFERROR(VLOOKUP($M63,'11 FORMULAS'!$B$54:$C$55,2,0),"") -> 
E64: 3 | K64: =+IFERROR(VLOOKUP($J64,'11 FORMULAS'!$B$53:$C$53,2,0),"") ->  | N64: =+IFERROR(VLOOKUP($M64,'11 FORMULAS'!$B$54:$C$55,2,0),"") -> 
E65: 4 | K65: =+IFERROR(VLOOKUP($J65,'11 FORMULAS'!$B$53:$C$53,2,0),"") ->  | N65: =+IFERROR(VLOOKUP($M65,'11 FORMULAS'!$B$54:$C$55,2,0),"") -> 
E66: 5 | K66: =+IFERROR(VLOOKUP($J66,'11 FORMULAS'!$B$53:$C$53,2,0),"") ->  | N66: =+IFERROR(VLOOKUP($M66,'11 FORMULAS'!$B$54:$C$55,2,0),"") -> 
E67: 6 | K67: =+IFERROR(VLOOKUP($J67,'11 FORMULAS'!$B$53:$C$53,2,0),"") ->  | N67: =+IFERROR(VLOOKUP($M67,'11 FORMULAS'!$B$54:$C$55,2,0),"") -> 
A68: ='2 CONTEXTO E IDENTIFICACIÓN'!A19 -> R11 | B68: =+'2 CONTEXTO E IDENTIFICACIÓN'!J19 -> Posibilidad de afectación económica y reputacional por Registro contable equivocado de ingresos, egresos o transferencias. a causa de Conciliaciones realizadas de forma extemporánea o sin periodicidad definida. | C68: =+'3 PROBABIL E IMPACTO INHERENTE'!E19 -> 60% | D68: =+'3 PROBABIL E IMPACTO INHERENTE'!M19 -> 60% | E68: 1 | F68: El Lider de contabilidad | G68: realizara segregacion de funciones entre quien concilia, quien revisa y quien aprueba; Elaborar las conciliaciones bancarias mensuales, las cuales serán revisadas y aprobadas por el Lider de Contabilidad. | H68: Cada conciliación deberá contar con extracto bancario, auxiliares contables, comprobantes de ajuste y acta de conciliación debidamente firmada. | I68: El Lider de contabilidad realizara segregacion de funciones entre quien concilia, quien revisa y quien aprueba; Elaborar las conciliaciones bancarias mensuales, las cuales serán revisadas y aprobadas por el Lider de Contabilidad. Cada conciliación deberá contar con extracto bancario, auxiliares contables, comprobantes de ajuste y acta de conciliación debidamente firmada. | J68: Correctivo | K68: =+IFERROR(VLOOKUP($J68,'11 FORMULAS'!$B$53:$C$53,2,0),"") -> 10% | L68: Impacto | M68: Manual | N68: =+IFERROR(VLOOKUP($M68,'11 FORMULAS'!$B$54:$C$55,2,0),"") -> 15% | O68: Otros Esquemas | P68: Mensual | Q68: Con registro manual | R68: Interna | S68: 25% | T68: 15% | U68: 45% | V68: 15%
E69: 2 | K69: =+IFERROR(VLOOKUP($J69,'11 FORMULAS'!$B$53:$C$53,2,0),"") ->  | N69: =+IFERROR(VLOOKUP($M69,'11 FORMULAS'!$B$54:$C$55,2,0),"") -> 
E70: 3 | K70: =+IFERROR(VLOOKUP($J70,'11 FORMULAS'!$B$53:$C$53,2,0),"") ->  | N70: =+IFERROR(VLOOKUP($M70,'11 FORMULAS'!$B$54:$C$55,2,0),"") -> 
E71: 4 | K71: =+IFERROR(VLOOKUP($J71,'11 FORMULAS'!$B$53:$C$53,2,0),"") ->  | N71: =+IFERROR(VLOOKUP($M71,'11 FORMULAS'!$B$54:$C$55,2,0),"") -> 
E72: 5 | I72: =+CONCATENATE(F72," ",G72," ",H72) ->  | K72: =+IFERROR(VLOOKUP($J72,'11 FORMULAS'!$B$53:$C$53,2,0),"") ->  | N72: =+IFERROR(VLOOKUP($M72,'11 FORMULAS'!$B$54:$C$55,2,0),"") -> 
E73: 6 | K73: =+IFERROR(VLOOKUP($J73,'11 FORMULAS'!$B$53:$C$53,2,0),"") ->  | L73: =+IF(J73="Correctivo","Impacto","") ->  | N73: =+IFERROR(VLOOKUP($M73,'11 FORMULAS'!$B$54:$C$55,2,0),"") ->  | S73: =+IFERROR($K73+$N73,"") -> 
A74: ='2 CONTEXTO E IDENTIFICACIÓN'!A20 -> R12 | B74: =+'2 CONTEXTO E IDENTIFICACIÓN'!J20 -> Posibilidad de afectación económica y reputacional por Manejo inadecuado de la Caja Menor. a causa de Ausencia de conciliaciones y arqueos periódicos | C74: =+'3 PROBABIL E IMPACTO INHERENTE'!E20 -> 60% | D74: =+'3 PROBABIL E IMPACTO INHERENTE'!M20 -> 40% | E74: 1 | F74: El responsable de la Caja menor | G74: debera cumplir con los giguientes requisitos. 1. Resolución interna que regula el uso de caja menor. 2.Designación formal del responsable de la caja menor. 3.Solicitud de soportes contables y comprobantes de pago. 4. Poliza de manejo 5. | H74: Acceder a arqueos esporádicos por parte del área de Contabilidad o Contro Interno. | I74: El responsable de la Caja menor debera cumplir con los giguientes requisitos. 1. Resolución interna que regula el uso de caja menor. 2.Designación formal del responsable de la caja menor. 3.Solicitud de soportes contables y comprobantes de pago. 4. Poliza de manejo 5. Acceder a arqueos esporádicos por parte del área de Contabilidad o Contro Interno. | J74: Correctivo | K74: =+IFERROR(VLOOKUP($J74,'11 FORMULAS'!$B$53:$C$53,2,0),"") -> 10% | L74: Impacto | M74: Manual | N74: =+IFERROR(VLOOKUP($M74,'11 FORMULAS'!$B$54:$C$55,2,0),"") -> 15% | O74: Otros Esquemas | P74: Mensual | Q74: Con registro manual | R74: Interna | S74: 25% | T74: 10% | U74: 30% | V74: 10%
E75: 2 | K75: =+IFERROR(VLOOKUP($J75,'11 FORMULAS'!$B$53:$C$53,2,0),"") ->  | N75: =+IFERROR(VLOOKUP($M75,'11 FORMULAS'!$B$54:$C$55,2,0),"") -> 
E76: 3 | K76: =+IFERROR(VLOOKUP($J76,'11 FORMULAS'!$B$53:$C$53,2,0),"") ->  | N76: =+IFERROR(VLOOKUP($M76,'11 FORMULAS'!$B$54:$C$55,2,0),"") -> 
E77: 4 | K77: =+IFERROR(VLOOKUP($J77,'11 FORMULAS'!$B$53:$C$53,2,0),"") ->  | N77: =+IFERROR(VLOOKUP($M77,'11 FORMULAS'!$B$54:$C$55,2,0),"") -> 
E78: 5 | K78: =+IFERROR(VLOOKUP($J78,'11 FORMULAS'!$B$53:$C$53,2,0),"") ->  | N78: =+IFERROR(VLOOKUP($M78,'11 FORMULAS'!$B$54:$C$55,2,0),"") -> 
E79: 6 | K79: =+IFERROR(VLOOKUP($J79,'11 FORMULAS'!$B$53:$C$53,2,0),"") ->  | N79: =+IFERROR(VLOOKUP($M79,'11 FORMULAS'!$B$54:$C$55,2,0),"") -> 
A80: ='2 CONTEXTO E IDENTIFICACIÓN'!A21 -> R13 | B80: =+'2 CONTEXTO E IDENTIFICACIÓN'!J21 -> Posibilidad de afectación económica y reputacional por No reportes de accidentes e incidentes ante la ARL. a causa de Omisión en la presentación de reportes de accidentes e incidentes ante la ARL. | C80: =+'3 PROBABIL E IMPACTO INHERENTE'!E21 -> 60% | D80: =+'3 PROBABIL E IMPACTO INHERENTE'!M21 -> 60% | E80: 1 | F80: El Lider del SG - SST | G80: realizara capacitación al personal sobre la obligatoriedad y procedimientos de reporte de accidentes e incidentes ocurridos dentro de la institucion | H80: con sensibilización permanente en la cultura de autocuidado y reporte inmediato de incidentes. | I80: El Lider del SG - SST realizara capacitación al personal sobre la obligatoriedad y procedimientos de reporte de accidentes e incidentes ocurridos dentro de la institucion con sensibilización permanente en la cultura de autocuidado y reporte inmediato de incidentes. | J80: Correctivo | K80: =+IFERROR(VLOOKUP($J80,'11 FORMULAS'!$B$53:$C$53,2,0),"") -> 10% | L80: Impacto | M80: Manual | N80: =+IFERROR(VLOOKUP($M80,'11 FORMULAS'!$B$54:$C$55,2,0),"") -> 15% | O80: Otros Esquemas | P80: Semestral | Q80: Con registro manual | R80: Interna | S80: 25% | T80: 15% | U80: 45% | V80: 15%
E81: 2 | K81: =+IFERROR(VLOOKUP($J81,'11 FORMULAS'!$B$53:$C$53,2,0),"") ->  | N81: =+IFERROR(VLOOKUP($M81,'11 FORMULAS'!$B$54:$C$55,2,0),"") -> 
E82: 3 | K82: =+IFERROR(VLOOKUP($J82,'11 FORMULAS'!$B$53:$C$53,2,0),"") ->  | N82: =+IFERROR(VLOOKUP($M82,'11 FORMULAS'!$B$54:$C$55,2,0),"") -> 
E83: 4 | K83: =+IFERROR(VLOOKUP($J83,'11 FORMULAS'!$B$53:$C$53,2,0),"") ->  | N83: =+IFERROR(VLOOKUP($M83,'11 FORMULAS'!$B$54:$C$55,2,0),"") -> 
E84: 5 | K84: =+IFERROR(VLOOKUP($J84,'11 FORMULAS'!$B$53:$C$53,2,0),"") ->  | N84: =+IFERROR(VLOOKUP($M84,'11 FORMULAS'!$B$54:$C$55,2,0),"") ->  | T84: =+IFERROR(D84*S84,"") ->  | U84: =+IFERROR(D84-T84,"") -> 
E85: 6 | K85: =+IFERROR(VLOOKUP($J85,'11 FORMULAS'!$B$53:$C$53,2,0),"") ->  | N85: =+IFERROR(VLOOKUP($M85,'11 FORMULAS'!$B$54:$C$55,2,0),"") -> 
A86: ='2 CONTEXTO E IDENTIFICACIÓN'!A22 -> R14 | B86: =+'2 CONTEXTO E IDENTIFICACIÓN'!J22 -> Posibilidad de afectación económica y reputacional por Omisión o retraso en la actualización de la matriz legal a causa de Posibilidad de omisión o retraso en la actualización de la matriz legal debido a falta del responsable designado. | C86: =+'3 PROBABIL E IMPACTO INHERENTE'!E22 -> 20% | D86: =+'3 PROBABIL E IMPACTO INHERENTE'!M22 -> 60% | E86: 1 | F86: El Alcalde | G86: asignar un responsable formal para la actualización periódica de la Matriz Legal | H86: y se establecera cronograma de revisión trimestral. | I86: El Alcalde asignar un responsable formal para la actualización periódica de la Matriz Legal y se establecera cronograma de revisión trimestral. | J86: Correctivo | K86: =+IFERROR(VLOOKUP($J86,'11 FORMULAS'!$B$53:$C$53,2,0),"") -> 10% | L86: Impacto | M86: Manual | N86: =+IFERROR(VLOOKUP($M86,'11 FORMULAS'!$B$54:$C$55,2,0),"") -> 15% | O86: Otros Esquemas | P86: Semestral | Q86: Con registro manual | R86: Interna | S86: 25% | T86: 15% | U86: 45% | V86: 15%
E87: 2 | K87: =+IFERROR(VLOOKUP($J87,'11 FORMULAS'!$B$53:$C$53,2,0),"") ->  | N87: =+IFERROR(VLOOKUP($M87,'11 FORMULAS'!$B$54:$C$55,2,0),"") -> 
E88: 3 | K88: =+IFERROR(VLOOKUP($J88,'11 FORMULAS'!$B$53:$C$53,2,0),"") ->  | N88: =+IFERROR(VLOOKUP($M88,'11 FORMULAS'!$B$54:$C$55,2,0),"") -> 
E89: 4 | K89: =+IFERROR(VLOOKUP($J89,'11 FORMULAS'!$B$53:$C$53,2,0),"") ->  | N89: =+IFERROR(VLOOKUP($M89,'11 FORMULAS'!$B$54:$C$55,2,0),"") -> 
E90: 5 | K90: =+IFERROR(VLOOKUP($J90,'11 FORMULAS'!$B$53:$C$53,2,0),"") ->  | N90: =+IFERROR(VLOOKUP($M90,'11 FORMULAS'!$B$54:$C$55,2,0),"") -> 
E91: 6 | K91: =+IFERROR(VLOOKUP($J91,'11 FORMULAS'!$B$53:$C$53,2,0),"") ->  | N91: =+IFERROR(VLOOKUP($M91,'11 FORMULAS'!$B$54:$C$55,2,0),"") -> 
A92: ='2 CONTEXTO E IDENTIFICACIÓN'!A23 -> R15 | B92: =+'2 CONTEXTO E IDENTIFICACIÓN'!J23 -> Posibilidad de afectación económica y reputacional por Investigaciones disciplinarias y sanciones por entes de control. a causa de Contratar personal sin el cumplimiento de requisitos | C92: =+'3 PROBABIL E IMPACTO INHERENTE'!E23 -> 60% | D92: =+'3 PROBABIL E IMPACTO INHERENTE'!M23 -> 60% | E92: 1 | K92: =+IFERROR(VLOOKUP($J92,'11 FORMULAS'!$B$53:$C$53,2,0),"") ->  | N92: =+IFERROR(VLOOKUP($M92,'11 FORMULAS'!$B$54:$C$55,2,0),"") -> 
E93: 2 | K93: =+IFERROR(VLOOKUP($J93,'11 FORMULAS'!$B$53:$C$53,2,0),"") ->  | N93: =+IFERROR(VLOOKUP($M93,'11 FORMULAS'!$B$54:$C$55,2,0),"") -> 
E94: 3 | K94: =+IFERROR(VLOOKUP($J94,'11 FORMULAS'!$B$53:$C$53,2,0),"") ->  | N94: =+IFERROR(VLOOKUP($M94,'11 FORMULAS'!$B$54:$C$55,2,0),"") -> 
E95: 4 | K95: =+IFERROR(VLOOKUP($J95,'11 FORMULAS'!$B$53:$C$53,2,0),"") ->  | N95: =+IFERROR(VLOOKUP($M95,'11 FORMULAS'!$B$54:$C$55,2,0),"") -> 
E96: 5 | K96: =+IFERROR(VLOOKUP($J96,'11 FORMULAS'!$B$53:$C$53,2,0),"") ->  | N96: =+IFERROR(VLOOKUP($M96,'11 FORMULAS'!$B$54:$C$55,2,0),"") -> 
E97: 6 | K97: =+IFERROR(VLOOKUP($J97,'11 FORMULAS'!$B$53:$C$53,2,0),"") ->  | N97: =+IFERROR(VLOOKUP($M97,'11 FORMULAS'!$B$54:$C$55,2,0),"") -> 
A98: ='2 CONTEXTO E IDENTIFICACIÓN'!A24 -> R16 | B98: =+'2 CONTEXTO E IDENTIFICACIÓN'!J24 -> Posibilidad de afectación reputacional porInvestigaciones disciplinarias y sanciones por entes de control a causa de Insuficiente participación en los procesos de capacitación y entrenamiento a los servidores públicos para la prestación del servicio, que afecta las competencias y conocimiento interno. | C98: =+'3 PROBABIL E IMPACTO INHERENTE'!E24 -> 60% | D98: =+'3 PROBABIL E IMPACTO INHERENTE'!M24 -> 60% | E98: 1 | F98: El Lider de talento humano | G98: realiza seguimiento a la participación de los servidores públicos en la ejecución del Plan Institucional de Capacitaciones PIC 2025 | H98: que permita promocionar de manera adecuada la formación y llegue a la población objetivo de esta. | I98: El Lider de talento humano realiza seguimiento a la participación de los servidores públicos en la ejecución del Plan Institucional de Capacitaciones PIC 2025 que permita promocionar de manera adecuada la formación y llegue a la población objetivo de esta. | J98: Correctivo | K98: =+IFERROR(VLOOKUP($J98,'11 FORMULAS'!$B$53:$C$53,2,0),"") -> 10% | L98: Impacto | M98: Manual | N98: =+IFERROR(VLOOKUP($M98,'11 FORMULAS'!$B$54:$C$55,2,0),"") -> 15% | O98: Otros Esquemas | P98: Semestral | Q98: Con registro manual | R98: Interna | S98: 25% | T98: 15% | U98: 45% | V98: 15%
E99: 2 | K99: =+IFERROR(VLOOKUP($J99,'11 FORMULAS'!$B$53:$C$53,2,0),"") ->  | N99: =+IFERROR(VLOOKUP($M99,'11 FORMULAS'!$B$54:$C$55,2,0),"") -> 
E100: 3 | K100: =+IFERROR(VLOOKUP($J100,'11 FORMULAS'!$B$53:$C$53,2,0),"") ->  | N100: =+IFERROR(VLOOKUP($M100,'11 FORMULAS'!$B$54:$C$55,2,0),"") -> 
E101: 4 | K101: =+IFERROR(VLOOKUP($J101,'11 FORMULAS'!$B$53:$C$53,2,0),"") ->  | N101: =+IFERROR(VLOOKUP($M101,'11 FORMULAS'!$B$54:$C$55,2,0),"") -> 
E102: 5 | K102: =+IFERROR(VLOOKUP($J102,'11 FORMULAS'!$B$53:$C$53,2,0),"") ->  | N102: =+IFERROR(VLOOKUP($M102,'11 FORMULAS'!$B$54:$C$55,2,0),"") -> 
E103: 6 | K103: =+IFERROR(VLOOKUP($J103,'11 FORMULAS'!$B$53:$C$53,2,0),"") ->  | N103: =+IFERROR(VLOOKUP($M103,'11 FORMULAS'!$B$54:$C$55,2,0),"") -> 
A104: ='2 CONTEXTO E IDENTIFICACIÓN'!A25 -> R17 | B104: =+'2 CONTEXTO E IDENTIFICACIÓN'!J25 -> Posibilidad de afectación económica y reputacional porQueja o reclamo de servidores de la Entidad. a causa de Reporte de novedades fuera de los plazos definidos en el cronograma | C104: =+'3 PROBABIL E IMPACTO INHERENTE'!E25 -> 40% | D104: =+'3 PROBABIL E IMPACTO INHERENTE'!M25 -> 40% | E104: 1 | F104: El Lider de Talento Humano | G104: definira un cronograma riguroso para el reporte de novedades y la liquidación de la nómina. | I104: El Lider de Talento Humano definira un cronograma riguroso para el reporte de novedades y la liquidación de la nómina. | J104: Correctivo | K104: =+IFERROR(VLOOKUP($J104,'11 FORMULAS'!$B$53:$C$53,2,0),"") -> 10% | L104: Impacto | M104: Automático | N104: =+IFERROR(VLOOKUP($M104,'11 FORMULAS'!$B$54:$C$55,2,0),"") -> 25% | O104: Otros Esquemas | P104: Mensual | Q104: Con registro manual | R104: Interna | S104: 35% | T104: 14% | U104: 26% | V104: 14%
E105: 2 | K105: =+IFERROR(VLOOKUP($J105,'11 FORMULAS'!$B$53:$C$53,2,0),"") ->  | N105: =+IFERROR(VLOOKUP($M105,'11 FORMULAS'!$B$54:$C$55,2,0),"") -> 
E106: 3 | K106: =+IFERROR(VLOOKUP($J106,'11 FORMULAS'!$B$53:$C$53,2,0),"") ->  | N106: =+IFERROR(VLOOKUP($M106,'11 FORMULAS'!$B$54:$C$55,2,0),"") -> 
E107: 4 | K107: =+IFERROR(VLOOKUP($J107,'11 FORMULAS'!$B$53:$C$53,2,0),"") ->  | N107: =+IFERROR(VLOOKUP($M107,'11 FORMULAS'!$B$54:$C$55,2,0),"") -> 
E108: 5 | K108: =+IFERROR(VLOOKUP($J108,'11 FORMULAS'!$B$53:$C$53,2,0),"") ->  | N108: =+IFERROR(VLOOKUP($M108,'11 FORMULAS'!$B$54:$C$55,2,0),"") -> 
E109: 6 | K109: =+IFERROR(VLOOKUP($J109,'11 FORMULAS'!$B$53:$C$53,2,0),"") ->  | N109: =+IFERROR(VLOOKUP($M109,'11 FORMULAS'!$B$54:$C$55,2,0),"") -> 
A110: ='2 CONTEXTO E IDENTIFICACIÓN'!A26 -> R18 | B110: =+'2 CONTEXTO E IDENTIFICACIÓN'!J26 -> Posibilidad de afectación económica y reputacional porSanciones e investigaciones de entes de control y judiciales a causa de Omisión en la liquidación y pago de la seguridad social y aportes a parafiscales. | C110: =+'3 PROBABIL E IMPACTO INHERENTE'!E26 -> 40% | D110: =+'3 PROBABIL E IMPACTO INHERENTE'!M26 -> 40% | E110: 1 | F110: El profesional encargado de nómina | G110: valida que el cálculo de la seguridad social del sistema de información sea el mismo que el cálculo manual con base a una muestra aleatoria del 10% de los servidores | H110: mesualmente | I110: El profesional encargado de nómina valida que el cálculo de la seguridad social del sistema de información sea el mismo que el cálculo manual con base a una muestra aleatoria del 10% de los servidores mesualmente | J110: Correctivo | K110: =+IFERROR(VLOOKUP($J110,'11 FORMULAS'!$B$53:$C$53,2,0),"") -> 10% | L110: Impacto | M110: Manual | N110: =+IFERROR(VLOOKUP($M110,'11 FORMULAS'!$B$54:$C$55,2,0),"") -> 15% | O110: Otros Esquemas | P110: Mensual | Q110: Con registro manual | R110: Interna | S110: 25% | T110: 10% | U110: 30% | V110: 10%
E111: 2 | K111: =+IFERROR(VLOOKUP($J111,'11 FORMULAS'!$B$53:$C$53,2,0),"") ->  | N111: =+IFERROR(VLOOKUP($M111,'11 FORMULAS'!$B$54:$C$55,2,0),"") -> 
E112: 3 | K112: =+IFERROR(VLOOKUP($J112,'11 FORMULAS'!$B$53:$C$53,2,0),"") ->  | N112: =+IFERROR(VLOOKUP($M112,'11 FORMULAS'!$B$54:$C$55,2,0),"") -> 
E113: 4 | K113: =+IFERROR(VLOOKUP($J113,'11 FORMULAS'!$B$53:$C$53,2,0),"") ->  | N113: =+IFERROR(VLOOKUP($M113,'11 FORMULAS'!$B$54:$C$55,2,0),"") -> 
E114: 5 | K114: =+IFERROR(VLOOKUP($J114,'11 FORMULAS'!$B$53:$C$53,2,0),"") ->  | N114: =+IFERROR(VLOOKUP($M114,'11 FORMULAS'!$B$54:$C$55,2,0),"") -> 
E115: 6 | K115: =+IFERROR(VLOOKUP($J115,'11 FORMULAS'!$B$53:$C$53,2,0),"") ->  | N115: =+IFERROR(VLOOKUP($M115,'11 FORMULAS'!$B$54:$C$55,2,0),"") -> 
A116: ='2 CONTEXTO E IDENTIFICACIÓN'!A27 -> R19 | B116: =+'2 CONTEXTO E IDENTIFICACIÓN'!J27 -> Posibilidad de afectación económica y reputacional porInformación incompleta o inexacta a causa de Inconsistencias en la emisión de certificación electrónica de tiempos laborados (CETIL). | C116: =+'3 PROBABIL E IMPACTO INHERENTE'!E27 -> 40% | D116: =+'3 PROBABIL E IMPACTO INHERENTE'!M27 -> 60% | E116: 1 | F116: El Lider de Talento Humano | G116: Validara la informacion que reposa en los archivos y Hoja de vida Laboral al momento de firmar electronicamente el certificado | H116: para su envio. | I116: El Lider de Talento Humano Validara la informacion que reposa en los archivos y Hoja de vida Laboral al momento de firmar electronicamente el certificado para su envio. | J116: Correctivo | K116: =+IFERROR(VLOOKUP($J116,'11 FORMULAS'!$B$53:$C$53,2,0),"") -> 10% | L116: Impacto | M116: Manual | N116: =+IFERROR(VLOOKUP($M116,'11 FORMULAS'!$B$54:$C$55,2,0),"") -> 15% | O116: Otros Esquemas | P116: Siempre que se ejecuta la actividad | Q116: Con registro manual | R116: Interna | S116: 25% | T116: =+IFERROR(D116*S116,"") -> 15% | U116: =+IFERROR(D116-T116,"") -> 45% | V116: 15%
E117: 2 | K117: =+IFERROR(VLOOKUP($J117,'11 FORMULAS'!$B$53:$C$53,2,0),"") ->  | N117: =+IFERROR(VLOOKUP($M117,'11 FORMULAS'!$B$54:$C$55,2,0),"") -> 
E118: 3 | K118: =+IFERROR(VLOOKUP($J118,'11 FORMULAS'!$B$53:$C$53,2,0),"") ->  | N118: =+IFERROR(VLOOKUP($M118,'11 FORMULAS'!$B$54:$C$55,2,0),"") -> 
E119: 4 | K119: =+IFERROR(VLOOKUP($J119,'11 FORMULAS'!$B$53:$C$53,2,0),"") ->  | N119: =+IFERROR(VLOOKUP($M119,'11 FORMULAS'!$B$54:$C$55,2,0),"") -> 
E120: 5 | K120: =+IFERROR(VLOOKUP($J120,'11 FORMULAS'!$B$53:$C$53,2,0),"") ->  | N120: =+IFERROR(VLOOKUP($M120,'11 FORMULAS'!$B$54:$C$55,2,0),"") -> 
E121: 6 | K121: =+IFERROR(VLOOKUP($J121,'11 FORMULAS'!$B$53:$C$53,2,0),"") ->  | N121: =+IFERROR(VLOOKUP($M121,'11 FORMULAS'!$B$54:$C$55,2,0),"") -> 
A122: ='2 CONTEXTO E IDENTIFICACIÓN'!A28 -> R20 | B122: =+'2 CONTEXTO E IDENTIFICACIÓN'!J28 -> Posibilidad de efecto dañoso sobre el recurso público porInvestigaciones disciplinarias por la autoridad competente a causa de Fallas en la prestación del servicio por el no cumplimiento a los requisitos minimos del exigidos en la seleccion del Talento Humano. | C122: =+'3 PROBABIL E IMPACTO INHERENTE'!E28 -> 60% | D122: =+'3 PROBABIL E IMPACTO INHERENTE'!M28 -> 80% | E122: 1 | F122: El Lider de Talento Humano | G122: validará la autenticidad de títulos académicos, certificados de experiencia laboral, antecedentes disciplinarios, fiscales, judiciales y demás soportes | H122: exigidos por la normatividad vigente. | I122: El Lider de Talento Humano validará la autenticidad de títulos académicos, certificados de experiencia laboral, antecedentes disciplinarios, fiscales, judiciales y demás soportes exigidos por la normatividad vigente. | J122: Correctivo | K122: =+IFERROR(VLOOKUP($J122,'11 FORMULAS'!$B$53:$C$53,2,0),"") -> 10% | L122: Impacto | M122: Manual | N122: =+IFERROR(VLOOKUP($M122,'11 FORMULAS'!$B$54:$C$55,2,0),"") -> 15% | O122: Otros Esquemas | P122: Semestral | Q122: Con registro manual | R122: Interna | S122: 25% | T122: 20% | U122: 60% | V122: 20%
E123: 2 | F123: El Lider de Talento Humano | G123: realizara revisiones periódicas de las hojas de vida activas, asegurando la actualización de documentos | H123: como certificaciones médicas, cursos de reentrenamiento, o renovaciones de tarjetas profesionales cuando aplique. | I123: El Lider de Talento Humano realizara revisiones periódicas de las hojas de vida activas, asegurando la actualización de documentos como certificaciones médicas, cursos de reentrenamiento, o renovaciones de tarjetas profesionales cuando aplique. | J123: Correctivo | K123: =+IFERROR(VLOOKUP($J123,'11 FORMULAS'!$B$53:$C$53,2,0),"") -> 10% | L123: Impacto | M123: Manual | N123: =+IFERROR(VLOOKUP($M123,'11 FORMULAS'!$B$54:$C$55,2,0),"") -> 15% | O123: Otros Esquemas | P123: Semestral | Q123: Con registro manual | S123: 25% | T123: 0% | U123: 0%
E124: 3 | K124: =+IFERROR(VLOOKUP($J124,'11 FORMULAS'!$B$53:$C$53,2,0),"") ->  | N124: =+IFERROR(VLOOKUP($M124,'11 FORMULAS'!$B$54:$C$55,2,0),"") -> 
E125: 4 | K125: =+IFERROR(VLOOKUP($J125,'11 FORMULAS'!$B$53:$C$53,2,0),"") ->  | N125: =+IFERROR(VLOOKUP($M125,'11 FORMULAS'!$B$54:$C$55,2,0),"") -> 
E126: 5 | K126: =+IFERROR(VLOOKUP($J126,'11 FORMULAS'!$B$53:$C$53,2,0),"") ->  | N126: =+IFERROR(VLOOKUP($M126,'11 FORMULAS'!$B$54:$C$55,2,0),"") -> 
E127: 6 | K127: =+IFERROR(VLOOKUP($J127,'11 FORMULAS'!$B$53:$C$53,2,0),"") ->  | N127: =+IFERROR(VLOOKUP($M127,'11 FORMULAS'!$B$54:$C$55,2,0),"") -> 
A128: ='2 CONTEXTO E IDENTIFICACIÓN'!A29 -> R21 | B128: =+'2 CONTEXTO E IDENTIFICACIÓN'!J29 -> Posibilidad de afectación reputacional por Queja o reclamo de los grupos de valor interno a causa de Actividades del plan de bienestar no ajustadas a las necesidades de los grupos de valor internos | C128: =+'3 PROBABIL E IMPACTO INHERENTE'!E29 -> 60% | D128: =+'3 PROBABIL E IMPACTO INHERENTE'!M29 -> 20% | E128: 1 | F128: Los asesores de Planeacion Institucional | G128: validan que el plan de actividades de bienestar considere las necesidades según la encuesta que realiza el grupo de la Oficina de Talento Humano | I128: =+CONCATENATE(F128," ",G128," ",H128) -> Los asesores de Planeacion Institucional validan que el plan de actividades de bienestar considere las necesidades según la encuesta que realiza el grupo de la Oficina de Talento Humano | J128: Correctivo | K128: =+IFERROR(VLOOKUP($J128,'11 FORMULAS'!$B$53:$C$53,2,0),"") -> 10% | L128: =+IF(J128="Correctivo","Impacto","") -> Impacto | M128: Manual | N128: =+IFERROR(VLOOKUP($M128,'11 FORMULAS'!$B$54:$C$55,2,0),"") -> 15% | O128: Otros Esquemas | P128: Semestral | Q128: Con registro manual | R128: Interna | S128: 25% | T128: =+IFERROR(D128*S128,"") -> 5% | U128: =+IFERROR(D128-T128,"") -> 15% | V128: 5%
E129: 2 | K129: =+IFERROR(VLOOKUP($J129,'11 FORMULAS'!$B$53:$C$53,2,0),"") ->  | N129: =+IFERROR(VLOOKUP($M129,'11 FORMULAS'!$B$54:$C$55,2,0),"") -> 
E130: 3 | K130: =+IFERROR(VLOOKUP($J130,'11 FORMULAS'!$B$53:$C$53,2,0),"") ->  | N130: =+IFERROR(VLOOKUP($M130,'11 FORMULAS'!$B$54:$C$55,2,0),"") -> 
E131: 4 | K131: =+IFERROR(VLOOKUP($J131,'11 FORMULAS'!$B$53:$C$53,2,0),"") ->  | N131: =+IFERROR(VLOOKUP($M131,'11 FORMULAS'!$B$54:$C$55,2,0),"") -> 
E132: 5 | K132: =+IFERROR(VLOOKUP($J132,'11 FORMULAS'!$B$53:$C$53,2,0),"") ->  | N132: =+IFERROR(VLOOKUP($M132,'11 FORMULAS'!$B$54:$C$55,2,0),"") -> 
E133: 6 | K133: =+IFERROR(VLOOKUP($J133,'11 FORMULAS'!$B$53:$C$53,2,0),"") ->  | N133: =+IFERROR(VLOOKUP($M133,'11 FORMULAS'!$B$54:$C$55,2,0),"") -> 
A134: ='2 CONTEXTO E IDENTIFICACIÓN'!A30 -> R22 | B134: =+'2 CONTEXTO E IDENTIFICACIÓN'!J30 -> Posibilidad de afectación económica y reputacional porSanciones de entes reguladores y de control o demandas y quejas de los grupos de valor a causa de incumplimiento de estándares mínimos del Sistema de Gestión en Seguridad y Salud en el Trabajo( SG-SST). | C134: =+'3 PROBABIL E IMPACTO INHERENTE'!E30 -> 60% | D134: =+'3 PROBABIL E IMPACTO INHERENTE'!M30 -> 80% | E134: 1 | F134: El profesional designado en el SG-SST | G134: realiza seguimiento y monitoreo del autoevaluación de cumplimiento de estándares mínimos | H134: y la matriz de objetivos, metas e indicadores del Sistema de Gestión de Seguridad y Salud en el Trabajo. | I134: =+CONCATENATE(F134," ",G134," ",H134) -> El profesional designado en el SG-SST realiza seguimiento y monitoreo del autoevaluación de cumplimiento de estándares mínimos y la matriz de objetivos, metas e indicadores del Sistema de Gestión de Seguridad y Salud en el Trabajo. | J134: Correctivo | K134: =+IFERROR(VLOOKUP($J134,'11 FORMULAS'!$B$53:$C$53,2,0),"") -> 10% | L134: =+IF(J134="Correctivo","Impacto","") -> Impacto | M134: Manual | N134: =+IFERROR(VLOOKUP($M134,'11 FORMULAS'!$B$54:$C$55,2,0),"") -> 15% | O134: Otros Esquemas | P134: Semestral | Q134: Con registro manual | R134: Interna | S134: 25% | T134: =+IFERROR(D134*S134,"") -> 20% | U134: =+IFERROR(D134-T134,"") -> 60% | V134: 20%
E135: 2 | K135: =+IFERROR(VLOOKUP($J135,'11 FORMULAS'!$B$53:$C$53,2,0),"") ->  | N135: =+IFERROR(VLOOKUP($M135,'11 FORMULAS'!$B$54:$C$55,2,0),"") -> 
E136: 3 | K136: =+IFERROR(VLOOKUP($J136,'11 FORMULAS'!$B$53:$C$53,2,0),"") ->  | N136: =+IFERROR(VLOOKUP($M136,'11 FORMULAS'!$B$54:$C$55,2,0),"") -> 
E137: 4 | K137: =+IFERROR(VLOOKUP($J137,'11 FORMULAS'!$B$53:$C$53,2,0),"") ->  | N137: =+IFERROR(VLOOKUP($M137,'11 FORMULAS'!$B$54:$C$55,2,0),"") ->  | S137: =+IFERROR($K137+$N137,"") -> 
E138: 5 | K138: =+IFERROR(VLOOKUP($J138,'11 FORMULAS'!$B$53:$C$53,2,0),"") ->  | N138: =+IFERROR(VLOOKUP($M138,'11 FORMULAS'!$B$54:$C$55,2,0),"") -> 
E139: 6 | K139: =+IFERROR(VLOOKUP($J139,'11 FORMULAS'!$B$53:$C$53,2,0),"") ->  | N139: =+IFERROR(VLOOKUP($M139,'11 FORMULAS'!$B$54:$C$55,2,0),"") -> 
A140: ='2 CONTEXTO E IDENTIFICACIÓN'!A31 -> R23 | B140: =+'2 CONTEXTO E IDENTIFICACIÓN'!J31 -> Posibilidad de afectación económica porProbabilidad de recudo insuficiente por parte de la de cartera a causa de Gestion de recudo insuficiente por parte delos responsables de Cartera y Gerencia. | C140: =+'3 PROBABIL E IMPACTO INHERENTE'!E31 -> 60% | D140: =+'3 PROBABIL E IMPACTO INHERENTE'!M31 -> 80% | E140: 1 | F140: El Lider de facturación | G140: realizara seguimiento a la radicación de cuentas y a los procesos de conciliación periódica con EPS | H140: con el fin de realizar Informes financieros mensuales a la gerencia del estado de la cartera para que se disponga de la gestion de recuperacion que se requiera. | I140: =+CONCATENATE(F140," ",G140," ",H140) -> El Lider de facturación realizara seguimiento a la radicación de cuentas y a los procesos de conciliación periódica con EPS con el fin de realizar Informes financieros mensuales a la gerencia del estado de la cartera para que se disponga de la gestion de recuperacion que se requiera. | J140: Correctivo | K140: =+IFERROR(VLOOKUP($J140,'11 FORMULAS'!$B$53:$C$53,2,0),"") -> 10% | L140: =+IF(J140="Correctivo","Impacto","") -> Impacto | M140: Manual | N140: =+IFERROR(VLOOKUP($M140,'11 FORMULAS'!$B$54:$C$55,2,0),"") -> 15% | O140: Otros Esquemas | P140: Mensual | Q140: Con registro manual | R140: Interna | S140: 25% | T140: =+IFERROR(D140*S140,"") -> 20% | U140: =+IFERROR(D140-T140,"") -> 60% | V140: 20%
E141: 2 | K141: =+IFERROR(VLOOKUP($J141,'11 FORMULAS'!$B$53:$C$53,2,0),"") ->  | N141: =+IFERROR(VLOOKUP($M141,'11 FORMULAS'!$B$54:$C$55,2,0),"") -> 
E142: 3 | K142: =+IFERROR(VLOOKUP($J142,'11 FORMULAS'!$B$53:$C$53,2,0),"") ->  | N142: =+IFERROR(VLOOKUP($M142,'11 FORMULAS'!$B$54:$C$55,2,0),"") -> 
E143: 4 | K143: =+IFERROR(VLOOKUP($J143,'11 FORMULAS'!$B$53:$C$53,2,0),"") ->  | N143: =+IFERROR(VLOOKUP($M143,'11 FORMULAS'!$B$54:$C$55,2,0),"") -> 
E144: 5 | K144: =+IFERROR(VLOOKUP($J144,'11 FORMULAS'!$B$53:$C$53,2,0),"") ->  | N144: =+IFERROR(VLOOKUP($M144,'11 FORMULAS'!$B$54:$C$55,2,0),"") -> 
E145: 6 | K145: =+IFERROR(VLOOKUP($J145,'11 FORMULAS'!$B$53:$C$53,2,0),"") ->  | N145: =+IFERROR(VLOOKUP($M145,'11 FORMULAS'!$B$54:$C$55,2,0),"") -> 
A146: ='2 CONTEXTO E IDENTIFICACIÓN'!A32 -> R24 | B146: =+'2 CONTEXTO E IDENTIFICACIÓN'!J32 -> Posibilidad de afectación económica y reputacional porErrores en la presentacion, informacion a causa de Incumplimiento de no validada y presentada de manera oportuna, veraz, completa y conforme a la normatividad vigente. | C146: =+'3 PROBABIL E IMPACTO INHERENTE'!E32 -> 40% | D146: =+'3 PROBABIL E IMPACTO INHERENTE'!M32 -> 60% | E146: 1 | F146: El Lider de Gestion Financiera | G146: elaborara de un calendario institucional con las fechas de entrega de información a cada ente de control | H146: el cual se consolidara con otras áreas. | I146: =+CONCATENATE(F146," ",G146," ",H146) -> El Lider de Gestion Financiera elaborara de un calendario institucional con las fechas de entrega de información a cada ente de control el cual se consolidara con otras áreas. | J146: Correctivo | K146: =+IFERROR(VLOOKUP($J146,'11 FORMULAS'!$B$53:$C$53,2,0),"") -> 10% | L146: =+IF(J146="Correctivo","Impacto","") -> Impacto | M146: Manual | N146: =+IFERROR(VLOOKUP($M146,'11 FORMULAS'!$B$54:$C$55,2,0),"") -> 15% | O146: Otros Esquemas | P146: Semestral | Q146: Con registro manual | R146: Interna | S146: 25% | T146: =+IFERROR(D146*S146,"") -> 15% | U146: =+IFERROR(D146-T146,"") -> 45% | V146: 15%
E147: 2 | K147: =+IFERROR(VLOOKUP($J147,'11 FORMULAS'!$B$53:$C$53,2,0),"") ->  | N147: =+IFERROR(VLOOKUP($M147,'11 FORMULAS'!$B$54:$C$55,2,0),"") -> 
E148: 3 | K148: =+IFERROR(VLOOKUP($J148,'11 FORMULAS'!$B$53:$C$53,2,0),"") ->  | N148: =+IFERROR(VLOOKUP($M148,'11 FORMULAS'!$B$54:$C$55,2,0),"") -> 
E149: 4 | K149: =+IFERROR(VLOOKUP($J149,'11 FORMULAS'!$B$53:$C$53,2,0),"") ->  | N149: =+IFERROR(VLOOKUP($M149,'11 FORMULAS'!$B$54:$C$55,2,0),"") -> 
E150: 5 | K150: =+IFERROR(VLOOKUP($J150,'11 FORMULAS'!$B$53:$C$53,2,0),"") ->  | N150: =+IFERROR(VLOOKUP($M150,'11 FORMULAS'!$B$54:$C$55,2,0),"") -> 
E151: 6 | K151: =+IFERROR(VLOOKUP($J151,'11 FORMULAS'!$B$53:$C$53,2,0),"") ->  | N151: =+IFERROR(VLOOKUP($M151,'11 FORMULAS'!$B$54:$C$55,2,0),"") -> 
A152: ='2 CONTEXTO E IDENTIFICACIÓN'!A33 -> R25 | B152: =+'2 CONTEXTO E IDENTIFICACIÓN'!J33 -> Posibilidad de afectación económica y reputacional porErrores o inconsistencias en la elaboración de los estados financieros a causa de Omisión de políticas contables actualizadas conforme a la normatividad vigente (NIIF para entidades públicas en salud). | C152: =+'3 PROBABIL E IMPACTO INHERENTE'!E33 -> 40% | D152: =+'3 PROBABIL E IMPACTO INHERENTE'!M33 -> 60% | E152: 1 | F152: El Lider de contabilidad | G152: realizara induccion y re induccion periódica al personal vinculado a este proceso en normatividad financiera y manejo del sistema contable | H152: asi mismo revisara e informara si hay que actualizar e implementar políticas contables alineadas con la normatividad vigente. | I152: =+CONCATENATE(F152," ",G152," ",H152) -> El Lider de contabilidad realizara induccion y re induccion periódica al personal vinculado a este proceso en normatividad financiera y manejo del sistema contable asi mismo revisara e informara si hay que actualizar e implementar políticas contables alineadas con la normatividad vigente. | J152: Correctivo | K152: =+IFERROR(VLOOKUP($J152,'11 FORMULAS'!$B$53:$C$53,2,0),"") -> 10% | L152: =+IF(J152="Correctivo","Impacto","") -> Impacto | M152: Manual | N152: =+IFERROR(VLOOKUP($M152,'11 FORMULAS'!$B$54:$C$55,2,0),"") -> 15% | O152: Otros Esquemas | P152: Semestral | Q152: Con registro manual | R152: Interna | S152: 25% | T152: =+IFERROR(D152*S152,"") -> 15% | U152: =+IFERROR(D152-T152,"") -> 45% | V152: 15%
E153: 2 | K153: =+IFERROR(VLOOKUP($J153,'11 FORMULAS'!$B$53:$C$53,2,0),"") ->  | N153: =+IFERROR(VLOOKUP($M153,'11 FORMULAS'!$B$54:$C$55,2,0),"") -> 
E154: 3 | K154: =+IFERROR(VLOOKUP($J154,'11 FORMULAS'!$B$53:$C$53,2,0),"") ->  | N154: =+IFERROR(VLOOKUP($M154,'11 FORMULAS'!$B$54:$C$55,2,0),"") -> 
E155: 4 | K155: =+IFERROR(VLOOKUP($J155,'11 FORMULAS'!$B$53:$C$53,2,0),"") ->  | N155: =+IFERROR(VLOOKUP($M155,'11 FORMULAS'!$B$54:$C$55,2,0),"") -> 
E156: 5 | K156: =+IFERROR(VLOOKUP($J156,'11 FORMULAS'!$B$53:$C$53,2,0),"") ->  | N156: =+IFERROR(VLOOKUP($M156,'11 FORMULAS'!$B$54:$C$55,2,0),"") -> 
